Workbook

Sheet CAPA
B1: SPARTA | C1: Ver. | R1: DF | S1: Sudeste/Centro Oeste
B2: Helenístico | C2: 0.93 | M2: =C23 -> 115 | N2: 32
C3: Macro Ver.
C4: 3.45
B6: ETO | L6: CodigoSamp | M6: Empresa | N6: Nome Completo | O6: IdSgtAg | P6: CodigoSamp | Q6: Coluna1 | R6: Financeiro 243 (TUSD) | S6: Databse Fin. 243
B7: =VLOOKUP(B6,TabEmpresas[],2,FALSE) -> Energisa Tocantis | C7: Revisão | G7: Últ. Atualização | L7: 396 | M7: AES SUL | N7: AES-SUL - AES SUL Distribuidora Gaúcha de Energia S/A. | O7: 101 | P7: 396
B8: CÓDIGO DA EMPRESA | C8: ="D" & TEXT(C23-100,"00") -> D15 | F8: Info iniciais | G8: 2020-06-10T16:09:12 | L8: 7019 | M8: AME | N8: Amazonas Distribuidora de Energia S/A | O8: 102 | P8: 7019
B9: Data do Reajuste/Revisão Anterior | C9: 43650 | F9: Energia do ano anterior (CM compra, MWh Mercado, R$ Mercado) | L9: 383 | M9: AMPLA | N9: AMPLA - Ampla Energia e Serviços S/A | O9: 103 | P9: 383
B10: Data de Reajuste/Revisão em Processamento | C10: 44016 | F10: Perda de RB /Perdas Regulatórias /TUSDgONS-RB | L10: 391 | M10: BANDEIRANTE | N10: BANDEIRANTE - Bandeirante Energia S/A. | O10: 104 | P10: 391
F11: Financeiros ano anterior (CVA 5º dia útil, RTE restante) | L11: 370 | M11: BOAVISTA | N11: Boa Vista - Boa Vista Energia S/A | O11: 105 | P11: 370
F12: Encargos ano anterior (não RTE) | L12: 386 | M12: BRAGANTINA | N12: BRAGANTINA- Empresa Elétrica Bragantina S/A. | O12: 142 | P12: 386
F13: Dados da Revisão, Fator X e DecFec | L13: 5216 | M13: CAIUA | N13: CAIUÁ-D - Caiuá Distribuição de Energia S/A | O13: 106 | P13: 5216
F14: Previsão de Subsidios dos Processos Anteriores | L14: 31 | M14: CEA | N14: CEA - Companhia de Eletricidade do Amapá | O14: 107 | P14: 31
B15: Período de Referencia final | C15: =DATE(YEAR($C$10),MONTH($C$10)-1,1) -> 43983 | F15: Conexão ano anterior | L15: 44 | M15: CEAL | N15: CEAL - Companhia Energética de Alagoas | O15: 108 | P15: 44
B16: Período de Referencia inicial | C16: =DATE(YEAR($C$10)-1,MONTH($C$10),1) -> 43647 | F16: Energia (CCEAR, Bil., Itaipu) | G16: 2020-06-25T16:31:22 | L16: 5160 | M16: CEB | N16: CEB-DIS - CEB Distribuição S/A | O16: 109 | P16: 5160
B17: Índice IGPM na data Revisão/Reajuste | C17: =VLOOKUP(C15,Índices!$B$7:$F$500,2,FALSE) -> 787.614632 | F17: CCEAR | L17: 5707 | M17: CEEE | N17: CEEE-D - Companhia Estadual de Distribuição de Energia Elétrica | O17: 110 | P17: 5707
B18: Índice IPCA na data Revisão/Reajuste | C18: =VLOOKUP(C15,Índices!$B$7:$F$500,3,FALSE) -> 5321.21097 | L18: 5697 | M18: CELESC | N18: CELESC-DIS - Celesc Distribuição S.A. | O18: 111 | P18: 5697
B19: IGPM para o período de Referência | C19: =VLOOKUP(DATE(YEAR($C$10),MONTH($C$10)-1,1),Índices!$B$7:$F$500,2,FALSE)/VLOOKUP(DATE(YEAR($C$9),MONTH($C$9)-1,1),Índices!$B$7:$F$500,2,FALSE)-1 -> 0.06662003383 | F19: Itaipu (Energia, Transporte, MUST) | L19: 6072 | M19: CELG | N19: CELG-D - Celg Distribuição S.A. | O19: 112 | P19: 6072
B20: IPCA para o período de Referência | C20: =VLOOKUP(DATE(YEAR(C10),MONTH(C10)-1,1),Índices!$B$7:$F$500,3,FALSE)/VLOOKUP(DATE(YEAR($C$9),MONTH($C$9)-1,1),Índices!$B$7:$F$500,3,FALSE)-1 -> 0.02050928893 | F20: Cotas Lei/Angra | L20: 371 | M20: CELPA | N20: CELPA - Centrais Elétricas do Pará S/A. | O20: 113 | P20: 371
B21: Dados Gerenciais | F21: Encargos DRP | G21: 2020-06-21T22:41:07 | L21: 43 | M21: CELPE | N21: CELPE - Companhia Energética de Pernambuco | O21: 114 | P21: 43
B22: IdAgente | C22: =VLOOKUP(B6,TabEmpresas[],4,FALSE) -> 32 | F22: Indicadores Econômicos / Dólar | G22: 2020-06-23T12:18:26 | L22: 32 | M22: ETO | N22: Energisa Tocantis | O22: 115 | P22: 32
B23: ID Concessão | C23: =VLOOKUP(B6,TabEmpresas[],3,FALSE) -> 115 | F23: Tudo de Mercado | G23: 2020-06-16T11:22:00 | L23: 37 | M23: CEMAR | N23: CEMAR - Companhia Energética do Maranhão | O23: 116 | P23: 37
F24: Rede Básica e Conexão | G24: 2020-06-22T08:27:17 | L24: 405 | M24: CEMAT | N24: CEMAT - Centrais Elétricas Matogrossenses S/A. | O24: 117 | P24: 405
B25: Quadro para vínculos | F25: Histórico de Tarifas B1 Residencial | G25: 2020-06-16T11:24:56 | L25: 4950 | M25: CEMIG | N25: CEMIG-D - CEMIG Distribuição S/A | O25: 118 | P25: 4950
B26: Descrição | C26: valor | F26: CVA | G26: 2020-06-21T22:41:07 | L26: 38 | M26: CEPISA | N26: CEPISA - Companhia Energética do Piauí | O26: 119 | P26: 38
B27: (Exemplo) Efeito Consumidor Geral | C27: =LnkTxtEfeito -> 0.07171691872 | L27: 369 | M27: CERON | N27: CERON - Centrais Elétricas de Rondônia S/A. | O27: 120 | P27: 369
B28: Contrato de concessão | C28: 052/1999 | L28: 28 | M28: CERR | N28: CERR - Companhia Energética de Roraima | O28: 121 | P28: 28
C29: 48500.006738/2019-94 | L29: 103 | M29: CHESP | N29: CHESP - Companhia Hidroelétrica São Patrício | O29: 123 | P29: 103
B30: Período de Referencia | C30: =TEXT(C16,"mmmm/aaaa")& " a "&TEXT(C15,"mmmm/aaaa") -> julho/2019 a junho/2020 | L30: 75 | M30: CNEE | N30: CNEE - Companhia Nacional de Energia Elétrica | O30: 127 | P30: 75
B31: Neutralidade Total | L31: 82 | M31: COCEL | N31: COCEL - Companhia Campolarguense de Energia | O31: 128 | P31: 82
B32: CVA Saldo a Compensar | C32: =SUM(Financeiros!D27:D43) -> 2729043.399 | L32: 47 | M32: COELBA | N32: COELBA - Companhia de Eletricidade do Estado da Bahia | O32: 129 | P32: 47
B33: Reversão CDE | L33: 39 | M33: COELCE | N33: COELCE - Companhia Energética do Ceará | O33: 130 | P33: 39
L34: 2904 | M34: COOPERALIANÇA | N34: COOPERALIANÇA - Cooperativa Aliança | O34: 131 | P34: 2904
L35: 2866 | M35: COPEL | N35: COPEL-DIS - Copel Distribuição S/A | O35: 132 | P35: 2866
L36: 40 | M36: COSERN | N36: COSERN - Companhia Energética do Rio Grande do Norte | O36: 133 | P36: 40
L37: 69 | M37: CPFL Jaguari | N37: CPFL Jaguari - Companhia Jaguari de Energia | O37: 124 | P37: 69
L38: 71 | M38: CPFL Leste Paulista | N38: =TabEmpresas[[#This Row],[Empresa]]&" - Companhia Leste Paulista de Energia " -> CPFL Leste Paulista - Companhia Leste Paulista de Energia | O38: 134 | P38: 71
L39: 70 | M39: CPFL Mococa | N39: =TabEmpresas[[#This Row],[Empresa]]&" - Companhia Luz e Força de Mococa " -> CPFL Mococa - Companhia Luz e Força de Mococa | O39: 125 | P39: 70
L40: 72 | M40: CPFL Santa Cruz | N40: =TabEmpresas[[#This Row],[Empresa]]&" - Companhia Luz e Força Santa Cruz " -> CPFL Santa Cruz - Companhia Luz e Força Santa Cruz | O40: 126 | P40: 72
L41: 73 | M41: CPFL Sul Paulista | N41: =TabEmpresas[[#This Row],[Empresa]]&" - Companhia Sul Paulista de Energia " -> CPFL Sul Paulista - Companhia Sul Paulista de Energia | O41: 137 | P41: 73
L42: 63 | M42: CPFL Paulista | N42: CPFL-Paulista - Companhia Paulista de Força e Luz | O42: 136 | P42: 63
L43: 2937 | M43: CPFL Piratininga | N43: CPFL- Piratininga - Companhia Piratininga de Força e Luz | O43: 135 | P43: 2937
L44: 95 | M44: DEMEI | N44: DEMEI - Departamento Municipal de Energia de Ijuí | O44: 138 | P44: 95
L45: 51 | M45: DMED | N45: =TabEmpresas[[#This Row],[Empresa]]&" - DME Distribuição S.A" -> DMED - DME Distribuição S.A | O45: 139 | P45: 51
L46: 6611 | M46: EBO | N46: EBO - Energisa Borborema – Distribuidora de Energia S.A. | O46: 140 | P46: 6611
L47: 5217 | M47: EDEVP | N47: EDEVP - Empresa de Distribuição de Energia Vale Paranapanema S/A | O47: 141 | P47: 5217
L48: 385 | M48: ELEKTRO | N48: ELEKTRO - Elektro Eletricidade e Serviços S/A. | O48: 145 | P48: 385
L49: 26 | M49: ELETROACRE | N49: ELETROACRE - Companhia de Eletricidade do Acre | O49: 146 | P49: 26
L50: 398 | M50: ELETROCAR | N50: ELETROCAR - Centrais Elétricas de Carazinho S/A. | O50: 147 | P50: 398
L51: 390 | M51: ELETROPAULO | N51: ELETROPAULO - Eletropaulo Metropolitana Eletricidade de São Paulo S/A | O51: 148 | P51: 390
L52: 6585 | M52: EMG | N52: EMG - Energisa Minas Gerais - Distribuidora de Energia S.A. | O52: 150 | P52: 6585
L53: 404 | M53: ENERSUL | N53: ENERSUL - Empresa Energética de Mato Grosso do Sul S/A. | O53: 151 | P53: 404
L54: 6612 | M54: ENF | N54: ENF - Energisa Nova Friburgo - Distribuidora de Energia S.A. | O54: 152 | P54: 6612
L55: 6600 | M55: EPB | N55: EPB - Energisa Paraíba - Distribuidora de Energia | O55: 153 | P55: 6600
L56: 380 | M56: ESCELSA | N56: ESCELSA - Espírito Santo Centrais Elétricas S/A. | O56: 154 | P56: 380
L57: 6587 | M57: ESE | N57: ESE - Energisa Sergipe - Distribuidora de Energia S.A. | O57: 155 | P57: 6587
L58: 83 | M58: FORCEL | N58: FORCEL - Força e Luz Coronel Vivida Ltda | O58: 156 | P58: 83
L59: 399 | M59: HIDROPAN | N59: HIDROPAN - Hidroelétrica Panambi S/A. | O59: 157 | P59: 399
L60: 87 | M60: IENERGIA | N60: IENERGIA - Iguaçu Distribuidora de Energia Elétrica Ltda | O60: 158 | P60: 87
L61: 213 | M61: JARI | N61: JARI - Jari Celulose S/A | O61: 159 | P61: 213
L62: 88 | M62: JOÃO CESA | N62: JOÃO CESA - Empresa Força e Luz João Cesa Ltda | O62: 143 | P62: 88
L63: 382 | M63: LIGHT | N63: LIGHT - Light Serviços de Eletricidade S/A. | O63: 160 | P63: 382
L64: 401 | M64: MUX Energia | N64: MUX Energia - Muxfeldt Marin & Cia. Ltda | O64: 161 | P64: 401
L65: 84 | M65: OESTE | N65: CFLO - Companhia Força e Luz do Oeste | O65: 122 | P65: 84
L66: 397 | M66: RGE | N66: RGE - Rio Grande Energia S/A. | O66: 162 | P66: 397
L67: 381 | M67: SANTA MARIA | N67: SANTA MARIA - Empresa Luz e Força Santa Maria S/A. | O67: 149 | P67: 381
L68: 46 | M68: SULGIPE | N68: SULGIPE - Companhia Sul Sergipana de Eletricidade | O68: 163 | P68: 46
L69: 400 | M69: UHENPAL | N69: UHENPAL - Usina Hidroelétrica Nova Palma Ltda. | O69: 164 | P69: 400
L70: 86 | M70: URUSSANGA | N70: URUSSANGA - Empresa Força e Luz Urussanga Ltda | O70: 144 | P70: 86
L71: 1000040 | M71: ENERGISA Sul Sudeste | N71: ENERGISA SUL SUDESTE | O71: 165 | P71: 1000040
L72: 1000041 | M72: NOVA SANTA CRUZ | N72: NOVA SANTA CRUZ | O72: 166 | P72: 1000041

Sheet SPARTA ADMIN (hidden)
A1: ABA RESERVADA AO DESENVOLVEDORES DO SPARTA Sabemos que você ia aparecer por aqui. Saciou sua curiosidade? Melhor não fuçar mais, ou poderá prejudicar seriamente sua análise. Então, oculte essa aba e volte a trabalhar!! | AD1: Matrix Alternativa
AD2: Matrix Oficial
A4: O que deseja??
A5: Matrix Oficial
A6: Endereço da Matrix Alternativa
A7: \\corporativo\SGT\Gestão da Informação\Sistemas\SPARTA\Matrix
A8: Nome da Matrix Alternativa
A9: SPARTAparaJorge.xlsm
A10: Estado do Direcionamento

Sheet Entrada
A1: Entrada de parâmetros para cálculo tarifário
B4: Energia | D4: Últ. Atulização | F4: Parâmetros para Revisão | M4: =+CAPA!C20 -> 0.02050928893 | P4: ="Caso de OR para a empresa é: " &IF(BD!C53=4,"caso 1","caso 3") -> Caso de OR para a empresa é: caso 3
D6: 43308 | F6: CAPEX - Ativos de Distribuição | J6: Custo Operacional Real do(s) último(s) ano(s) | P6: Outras Receitas - Caso 1 e 2
B7: Montante de Geração Própria | D7: 43308 | F7: (1) Ativo Imobilizado em Serviço (Valor Novo de Reposição) | G7: =C14*$D$13 -> 4304184896 | H7: 43998 | J7: Ano do Custo Operacional | L7: 2018 | M7: 2019 | P7: Tipo de Receita | Q7: =UDEROR!G12 -> 2020-06-01 | R7: =UDEROR!H12 -> 2020-05-01 | S7: =UDEROR!I12 -> 2020-04-01 | T7: =UDEROR!J12 -> 2020-03-01 | U7: =UDEROR!K12 -> 2020-02-01 | V7: =UDEROR!L12 -> 2020-01-01 | W7: =UDEROR!M12 -> 2019-12-01 | X7: =UDEROR!N12 -> 2019-11-01 | Y7: =UDEROR!O12 -> 2019-10-01 | Z7: =UDEROR!P12 -> 2019-09-01 | AA7: =UDEROR!Q12 -> 2019-08-01 | AB7: =UDEROR!R12 -> 2019-07-01 | AC7: =UDEROR!S12 -> 00:00:00 | AD7: =UDEROR!T12 -> 00:00:00 | AE7: =UDEROR!U12 -> 00:00:00 | AF7: =UDEROR!V12 -> 00:00:00 | AG7: =UDEROR!W12 -> 00:00:00 | AH7: =UDEROR!X12 -> 00:00:00 | AI7: =UDEROR!Y12 -> 00:00:00 | AJ7: =UDEROR!Z12 -> 00:00:00 | AK7: =UDEROR!AA12 -> 00:00:00 | AL7: =UDEROR!AB12 -> 00:00:00 | AM7: =UDEROR!AC12 -> 00:00:00 | AN7: =UDEROR!AD12 -> 00:00:00 | AO7: =UDEROR!AE12 -> 00:00:00 | AP7: =UDEROR!AF12 -> 00:00:00 | AQ7: =UDEROR!AG12 -> 00:00:00 | AR7: =UDEROR!AH12 -> 00:00:00 | AS7: =UDEROR!AI12 -> 00:00:00 | AT7: =UDEROR!AJ12 -> 00:00:00 | AU7: =UDEROR!AK12 -> 00:00:00 | AV7: =UDEROR!AL12 -> 00:00:00 | AW7: =UDEROR!AM12 -> 00:00:00 | AX7: =UDEROR!AN12 -> 00:00:00 | AY7: =UDEROR!AO12 -> 00:00:00 | AZ7: =UDEROR!AP12 -> 00:00:00 | BA7: =UDEROR!AQ12 -> 00:00:00 | BB7: =UDEROR!AR12 -> 00:00:00 | BC7: =UDEROR!AS12 -> 00:00:00 | BD7: =UDEROR!AT12 -> 00:00:00
B8: Custo médio da Geração Própria | D8: 44004 | F8: (2) Índice de Aproveitamento Integral | G8: =C15*$D$13 -> 17687387.32 | H8: 43998 | J8: CONTA PESSOAL | P8: Serviços Cobráveis | Q8: =R8 -> 34137.17 | R8: 34137.17 | S8: 67026.25 | T8: 145845.64 | U8: 139350.66 | V8: 182140.99 | W8: 179453.64 | X8: 164967.63 | Y8: 150194.1 | Z8: 176489.44 | AA8: 177711.04 | AB8: 180735.34
D9: 44004 | F9: (3) Obrigações Especiais Bruta | G9: 1827145052 | H9: 43998 | J9: BMP - 610530501; 610550501; 610532501; 610552501 | K9: Remuneração | L9: 40909815.29 | M9: 44790279.14 | P9: Arrecadação de convênios ou valores pela fatura | Q9: =R9 -> 368973.99 | R9: 368973.99 | S9: 417108.54 | T9: 446928.24 | U9: 409887.24 | V9: 453601.77 | W9: 461762.23 | X9: 426616.97 | Y9: 436495.43 | Z9: 429418.04 | AA9: 1104044.47 | AB9: 452792.78
D10: 44004 | F10: (4) Bens Totalmente Depreciados | G10: 454613072.3 | H10: 43998 | J10: BMP - 610530502; 610550502; 610532502; 610552502 | K10: Encargos | L10: 20380438.81 | M10: 22089843.66 | P10: Arrecadação de faturas de terceiros por estrutura própria
F11: (5) Base de Remuneração Bruta = (1)-(2)-(3)-(4) | G11: =+G7-G8-G9-G10 -> 2004739384 | H11: 43868 | J11: BMP - 610530503; 610550503; 610532503; 610552503 | K11: Previdência Privada - Corrente | L11: 2231363.39 | M11: 2435995.31 | P11: Veiculação de publicidade
F12: (6) Depreciação Acumulada | G12: =C19*$D$13 -> 1835221740 | H12: 43998 | J12: BMP - 610530508; 610550508; 610532508; 610552508 | K12: Outros Benefícios | L12: 25840668.05 | M12: 28135102.41 | P12: Aluguel ou cessão onerosa de imóveis e espaços físicos
C13: 43861 | D13: =Índices!D380/Índices!D375 -> 0.9980851199 | F13: (7) AIS Líquido (Valor de Mercado em Uso) | G13: =+G7-G12 -> 2468963156 | H13: 43868 | J13: BMP - 610530506; 610550506; 610532506; 610552506 | K13: Despesas Rescisórias | L13: 283 | M13: 0 | P13: Compartilhamento de infraestrutura | Q13: =R13 -> 799964.14 | R13: 799964.14 | S13: 748392.36 | T13: 845337.84 | U13: 775012.28 | V13: 844611.23 | W13: 988827.65 | X13: 947896.39 | Y13: -111538.74 | Z13: 720497.79 | AA13: 967097.68 | AB13: 870740.62
B14: (1) Ativo Imobilizado em Serviço (Valor Novo de Reposição) | C14: 4312442707 | F14: (8) Índice de Aproveitamento Depreciado | G14: =C21*$D$13 -> 9113867.504 | H14: 43998 | J14: BMP - 610530507; 610550507; 610532507; 610552507 | K14: Participação nos Lucros e Resultados - PLR | L14: 10669782.45 | M14: 10226046.67 | P14: Serviços de avaliação técnica e aferição de medidores.
B15: (2) Índice de Aproveitamento Integral | C15: 17721321.53 | F15: (9) Valor da Base de Remuneração (VBR) | G15: =+G13-G14 -> 2459849288 | H15: 43868 | J15: BMP - 610530599; 610550599; 610532599; 610552599 | K15: Outros | L15: 8811658.83 | M15: 0 | P15: Operacionalização de serviço de créditos tributários
B16: (3) Obrigações Especiais Bruta | C16: 1830650528 | D16: 43997 | F16: (10) Almoxarifado em Operação | G16: =C23*$D$13 -> 11587215.46 | H16: 43998 | J16: BMP - 610530510; 610550510; 610532510; 610552510 | K16: (-) Créditos de Tributos Recuperáveis | L16: 0 | M16: 0 | P16: Elaboração de projeto, construção, operação, manutenção ou reforma de:
B17: (4) Bens Totalmente Depreciados | C17: 455485272 | D17: 43997 | F17: (11) Ativo Diferido | G17: =C24*$D$13 -> 0 | H17: 43912 | J17: BMP - 6105306; 6105506; 6105326; 6105526 | K17: Administradores | L17: 3609859.86 | M17: 4558115.35 | P17: (1) redes de distribuição de energia elétrica destinadas à regularização fundiária de interesse específico e ao atendimento dos empreendimentos de múltiplas unidades consumidoras;
B18: (5) Base de Remuneração Bruta = (1)-(2)-(3)-(4) | C18: =C14-C15-C16-C17 -> 2008585585 | D18: 43997 | F18: (12) Obrigações Especiais Líquida | G18: =C25*$D$13 -> 1115832938 | H18: 43912 | K18: Subtotal | L18: 112453869.7 | M18: 112235382.5 | P18: (2) redes de energia elétrica destinadas ao acesso dos sistemas de distribuição ou transmissão;
B19: (6) Depreciação Acumulada | C19: 1838742712 | D19: 43997 | F19: (13) Terrenos e Servidões | G19: =C26*$D$13 -> 14852238.27 | H19: 43912 | J19: CONTA MATERIAIS | P19: (3) subestações de energia;
B20: (7) AIS Líquido (Valor de Mercado em Uso) | C20: 2473699995 | F20: (14) Base de Rem. Líquida Total = (1)-(6)-(8)+(10)+(11)-(12)+(13) | G20: =+G15+G16+G17-G18+G19 -> 1370455804 | H20: 43868 | J20: BMP - 610530701; 610550701; 610532701; 610552701 | K20: Materiais | L20: 18616126.47 | M20: 23363595.49 | P20: (4) instalações elétricas internas de unidades consumidoras;
B21: (8) Índice de Aproveitamento Depreciado | C21: 9131352.95 | F21: (15) Saldo RGR PLPT | G21: =+C28 -> 0 | H21: 43868 | J21: BMP - 610530799; 610550799; 610532799; 610552799 | K21: Outros | L21: 5568249.39 | M21: 5613782.68 | P21: (5) banco de capacitores:
B22: (9) Valor da Base de Remuneração (VBR) | C22: =C20-C21 -> 2464568642 | D22: =A19 -> 0 | F22: (16) Saldo RGR Demais Investimentos | G22: =+C29 -> 0 | H22: 43868 | J22: BMP - 610530710; 610550710; 610532710; 610552710 | K22: (-) Créditos de Tributos Recuperáveis | L22: -687799.1 | M22: -785493.42 | P22: (6) padrões de entrada de unidades consumidoras atendidas em baixa tensão;
B23: (10) Almoxarifado em Operação | C23: 11609446.16 | F23: (17) Taxa de Depreciação | G23: =+C30 -> 0.0372 | H23: 43868 | K23: Subtotal | L23: 23496576.76 | M23: 28191884.75 | P23: (7) sistemas de medição de energia elétrica;
B24: (11) Ativo Diferido | C24: 0 | F24: (18) Quota de Reintegração Regulatória = (5) * (17) | G24: =+G11*G23 -> 74576305.1 | H24: 43868 | J24: CONTA TERCEIROS | P24: (8) geradores, incluindo-se unidades de microgeração e minigeração distribuída;
B25: (12) Obrigações Especiais Líquida | C25: 1117973723 | D25: 43997 | J25: RIT - RP 800 - Célula F20 | K25: Manut. e Conserv. Bens e Instalações vinculadas ao Serviço Concedido | L25: 41463128.15 | M25: 35540732.38 | P25: (9) sistemas de iluminação pública.
B26: (13) Terrenos e Servidões | C26: 14880733.09 | D26: 43912 | F26: Gasto do Conselho de Consumidores | J26: RIT - RP 800 - Célula F21 | K26: Auditoria e Consultoria | L26: 9715556.59 | M26: 11037201.01 | P26: Eficientização do consumo de energia elétrica e instalação de cogeração qualificada, desde que não enquadráveis nos projetos de Pesquisa e Desenvolvimento (P&D) ou de Eficiência Energética estabelecidos em lei
B27: (14) Base de Rem. Líquida Total = (1)-(6)-(8)+(10)+(11)-(12)+(13) | C27: =((+C14-C19-C21+C23+C24-C25+C26)) -> 1373085098 | D27: 43912 | F27: =Indexador!D132 -> Despesa 2019 | G27: =+(G28+G29+G30)/3 -> 161195.3767 | H27: 43908 | J27: RIT - RP 800 - Célula F22 | K27: Serviços Jurídicos | L27: 670104.82 | M27: 2484040.04 | P27: Serviços de comunicação de dados
B28: (15) Saldo RGR PLPT | D28: 43912 | F28: =Indexador!E132 -> Despesa 2018 | G28: 251542.53 | H28: 43908 | J28: RIT - RP 800 - Célula F23 | K28: Serviços de Informática | L28: 6343788.87 | M28: 4161491.78 | P28: Serviços de consultoria
B29: (16) Saldo RGR Demais Investimentos | C29: 0 | D29: 43868 | F29: =Indexador!F132 -> Despesa 2017 | G29: 93231.4 | H29: 43908 | J29: RIT - RP 800 - Célula F26 | K29: Viagens (Passagens Aéreas, etc) | L29: 4985089.81 | M29: 5933542.33 | P29: Receita proveniente da comercialização de resultados de projetos de P&D
B30: (17) Taxa de Depreciação | C30: 0.0372 | F30: =Indexador!G132 -> Despesa 2016 | G30: 138812.2 | H30: 43908 | J30: RIT - RP 800 - Célula F27 | K30: Transportes (inclui Fretes) | L30: 2655073.72 | M30: 2111839.06
B31: (18) Quota de Reintegração Regulatória = (5) * (17) | C31: =+C18*C30 -> 74719383.76 | J31: RIT - RP 800 - Célula F28 | K31: Propaganda e Publicidade (exceto Publicações Oficiais) | L31: 421868.12 | M31: 153510.57 | P31: Outras Receitas - Caso 3
F32: Perdas Regulatórias | J32: RIT - RP 800 - Célula F29 | K32: Publicações Oficiais | L32: 259698.22 | M32: 253857.49 | P32: Alíquota ISS
F33: Perdas Não Técnicas | G33: 0.03712379248 | H33: 43998 | J33: RIT - RP 800 - Célula F30 | K33: Serviço de Engenharia e Supervisão de Obras | L33: 0 | M33: 0
F34: Perdas Técnicas | G34: 0.11492 | H34: 43998 | J34: RIT - RP 800 - Célula F31 | K34: Gestão Comercial | L34: 4829102.58 | M34: 4244317.48 | P34: Tipo de Receita | Q34: =Q7 -> 2020-06-01 | R34: 2020-05-01 | S34: 2020-04-01 | T34: 2020-03-01 | U34: 2020-02-01 | V34: 2020-01-01 | W34: 2019-12-01 | X34: 2019-11-01 | Y34: 2019-10-01 | Z34: 2019-09-01 | AA34: 2019-08-01 | AB34: 2019-07-01
B35: 1.1 | J35: RIT - RP 800 - Célula F32 | K35: Outros Serviços Terceirizados | L35: 48792468.44 | M35: 49218001.39 | P35: Serviços Cobráveis
F36: Dados da Revisão Anterior - Componente Pd | J36: RIT - RP 800 - Célula F33 | K36: (-) Créditos de Tributos Recuperáveis | M36: -2758763.22 | P36: Encargos de Conexão
F37: Data Base Ativos e Consumidores | G37: 42400 | H37: 43867 | J37: RIT - RP 800 - Célula F34 | K37: Transferências da Administração Central | M37: 0 | P37: Compartilhamento de Infraestrutura
F38: Mercado AT (MWh) | G38: 107723.655 | H38: 43867 | K38: Subtotal | L38: 120135879.3 | M38: 112379770.3 | P38: Sistemas de Comunicação (PLC)
F39: Mercado MT (MWh) | G39: 535351.086 | H39: 44006 | J39: CONTA SEGUROS | P39: Serviços de Consultoria
F40: Mercado BT (MWh) | G40: 1530607.592 | H40: 43867 | J40: BMP - 610531001; 610551001; 610533001; 610553001 | K40: Seguros | L40: 728194.33 | M40: 752670.22 | P40: Serviços de O&M
F41: Número de unidades consumidoras | G41: 569222 | H41: 43867 | J41: BMP - 610531099; 610551099; 610533099; 610553099 | K41: Outros | L41: 0 | M41: 0 | P41: Serviços de Comunicação
J42: BMP - 610531010; 610551010; 610533010; 610553010 | K42: (-) Créditos de Tributos Recuperáveis | L42: 0 | M42: 0 | P42: Serviços de Engenharia
F43: OPEX | K43: Subtotal | L43: 728194.33 | M43: 752670.22 | P43: Convênios
F44: Extensão de redes subterrâneas (Km) | G44: 0 | H44: 43899 | J44: CONTA TRIBUTOS
D45: 43920 | F45: Extensão de rede de distribuição aérea (Km) | G45: 97824.51647 | H45: 43899 | J45: BMP - 6105316; 6105516; 6105336; 6105536 | K45: Tributos | L45: 1439761.02 | M45: 1516914.64 | Q45: =Q34 -> 2020-06-01 | R45: =R34 -> 2020-05-01 | S45: 2020-04-01 | T45: 2020-03-01 | U45: 2020-02-01 | V45: 2020-01-01 | W45: 2019-12-01 | X45: 2019-11-01 | Y45: 2019-10-01 | Z45: 2019-09-01 | AA45: 2019-08-01 | AB45: 2019-07-01
F46: Extensão de rede de alta tensão (Km) | G46: 2825.00626 | H46: 43899 | K46: (+) Créditos de Tributos Recuperáveis | L46: 1439761.02 | M46: 1516914.64 | P46: Ultrapassagem de Demanda | Q46: =R46 -> 695558.5561 | R46: 695558.5561 | S46: 888020.0078 | T46: 989813.4903 | U46: 814931.3188 | V46: 407196.9622 | W46: =T197 -> 701981.9537 | X46: =$W$46 -> 701981.9537 | Y46: =$W$46 -> 701981.9537 | Z46: 701981.9537 | AA46: 701981.9537 | AB46: 701981.9537
F47: ="% PNT / BT Real de "&IF(MONTH(LnkTxtDRPData)>6,YEAR(LnkTxtDRPData)-1,YEAR(LnkTxtDRPData)-2) & " (Medido)" -> % PNT / BT Real de 2019 (Medido) | G47: 0.03116852358 | H47: 43998 | J47: CONTA OUTROS | P47: Excedente Reativo | Q47: =R47 -> 815924.1739 | R47: 815924.1739 | S47: 822731.5622 | T47: 662519.3497 | U47: 636382.7212 | V47: 546728.5578 | W47: =U197 -> 668804.8261 | X47: =$W$47 -> 668804.8261 | Y47: =$W$47 -> 668804.8261 | Z47: 668804.8261 | AA47: 668804.8261 | AB47: 668804.8261
F48: ="% PNT / BT Real de "&IF(MONTH(LnkTxtDRPData)>6,YEAR(LnkTxtDRPData)-1,YEAR(LnkTxtDRPData)-2)-1 & " (Medido)" -> % PNT / BT Real de 2018 (Medido) | G48: 0.04129138279 | H48: 43998 | J48: BMP - 610531901; 610551901; 610533901; 610553901 | K48: Indenização por Perdas e Danos | L48: 4871219.16 | M48: 6087112.55
F49: ="% PNT / BT Real de "&IF(MONTH(LnkTxtDRPData)>6,YEAR(LnkTxtDRPData)-1,YEAR(LnkTxtDRPData)-2)-2 & " (Medido)" -> % PNT / BT Real de 2017 (Medido) | G49: 0.03595433454 | H49: 43998 | J49: BMP - 610531902; 610551902; 610533902; 610553902 | K49: Consumo Próprio de Energia | L49: 4946317.06 | M49: 5224910.85 | W49: =$S193 -> 481731.9273 | X49: =$S193 -> 481731.9273 | Y49: =$S187 -> 495780.1491 | Z49: =$S184 -> 775326.8725 | AA49: =$S181 -> 640027.4922 | AB49: =$S178 -> 602539.0913
F50: ="DEC Apurado "&IF(MONTH(LnkTxtDRPData)>3,YEAR(LnkTxtDRPData)-1,YEAR(LnkTxtDRPData)-2) -> DEC Apurado 2019 | G50: 21.55 | H50: 43908 | J50: BMP - 610531905 | K50: Despesas com Conselho de Consumidores | P50: SFF UDER até dez/19 | Q50: 27826230.08 | R50: verif.se está selicado | W50: =$R193 -> 585143.8127 | X50: =$R193 -> 585143.8127 | Y50: =$R187 -> 545305.3109 | Z50: =$R184 -> 508876.8475 | AA50: =$R181 -> 863871.4078 | AB50: =$R178 -> 648309.9587
F51: ="DEC Apurado "&IF(MONTH(LnkTxtDRPData)>3,YEAR(LnkTxtDRPData)-1,YEAR(LnkTxtDRPData)-2)-1 -> DEC Apurado 2018 | G51: 23.09 | H51: 43908 | J51: BMP - 610531903; 610551903; 610533903; 610553903 | K51: Taxa de Arrecadação | Q51: =(Q50) -> 27826230.08 | R51: =Q51*6/12 -> 13913115.04
F52: ="DEC Apurado "&IF(MONTH(LnkTxtDRPData)>3,YEAR(LnkTxtDRPData)-1,YEAR(LnkTxtDRPData)-2)-2 -> DEC Apurado 2017 | G52: 27.98 | H52: 43908 | J52: BMP - 610531904; 610551904; 610533904; 610553904 | K52: Taxas Bancárias
F53: Meta de % PNT / BT (Medido) | G53: 0.02797987675 | H53: 43998 | J53: BMP - 610531910; 610551910; 610533910; 610553910 | K53: (-) Créditos de Tributos Recuperáveis | Q53: Data | R53: Valores | S53: UD
F54: DEC 8 anos (Limite V8) | G54: 13.48 | H54: 43899 | K54: Subtotal | L54: =SUM(L48:L53) -> 9817536.22 | M54: =+L54*(1+$M$4) -> 10018886.91 | Q54: 2016-02-01
J55: Demais | Q55: 2016-02-01 | R55: 501222.3119 | S55: =R56 -> 296066.7525 | T55: =R55*Índices!$F$380/LOOKUP(Entrada!Q55,Índices!$B$327:$B$380,Índices!$F$327:$F$380) -> 706346.0647 | U55: =S55*Índices!$F$380/LOOKUP(Entrada!Q55,Índices!$B$327:$B$380,Índices!$F$327:$F$380) -> 417231.1977
K56: Condenações Trabalhistas | Q56: =Q55 -> 2016-02-01 | R56: 296066.7525 | S56: =R57 -> 0 | U56: 42430 | V56: 456696.1 | W56: 366059.445
F57: Dados da última Revisão Tarifária | K57: Gastos com CCEE | L57: 1671044 | M57: 1813444.3 | Q57: =DATE(YEAR(Q54),MONTH(Q54)+1,DAY(Q54)) -> 2016-03-01 | S57: =R57 -> 0 | U57: 42461 | V57: 433764.69 | W57: 411593.3458
E58: =G69 -> 282093897.1 | F58: Custos Operacionais (CO3) | G58: 282093897.1 | H58: 43867 | J58: BMP - 611511401 | K58: Perdas na Alienação e Desativação | L58: 24180458.45 | M58: 22362169.04 | Q58: =Q57 -> 2016-03-01 | R58: 602918.7688 | S58: =R59 -> 483262.5238 | T58: =R58*Índices!$F$380/LOOKUP(Entrada!Q58,Índices!$B$327:$B$380,Índices!$F$327:$F$380) -> 839901.1826 | U58: =S58*Índices!$F$380/LOOKUP(Entrada!Q58,Índices!$B$327:$B$380,Índices!$F$327:$F$380) -> 673213.0202
E59: =G70 -> 447402.381 | F59: Receitas Irrecuperáveis - Encargos Setoriais (Vi) | G59: 447090.2416 | H59: 43867 | J59: BMP - 611112103 | K59: Ganhos na Alienação de Materiais | L59: -10226596.92 | M59: -10089430.72 | Q59: =Q58 -> 2016-03-01 | R59: 483262.5238 | S59: 0 | U59: 42522 | V59: 450492.87 | W59: 456362.2
E60: 4707033.987 | F60: Demais Receitas Irrecuperáveis (Vse) | G60: 4668459.089 | H60: 43867 | Q60: =DATE(YEAR(Q57),MONTH(Q57)+1,DAY(Q57)) -> 2016-04-01 | S60: =R60 -> 0 | U60: 42552 | V60: 466174.22 | W60: 284984.74
E61: 95232918.78 | F61: Remuneração do Capital (RC) | G61: 93365403.47 | H61: 43867 | Q61: =Q60 -> 2016-04-01 | R61: 530614.082 | S61: =R62 -> 503492.4012 | T61: =R61*Índices!$F$380/LOOKUP(Entrada!Q61,Índices!$B$327:$B$380,Índices!$F$327:$F$380) -> 731453.2503 | U61: =S61*Índices!$F$380/LOOKUP(Entrada!Q61,Índices!$B$327:$B$380,Índices!$F$327:$F$380) -> 694065.9245
E62: 42679578.8 | F62: Quota de Reintegração Regulatória (QRR) | G62: 42679578.8 | H62: 43867 | Q62: =Q61 -> 2016-04-01 | R62: 503492.4012 | S62: 0 | U62: 42614 | V62: 450195.14 | W62: 363004.23
E63: 38527307.52 | F63: Custo anual das instalações móveis e imóveis (CAIMI) | G63: 38527307.52 | H63: 43867 | Q63: =DATE(YEAR(Q60),MONTH(Q60)+1,DAY(Q60)) -> 2016-05-01 | S63: =R63 -> 0 | U63: 42644 | V63: 440725.52 | W63: 367088.01
E64: 0 | F64: Ajuste em função dos investimentos realizados (valor negativo) | G64: 0 | H64: 43867 | Q64: =Q63 -> 2016-05-01 | R64: 523610.0511 | S64: =R65 -> 634152.0389 | T64: =R64*Índices!$F$380/LOOKUP(Entrada!Q64,Índices!$B$327:$B$380,Índices!$F$327:$F$380) -> 713881.473 | U64: =S64*Índices!$F$380/LOOKUP(Entrada!Q64,Índices!$B$327:$B$380,Índices!$F$327:$F$380) -> 864592.6309
E65: 0.008589644546 | F65: Índice de Produtividade da Parcela B | G65: 0.02081890325 | H65: 43920 | Q65: =Q64 -> 2016-05-01 | R65: 634152.0389 | S65: 0 | U65: 42705 | V65: 393360.78 | W65: 307037.16
E66: 6193277.268 | F66: Outras Receitas (OR) (inserir o valor positivo) | G66: 6193277.268 | H66: 43867 | Q66: =DATE(YEAR(Q63),MONTH(Q63)+1,DAY(Q63)) -> 2016-06-01 | S66: =R66 -> 0 | U66: 42736 | V66: 404476.19 | W66: 240042.56
E67: -0.004788812034 | F67: Componente T - Última Revisão | G67: -0.004869263781 | H67: 43867 | Q67: =Q66 -> 2016-06-01 | R67: 582040.4192 | S67: =R68 -> 589623.6408 | T67: =R67*Índices!$F$380/LOOKUP(Entrada!Q67,Índices!$B$327:$B$380,Índices!$F$327:$F$380) -> 784428.8103 | U67: =S67*Índices!$F$380/LOOKUP(Entrada!Q67,Índices!$B$327:$B$380,Índices!$F$327:$F$380) -> 794648.8867
Q68: =Q67 -> 2016-06-01 | R68: 589623.6408 | S68: 0 | U68: 42795 | V68: 521805.61 | W68: 440576.12
D69: 282093897.1 | E69: 282093897.1 | F69: 282093897.1 | G69: 282093897.1 | Q69: =DATE(YEAR(Q66),MONTH(Q66)+1,DAY(Q66)) -> 2016-07-01 | S69: =R69 -> 0 | U69: 42826 | V69: 406792.37 | W69: 552597.26
D70: 447090.2416 | E70: 447352.6388 | F70: 447166.3196 | G70: 447402.381 | Q70: =Q69 -> 2016-07-01 | R70: 594006.5907 | S70: =R71 -> 363132.0793 | T70: =R70*Índices!$F$380/LOOKUP(Entrada!Q70,Índices!$B$327:$B$380,Índices!$F$327:$F$380) -> 791775.3717 | U70: =S70*Índices!$F$380/LOOKUP(Entrada!Q70,Índices!$B$327:$B$380,Índices!$F$327:$F$380) -> 484033.4123
D71: 4668459.089 | E71: 4700886.736 | F71: 4677860.984 | G71: 4707033.987 | Q71: =Q70 -> 2016-07-01 | R71: 363132.0793 | S71: 0 | U71: 42887 | V71: 495062.24 | W71: 390887.87
D72: 93365403.47 | E72: 99803573.66 | F72: 95232051.49 | G72: 95232918.78 | Q72: =DATE(YEAR(Q69),MONTH(Q69)+1,DAY(Q69)) -> 2016-08-01 | S72: =R72 -> 0 | U72: 42917 | V72: 517400.3 | W72: 300673.11
D73: 42679578.8 | E73: 42679578.8 | F73: 42679578.8 | G73: 42679578.8 | Q73: =Q72 -> 2016-08-01 | R73: 616639.2539 | S73: =R74 -> 378135.7361 | T73: =R73*Índices!$F$380/LOOKUP(Entrada!Q73,Índices!$B$327:$B$380,Índices!$F$327:$F$380) -> 812074.8639 | U73: =S73*Índices!$F$380/LOOKUP(Entrada!Q73,Índices!$B$327:$B$380,Índices!$F$327:$F$380) -> 497980.8283
D74: 38527307.52 | E74: 38527307.52 | F74: 38527307.52 | G74: 38527307.52 | Q74: =Q73 -> 2016-08-01 | R74: 378135.7361 | S74: 0 | U74: 42979 | V74: 432884.52 | W74: 403167.18
G75: 0 | Q75: =DATE(YEAR(Q72),MONTH(Q72)+1,DAY(Q72)) -> 2016-09-01 | S75: =R75 -> 0 | U75: 43009 | V75: 432884.52 | W75: 403167.18
D76: 0.02081890325 | E76: 0.02081890325 | F76: 0.02081890325 | G76: 0.008589644546 | Q76: =Q75 -> 2016-09-01 | R76: 588623.3382 | S76: =R77 -> 474622.5418 | T76: =R76*Índices!$F$380/LOOKUP(Entrada!Q76,Índices!$B$327:$B$380,Índices!$F$327:$F$380) -> 766677.4891 | U76: =S76*Índices!$F$380/LOOKUP(Entrada!Q76,Índices!$B$327:$B$380,Índices!$F$327:$F$380) -> 618192.3057
D77: 6193277.268 | E77: 6193277.268 | F77: 6193277.268 | G77: 6193277.268 | Q77: =Q76 -> 2016-09-01 | R77: 474622.5418 | S77: 0 | U77: 43070 | V77: 450052.72 | W77: 554157.15
D78: -0.004869263781 | E78: -0.004801060525 | F78: -0.004849290651 | G78: -0.004788812034 | Q78: =DATE(YEAR(Q75),MONTH(Q75)+1,DAY(Q75)) -> 2016-10-01 | S78: =R78 -> 0 | U78: 43101 | V78: 452302.68 | W78: 339703.82
Q79: =Q78 -> 2016-10-01 | R79: 569376.6004 | S79: =R80 -> 474243.7496 | T79: =R79*Índices!$F$380/LOOKUP(Entrada!Q79,Índices!$B$327:$B$380,Índices!$F$327:$F$380) -> 733911.1887 | U79: =S79*Índices!$F$380/LOOKUP(Entrada!Q79,Índices!$B$327:$B$380,Índices!$F$327:$F$380) -> 611287.492
Q80: =Q79 -> 2016-10-01 | R80: 474243.7496 | S80: 0 | U80: 43160 | V80: 527768.11 | W80: 677818.44
Q81: =DATE(YEAR(Q78),MONTH(Q78)+1,DAY(Q78)) -> 2016-11-01 | S81: =R81 -> 0 | U81: 43191 | V81: 507067.11 | W81: 736493.98
Q82: =Q81 -> 2016-11-01 | R82: 495486.6775 | S82: =R83 -> 325163.0025 | T82: =R82*Índices!$F$380/LOOKUP(Entrada!Q82,Índices!$B$327:$B$380,Índices!$F$327:$F$380) -> 632105.9866 | U82: =S82*Índices!$F$380/LOOKUP(Entrada!Q82,Índices!$B$327:$B$380,Índices!$F$327:$F$380) -> 414819.3884
Q83: =Q82 -> 2016-11-01 | R83: 325163.0025 | S83: 0 | U83: 43252 | V83: 503326.96 | W83: 474704.31
Q84: =DATE(YEAR(Q81),MONTH(Q81)+1,DAY(Q81)) -> 2016-12-01 | S84: =R84 -> 0 | U84: 43282 | V84: 526338.55 | W84: 352747.87
Q85: =Q84 -> 2016-12-01 | R85: 496591.2013 | S85: =R86 -> 387613.5087 | T85: =R85*Índices!$F$380/LOOKUP(Entrada!Q85,Índices!$B$327:$B$380,Índices!$F$327:$F$380) -> 626477.7416 | U85: =S85*Índices!$F$380/LOOKUP(Entrada!Q85,Índices!$B$327:$B$380,Índices!$F$327:$F$380) -> 488996.2507
Q86: =Q85 -> 2016-12-01 | R86: 387613.5087 | S86: 0 | U86: 43344 | V86: 501502.78 | W86: 706840.58
Q87: =DATE(YEAR(Q84),MONTH(Q84)+1,DAY(Q84)) -> 2017-01-01 | S87: =R87 -> 0 | U87: 43374 | V87: 478102.92 | W87: 627937.73
Q88: =Q87 -> 2017-01-01 | R88: 520434.4269 | S88: =R89 -> 308859.7431 | T88: =R88*Índices!$F$380/LOOKUP(Entrada!Q88,Índices!$B$327:$B$380,Índices!$F$327:$F$380) -> 649502.9279 | U88: =S88*Índices!$F$380/LOOKUP(Entrada!Q88,Índices!$B$327:$B$380,Índices!$F$327:$F$380) -> 385457.4123
Q89: =Q88 -> 2017-01-01 | R89: 308859.7431 | S89: 0 | U89: 43435 | V89: 512587.95 | W89: 478485.26
Q90: =DATE(YEAR(Q87),MONTH(Q87)+1,DAY(Q87)) -> 2017-02-01 | S90: =R90 -> 0 | U90: 43466 | V90: 458270.89 | W90: 461949.9
Q91: =Q90 -> 2017-02-01 | R91: 559784.2323 | S91: =R92 -> 459130.5477 | T91: =R91*Índices!$F$380/LOOKUP(Entrada!Q91,Índices!$B$327:$B$380,Índices!$F$327:$F$380) -> 692619.7981 | U91: =S91*Índices!$F$380/LOOKUP(Entrada!Q91,Índices!$B$327:$B$380,Índices!$F$327:$F$380) -> 568081.2159
Q92: =Q91 -> 2017-02-01 | R92: 459130.5477 | S92: 0 | U92: 43525 | V92: 579369.92 | W92: 663001.38
Q93: =DATE(YEAR(Q90),MONTH(Q90)+1,DAY(Q90)) -> 2017-03-01 | S93: =R93 -> 0 | U93: 43556 | V93: 572926.79 | W93: 709236.87
Q94: =Q93 -> 2017-03-01 | R94: 648095.4185 | S94: =R95 -> 547206.3915 | T94: =R94*Índices!$F$380/LOOKUP(Entrada!Q94,Índices!$B$327:$B$380,Índices!$F$327:$F$380) -> 793538.5608 | U94: =S94*Índices!$F$380/LOOKUP(Entrada!Q94,Índices!$B$327:$B$380,Índices!$F$327:$F$380) -> 670008.3967
Q95: =Q94 -> 2017-03-01 | R95: 547206.3915 | S95: 0 | U95: 43617 | V95: 513194.58 | W95: 460648.51
Q96: =DATE(YEAR(Q93),MONTH(Q93)+1,DAY(Q93)) -> 2017-04-01 | S96: =R96 -> 0 | U96: 43647 | V96: 508864.24 | W96: 472938.28
Q97: =Q96 -> 2017-04-01 | R97: 518668.227 | S97: =R98 -> 704572.313 | T97: =R97*Índices!$F$380/LOOKUP(Entrada!Q97,Índices!$B$327:$B$380,Índices!$F$327:$F$380) -> 630109.4855 | U97: =S97*Índices!$F$380/LOOKUP(Entrada!Q97,Índices!$B$327:$B$380,Índices!$F$327:$F$380) -> 855956.9964
Q98: =Q97 -> 2017-04-01 | R98: 704572.313 | S98: 0 | U98: 43709 | V98: 398555.48 | W98: 607240.78
Q99: =DATE(YEAR(Q96),MONTH(Q96)+1,DAY(Q96)) -> 2017-05-01 | S99: =R99 -> 0 | U99: 43739 | V99: 420535.66 | W99: 382342.2
Q100: =Q99 -> 2017-05-01 | R100: 648376.5236 | S100: =R101 -> 575539.4764 | T100: =R100*Índices!$F$380/LOOKUP(Entrada!Q100,Índices!$B$327:$B$380,Índices!$F$327:$F$380) -> 780451.1461 | U100: =S100*Índices!$F$380/LOOKUP(Entrada!Q100,Índices!$B$327:$B$380,Índices!$F$327:$F$380) -> 692777.156
Q101: =Q100 -> 2017-05-01 | R101: 575539.4764 | S101: 0 | U101: 43800 | V101: 443373.79 | W101: 365016.78
Q102: =DATE(YEAR(Q99),MONTH(Q99)+1,DAY(Q99)) -> 2017-06-01 | S102: =R102 -> 0
Q103: =Q102 -> 2017-06-01 | R103: 653829.5216 | S103: =R104 -> 516246.2584 | T103: =R103*Índices!$F$380/LOOKUP(Entrada!Q103,Índices!$B$327:$B$380,Índices!$F$327:$F$380) -> 780700.0796 | U103: =S103*Índices!$F$380/LOOKUP(Entrada!Q103,Índices!$B$327:$B$380,Índices!$F$327:$F$380) -> 616419.849
Q104: =Q103 -> 2017-06-01 | R104: 516246.2584 | S104: 0
Q105: =DATE(YEAR(Q102),MONTH(Q102)+1,DAY(Q102)) -> 2017-07-01 | S105: =R105 -> 0
Q106: =Q105 -> 2017-07-01 | R106: 640163.3771 | S106: =R107 -> 372013.5329 | T106: =R106*Índices!$F$380/LOOKUP(Entrada!Q106,Índices!$B$327:$B$380,Índices!$F$327:$F$380) -> 758331.2263 | U106: =S106*Índices!$F$380/LOOKUP(Entrada!Q106,Índices!$B$327:$B$380,Índices!$F$327:$F$380) -> 440683.564
Q107: =Q106 -> 2017-07-01 | R107: 372013.5329 | S107: 0
Q108: =DATE(YEAR(Q105),MONTH(Q105)+1,DAY(Q105)) -> 2017-08-01 | S108: =R108 -> 0
Q109: =Q108 -> 2017-08-01 | R109: 682387.9048 | S109: =R110 -> 537094.1452 | T109: =R109*Índices!$F$380/LOOKUP(Entrada!Q109,Índices!$B$327:$B$380,Índices!$F$327:$F$380) -> 801916.2961 | U109: =S109*Índices!$F$380/LOOKUP(Entrada!Q109,Índices!$B$327:$B$380,Índices!$F$327:$F$380) -> 631172.5992
Q110: =Q109 -> 2017-08-01 | R110: 537094.1452 | S110: 0
Q111: =DATE(YEAR(Q108),MONTH(Q108)+1,DAY(Q108)) -> 2017-09-01 | S111: =R111 -> 0
Q112: =Q111 -> 2017-09-01 | R112: 559511.7531 | S112: =R113 -> 521101.5069 | T112: =R112*Índices!$F$380/LOOKUP(Entrada!Q112,Índices!$B$327:$B$380,Índices!$F$327:$F$380) -> 653345.5686 | U112: =S112*Índices!$F$380/LOOKUP(Entrada!Q112,Índices!$B$327:$B$380,Índices!$F$327:$F$380) -> 608493.6704
Q113: =Q112 -> 2017-09-01 | R113: 521101.5069 | S113: 0
Q114: =DATE(YEAR(Q111),MONTH(Q111)+1,DAY(Q111)) -> 2017-10-01 | S114: =R114 -> 0
Q115: =Q114 -> 2017-10-01 | R115: 559511.7531 | S115: =R116 -> 521101.5069 | T115: =R115*Índices!$F$380/LOOKUP(Entrada!Q115,Índices!$B$327:$B$380,Índices!$F$327:$F$380) -> 649165.3969 | U115: =S115*Índices!$F$380/LOOKUP(Entrada!Q115,Índices!$B$327:$B$380,Índices!$F$327:$F$380) -> 604600.4658
Q116: =Q115 -> 2017-10-01 | R116: 521101.5069 | S116: 0
Q117: =DATE(YEAR(Q114),MONTH(Q114)+1,DAY(Q114)) -> 2017-11-01 | S117: =R117 -> 0
Q118: =Q117 -> 2017-11-01 | R118: 582774.3067 | S118: =R119 -> 477704.8633 | T118: =R118*Índices!$F$380/LOOKUP(Entrada!Q118,Índices!$B$327:$B$380,Índices!$F$327:$F$380) -> 672335.3098 | U118: =S118*Índices!$F$380/LOOKUP(Entrada!Q118,Índices!$B$327:$B$380,Índices!$F$327:$F$380) -> 551118.7498
Q119: =Q118 -> 2017-11-01 | R119: 477704.8633 | S119: 0
Q120: =DATE(YEAR(Q117),MONTH(Q117)+1,DAY(Q117)) -> 2017-12-01 | S120: =R120 -> 0
Q121: =Q120 -> 2017-12-01 | R121: 578338.727 | S121: =R122 -> 712117.773 | T121: =R121*Índices!$F$380/LOOKUP(Entrada!Q121,Índices!$B$327:$B$380,Índices!$F$327:$F$380) -> 663645.0033 | U121: =S121*Índices!$F$380/LOOKUP(Entrada!Q121,Índices!$B$327:$B$380,Índices!$F$327:$F$380) -> 817156.7626
Q122: =Q121 -> 2017-12-01 | R122: 712117.773 | S122: 0
Q123: =DATE(YEAR(Q120),MONTH(Q120)+1,DAY(Q120)) -> 2018-01-01 | S123: =R123 -> 0
Q124: =Q123 -> 2018-01-01 | R124: 537576.6775 | S124: =R125 -> 403749.2125 | T124: =R124*Índices!$F$380/LOOKUP(Entrada!Q124,Índices!$B$327:$B$380,Índices!$F$327:$F$380) -> 613287.6036 | U124: =S124*Índices!$F$380/LOOKUP(Entrada!Q124,Índices!$B$327:$B$380,Índices!$F$327:$F$380) -> 460612.2204
Q125: =Q124 -> 2018-01-01 | R125: 403749.2125 | S125: 0
Q126: =DATE(YEAR(Q123),MONTH(Q123)+1,DAY(Q123)) -> 2018-02-01 | S126: =R126 -> 0
Q127: =Q126 -> 2018-02-01 | R127: 504737.7424 | S127: =R128 -> 558873.9976 | T127: =R127*Índices!$F$380/LOOKUP(Entrada!Q127,Índices!$B$327:$B$380,Índices!$F$327:$F$380) -> 573155.0974 | U127: =S127*Índices!$F$380/LOOKUP(Entrada!Q127,Índices!$B$327:$B$380,Índices!$F$327:$F$380) -> 634629.5386
Q128: =Q127 -> 2018-02-01 | R128: 558873.9976 | S128: 0
Q129: =DATE(YEAR(Q126),MONTH(Q126)+1,DAY(Q126)) -> 2018-03-01 | S129: =R129 -> 0
Q130: =Q129 -> 2018-03-01 | R130: 645367.6132 | S130: =R131 -> 828852.7868 | T130: =R130*Índices!$F$380/LOOKUP(Entrada!Q130,Índices!$B$327:$B$380,Índices!$F$327:$F$380) -> 728966.7734 | U130: =S130*Índices!$F$380/LOOKUP(Entrada!Q130,Índices!$B$327:$B$380,Índices!$F$327:$F$380) -> 936220.116
Q131: =Q130 -> 2018-03-01 | R131: 828852.7868 | S131: 0
Q132: =DATE(YEAR(Q129),MONTH(Q129)+1,DAY(Q129)) -> 2018-04-01 | S132: =R132 -> 0
Q133: =Q132 -> 2018-04-01 | R133: 642510.1308 | S133: =R134 -> 933219.3592 | T133: =R133*Índices!$F$380/LOOKUP(Entrada!Q133,Índices!$B$327:$B$380,Índices!$F$327:$F$380) -> 721997.0667 | U133: =S133*Índices!$F$380/LOOKUP(Entrada!Q133,Índices!$B$327:$B$380,Índices!$F$327:$F$380) -> 1048670.842
Q134: =Q133 -> 2018-04-01 | R134: 933219.3592 | S134: 0
Q135: =DATE(YEAR(Q132),MONTH(Q132)+1,DAY(Q132)) -> 2018-05-01 | S135: =R135 -> 0
Q136: =Q135 -> 2018-05-01 | R136: 601991.7961 | S136: =R137 -> 582133.2039 | T136: =R136*Índices!$F$380/LOOKUP(Entrada!Q136,Índices!$B$327:$B$380,Índices!$F$327:$F$380) -> 672978.0713 | U136: =S136*Índices!$F$380/LOOKUP(Entrada!Q136,Índices!$B$327:$B$380,Índices!$F$327:$F$380) -> 650777.7735
Q137: =Q136 -> 2018-05-01 | R137: 582133.2039 | S137: 0
Q138: =DATE(YEAR(Q135),MONTH(Q135)+1,DAY(Q135)) -> 2018-06-01 | S138: =R138 -> 0
Q139: =Q138 -> 2018-06-01 | R139: 611704.7193 | S139: =R140 -> 576918.9607 | T139: =R139*Índices!$F$380/LOOKUP(Entrada!Q139,Índices!$B$327:$B$380,Índices!$F$327:$F$380) -> 680310.319 | U139: =S139*Índices!$F$380/LOOKUP(Entrada!Q139,Índices!$B$327:$B$380,Índices!$F$327:$F$380) -> 641623.1719
Q140: =Q139 -> 2018-06-01 | R140: 576918.9607 | S140: 0
Q141: =DATE(YEAR(Q138),MONTH(Q138)+1,DAY(Q138)) -> 2018-07-01 | S141: =R141 -> 0
Q142: =Q141 -> 2018-07-01 | R142: 681104.6814 | S142: =R143 -> 456470.8886 | T142: =R142*Índices!$F$380/LOOKUP(Entrada!Q142,Índices!$B$327:$B$380,Índices!$F$327:$F$380) -> 753402.5218 | U142: =S142*Índices!$F$380/LOOKUP(Entrada!Q142,Índices!$B$327:$B$380,Índices!$F$327:$F$380) -> 504924.3207
Q143: =Q142 -> 2018-07-01 | R143: 456470.8886 | S143: 0
Q144: =DATE(YEAR(Q141),MONTH(Q141)+1,DAY(Q141)) -> 2018-08-01 | S144: =R144 -> 0
Q145: =Q144 -> 2018-08-01 | R145: 649500.796 | S145: =R146 -> 759335.944 | T145: =R145*Índices!$F$380/LOOKUP(Entrada!Q145,Índices!$B$327:$B$380,Índices!$F$327:$F$380) -> 714387.6838 | U145: =S145*Índices!$F$380/LOOKUP(Entrada!Q145,Índices!$B$327:$B$380,Índices!$F$327:$F$380) -> 835195.6606
Q146: =Q145 -> 2018-08-01 | R146: 759335.944 | S146: 0
Q147: =DATE(YEAR(Q144),MONTH(Q144)+1,DAY(Q144)) -> 2018-09-01 | S147: =R147 -> 0
Q148: =Q147 -> 2018-09-01 | R148: 629953.8928 | S148: =R149 -> 887885.3572 | T148: =R148*Índices!$F$380/LOOKUP(Entrada!Q148,Índices!$B$327:$B$380,Índices!$F$327:$F$380) -> 689654.7668 | U148: =S148*Índices!$F$380/LOOKUP(Entrada!Q148,Índices!$B$327:$B$380,Índices!$F$327:$F$380) -> 972030.4548
Q149: =Q148 -> 2018-09-01 | R149: 887885.3572 | S149: 0
Q150: =DATE(YEAR(Q147),MONTH(Q147)+1,DAY(Q147)) -> 2018-10-01 | S150: =R150 -> 0
Q151: =Q150 -> 2018-10-01 | R151: 581730.9581 | S151: =R152 -> 764042.2219 | T151: =R151*Índices!$F$380/LOOKUP(Entrada!Q151,Índices!$B$327:$B$380,Índices!$F$327:$F$380) -> 633421.983 | U151: =S151*Índices!$F$380/LOOKUP(Entrada!Q151,Índices!$B$327:$B$380,Índices!$F$327:$F$380) -> 831932.9281
Q152: =Q151 -> 2018-10-01 | R152: 764042.2219 | S152: 0
Q153: =DATE(YEAR(Q150),MONTH(Q150)+1,DAY(Q150)) -> 2018-11-01 | S153: =R153 -> 0
Q154: =Q153 -> 2018-11-01 | R154: 541415.3833 | S154: =R155 -> 569706.4067 | T154: =R154*Índices!$F$380/LOOKUP(Entrada!Q154,Índices!$B$327:$B$380,Índices!$F$327:$F$380) -> 586628.7503 | U154: =S154*Índices!$F$380/LOOKUP(Entrada!Q154,Índices!$B$327:$B$380,Índices!$F$327:$F$380) -> 617282.345
Q155: =Q154 -> 2018-11-01 | R155: 569706.4067 | S155: 0
Q156: =DATE(YEAR(Q153),MONTH(Q153)+1,DAY(Q153)) -> 2018-12-01 | S156: =R156 -> 0
Q157: =Q156 -> 2018-12-01 | R157: 635930.8317 | S157: =R158 -> 593622.0883 | T157: =R157*Índices!$F$380/LOOKUP(Entrada!Q157,Índices!$B$327:$B$380,Índices!$F$327:$F$380) -> 685653.0794 | U157: =S157*Índices!$F$380/LOOKUP(Entrada!Q157,Índices!$B$327:$B$380,Índices!$F$327:$F$380) -> 640036.2942
Q158: =Q157 -> 2018-12-01 | R158: 593622.0883 | S158: 0
Q159: =DATE(YEAR(Q156),MONTH(Q156)+1,DAY(Q156)) -> 2019-01-01 | S159: =R159 -> 0
Q160: =Q159 -> 2019-01-01 | R160: 562603.4727 | S160: =R161 -> 567120.0673 | T160: =R160*Índices!$F$380/LOOKUP(Entrada!Q160,Índices!$B$327:$B$380,Índices!$F$327:$F$380) -> 603316.1278 | U160: =S160*Índices!$F$380/LOOKUP(Entrada!Q160,Índices!$B$327:$B$380,Índices!$F$327:$F$380) -> 608159.5646
Q161: =Q160 -> 2019-01-01 | R161: 567120.0673 | S161: 0
Q162: =DATE(YEAR(Q159),MONTH(Q159)+1,DAY(Q159)) -> 2019-02-01 | S162: =R162 -> 0
Q163: =Q162 -> 2019-02-01 | R163: 656342.2214 | S163: =R164 -> 761849.9786 | T163: =R163*Índices!$F$380/LOOKUP(Entrada!Q163,Índices!$B$327:$B$380,Índices!$F$327:$F$380) -> 700381.5003 | U163: =S163*Índices!$F$380/LOOKUP(Entrada!Q163,Índices!$B$327:$B$380,Índices!$F$327:$F$380) -> 812968.6216
Q164: =Q163 -> 2019-02-01 | R164: 761849.9786 | S164: 0
Q165: =DATE(YEAR(Q162),MONTH(Q162)+1,DAY(Q162)) -> 2019-03-01 | S165: =R165 -> 0
Q166: =Q165 -> 2019-03-01 | R166: 713477.6012 | S166: =R167 -> 816467.3688 | T166: =R166*Índices!$F$380/LOOKUP(Entrada!Q166,Índices!$B$327:$B$380,Índices!$F$327:$F$380) -> 757797.8598 | U166: =S166*Índices!$F$380/LOOKUP(Entrada!Q166,Índices!$B$327:$B$380,Índices!$F$327:$F$380) -> 867185.2119
Q167: =Q166 -> 2019-03-01 | R167: 816467.3688 | S167: 0
Q168: =DATE(YEAR(Q165),MONTH(Q165)+1,DAY(Q165)) -> 2019-04-01 | S168: =R168 -> 0
Q169: =Q168 -> 2019-04-01 | R169: 700161.6943 | S169: =R170 -> 866743.3557 | T169: =R169*Índices!$F$380/LOOKUP(Entrada!Q169,Índices!$B$327:$B$380,Índices!$F$327:$F$380) -> 739820.3359 | U169: =S169*Índices!$F$380/LOOKUP(Entrada!Q169,Índices!$B$327:$B$380,Índices!$F$327:$F$380) -> 915837.5356
Q170: =Q169 -> 2019-04-01 | R170: 866743.3557 | S170: 0
Q171: =DATE(YEAR(Q168),MONTH(Q168)+1,DAY(Q168)) -> 2019-05-01 | S171: =R171 -> 0
Q172: =Q171 -> 2019-05-01 | R172: 688320.8873 | S172: =R173 -> 1005227.253 | T172: =R172*Índices!$F$380/LOOKUP(Entrada!Q172,Índices!$B$327:$B$380,Índices!$F$327:$F$380) -> 723380.5766 | U172: =S172*Índices!$F$380/LOOKUP(Entrada!Q172,Índices!$B$327:$B$380,Índices!$F$327:$F$380) -> 1056428.598
Q173: =Q172 -> 2019-05-01 | R173: 1005227.253 | S173: 0
Q174: =DATE(YEAR(Q171),MONTH(Q171)+1,DAY(Q171)) -> 2019-06-01 | S174: =R174 -> 0
Q175: =Q174 -> 2019-06-01 | R175: 644910.3434 | S175: =R176 -> 578877.8766 | T175: =R175*Índices!$F$380/LOOKUP(Entrada!Q175,Índices!$B$327:$B$380,Índices!$F$327:$F$380) -> 674596.2841 | U175: =S175*Índices!$F$380/LOOKUP(Entrada!Q175,Índices!$B$327:$B$380,Índices!$F$327:$F$380) -> 605524.2694
Q176: =Q175 -> 2019-06-01 | R176: 578877.8766 | S176: 0
Q177: =DATE(YEAR(Q174),MONTH(Q174)+1,DAY(Q174)) -> 2019-07-01 | S177: =R177 -> 0
Q178: =Q177 -> 2019-07-01 | R178: 648309.9587 | S178: =R179 -> 602539.0913 | T178: =R178*Índices!$F$380/LOOKUP(Entrada!Q178,Índices!$B$327:$B$380,Índices!$F$327:$F$380) -> 674323.6037 | U178: =S178*Índices!$F$380/LOOKUP(Entrada!Q178,Índices!$B$327:$B$380,Índices!$F$327:$F$380) -> 626716.1656
Q179: =Q178 -> 2019-07-01 | R179: 602539.0913 | S179: 0
Q180: =DATE(YEAR(Q177),MONTH(Q177)+1,DAY(Q177)) -> 2019-08-01 | S180: =R180 -> 0
Q181: =Q180 -> 2019-08-01 | R181: 863871.4078 | S181: =R182 -> 640027.4922 | T181: =R181*Índices!$F$380/LOOKUP(Entrada!Q181,Índices!$B$327:$B$380,Índices!$F$327:$F$380) -> 894048.9075 | U181: =S181*Índices!$F$380/LOOKUP(Entrada!Q181,Índices!$B$327:$B$380,Índices!$F$327:$F$380) -> 662385.4835
Q182: =Q181 -> 2019-08-01 | R182: 640027.4922 | S182: 0
Q183: =DATE(YEAR(Q180),MONTH(Q180)+1,DAY(Q180)) -> 2019-09-01 | S183: =R183 -> 0
Q184: =Q183 -> 2019-09-01 | R184: 508876.8475 | S184: =R185 -> 775326.8725 | T184: =R184*Índices!$F$380/LOOKUP(Entrada!Q184,Índices!$B$327:$B$380,Índices!$F$327:$F$380) -> 524222.2386 | U184: =S184*Índices!$F$380/LOOKUP(Entrada!Q184,Índices!$B$327:$B$380,Índices!$F$327:$F$380) -> 798707.1739
Q185: =Q184 -> 2019-09-01 | R185: 775326.8725 | S185: 0
Q186: =DATE(YEAR(Q183),MONTH(Q183)+1,DAY(Q183)) -> 2019-10-01 | S186: =R186 -> 0
Q187: =Q186 -> 2019-10-01 | R187: 545305.3109 | S187: =R188 -> 495780.1491 | T187: =R187*Índices!$F$380/LOOKUP(Entrada!Q187,Índices!$B$327:$B$380,Índices!$F$327:$F$380) -> 559069.7965 | U187: =S187*Índices!$F$380/LOOKUP(Entrada!Q187,Índices!$B$327:$B$380,Índices!$F$327:$F$380) -> 508294.5307
Q188: =Q187 -> 2019-10-01 | R188: 495780.1491 | S188: 0
Q189: =DATE(YEAR(Q186),MONTH(Q186)+1,DAY(Q186)) -> 2019-11-01 | S189: =R189 -> 0
Q190: =Q189 -> 2019-11-01 | R190: 558917.1116 | S190: =R191 -> 451638.4884 | T190: =R190*Índices!$F$380/LOOKUP(Entrada!Q190,Índices!$B$327:$B$380,Índices!$F$327:$F$380) -> 570853.7381 | U190: =S190*Índices!$F$380/LOOKUP(Entrada!Q190,Índices!$B$327:$B$380,Índices!$F$327:$F$380) -> 461283.9973
Q191: =Q190 -> 2019-11-01 | R191: 451638.4884 | S191: 0
Q192: =DATE(YEAR(Q189),MONTH(Q189)+1,DAY(Q189)) -> 2019-12-01 | S192: =R192 -> 0
Q193: =Q192 -> 2019-12-01 | R193: 585143.8127 | S193: =R194 -> 481731.9273 | T193: =R193*Índices!$F$380/LOOKUP(Entrada!Q193,Índices!$B$327:$B$380,Índices!$F$327:$F$380) -> 595409.5325 | U193: =S193*Índices!$F$380/LOOKUP(Entrada!Q193,Índices!$B$327:$B$380,Índices!$F$327:$F$380) -> 490183.3966
Q194: =Q193 -> 2019-12-01 | R194: 481731.9273 | S194: 0
Q196: =Q193-Q55 -> 1399 | T196: 32735758.44 | U196: 31188598.39
T197: =(T196/$Q$196)*30 -> 701981.9537 | U197: =(U196/$Q$196)*30 -> 668804.8261

Sheet BD
B1: Banco de Dados | M1: Anexo II | N1: =Resultado!$D$6 -> 0.09281763211
B2: =CAPA!B6 -> ETO | M2: Anexo I | N2: =Resultado!$D$8 -> 0.117478177
B5: Informações do ano anterior | G5: Dados de abertura (Neutralidade e CVA saldo a compensar) | L5: Dados de Energia | S5: Dados para Revisão
B7: Encargos | G7: Encargo | H7: Valor | I7: Norma | L7: Cotas | M7: Valor da "Cota" | N7: Ano | O7: Custo Médio da Cota | S7: item | T7: Descrição | U7: Detalhe | V7: Valor
B8: CDE Energia: Conta ACR | C8: 7949127.8 | G8: CCC | L8: Angra | M8: 0.005465020573 | N8: 2020 | O8: 269.75 | S8: 0 | T8: Duração do Ciclo de Revisão | V8: 5
B9: CDE Energia: Decreto | C9: 0 | G9: CDE | H9: 40756364.76 | I9: ReH 2.664/2019 | S9: 1 | T9: RI Limite de Neutralidade de Encargos (por grupo) | U9: RESIDENCIAL | V9: 0.0203
B10: TFSEE | C10: 2218727.235 | G10: CFURH | S10: 2 | T10: RI Limite de Neutralidade de Encargos (por grupo) | U10: INDUSTRIAL | V10: 0.02949878788
B11: CDE | C11: 30114122.09 | G11: ESS/EER | H11: 22067512.67 | I11: DSP 1.191/2020 | L11: Ano | M11: Cota Itaipu | S11: 3 | T11: RI Limite de Neutralidade de Encargos (por grupo) | U11: COMERCIAL | V11: 0.012845
G12: PROINFA | H12: 16283974.21 | I12: ReH 2.653/2019 | S12: 4 | T12: RI Limite de Neutralidade de Encargos (por grupo) | U12: RURAL | V12: 0.03557772727
B13: ESS/ERR | C13: 20069524.8 | G13: ONS | H13: 56758.14286 | I13: Contribuição 2019 | S13: 5 | T13: RI Limite de Neutralidade de Encargos (por grupo) | U13: PoderPublico | V13: 0.019965
B14: PROINFA | C14: 19496780.91 | G14: TFSEE | S14: 6 | T14: RI Limite de Neutralidade de Encargos (por grupo) | U14: IlumPublica | V14: 0.03290651515
B15: P&D | C15: 12154669.54 | G15: EER | H15: 21462128.97 | I15: DSP 1.191/2020 | S15: 7 | T15: RI Limite de Neutralidade de Encargos (por grupo) | U15: ServPublico | V15: 0.02233560606
B16: ONS | C16: 55592.42857 | G16: TFSEE Fator de Carga | H16: 0.8468812857 | S16: 11 | T16: RI Limite de outros componentes (por empresa) | U16: RESIDENCIAL | V16: 0.00522
B17: Energia | S17: 12 | T17: RI Limite de outros componentes (por empresa) | U17: INDUSTRIAL | V17: 0.00433
B18: Pmix | C18: 197.1960096 | S18: 13 | T18: RI Limite de outros componentes (por empresa) | U18: COMERCIAL | V18: 0.00382
B19: PN2019 | C19: 0.0529 | S19: 14 | T19: RI Limite de outros componentes (por empresa) | U19: RURAL | V19: 0.00186
B20: PT2016 | C20: 0.1073 | S20: 15 | T20: RI Limite de outros componentes (por empresa) | U20: PoderPublico | V20: 0.00072
B21: PT2016 | C21: 0.0601 | G21: Informações de Postergação | S21: 16 | T21: RI Limite de outros componentes (por empresa) | U21: IlumPublica | V21: 1e-05
B22: Perda RB total | C22: 0.01567603982 | D22: 0.01567603982 | L22: Mês | M22: Potência | N22: Tarifa | O22: Perdas | P22: Energia | S22: 17 | T22: RI Limite de outros componentes (por empresa) | U22: ServPublico | V22: 0
B23: PT2013 | G23: Tipo | H23: Valor | S23: 101 | T23: Parâmetros de Custos Operacionais | U23: CO1_Theta_inf | V23: 0.9646901685
B24: CVA RB | C24: 2665379.848 | G24: Data Postergada | H24: 44016 | S24: 102 | T24: Parâmetros de Custos Operacionais | U24: CO2_Theta_centro | V24: 1
B25: CVA CCC | C25: 0 | G25: Data Anterior | H25: 44016 | S25: 103 | T25: Parâmetros de Custos Operacionais | U25: CO3_Theta_sup | V25: 1
B26: CVA CDE | C26: 5072881.681 | G26: Diferença de Dias | H26: 0 | S26: 104 | T26: Parâmetros de Custos Operacionais | U26: CO4_Theta_ref | V26: 0.786868
B27: CVA CFURH | G27: MesesAdin | H27: 0 | S27: 105 | T27: Parâmetros de Custos Operacionais | U27: CO5_Opex_real | V27: 264623.3299
B28: CVA ESS/ERR | C28: -28674290.9 | G28: Reversão Subvenção CDE | S28: 106 | T28: Parâmetros de Custos Operacionais | U28: CO6_PMSOcorrigido | V28: 259179.3401
B29: CVA PROINFA | C29: 1590374.86 | G29: Data 4CRT | H29: 42555 | S29: 107 | T29: Parâmetros de Custos Operacionais | U29: CO7_FatorEscala | V29: 0
B30: CVA TRANS. ITAIPU | C30: 0 | S30: 108 | T30: Parâmetros de Custos Operacionais | U30: CO8_u | V30: 3.858332225e-06
B31: CVA ENERGIA | C31: 66828460.28 | S31: 109 | T31: Parâmetros de Custos Operacionais | U31: CO9_Vs_Yrsub | V31: 1.907447283e-05
B32: CVA CDE E | C32: -1644000.175 | S32: 110 | T32: Parâmetros de Custos Operacionais | U32: CO10_Vs_Yrdist_a | V32: 9.537236415e-06
S33: 111 | T33: Parâmetros de Custos Operacionais | U33: CO11_Vs_Yralta | V33: 3.814894566e-06
S34: 112 | T34: Parâmetros de Custos Operacionais | U34: CO12_Vs_Ycons | V34: 2.247706388e-07
G35: Nome | H35: Valor | S35: 113 | T35: Parâmetros de Custos Operacionais | U35: CO13_Vs_Ymponderado | V35: 5.029971943e-08
G36: TUSDg Export DRP | H36: 0 | L36: Mês | M36: Potência | N36: Tarifa DRA | O36: Tarifa DRP | P36: Colunas1 | S36: 114 | T36: Parâmetros de Custos Operacionais | U36: CO14_Vs_Yd_perdas_dif2 | V36: 4.829474446e-08
G37: TUSDg ONS DRP | H37: 202050.55 | S37: 115 | T37: Parâmetros de Custos Operacionais | U37: CO15_Vs_Yd_DEC_V8 | V37: 0
G38: TUSDg ONS DRA | H38: 265393.33 | S38: 116 | T38: Parâmetros de Custos Operacionais | U38: CO16_P_AT | V38: 0.006937367459
B39: Rede Básica | S39: 117 | T39: Parâmetros de Custos Operacionais | U39: CO17_P_MT | V39: 0.2309896142
C40: 726247.0355 | S40: 118 | T40: Parâmetros de Custos Operacionais | U40: CO18_P_BT | V40: 0.7620730184
S41: 119 | T41: Parâmetros de Custos Operacionais | U41: CO19_PMSO2013
G42: Fator X | H42: Valor | S42: 120 | T42: Parâmetros de Custos Operacionais | U42: CO20_Cont_Associativa | V42: 187126.9307
G43: fatorx_t | H43: -0.0049 | S43: 201 | T43: Parâmetros de Custos Operacionais | U43: pesoAT | V43: 0.003249799341
B44: Mercado | G44: fatorx_pd | H44: 0.0183 | S44: 202 | T44: Parâmetros de Custos Operacionais | U44: pesoMT | V44: 0.238101731
C45: 2376706.455 | S45: 203 | T45: Parâmetros de Custos Operacionais | U45: pesoBT | V45: 0.7586484696
C46: 1202255835 | G46: DecFec Processo Anterior | H46: Valor | S46: 301 | T46: Financeiro de RTP | U46: Conselho de Consumidor | V46: 95670.46
G47: DEC A-2 | H47: 0 | S47: 2018 | T47: Financeiro de RTP | U47: Conselho de Consumidor | V47: 146249.54
B48: 2020 | C48: 52242.15139 | G48: DEC A-1 | H48: 0 | S48: 401 | T48: Duração do Próximo Ciclo de Revisão | V48: 5
B49: Detalhamento de Encargos ESS e CDE | G49: FEC A-2 | H49: 0
G50: FEC A-1 | H50: 0 | L50: Dado | M50: Valor | N50: Início | O50: Fim
L51: Potência Max | M51: 11215 | N51: 43466 | O51: 43830
G52: Dados de dólar | H52: Valor | L52: Potência Max | M52: 11215 | N52: 43831 | O52: 44196
C53: 5 | F53: 4 | G53: Dólar médio | H53: 5.249028571
G54: Data Inicial | H54: 43971
G55: Data Final | H55: 44000
G56: Último Dado Diponível | H56: 44004 | L56: Dados de perda | M56: Valor | O56: Agente | P56: Ressarcimento P&D
B57: Subsídios Concedidos (sem ajuste) | L57: Perdas RB | M57: 44360.4059
B58: Mês de Início | C58: Carga Fonte | D58: Geração | E58: Distribuição | F58: Água, Esgoto e Saneamento | G58: Rural | H58: Irrigante/Aquicultor | L58: Perdas DITs | M58: 0
B59: 2019-07-01 | C59: 2350774.942 | D59: 491132.7692 | E59: 0 | F59: 289405.7742 | G59: 1943564.501 | H59: 493271.9092
B60: 2020-07-01 | C60: 2664346.295 | D60: 593653.8167 | E60: 0 | F60: 245713.0925 | G60: 1739799.101 | H60: 426467.41
L62: Informações de DR1
L63: Fator DR1 | M63: 1.002655371
L64: Informações de RI
B65: Data | C65: Tipo | D65: Valor | E65: Valor IGPM | F65: Valor IPCA | G65: EixoRef
L66: Tipo | M66: % RI | O66: Data | P66: Fat Bandeiras
B67: 2017-07-01 | C67: 0 | D67: 549.22 | E67: 787.3075936 | F67: 775.7685252 | L67: PctRIResidencial | M67: 0.00522 | O67: 43647 | P67: 1466147.2
B68: 2017-04-01 | C68: 0 | D68: 520.75 | E68: 808.9060407 | F68: 774.070021 | L68: PctRIIndustrial | M68: 0.00433 | O68: 43678 | P68: 5129593.49
B69: 2016-07-01 | C69: 0 | D69: 525.74 | E69: 793.4843026 | F69: 753.1838774 | L69: PctRICOMERCIAL | M69: 0.00382 | O69: 43709 | P69: 7734831.45
B70: 2015-07-01 | C70: 0 | D70: 462.03 | E70: 707.1597245 | F70: 691.9863529 | L70: PctRIRURAL | M70: 0.00186 | O70: 43739 | P70: 4746712.41
B71: 2015-03-01 | C71: -1 | D71: 437.28 | E71: 684.8218208 | F71: 667.8974532 | L71: PctRILUMPUBLICA | M71: 1e-05 | O71: 43770 | P71: 4978300.01
B72: 2014-07-01 | C72: 0 | D72: 420.8 | E72: 669.7048506 | F72: 635.4653338 | L72: PctRIPODERPUBLICO | M72: 0.00072 | O72: 43800 | P72: 4368949.76
B73: 2013-07-01 | C73: 0 | D73: 378.75 | E73: 630.3630874 | F73: 596.5506435 | L73: PctRISERVPUBLICO | M73: 0 | O73: 43831 | P73: 2146411.99
B74: 2013-01-01 | C74: -1 | D74: 344.14 | E74: 619.5553644 | F74: 578.3358714 | O74: 43862 | P74: 1029313.87
B75: 2012-07-01 | C75: 0 | D75: 420.83 | E75: 592.9519252 | F75: 559.1129134 | L75: Tipo | M75: % RI Anterior | N75: Colunas1 | O75: 43891 | P75: 0
B76: 2011-07-01 | C76: 0 | D76: 447.66 | E76: 563.9576978 | F76: 532.9177401 | L76: PctRIResidencial | M76: 0.00522 | O76: 43922 | P76: 7629.17
B77: 2010-07-01 | C77: 0 | D77: 418.07 | E77: 519.0633318 | F77: 499.3955599 | L77: PctRIIndustrial | M77: 0.00433 | O77: 43952 | P77: 7629.17
B78: 2009-07-01 | C78: 0 | D78: 386.69 | E78: 493.5611851 | F78: 476.3357162 | L78: PctRICOMERCIAL | M78: 0.00382 | O78: 43983 | P78: 7629.17
B79: 2008-07-01 | C79: 0 | D79: 410.57 | E79: 486.14962 | F79: 454.5120239 | L79: PctRIRURAL | M79: 0.00186
B80: 2007-07-01 | C80: 0 | D80: 428.54 | E80: 428.54 | F80: 428.54 | L80: PctRILUMPUBLICA | M80: 1e-05
L81: PctRIPODERPUBLICO | M81: 0.00072
L82: PctRISERVPUBLICO | M82: 0
B84: Tabela de Resumo de Montante DRP ano anterior/ Montante Apurado pelo Mercado
B85: detalhe_grupo | C85: GrupoTarifa | D85: tipoBase | E85: tipofatura | F85: ValorCTAnterior_Sum | G85: ValorAnt_Sum | L85: Prcesso Anterior | N85: RTE
D86: Base | E86: Econômico | F86: 0 | G86: 0 | L86: MWh | M86: R$ | N86: MWh | O86: R$ | S86: DthEfetivaPagamento | T86: VlrGarantiaFinanceira
B87: CCC | C87: ENCARGO | D87: Base | E87: Econômico | F87: 0 | G87: 0 | I87: BILATERAL | K87: valor | L87: 349333.68 | M87: 89928874.94 | S87: 43586 | T87: 36258.89
B88: CDE | C88: ENCARGO | D88: Base | E88: Econômico | F88: 30114122.09 | G88: 30338612.47 | I88: CCEAR-DISP | J88: Alternativa | K88: valor | L88: 9317.91782 | M88: 2443518.718 | S88: 43617 | T88: 36258.86
B89: CDE | C89: ENCARGO | D89: Base | E89: RTE 2015 | F89: 0 | G89: 0 | I89: CCEAR-DISP | J89: Existente | K89: valor | L89: 2019.792 | M89: 711077.0599 | S89: 43647 | T89: 37947.89
B90: CDE Energia | C90: ENCARGO | D90: Base | E90: Econômico | F90: 0 | G90: 8009056.086 | I90: CCEAR-DISP | J90: Nova | K90: valor | L90: 774730.7211 | M90: 175566244 | S90: 43678 | T90: 37947.89
B91: CDE Energia | C91: ENCARGO | D91: Base | E91: RTE 2015 | F91: 0 | G91: 0 | I91: CCEAR-QTD | J91: Madeira | K91: valor | L91: 85273.92994 | M91: 10948782.6 | S91: 43709 | T91: 37947.89
B92: CDE Energia: Conta ACR | C92: ENCARGO | D92: Base | E92: Econômico | F92: 7949127.8 | G92: 0 | I92: CCEAR-QTD | J92: Alternativa | K92: valor | L92: 1940.051836 | M92: 513771.5937 | S92: 43739 | T92: 37947.89
B93: CDE Energia: Decreto | C93: ENCARGO | D93: Base | E93: Econômico | F93: 0 | G93: 0 | I93: CCEAR-QTD | J93: Existente | K93: valor | L93: 179671.8186 | M93: 57466943.11 | S93: 43770 | T93: 37947.89
B94: CFURH | C94: ENCARGO | D94: Base | E94: Econômico | F94: 0 | G94: 0 | I94: CCEAR-QTD | J94: Madeira | K94: valor | L94: 82520.98058 | M94: 12101729.1 | S94: 43800 | T94: 37947.93
B95: ESS/ERR | C95: ENCARGO | D95: Base | E95: Econômico | F95: 20069524.8 | G95: 20220828.47 | I95: CCEAR-QTD | J95: Nova | K95: valor | L95: 286531.5075 | M95: 59474274.2 | S95: 43831 | T95: 37947.93
B96: ONS | C96: ENCARGO | D96: Base | E96: Econômico | F96: 55592.42857 | G96: 56390.72435 | I96: CCEN | K96: valor | L96: 72361.91383 | M96: 17907402.81 | S96: 43862 | T96: 38469.72
B97: P&D | C97: ENCARGO | D97: Base | E97: Econômico | F97: 12154669.54 | G97: 12475992.56 | I97: CCGF | K97: valor | L97: 592889.9799 | M97: 63409583.35 | S97: 43891 | T97: 38469.72
B98: P&D | C98: ENCARGO | D98: Base | E98: RTE 2015 | F98: 0 | G98: 0 | I98: PROINFA | K98: valor | L98: 52269.44113 | S98: 43922 | T98: 38469.72
B99: PROINFA | C99: ENCARGO | D99: Base | E99: Econômico | F99: 19496780.91 | G99: 19545591.13 | I99: SOBRA/EXPOSIÇÃO | K99: valor | L99: 78422.68257 | M99: 15786040.97 | S99: 43952 | T99: 38469.72
B100: RGR | C100: ENCARGO | D100: Base | E100: Econômico | F100: 0 | G100: 0 | S100: iddet1 | T100: valor
B101: TFSEE | C101: ENCARGO | D101: Base | E101: Econômico | F101: 2218727.235 | G101: 2295577.222 | S101: 56 | T101: 43992
C102: ENERGIA | D102: Base | E102: Econômico | F102: 506258242.4 | G102: 512169226 | S102: 57 | T102: 43966
C103: ENERGIA | D103: Base | E103: RTE 2015 | F103: 0 | G103: 0 | S103: 58 | T103: 43922
B104: CDE Energia: Conta ACR | C104: ENERGIA | D104: Base | E104: Econômico | F104: 0 | G104: 0
C105: Parcela B | D105: Base | E105: Econômico | F105: 542800528 | G105: 566257613.5 | V105: Empresa | W105: AT | X105: MT | Y105: BT
B106: CONEXÃO D | C106: TRANSPORTE TERCEIROS | D106: Base | E106: Econômico | F106: 0 | G106: 0 | V106: 167 | W106: 0.02134 | X106: 0.35825 | Y106: 0.62041
B107: CONEXÃO T | C107: TRANSPORTE TERCEIROS | D107: Base | E107: Econômico | F107: 726247.0355 | G107: 754807.1456 | V107: 102 | W107: 0.064 | X107: 0.32003 | Y107: 0.61596
B108: EUSD | C108: TRANSPORTE TERCEIROS | D108: Base | E108: Econômico | F108: 2107676.357 | G108: 2201574.681 | V108: 103 | W108: 0.02996 | X108: 0.27106 | Y108: 0.69898
B109: EUSD | C109: TRANSPORTE TERCEIROS | D109: Base | E109: RTE 2015 | F109: 0 | G109: 0 | V109: 104 | W109: 0.07171 | X109: 0.2909 | Y109: 0.63739
B110: EUST - CI | C110: TRANSPORTE TERCEIROS | D110: Base | E110: Econômico | F110: 1e-06 | G110: 1.007538976e-06 | S110: Nível | T110: Mercado Faturado A-6 | V110: 105 | W110: 0.00823 | X110: 0.24677 | Y110: 0.745
B111: EUST - FR | C111: TRANSPORTE TERCEIROS | D111: Base | E111: Econômico | F111: 13616745.96 | G111: 14146747.51 | I111: Agente | J111: idagente | K111: indexador | L111: database | M111: RAP do ciclo | N111: Colunas1 | O111: RAP atualizada | S111: AT | T111: 100650.918 | V111: 165 | W111: 0.00795 | X111: 0.22554 | Y111: 0.76651
B112: EUST - ITAIPU | C112: TRANSPORTE TERCEIROS | D112: Base | E112: Econômico | F112: 0 | G112: 0 | O112: =M112*VLOOKUP(CAPA!C15,Índices!$B$6:$F$626,IF(BD!K112="IPCA",3,2),FALSE)/VLOOKUP(L112,Índices!$B$6:$F$626,IF(BD!K112="IPCA",3,2),FALSE) ->  | S112: BT | T112: 1427019.559 | V112: 108 | W112: 0.06098 | X112: 0.1711 | Y112: 0.76792
B113: EUST - RB | C113: TRANSPORTE TERCEIROS | D113: Base | E113: Econômico | F113: 44422457.16 | G113: 46116406.3 | O113: =M113*VLOOKUP(CAPA!C16,Índices!$B$6:$F$626,IF(BD!K113="IPCA",3,2),FALSE)/VLOOKUP(L113,Índices!$B$6:$F$626,IF(BD!K113="IPCA",3,2),FALSE) ->  | S113: MT | T113: 512140.731 | V113: 109 | W113: 0.01034 | X113: 0.24366 | Y113: 0.746
B114: TRANSPORTE ITAIPU | C114: TRANSPORTE TERCEIROS | D114: Base | E114: Econômico | F114: 0 | G114: 0 | O114: =M114*VLOOKUP(CAPA!C17,Índices!$B$6:$F$626,IF(BD!K114="IPCA",3,2),FALSE)/VLOOKUP(L114,Índices!$B$6:$F$626,IF(BD!K114="IPCA",3,2),FALSE) ->  | V114: 110 | W114: 0.01165 | X114: 0.24322 | Y114: 0.74513
B115: TUSDg EXPORTADORAS (A2) | C115: TRANSPORTE TERCEIROS | D115: Base | E115: Econômico | F115: 0 | G115: 0 | O115: =M115*VLOOKUP(CAPA!C18,Índices!$B$6:$F$626,IF(BD!K115="IPCA",3,2),FALSE)/VLOOKUP(L115,Índices!$B$6:$F$626,IF(BD!K115="IPCA",3,2),FALSE) ->  | V115: 111 | W115: 0.03791 | X115: 0.37961 | Y115: 0.58248
B116: TUSDg ONS (A2) | C116: TRANSPORTE TERCEIROS | D116: Base | E116: Econômico | F116: 265393.33 | G116: 234483.6232 | O116: =M116*VLOOKUP(CAPA!C19,Índices!$B$6:$F$626,IF(BD!K116="IPCA",3,2),FALSE)/VLOOKUP(L116,Índices!$B$6:$F$626,IF(BD!K116="IPCA",3,2),FALSE) ->  | V116: 112 | W116: 0.02273 | X116: 0.26361 | Y116: 0.71367
B117: TUSDg T (A2) | C117: TRANSPORTE TERCEIROS | D117: Base | E117: Econômico | F117: 0 | G117: 0 | O117: =M117*VLOOKUP(CAPA!C20,Índices!$B$6:$F$626,IF(BD!K117="IPCA",3,2),FALSE)/VLOOKUP(L117,Índices!$B$6:$F$626,IF(BD!K117="IPCA",3,2),FALSE) ->  | V117: 113 | W117: 0.01263 | X117: 0.23345 | Y117: 0.75392
B118: CVA/APURAÇÃO/ENCARGO - outros | C118: Financeiro | D118: Financeiros não RTE | E118: Financeiro | F118: -23548301.95 | G118: -23894835.39 | O118: =M118*VLOOKUP(CAPA!C21,Índices!$B$6:$F$626,IF(BD!K118="IPCA",3,2),FALSE)/VLOOKUP(L118,Índices!$B$6:$F$626,IF(BD!K118="IPCA",3,2),FALSE) ->  | V118: 114 | W118: 0.01726 | X118: 0.23794 | Y118: 0.7448
B119: CVA/APURAÇÃO/ENERGIA - outros | C119: Financeiro | D119: Financeiros não RTE | E119: Financeiro | F119: 66526927.24 | G119: 67505927.99 | O119: =M119*VLOOKUP(CAPA!C22,Índices!$B$6:$F$626,IF(BD!K119="IPCA",3,2),FALSE)/VLOOKUP(L119,Índices!$B$6:$F$626,IF(BD!K119="IPCA",3,2),FALSE) ->  | V119: 115 | W119: 0.00993 | X119: 0.23087 | Y119: 0.7592
B120: CVA/APURAÇÃO/TRANSPORTE TERCEIROS - outros | C120: Financeiro | D120: Financeiros não RTE | E120: Financeiro | F120: 2653353.533 | G120: 2692399.904 | O120: =M120*VLOOKUP(CAPA!C23,Índices!$B$6:$F$626,IF(BD!K120="IPCA",3,2),FALSE)/VLOOKUP(L120,Índices!$B$6:$F$626,IF(BD!K120="IPCA",3,2),FALSE) ->  | V120: 116 | W120: 0.00806 | X120: 0.16835 | Y120: 0.82359
B121: CVA/SALDO A COMPENSAR/ENCARGO - outros | C121: Financeiro | D121: Financeiros não RTE | E121: Financeiro | F121: -1311176.287 | G121: -1330471.369 | O121: =M121*VLOOKUP(CAPA!C24,Índices!$B$6:$F$626,IF(BD!K121="IPCA",3,2),FALSE)/VLOOKUP(L121,Índices!$B$6:$F$626,IF(BD!K121="IPCA",3,2),FALSE) ->  | V121: 117 | W121: 0.03028 | X121: 0.29131 | Y121: 0.67841
B122: CVA/SALDO A COMPENSAR/ENERGIA - outros | C122: Financeiro | D122: Financeiros não RTE | E122: Financeiro | F122: 2396710.868 | G122: 2431980.522 | O122: =M122*VLOOKUP(CAPA!C25,Índices!$B$6:$F$626,IF(BD!K122="IPCA",3,2),FALSE)/VLOOKUP(L122,Índices!$B$6:$F$626,IF(BD!K122="IPCA",3,2),FALSE) ->  | V122: 118 | W122: 0.04215 | X122: 0.2081 | Y122: 0.74975
B123: CVA/SALDO A COMPENSAR/TRANSPORTE TERCEIROS - outros | C123: Financeiro | D123: Financeiros não RTE | E123: Financeiro | F123: 68716.99549 | G123: 69728.22497 | O123: =M123*VLOOKUP(CAPA!C26,Índices!$B$6:$F$626,IF(BD!K123="IPCA",3,2),FALSE)/VLOOKUP(L123,Índices!$B$6:$F$626,IF(BD!K123="IPCA",3,2),FALSE) ->  | V123: 119 | W123: 0.01807 | X123: 0.11713 | Y123: 0.8648
B124: DCF/APURAÇÃO/ENERGIA - Efeito de Acordo Bilateral com geradores | C124: Financeiro | D124: Financeiros não RTE | E124: Financeiro | F124: 16820559.62 | G124: 17068088.57 | O124: =M124*VLOOKUP(CAPA!C27,Índices!$B$6:$F$626,IF(BD!K124="IPCA",3,2),FALSE)/VLOOKUP(L124,Índices!$B$6:$F$626,IF(BD!K124="IPCA",3,2),FALSE) ->  | V124: 120 | W124: - | X124: 0.17688 | Y124: 0.82312
B125: DCF/APURAÇÃO/ENERGIA - Garantias financeiras na contratação regulada de energia (CCEAR) | C125: Financeiro | D125: Financeiros não RTE | E125: Financeiro | F125: 345008.5319 | G125: 350085.6281 | O125: =M125*VLOOKUP(CAPA!C28,Índices!$B$6:$F$626,IF(BD!K125="IPCA",3,2),FALSE)/VLOOKUP(L125,Índices!$B$6:$F$626,IF(BD!K125="IPCA",3,2),FALSE) ->  | V125: 123 | W125: - | X125: 0.13612 | Y125: 0.86388
B126: DCF/APURAÇÃO/ENERGIA - Previsão de Risco Hidrológico | C126: Financeiro | D126: Financeiros não RTE | E126: Financeiro | F126: 26950574.44 | G126: 27347175.24 | O126: =M126*VLOOKUP(CAPA!C29,Índices!$B$6:$F$626,IF(BD!K126="IPCA",3,2),FALSE)/VLOOKUP(L126,Índices!$B$6:$F$626,IF(BD!K126="IPCA",3,2),FALSE) ->  | V126: 166 | W126: 0.04257 | X126: 0.29652 | Y126: 0.66092
B127: DCF/APURAÇÃO/ENERGIA - SOBRECONTRATAÇÃO | C127: Financeiro | D127: Financeiros não RTE | E127: Financeiro | F127: -9665786.092 | G127: -9808026.418 | O127: =M127*VLOOKUP(CAPA!C30,Índices!$B$6:$F$626,IF(BD!K127="IPCA",3,2),FALSE)/VLOOKUP(L127,Índices!$B$6:$F$626,IF(BD!K127="IPCA",3,2),FALSE) ->  | V127: 128 | W127: - | X127: 0.40427 | Y127: 0.59573
B128: DCF/APURAÇÃO/TRANSPORTE TERCEIROS - Concatenação dos CUSDs | C128: Financeiro | D128: Financeiros não RTE | E128: Financeiro | F128: 393848.3123 | G128: 399644.1278 | O128: =M128*VLOOKUP(CAPA!C31,Índices!$B$6:$F$626,IF(BD!K128="IPCA",3,2),FALSE)/VLOOKUP(L128,Índices!$B$6:$F$626,IF(BD!K128="IPCA",3,2),FALSE) ->  | V128: 129 | W128: 0.02905 | X128: 0.24895 | Y128: 0.722
B129: DCF/APURAÇÃO/TRANSPORTE TERCEIROS - Repasse de compensação DIC/FIC | C129: Financeiro | D129: Financeiros não RTE | E129: Financeiro | F129: -1295.581418 | G129: -1314.647009 | O129: =M129*VLOOKUP(CAPA!C32,Índices!$B$6:$F$626,IF(BD!K129="IPCA",3,2),FALSE)/VLOOKUP(L129,Índices!$B$6:$F$626,IF(BD!K129="IPCA",3,2),FALSE) ->  | V129: 130 | W129: 0.0175 | X129: 0.14397 | Y129: 0.83853
B130: DCF/REVERSÃO/ENERGIA - Previsão de Risco Hidrológico | C130: Financeiro | D130: Financeiros não RTE | E130: Financeiro | F130: -16204619.87 | G130: -16443084.74 | O130: =M130*VLOOKUP(CAPA!C33,Índices!$B$6:$F$626,IF(BD!K130="IPCA",3,2),FALSE)/VLOOKUP(L130,Índices!$B$6:$F$626,IF(BD!K130="IPCA",3,2),FALSE) ->  | V130: 131 | W130: - | X130: 0.30099 | Y130: 0.69901
B131: NEUTRALIDADE/APURAÇÃO/ENCARGO - outros | C131: Financeiro | D131: Financeiros não RTE | E131: Financeiro | F131: -1525674.277 | G131: -1548125.881 | O131: =M131*VLOOKUP(CAPA!C34,Índices!$B$6:$F$626,IF(BD!K131="IPCA",3,2),FALSE)/VLOOKUP(L131,Índices!$B$6:$F$626,IF(BD!K131="IPCA",3,2),FALSE) ->  | V131: 132 | W131: 0.02757 | X131: 0.26424 | Y131: 0.70819
B132: NEUTRALIDADE/CDE Energia: Conta ACR/ENCARGO - outros | C132: Financeiro | D132: Financeiros não RTE | E132: Financeiro | F132: -1280786.718 | G132: -1299634.592 | O132: =M132*VLOOKUP(CAPA!C35,Índices!$B$6:$F$626,IF(BD!K132="IPCA",3,2),FALSE)/VLOOKUP(L132,Índices!$B$6:$F$626,IF(BD!K132="IPCA",3,2),FALSE) ->  | V132: 133 | W132: 0.01856 | X132: 0.19536 | Y132: 0.78608
V133: 135 | W133: 0.04788 | X133: 0.27054 | Y133: 0.68158
V134: 136 | W134: 0.06732 | X134: 0.35547 | Y134: 0.57721
V135: 138 | W135: - | X135: 0.07651 | Y135: 0.92349
V136: 139 | W136: - | X136: 0.35483 | Y136: 0.64517
V137: 140 | W137: 0.01004 | X137: 0.21058 | Y137: 0.77938
V138: 143 | W138: - | X138: 0.20409 | Y138: 0.79591
V139: 144 | W139: - | X139: 0.48131 | Y139: 0.51869
A140: NumBar | B140: Nome Conexão | C140: Tensão | D140: Posto Tarifário | E140: Tarifas RB - DRA | F140: Tarifa RB - DRP | G140: Tarifas Fronteira - DRA | H140: Tarifa Fronteira - DRP | I140: M01 | J140: M02 | K140: M03 | L140: M04 | M140: M05 | N140: M06 | O140: M07 | P140: M08 | Q140: M09 | R140: M10 | S140: M11 | T140: M12 | V140: 145 | W140: 0.03725 | X140: 0.29306 | Y140: 0.66969
A141: 7205 | B141: MIRACEMA - 13,8 kV (A) | C141: 13,8 | D141: Ponta | E141: 3854 | F141: 6136 | G141: 1709 | H141: 2619.045753 | I141: 0.23 | J141: 0.23 | K141: 0.23 | L141: 0.23 | M141: 0.23 | N141: 0.23 | O141: 0.23 | P141: 0.23 | Q141: 0.23 | R141: 0.23 | S141: 0.23 | T141: 0.23 | V141: 146 | W141: - | X141: 0.14124 | Y141: 0.85876
A142: 7202 | B142: MIRACEMA - 138 kV (A) | C142: 138 | D142: Ponta | E142: 3852 | F142: 6136 | G142: 1709 | H142: 2619.045753 | I142: 230 | J142: 230 | K142: 230 | L142: 230 | M142: 230 | N142: 230 | O142: 130 | P142: 130 | Q142: 130 | R142: 130 | S142: 130 | T142: 130 | V142: 147 | W142: - | X142: 0.20977 | Y142: 0.79023
B143: PALMAS - 138 kV (A) | C143: 138 | D143: Ponta | F143: 2170.820324 | H143: 677.1584361 | I143: 0 | J143: 0 | K143: 0 | L143: 0 | M143: 0 | N143: 23.06451613 | O143: 151 | P143: 151 | Q143: 151 | R143: 151 | S143: 151 | T143: 151 | V143: 148 | W143: 0.03455 | X143: 0.23757 | Y143: 0.72788
A144: 5602 | B144: PORTO FRANCO - 138 kV (A) | C144: 138 | D144: Ponta | E144: 5106 | F144: 7755 | G144: 1273 | H144: 1827.42844 | I144: 95 | J144: 95 | K144: 95 | L144: 95 | M144: 95 | N144: 95 | O144: 98.5 | P144: 98.5 | Q144: 98.5 | R144: 98.5 | S144: 98.5 | T144: 98.5 | V144: 149 | W144: - | X144: 0.17399 | Y144: 0.82601
A145: 7113 | B145: PEIXE 2 - 500 kV (A) | C145: 500 | D145: Ponta | E145: 3782 | F145: 6031 | H145: 0 | I145: 72 | J145: 72 | K145: 72 | L145: 72 | M145: 72 | N145: 72 | O145: 72 | P145: 72 | Q145: 72 | R145: 72 | S145: 72 | T145: 72 | V145: 150 | W145: 0.03635 | X145: 0.17413 | Y145: 0.78952
A146: 5593 | B146: IMPERATRIZ - 69 kV (A) | C146: 69 | D146: Ponta | E146: 4209 | F146: 6600 | G146: 731 | H146: 1086.796649 | I146: 24 | J146: 24 | K146: 24 | L146: 24 | M146: 24 | N146: 24 | O146: 24.7 | P146: 24.7 | Q146: 24.7 | R146: 24.7 | S146: 24.7 | T146: 24.7 | V146: 151 | W146: 0.02735 | X146: 0.28351 | Y146: 0.68915
A147: 7205 | B147: MIRACEMA - 13,8 kV (A) | C147: 13,8 | D147: Fora Ponta | E147: 3701 | F147: 5982 | G147: 1709 | H147: 2619.045753 | I147: 0.24 | J147: 0.24 | K147: 0.24 | L147: 0.24 | M147: 0.24 | N147: 0.24 | O147: 0.249 | P147: 0.249 | Q147: 0.249 | R147: 0.249 | S147: 0.249 | T147: 0.249 | V147: 152 | W147: 0.00215 | X147: 0.1412 | Y147: 0.85665
A148: 7202 | B148: MIRACEMA - 138 kV (A) | C148: 138 | D148: Fora Ponta | E148: 3699 | F148: 5982 | G148: 1709 | H148: 2619.045753 | I148: 270 | J148: 270 | K148: 270 | L148: 270 | M148: 270 | N148: 270 | O148: 149 | P148: 149 | Q148: 149 | R148: 149 | S148: 149 | T148: 149 | V148: 153 | W148: 0.03606 | X148: 0.17601 | Y148: 0.78793
B149: PALMAS - 138 kV (A) | C149: 138 | D149: Fora Ponta | F149: 2101.52674 | H149: 677.1584361 | I149: 0 | J149: 0 | K149: 0 | L149: 0 | M149: 0 | N149: 28.5483871 | O149: 185 | P149: 185 | Q149: 185 | R149: 185 | S149: 185 | T149: 185 | V149: 154 | W149: 0.12913 | X149: 0.26626 | Y149: 0.60462
A150: 5602 | B150: PORTO FRANCO - 138 kV (A) | C150: 138 | D150: Fora Ponta | E150: 5265 | F150: 7958 | G150: 1273 | H150: 1827.42844 | I150: 115 | J150: 115 | K150: 115 | L150: 115 | M150: 115 | N150: 115 | O150: 117.546 | P150: 117.546 | Q150: 117.546 | R150: 117.546 | S150: 117.546 | T150: 117.546 | V150: 155 | W150: 0.04008 | X150: 0.23225 | Y150: 0.72768
A151: 7113 | B151: PEIXE 2 - 500 kV (A) | C151: 500 | D151: Fora Ponta | E151: 3620 | F151: 5865 | H151: 0 | I151: 85 | J151: 85 | K151: 85 | L151: 85 | M151: 85 | N151: 85 | O151: 85 | P151: 85 | Q151: 85 | R151: 85 | S151: 85 | T151: 85 | V151: 156 | W151: - | X151: 0.35985 | Y151: 0.64015
A152: 5593 | B152: IMPERATRIZ - 69 kV (A) | C152: 69 | D152: Fora Ponta | E152: 4131 | F152: 6529 | G152: 731 | H152: 1086.796649 | I152: 24.4 | J152: 24.4 | K152: 24.4 | L152: 24.4 | M152: 24.4 | N152: 24.4 | O152: 25.2 | P152: 25.2 | Q152: 25.2 | R152: 25.2 | S152: 25.2 | T152: 25.2 | V152: 157 | W152: - | X152: 0.15963 | Y152: 0.84037
V153: 158 | W153: - | X153: 0.33049 | Y153: 0.66951
V154: 160 | W154: 0.1013 | X154: 0.22818 | Y154: 0.67051
V155: 161 | W155: - | X155: 0.28355 | Y155: 0.71645
V156: 163 | W156: 0.03507 | X156: 0.1664 | Y156: 0.79853
V157: 164 | W157: - | X157: 0.12897 | Y157: 0.87103
B441: Transmissora | C441: Indice de atualização | D441: ENCARGO DE CONEXÃO repassável | E441: Instalações com Estabelecimento de RAP que entraram em operação | F441: PA para repasse a tarifa | G441: PA Qualidade DIT | H441: ENCARGO DE CONEXÃO ou PA não rapassável a tarifa (REN 67/2004 ou 68/2004) | I441: PA Empreendimento Autorizado sem estabelecimento prévio de RAP | J441: Estimativa | K441: Estimativa Total do Encargo de Conexão
B442: ELETRONORTE | C442: IPCA | D442: 868050.0535 | E442: 0 | F442: 0 | G442: 0 | H442: 0 | I442: 0 | J442: 058/2001
B443: MIRACEMA | C443: IPCA | D443: 1329357.958 | E443: 0 | F443: 0 | G443: 0 | H443: 731146.8767 | I443: 0 | J443: 017/2016
B452: Empresa | C452: idsgtag | D452: dtConv | E452: VlrMontante | F452: VlrTarOutros | G452: VlrTarB4a | H452: VlrTarB4b
C453: 110 | D453: 20386 | E453: 5592427.845 | F453: 3.571177792 | G453: 1.964147786 | H453: 2.142706675
C454: 118 | F454: 1.71 | G454: 0.94 | H454: 1.02
B457: Tabela de Financeiros para o cálculo da Neutralidade | G457: Tabela de Financeiros para o cálculo da Neutralidade de RB
B458: Grupo Tarifa | C458: Detalhe Grupo | D458: Valor | E458: Percentual | G458: Tipo | H458: Detalhe | I458: Posto | J458: Unidade | K458: Valor
B459: ENCARGO | C459: CDE | D459: -546830.3882 | G459: CUSTO | H459: CONEXÃO D | J459: R$ | K459: 0
B460: ENCARGO | C460: CDE Energia | D460: -1448666.313 | G460: CUSTO | H460: CONEXÃO T | J460: R$ | K460: 726247.0355
B461: ENCARGO | C461: ESS/ERR | D461: -1712558.263 | G461: CUSTO | H461: EUSD | J461: R$ | K461: 2107676.357
B462: ENCARGO | C462: ONS | D462: -4129.660286 | G462: CUSTO | H462: EUST - CI | J462: R$ | K462: 1e-06
B463: ENCARGO | C463: PROINFA | D463: -498410.1278 | G463: CUSTO | H463: EUST - FR | J463: R$ | K463: 13616745.96
B464: ENCARGO | C464: TFSEE | D464: -62060.33658 | G464: CUSTO | H464: EUST - ITAIPU | J464: R$ | K464: 0
B465: ENERGIA | C465: ENERGIA REQUERIDA SEM PERDAS | D465: 17876052.11 | G465: CUSTO | H465: EUST - RB | J465: R$ | K465: 44422457.16
B466: ENERGIA | C466: PERDAS NA RB (sobre as perdas na D) | D466: 50366.10325 | G466: CUSTO | H466: TRANSPORTE ITAIPU | J466: R$ | K466: 0
B467: ENERGIA | C467: PERDAS NA RB (sobre o mercado cativo) | D467: 280225.7047 | G467: CUSTO | H467: TUSDg ONS (A2) | J467: R$ | K467: 265393.33
B468: ENERGIA | C468: PERDAS NÃO TÉCNICAS | D468: 740478.4827 | G468: CUSTO | H468: TUSDg T (A2) | J468: R$ | K468: 0
B469: ENERGIA | C469: PERDAS TÉCNICAS | D469: 2472456.916 | G469: PARÂMETRO | I469: FORA PONTA | J469: MW | K469: 5791.68
B470: TRANSPORTE TERCEIROS | C470: EUSD | D470: 407331.2699 | G470: PARÂMETRO | I470: PONTA | J470: MW | K470: 5033.16
B471: TRANSPORTE TERCEIROS | C471: EUST - RB | D471: 71304.00284 | G471: PARÂMETRO | H471: EUST - FR | I471: FORA PONTA | J471: R$ | K471: 7290306.72
G472: PARÂMETRO | H472: EUST - FR | I472: PONTA | J472: R$ | K472: 6326439.24
G473: PARÂMETRO | H473: EUST - RB | I473: FORA PONTA | J473: R$ | K473: 23551647.36
G474: PARÂMETRO | H474: EUST - RB | I474: PONTA | J474: R$ | K474: 20870809.8
J481: =GTIFPastaBD -> 
G488: =GTIFPastaBD -> 

Sheet Resultado
A1: =CAPA!C7&" "&CAPA!#REF!&"/"&YEAR(CAPA!$C$10) -> 
B2: Resultado | F2: Parâmetros a serem considerados para os Reajustes subsequentes
B4: RA1 | D4: =D40+D45 -> 1349444120 | F4: FATOR X | K4: Última versão enviada: | L4: 18
B5: RA0 | D5: =Mercado!D24 -> 1234830112 | F5: Componente T do Fator X | G5: ='VPB e Fator X'!C36 -> -0.009017910995 | K5: Data de envio | L5: 2020-06-25T18:53:41
B6: Índice de Reposição/Reajuste (Anexo II) | D6: =D4/D5-1 -> 0.09281763211 | F6: Componente Pd do Fator X | G6: ='VPB e Fator X'!C33 -> 0.01269895715
B7: Componentes Financeiros | D7: =Financeiros!E8 -> 0.02466054484 | K7: Efeito Consumidor
B8: Índice de Reposição/Reajuste com Financeiros (Anexo I) | D8: =D6+D7 -> 0.117478177 | F8: PERDAS | K8: Efeito Grupo A - Alta tensão | L8: 0.01786689937
F9: Perdas Não Técnicas | G9: =Entrada!G33 -> 0.03712379248 | K9: Efeito Grupo B - Baixa tensão | L9: 0.08538638243
C10: DRA | D10: DRP | F10: Perdas Técnicas | G10: =Entrada!G34 -> 0.11492 | K10: Efeito tarifário médio AT+BT | L10: 0.07171691872
B11: TOTAL (Parcela A + Parcela B) | D11: =D45+D40 -> 1349444120 | G11: =G5+G6 -> 0.003681046151 | K11: Tarifa B1 - Residencial (R$) | L11: 647.3526464
D12: =D11+Financeiros!D8 -> 1379895703
K13: Subvenção da CDE para descontos tarifários (Valores anuais)
K14: Subsídio Carga Fonte Incentivada | L14: 32363365.88
K15: Subsídio Geração Fonte Incentivada | L15: 6161553.73
B16: Parcela A | F16: Formação da Parcela B e Reposicionamento (Resumo) | K16: Subsídio Distribuição | L16: 0
K17: Subsídio Água, Esgoto e Saneamento | L17: 2895809.1
D18: DRP | K18: Subsídio Rural | L18: 20241202.68
B19: ENCARGOS | D19: =SUM(D20:D28) -> 94879293.54 | F19: Custo de Administração, Operação e Manutenção (CAOM) | G19: =SUM(G20:G20) -> 359972385.7 | K19: Subsídio Irrigante/Aquicultor | L19: 5962484.017
B20: Reserva Global de Reversão – RGR | D20: =Encargos!C16 -> 0 | F20: Custos Operacionais (CO) | G20: ='VPB e Fator X'!C121+Encargos!C14 -> 359972385.7
B21: Conta de Consumo de Combustíveis – CCC | D21: =Encargos!C9 -> 0 | F21: Custo Anual dos Ativos (CAA) | G21: =SUM(G22:G24) -> 305711328.9 | K21: Versão de Mercado
B22: Taxa de Fisc. de Serviços de E.E. – TFSEE | D22: =Encargos!C17 -> 2570668.766 | F22: Remuneração do Capital (RC) | G22: ='VPB e Fator X'!C95 -> 178114793.9 | K22: Status de Sincronização de BDL | L22: Trabalha na pasta de rede
B23: Conta de Desenvolvimento Energético – CDE | D23: =Encargos!C10 -> 40756364.76 | F23: Quota de Reintegração Regulatória (QRR) | G23: ='VPB e Fator X'!C77 -> 74576305.1 | K23: Última Sincronização
B24: Compensação financeira - CFURH | D24: =Encargos!C11 -> 0 | F24: Custo anual das instalações móveis e imóveis (CAIMI) | G24: ='VPB e Fator X'!C67 -> 53020229.82
B25: Encargos Serv. Sist. - ESS e Energ. Reserv. - EER | D25: =Encargos!C12 -> 22067512.67 | F25: Parcela B (VPB) | G25: =SUM(G21,G19) -> 665683714.6
B26: PROINFA | D26: =Encargos!C13 -> 16283974.21 | F26: Índice de Produtividade da Parcela B | G26: ='VPB e Fator X'!C33 -> 0.01269895715
B27: P&D e Eficiência Energética | D27: =Encargos!C15 -> 13200773.13 | F27: Mecanismo de Incentivo à Qualidade | G27: ='VPB1'!F42 -> -0.004101173955
F28: Parcela B com ajustes | G28: =(1-G26-G27)*G25 -> 659960310.3 | K28: =G20*(1-$G$26-$G$27) -> 356877421.2
B29: TRANSPORTE | D29: =SUM(D30:D37) -> 92737219.45 | F29: Outras Receitas (OR) | G29: =UDEROR!C2 -> 10043814.17
B30: Rede Básica | D30: ='RB e Conexão'!E6 -> 69301063.57 | F30: Excedente de Reativos (ER) | G30: =UDEROR!C6 -> 4259524.586 | K30: =G22*(1-$G$26-$G$27) -> 176583401.6
B31: Rede Básica Fronteira | D31: ='RB e Conexão'!E7 -> 19357875.73 | F31: Ultrapassagem de Demanda (UD) | G31: =UDEROR!C7 -> 4071445.747 | K31: =G23*(1-$G$26-$G$27) -> 73935114.2
B32: Rede Básica ONS (A2) | D32: =VLOOKUP("TUSDg ONS DRP",TUSDG[],2,FALSE) -> 202050.55 | F32: Parcela B deduzidas as outras receitas | G32: =G28-SUM(G29:G31) -> 641585525.8 | K32: =G24*(1-$G$26-$G$27) -> 52564373.38
B33: Rede Básica Export. (A2) | D33: =VLOOKUP("TUSDg Export DRP",TUSDG[],2,FALSE) -> 0
B34: MUST Itaipu | D34: ='RB e Conexão'!E8 -> 0 | F34: 1. Receita Requerida (RR) | G34: =G28+D40 -> 1367818904
B35: Transporte de Itaipu | D35: =SUMPRODUCT(itaiputransporte[Potência],itaiputransporte[Tarifa DRP]) -> 0 | F35: 2. Outras Receitas (OR) | G35: =G29 -> 10043814.17
B36: Conexão | D36: ='RB e Conexão'!E9 -> 2201363.346 | F36: 3. Receita Verificada (RV) | G36: =Mercado!D24 -> 1234830112
B37: Uso do sistema de distribuição e CCD | D37: =CUSD!D14+CUSD!E14 -> 1674866.254
B38: ENERGIA | D38: =Energia!D15 -> 512717069.9 | G38: 69301063.57
B39: RECEITA IRRECUPERÁVEL | D39: =Mercado!H38 -> 7525010.856 | G39: 19357875.73
B40: VPA (ENCARGO + TRANSPORTE + ENERGIA+RI) | D40: =D19+D29+D38+D39 -> 707858593.7 | G40: 2201363.346
B42: Parcela B | G42: 512717069.9
D44: VPB1
B45: ="Parcela B "&IF(CAPA!C7="Revisão","(menos Outras Receitas)",) -> Parcela B (menos Outras Receitas) | D45: =IF(CAPA!$C$7="Revisão",Resultado!$G$32,'VPB1'!$C$43) -> 641585525.8

Sheet Avaliação Parcela B
B2: Entrada de Dados | M2: Ciclo Tarifário | N2: ='VPB e Fator X'!C7 -> 4
T3: RECEITA VERIFICADA (R$) | U3: RECEITA REQUERIDA (R$) | V3: Var(%) | W3: IMPACTO NA REVISÃO (%) | X3: PART. NA RECEITA DO REAJUSTE ANTERIOR (%)
B4: Informações da última revisão tarifária | O4: Part. na última revisão | Q4: Part. No último processo do ciclo | S4: Parcela A | T4: ='NT Revisao'!AR187 -> 674776924.6 | U4: =Resultado!D40 -> 707858593.7
B5: Base de Remuneração Líquida (BRL) | C5: 577082363.8 | S5: Parcela B | T5: =Mercado!Z66 -> 566257613.5 | U5: =SUM(U6:U12) ->  | V5: =U5/T5-1 -> 
B6: Base de Remuneração Bruta (BRB) | C6: 1144224633 | M6: Custos Operacionais | N6: =Entrada!G58*(1-Entrada!G65) -> 276221011.6 | O6: =N6/SUM($N$6:$N$12) -> 0.6193647988 | P6: =N6-(SUM(N6:N12)-SUM(N6:N12)*(1-Entrada!G67)^'VPB e Fator X'!$C$7-1) -> 284970935.6 | Q6: =P6/(SUM($P$6:$P$12)) -> 0.6266890763 | S6: Custos Operacionais | T6: =('VPB e Fator X'!C103-'VPB e Fator X'!C104*(1-(1-'VPB e Fator X'!C105)^('VPB e Fator X'!C7-1)))/('VPB e Fator X'!C104*(1-'VPB e Fator X'!C105)^('VPB e Fator X'!C7-1))*T5 -> 353838145.9 | U6: =Resultado!G20*(1-Resultado!$G$26-Resultado!$G$27) -> 356877421.2 | V6: 0.008589450807 | W6: =IF(AND(U6=0,T6=0),"-",IF(ISERROR((U6-T6)/($T$4+$T$5)),"",(U6-T6)/($T$4+$T$5))) -> 0.002448985305 | X6: =IF(ISERROR(T6/($T$4+$T$5)),0,T6/($T$4+$T$5)) -> 0.2851154702
M7: Anuidades | N7: =Entrada!G63*(1-Entrada!G65) -> 37725211.23 | O7: 0.08459047967 | P7: =N7 -> 37725211.23 | Q7: 0.08296276856 | S7: Anuidades | T7: ='NT Revisao'!AR211 -> 47206791.09 | U7: =Resultado!G24*(1-Resultado!$G$26-Resultado!G27) -> 52564373.38 | V7: 0.1134917702 | W7: 0.004317029158 | X7: 0.03803825731
B8: Informações do último ciclo | M8: Remuneração | N8: =Entrada!G61*(1-Entrada!G65) -> 91421638.17 | O8: 0.204992894 | P8: 91421638.17 | Q8: 0.2010483696 | S8: Remuneração | T8: ='NT Revisao'!AR212 -> 114399512.4 | U8: =Resultado!G22*(1-Resultado!$G$26-Resultado!$G$27) -> 176583401.6 | V8: 0.5435677821 | W8: 0.05010649365 | X8: 0.09218076439
B9: Processo | C9: =IF('VPB e Fator X'!$C$7=5,"Revisão","") ->  | D9: =IF('VPB e Fator X'!$C$7=3,"",IF('VPB e Fator X'!$C$7=4,"Revisão","Reajuste")) -> Revisão | E9: =IF('VPB e Fator X'!$C$7=3,"Revisão","Reajuste") -> Reajuste | F9: Reajuste | G9: Reajuste | M9: Depreciação | N9: =Entrada!G62*(1-Entrada!G65) -> 41791036.78 | O9: 0.09370719823 | P9: 41791036.78 | Q9: 0.09190406095 | S9: Depreciação | T9: ='NT Revisao'!AR213 -> 52294777.51 | U9: =Resultado!G23*(1-Resultado!$G$26-Resultado!$G$27) -> 73935114.2 | V9: 0.4138144899 | W9: 0.01743733637 | X9: 0.04213805169
B10: Ano | C10: =IF('VPB e Fator X'!$C$7=5,D10-1,"") ->  | D10: =IF('VPB e Fator X'!$C$7=3,"",E10-1) -> 2016 | E10: =F10-1 -> 2017 | F10: =G10-1 -> 2018 | G10: =H169-1 -> 2019 | M10: Receitas Irrecuperáveis | N10: =SUM(Entrada!G59:G60)*(1-Entrada!G65) -> 5009049.204 | O10: 0.01123168992 | P10: =N10 -> 5009049.204 | Q10: 0.01101556694 | S10: Receitas Irrecuperáveis | T10: ='NT Revisao'!#REF! ->  | U10: =(Resultado!#REF!+Resultado!#REF!)*(1-Resultado!$G$26-Resultado!$G$27) ->  | X10: 0
B11: IRT (Anexo II) | D11: 0.1677014072 | E11: 0.01288455414 | F11: 0.07228628103 | G11: -0.01560566706 | M11: Outras Receitas | N11: =-Entrada!G66 -> -6193277.268 | O11: -0.01388706061 | P11: =N11 -> -6193277.268 | Q11: -0.01361984233 | S11: Outras Receitas | T11: ='NT Revisao'!AR214 -> -7749892.843 | U11: =-Resultado!G29 -> -10043814.17 | V11: 0.2959939416 | W11: -0.001848394432 | X11: -0.006244703596
B12: Parcela A - VPA1 | D12: 618723111.3 | E12: 628268988.5 | F12: 692999752.4 | G12: 659455307 | H12: =((Resultado!G32/1000)/'Avaliação Parcela B'!D13)-1 -> -0.9985613857 | M12: Ajuste Investimentos 2CRTP | N12: =Entrada!G64*(1-Entrada!G65) -> 0 | O12: 0 | P12: =N12 -> 0 | Q12: 0 | S12: Ajuste Investimentos 2CRTP | T12: ='NT Revisao'!AR216 -> 0 | U12: 0 | W12: - | X12: 0
B13: Parcela B - VPB1 (R$.mil) com geração própria (após ajuste do Pd e menos outras receitas) | D13: 445974669.7 | E13: 456330498 | F13: 497289660.8 | G13: 542800528 | M13: Total | N13: =SUM(N6:N12) -> 445974669.7 | P13: =N6-(SUM(N6:N12)-SUM(N6:N12)*(1-Entrada!G67)^1) -> 278392579.9
B14: IGP-M | D14: 0.107975208 | E14: -0.003027164971 | F14: 0.0692124878 | G14: 0.05933976477
B15: Fator X | D15: 0.002560461898 | E15: 0.01214081196 | F15: 0.01158437664 | G15: 0.003643768204
B16: Mercado -Cativo e Suprimento (MWh) | D16: 2116494.949 | E16: 2078663.185 | F16: 2107325.883 | G16: 2150377.029
B17: Mercado - Livres(MWh) | D17: 57187.384 | E17: 95793.99 | F17: 183150.391 | G17: 226329.426
B21: Gráficos
B23: Variação da Parcela B ao longo do ciclo
O26: Var(%) | P26: Média Anual
M27: IGPM - Fator X | O27: =IF('VPB e Fator X'!$C$7=5,((1+D181-D182)*(1+E181-E182)*(1+F181-F182)*(1+G181-G182)-1),IF('VPB e Fator X'!$C$7=4,((1+E181-E182)*(1+F181-F182)*(1+G181-G182)-1),((1+F181-F182)*(1+F181-F182)-1))) -> 0.09959820445
M28: Efeito Mercado | O28: =IF('VPB e Fator X'!$C$7=5,((1+D185)*(1+E185)*(1+F185)*(1+G185)*(1+H185)-1),IF('VPB e Fator X'!$C$7=4,((1+E185)*(1+F185)*(1+G185)*(1+H185)-1),((1+F185)*(1+G185)*(1+H185)-1))) -> 0.1092930303
M29: Formula Paramétrica/Estrutura | O29: =IF('VPB e Fator X'!$C$7=5,((1+D184)*(1+E184)*(1+F184)*(1+G184)*(1+H184)-1),IF('VPB e Fator X'!$C$7=4,((1+E184)*(1+F184)*(1+G184)*(1+H184)-1),((1+F184)*(1+G184)*(1+H184)-1))) -> 0.04093486602
M30: Variação Total | O30: =IF('VPB e Fator X'!$C$7=5,H175/C179-1,IF('VPB e Fator X'!$C$7=4,H175/D179-1,H175/E179-1)) -> 0.269708017 | P30: =(1+O30)^(1/'VPB e Fator X'!$C$7)-1 -> 0.06151458445
B50: Variação da Remuneração ao longo do ciclo | F50: Variação da Remuneração na Revisão | O50: Remun.Tarifas | P50: Remuneração
O51: 3º Ciclo | P51: 4º Ciclo
M52: Inflação | O52: =N138 -> 0.1292305587
M53: Mercado e Estrutura | O53: =N139 -> -0.9988426325
M54: Produtividade | O54: =N140 -> -0.04254388611
M55: Base Líquida | P55: =N248/M248-1 -> 1.404440849
M56: Taxa Remuneração | P56: =H230/Q248-1 -> -0.1966833253
M57: Variação Total | O57: =IF(N2=5,H223/C223-1,IF(N2=4,H223/D223-1,H223/E223-1)) -> -0.9987486604 | P57: =H228/IF(N2=5,C228,IF(N2=4,D228,IF(N2=3,E228)))-1 -> 0.9315274271
M64: Resumo Remuneração
M65: Remuneração 3º Ciclo | O65: 1
M66: Efeito do WACC | O66: =IF(Q66>0,1,1+P56) -> 0.8033166747 | P66: =ABS(P56) -> 0.1966833253 | Q66: =P56 -> -0.1966833253
M67: Efeito Base Líquida | O67: =IF(Q67>0,1+Q66,1+Q66+Q67) -> 0.8033166747 | P67: =ABS(Q67) -> 1542.764465 | Q67: =-(1+Q66-Q68) -> 1542.764465
M68: Remuneração 4º Ciclo | P68: =1+H75 -> 1543.567782 | Q68: =P68 -> 1543.567782
H73: Efeito | I73: Participação | J73: Impacto
H74: Remuneração | I74: Remun/Receita | J74: Revisão
H75: =(1+P57)/(1+O57)-1 -> 1542.567782 | I75: =X8 -> 0.09218076439 | J75: =H75*I75 -> 142.1950773
B79: Variação da Quota de Reintegração ao longo do ciclo | F79: Variação da Quota de Reintegração na Revisão | M79: Resumo Quota de Reintegração
M80: Descrição | N80: Depr.Tarifas | O80: Depreciação
N81: 3º Ciclo | O81: 4º Ciclo
M82: Inflação | N82: =O52 -> 0.1292305587
M83: Mercado e Estrutura | N83: =O53 -> -0.9988426325
M84: Produtividade | N84: =O54 -> -0.04254388611
M85: Base Bruta | O85: =N267/M267-1 -> 0.7739178115
M86: Taxa Depreciação | O86: =H242/Q267-1 -> -0.999002681
M87: Variação Total | N87: =IF(N2=5,H235/C235-1,IF(N2=4,H235/D235-1,H235/E235-1)) -> -0.9987486604 | O87: =H240/IF(N2=5,C240,IF(N2=4,D240,IF(N2=3,E240)))-1 -> -0.998230838
M91: Resumo Depreciação
M92: Depreciação 3º Ciclo | O92: 1
M93: Efeito da Taxa de Depreciação | O93: =IF(Q93>0,1,1+Q93) -> 0.0009973190349 | P93: =ABS(O86) -> 0.999002681 | Q93: =O86 -> -0.999002681
M94: Efeito Base Bruta | O94: =IF(Q94>0,1+Q93,1+Q93+Q94) -> 0.0009973190349 | P94: =ABS(Q94) -> 1.412817171 | Q94: =Q95-Q93-1 -> 1.412817171
M95: Depreciação 4º Ciclo | P95: =1+H104 -> 1.41381449 | Q95: =P95 -> 1.41381449
H102: Efeito | I102: Participação | J102: Impacto
H103: Quota Reintegração | I103: Reintegração/ Receita | J103: Revisão
H104: =(1+O87)/(1+N87)-1 -> 0.4138144899 | I104: =X9 -> 0.04213805169 | J104: =H104*I104 -> 0.01743733637
M106: Resumo Custos Operacionais
M107: Descrição | N107: CO Tarifas | O107: CO(PRORET)
B108: Variação dos Custos Opercacionais ao longo do ciclo | F108: Variação dos Custos Opercacionais na Revisão | N108: 3º Ciclo | O108: 4º Ciclo
M109: Eficiência
M110: Inflação | N110: =IF(N2=5,(1+D181)*(1+E181)*(1+F181)*(1+G181)-1,IF(N2=4,(1+E181)*(1+F181)*(1+G181)-1,(1+F181)*(1+G181))) -> 0.1292305587
M111: Estrutura_Mercado | N111: =IF(N2=5,(1+D183)*(1+E183)*(1+F183)*(1+G183)*(1+H183)-1,IF(N2=4,(1+E183)*(1+F183)*(1+G183)*(1+H183)-1,(1+F183)*(1+G183)*(1+H183)-1)) -> 0.1547017918
M112: Produtividade | N112: =(1+N113)/((1+N110)*(1+N111))-1 -> -0.9990175839
M113: Variação Total | N113: =IF(N2=5,H204/C204-1,IF(N2=4,H204/D204-1,H204/E204-1)) -> -0.9987190035 | O113: =IF(N2=5,(Resultado!G20*(1-SUM(Resultado!G26:G27))/1000)/C204-1,IF(N2=4,(Resultado!G20*(1-SUM(Resultado!G26:G27))/1000)/D204-1,(Resultado!G20*(1-SUM(Resultado!G26:G27))/1000)/E204-1)) -> -0.9987080005
M117: Resumo Custos Operacionais
M119: Custo Operacional 3º Ciclo | O119: 1
M120: Efeito Custo Operacional | O120: =IF(Q120>0,1,1+Q120) -> 1 | P120: =IF(1-P121>0,1-P121,P121-1) -> 0.008589450807
M121: Custo Operacional 4º Ciclo | P121: =1+H132 -> 1.008589451
H130: Variação | I130: Participação | J130: Impacto
H131: CO | I131: CO/Receita | J131: Revisão
H132: =H208/H204-1 -> 0.008589450807 | I132: =X6 -> 0.2851154702 | J132: =I132*H132 -> 0.002448985305
M135: Resumo Anuidades
B136: Variação das Anuidades ao longo do ciclo | F136: Variação das Anuidades na Revisão | M136: Descrição | N136: Anuidades Tarifas | O136: Anuidades
N137: 3° Ciclo | O137: 4º Ciclo
M138: Inflação | N138: =IF(N2=5,(1+D181)*(1+E181)*(1+F181)*(1+G181)-1,IF(N2=4,(1+E181)*(1+F181)*(1+G181)-1,(1+F181)*(1+G181))) -> 0.1292305587
M139: Estrutura_Mercado | N139: =(1+N141)/((1+N138)*(1+N140))-1 -> -0.9988426325
M140: Produtividade | N140: =-IF(N2=5,(1+D216)*(1+E216)*(1+F216)*(1+G216)*(1+257)-1,IF(N2=4,(1+E216)*(1+F216)*(1+G216)*(1+H216)-1,(1+F216)*(1+G216)*(1+H216)-1)) -> -0.04254388611
M141: Variação Total | N141: =IF(N2=5,H213/C213-1,IF(N2=4,H213/D213-1,H213/E213-1)) -> -0.9987486673 | O141: =H218/IF(N2=5,C218,IF(N2=4,D218,IF(N2=3,E218)))-1 -> -0.9986066513
M145: Resumo Anuidades
M146: Anuidades 3º Ciclo | O146: 1
M147: Efeito da Anuidades | O147: =IF(P148>1,1,1-P147) -> 1 | P147: =IF(1-P148>0,1-P148,P148-1) -> 0.1134917702
M148: Anuidades 4º Ciclo | P148: =1+H161 -> 1.11349177
H159: Efeito | I159: Participação | J159: Impacto
H160: Anuidades | I160: Anuid/Receita | J160: Revisão
H161: =(1+O141)/(1+N141)-1 -> 0.1134917702 | I161: =X7 -> 0.03803825731 | J161: =H161*I161 -> 0.004317029158
B164: Tabelas
B167: Parcela B
B168: Análise | C168: =IF('VPB e Fator X'!$C$7=5,"Revisão","") ->  | D168: =IF('VPB e Fator X'!$C$7=3,"",IF('VPB e Fator X'!$C$7=4,"Revisão","Reajuste")) -> Revisão | E168: =IF('VPB e Fator X'!$C$7=3,"Revisão","Reajuste") -> Reajuste | F168: Reajuste | G168: Reajuste | H168: Revisão
B169: Parcela B | C169: =IF('VPB e Fator X'!$C$7=5,D169-1,"") ->  | D169: =IF('VPB e Fator X'!$C$7=3,"",E169-1) -> 2016 | E169: =F169-1 -> 2017 | F169: =G169-1 -> 2018 | G169: =H169-1 -> 2019 | H169: =YEAR(CAPA!C10) -> 2020
B170: RA0 (R$.mil) | C170: =IF(C169="","",(C174+C177)/(1+C11)) ->  | D170: =IF(D169="","",(D174+D177)/(1+D11)) -> 911789413.3 | E170: =IF(E169="","",(E174+E177)/(1+E11)) -> 1070802671 | F170: =IF(F169="","",(F174+F177)/(1+F11)) -> 1110048160 | G170: =IF(G169="","",(G174+G177)/(1+G11)) -> 1221315275 | H170: =T5+T4/1000 -> 566932390.4 | I170: =H175/D177-1 -> 0.269708017
B171: Variação da RA0 (%) | D171: =IF(ISERROR(D170/C170-1),"",D170/C170-1) ->  | E171: =IF(ISERROR(E170/D170-1),"",E170/D170-1) -> 0.1743969121 | F171: =IF(ISERROR(F170/E170-1),"",F170/E170-1) -> 0.03665053286 | G171: =IF(ISERROR(G170/F170-1),"",G170/F170-1) -> 0.1002362949 | H171: =IF(ISERROR(H170/G170-1),"",H170/G170-1) -> -0.5358017687
B172: Parcela A - VPA0 | C172: =IF(ISERROR(C170-C175),"",C170-C175) ->  | D172: =IF(ISERROR(D170-D175),"",D170-D175) ->  | E172: =IF(ISERROR(E170-E175),"",E170-E175) -> 607443959.2 | F172: =IF(ISERROR(F170-F175),"",F170-F175) -> 639854851.4 | G172: =IF(ISERROR(G170-G175),"",G170-G175) -> 707151604.6
B173: Variação da Parcela A (%) | D173: =IF(ISERROR(D172/C172-1),"",D172/C172-1) ->  | E173: =IF(ISERROR(E172/D172-1),"",E172/D172-1) ->  | F173: =IF(ISERROR(F172/E172-1),"",F172/E172-1) -> 0.05335618489 | G173: =IF(ISERROR(G172/F172-1),"",G172/F172-1) -> 0.10517503
B174: Parcela A - VPA1 | C174: =C12 -> 0 | D174: =D12 -> 618723111.3 | E174: =E12 -> 628268988.5 | F174: =F12 -> 692999752.4 | G174: =G12 -> 659455307
B175: Parcela B - VPB0 (R$.mil) | C175: =IF(C177="","",C179/(1+(C181-C182))) -> 0 | D175: =IF(C169="","",D179/(1+(D181-D182))) ->  | E175: =IF(D169="","",E179/(1+(E181-E182))) -> 463358712.2 | F175: =IF(E169="","",F179/(1+(F181-F182))) -> 470193308.5 | G175: =IF(F169="","",G179/(1+(G181-G182))) -> 514163670 | H175: =T5 -> 566257613.5
B177: Parcela B - VPB1 (R$.mil) com geração própria | C177: =C13 -> 0 | D177: =D13 -> 445974669.7 | E177: =E13 -> 456330498 | F177: =F13 -> 497289660.8 | G177: =G13 -> 542800528 | H177: =U5/1000 -> 
B178: VPB1 (R$.mil) Geração Própria | C178: =IF(ISERR(0*C177),"",0*C177) -> 0 | D178: =IF(ISERR(0*D177),"",0*D177) -> 0 | E178: =IF(ISERR(0*E177),"",0*E177) -> 0 | F178: =IF(ISERR(0*F177),"",0*F177) -> 0 | G178: =IF(ISERR(0*G177),"",0*G177) -> 0 | H178: 0
B179: Parcela B - VPB1 (R$.mil) | C179: =IF(ISERR(C177-C178),"",C177-C178) -> 0 | D179: =IF(ISERR(D177-D178),"",D177-D178) -> 445974669.7 | E179: =IF(ISERR(E177-E178),"",E177-E178) -> 456330498 | F179: =IF(ISERR(F177-F178),"",F177-F178) -> 497289660.8 | G179: =IF(ISERR(G177-G178),"",G177-G178) -> 542800528 | H179: =U5/1000 -> 
B180: Variação da Parcela B (%) | C180: =IF(ISERROR(C179/'VPB e Fator X'!$C$79-1),"",C179/'VPB e Fator X'!$C$79-1) ->  | D180: =IF(ISERROR(D179/C179-1),"",D179/C179-1) ->  | E180: =IF(ISERROR(E179/D179-1),"",E179/D179-1) -> 0.0232206647 | F180: =IF(ISERROR(F179/E179-1),"",F179/E179-1) -> 0.08975767121 | G180: =IF(ISERROR(G179/F179-1),"",G179/F179-1) -> 0.09151782328 | H180: =IF(ISERROR(H179/G179-1),"",H179/G179-1) -> 
B181: IGP-M | C181: =C14 -> 0 | D181: 0.107975208 | E181: -0.003027164971 | F181: 0.0692124878 | G181: 0.05933976477
B182: Fator X | C182: 0 | D182: 0.002560461898 | E182: 0.01214081196 | F182: 0.01158437664 | G182: 0.003643768204
B183: Efeito Mercado/Estrutura/Paramétrica | D183: =IFERROR((1+D180)/(1+D181-D182)-1, "") ->  | E183: =IFERROR((1+E180)/(1+E181-E182)-1, "") -> 0.03897988767 | F183: 0.03037888244 | G183: 0.03393195278 | H183: =H175/G179-1 -> 0.04321492742 | I183: =(1+D181-D182) -> 1.105414746 | J183: =(1+E181-E182) -> 0.9848320231
B184: Efeito Estrutura Tarifária/Paramétrica | D184: =IF(ISERROR((1+D183)/(1+D185)-1),"",(1+D183)/(1+D185)-1) ->  | E184: 0.03860965952 | F184: -0.02181272108 | G184: -0.003580521355 | H184: 0.02826955779
B185: Efeito Mercado | D185: =IFERROR((D186/C186-1),"") ->  | E185: =IFERROR((E186/D186-1),"") -> 0.0003564651505 | F185: =IFERROR((F186/E186-1),"") -> 0.05335543065 | G185: =IFERROR((G186/F186-1),"") -> 0.037647271 | H185: =IFERROR((H186/G186-1),"") -> 0.01453448613
B186: Mercado - Total (MWh) | C186: =SUM(C187:C188) -> 0 | D186: 2173682.333 | E186: 2174457.175 | F186: 2290476.274 | G186: 2376706.455 | H186: 2411250.662
B187: Mercado -Cativo (MWh) | C187: =C16 -> 0 | D187: 2116494.949 | E187: 2078663.185 | F187: 2107325.883 | G187: 2150377.029 | H187: =Energia!H5+Energia!H6 -> 2158449.448
B188: Mercado - Livres(MWh) | C188: 0 | D188: 57187.384 | E188: 95793.99 | F188: 183150.391 | G188: 226329.426 | H188: =Energia!H7 -> 252801.214
B189: Parcela B isolado o efeito IGPM-Fator X | C189: =IF('VPB e Fator X'!$C$7=5,C177,"") ->  | D189: =IF('VPB e Fator X'!$C$7=5,D177/(1+D181-D182),D177) -> 445974669.7 | E189: =IF('VPB e Fator X'!$C$7=5,E179/((1+E181-E182)*(1+D181-D182)),IF('VPB e Fator X'!$C$7=4,E179/((1+E181-E182)),E179)) -> 463358712.2 | F189: =IF('VPB e Fator X'!$C$7=5,F179/((1+F181-F182)*(1+E181-E182)*(1+D181-D182)),IF('VPB e Fator X'!$C$7=4,F179/((1+F181-F182)*(1+E181-E182)),IF('VPB e Fator X'!$C$7=3,F179/(1+F181-F182)))) -> 477435032.1 | G189: =IF('VPB e Fator X'!$C$7=5,G179/((1+G181-G182)*(1+F181-F182)*(1+E181-E182)*(1+D181-D182)),IF('VPB e Fator X'!$C$7=4,G179/((1+G181-G182)*(1+F181-F182)*(1+E181-E182)),IF('VPB e Fator X'!$C$7=3,G179/(1+G181-G182)*(1+F181-F182)))) -> 493635335
B190: Parcela B isolado o efeito IGPM-Fator X e Mercado | C190: =IF('VPB e Fator X'!$C$7=5,C179,"") ->  | D190: =IF('VPB e Fator X'!$C$7=5,D179/((1+D181-D182)*(1+D185)),D179) -> 445974669.7 | E190: =IF('VPB e Fator X'!$C$7=5,E179/((1+E181-E182)*(1+D181-D182)*(1+E185)*(1+D185)),IF('VPB e Fator X'!$C$7=4,E179/((1+E181-E182)*(1+E185)),IF('VPB e Fator X'!$C$7=3,E179))) -> 463193599.8 | F190: =IF('VPB e Fator X'!$C$7=5,F179/((1+F181-F182)*(1+E181-E182)*(1+D181-D182)*(1+F185)*(1+E185)*(1+D185)),IF('VPB e Fator X'!$C$7=4,F179/((1+F181-F182)*(1+E181-E182)*(1+F185)*(1+E185)),IF('VPB e Fator X'!$C$7=3,F179/(1+F181-F182)*(1+F185)))) -> 453090087 | G190: =IF('VPB e Fator X'!$C$7=5,G179/((1+G181-G182)*(1+F181-F182)*(1+E181-E182)*(1+D181-D182)*(1+G185)*(1+F185)*(1+E185)*(1+D185)),IF('VPB e Fator X'!$C$7=4,G179/((1+G181-G182)*(1+F181-F182)*(1+E181-E182)*(1+G185)*(1+F185)*(1+E185)),IF('VPB e Fator X'!$C$7=3,G179/(1+G181-G182)*(1+F181-F182)*(1+G185)*(1+F185)))) -> 451467788.3
B191: Parcela B em cada processo tarifário (R$) | C191: =C179 -> 0 | D191: 445974669.7 | E191: 456330498 | F191: 497289660.8 | G191: 542800528
B192: Custos Operacionais | C192: =IF('VPB e Fator X'!$C$7=5,$C$191*O6,"") ->  | D192: =IF('VPB e Fator X'!$C$7=5,($N$6-$N$13*(1-(1-Entrada!G67)^('VPB e Fator X'!$C$7-4)))/($N$13*(1-Entrada!G67)^('VPB e Fator X'!$C$7-4))*D191,IF('VPB e Fator X'!$C$7=4,$D$191*O6,"")) -> 276221011.6 | E192: =IF('VPB e Fator X'!$C$7=3,$E$191*O6,($N$6-$N$13*(1-(1-Entrada!G67)^('VPB e Fator X'!$C$7-3)))/($N$13*(1-Entrada!G67)^('VPB e Fator X'!$C$7-3))*E191) -> 283476717.7 | F192: =($N$6-$N$13*(1-(1-Entrada!G67)^('VPB e Fator X'!$C$7-2)))/($N$13*(1-Entrada!G67)^('VPB e Fator X'!$C$7-2))*F191 -> 309833700.3 | G192: =($N$6-$N$13*(1-(1-Entrada!G67)^('VPB e Fator X'!$C$7-1)))/($N$13*(1-Entrada!G67)^('VPB e Fator X'!$C$7-1))*G191 -> 339180485.8 | H192: =U6/1000 -> 356877.4212
B193: Anuidades | C193: =IF('VPB e Fator X'!$C$7=5,$C$191*O7,"") ->  | D193: =IF('VPB e Fator X'!$C$7=5,(C193/SUM($C$193:$C$198))*($D$191-$D$192),IF('VPB e Fator X'!$C$7=4,$D$191*O7,"")) -> 37725211.23 | E193: =IF('VPB e Fator X'!$C$7=3,$E$191*O7,(D193/SUM($D$193:$D$198))*($E$191-$E$192)) -> 38414167 | F193: =E193/SUM(E$193:E$198)*(F$191-F$192) -> 41659283.13 | G193: 45251508.51 | H193: 52564.37338
B194: Remuneração | C194: =IF('VPB e Fator X'!$C$7=5,$C$191*O8,"") ->  | D194: =IF('VPB e Fator X'!$C$7=5,(C194/SUM($C$193:$C$198))*($D$191-$D$192),IF('VPB e Fator X'!$C$7=4,$D$191*O8,"")) -> 91421638.17 | E194: =IF(N2=3,$E$191*O8,(D194/SUM($D$193:$D$198))*($E$191-$E$192)) -> 93091223.65 | F194: 100955297.1 | G194: 109660540.1 | H194: 176583.4016
B195: Depreciação | C195: =IF('VPB e Fator X'!$C$7=5,$C$191*O9,"") ->  | D195: =IF('VPB e Fator X'!$C$7=5,(C195/SUM($C$193:$C$198))*($D$191-$D$192),IF('VPB e Fator X'!$C$7=4,$D$191*O9,"")) -> 41791036.78 | E195: =IF(N2=3,$E$191*O9,(D195/SUM($D$193:$D$198))*($E$191-$E$192)) -> 42554244.59 | F195: 46149102.33 | G195: 50128478.94 | H195: 73935.1142
B196: Receitas irrecuperáveis | C196: =IF('VPB e Fator X'!$C$7=5,$C$191*O10,"") ->  | D196: =IF('VPB e Fator X'!$C$7=5,(C196/SUM($C$193:$C$198))*($D$191-$D$192),IF('VPB e Fator X'!$C$7=4,$D$191*O10,"")) -> 5009049.204 | E196: =IF(N2=3,$E$191*O10,(D196/SUM($D$193:$D$198))*($E$191-$E$192)) -> 5100526.845 | F196: 5531404.39 | G196: 6008370.14
B197: Outras Receitas | C197: =IF('VPB e Fator X'!$C$7=5,$C$191*O11,"") ->  | D197: =IF('VPB e Fator X'!$C$7=5,(C197/SUM($C$193:$C$198))*($D$191-$D$192),IF('VPB e Fator X'!$C$7=4,$D$191*O11,"")) -> -6193277.268 | E197: =IF(N2=3,$E$191*O11,(D197/SUM($D$193:$D$198))*($E$191-$E$192)) -> -6306381.847 | F197: -6839126.484 | G197: -7428855.396 | H197: -10043.81417
B198: Ajuste Investimentos 2CRTP | C198: =IF('VPB e Fator X'!$C$7=5,$C$191*O12,"") ->  | D198: =IF('VPB e Fator X'!$C$7=5,(C198/SUM($C$193:$C$198))*($D$191-$D$192),IF('VPB e Fator X'!$C$7=4,$D$191*O12,"")) -> 0 | E198: =IF(N2=3,$E$191*O12,(D198/SUM($D$193:$D$198))*($E$191-$E$192)) -> 0 | F198: 0 | G198: 0 | H198: 0
B201: Custos Operacionais | C201: =IF(ROUND(H132,4)=ROUND(V6,4),"","CHECAR") -> 
B202: Análise | C202: =IF('VPB e Fator X'!$C$7=5,"Revisão","") ->  | D202: =IF('VPB e Fator X'!$C$7=3,"",IF('VPB e Fator X'!$C$7=4,"Revisão","Reajuste")) -> Revisão | E202: =IF('VPB e Fator X'!$C$7=3,"Revisão","Reajuste") -> Reajuste | F202: Reajuste | G202: Reajuste | H202: Revisão
B203: Detalhe Custos Operacionais | C203: =IF('VPB e Fator X'!$C$7=5,D169-1,"") ->  | D203: =D169 -> 2016 | E203: =E169 -> 2017 | F203: =F169 -> 2018 | G203: =G169 -> 2019 | H203: =H169 -> 2020
B204: CO nas Tarifas | C204: =C192 ->  | D204: =D192 -> 276221011.6 | E204: =E192 -> 283476717.7 | F204: =F192 -> 309833700.3 | G204: =G192 -> 339180485.8 | H204: =T6/1000 -> 353838.1459
B205: IGP-M | C205: =C181 -> 0 | D205: =D181 -> 0.107975208 | E205: =E181 -> -0.003027164971 | F205: =F181 -> 0.0692124878 | G205: =G181 -> 0.05933976477 | H205: 0
B206: Fator Q, Pd e incidência do T apenas nos custos operacionais | C206: =C182 -> 0 | D206: =IF(N2=5,(1+D204/C204-1)/((1+D205)*(1+D207))-1,"") ->  | E206: =IF(N2=3,"",(1+E204/D204-1)/((1+E205)*(1+E207))-1) -> -0.009235998644 | F206: =(1+F204/E204-1)/((1+F205)*(1+F207))-1 -> -0.007911794678 | G206: =(1+G204/F204-1)/((1+G205)*(1+G207))-1 -> -0.0005180112832 | H206: =(1+H204/G204-1)/((1+H205)*(1+H207))-1 -> -0.999
B207: Efeito Mercado/Estrutura/Paramétrica | C207: =C183 -> 0 | D207: =D183 ->  | E207: =E183 -> 0.03897988767 | F207: =F183 -> 0.03037888244 | G207: =G183 -> 0.03393195278 | H207: =H183 -> 0.04321492742
B208: CO 4CRTP - regra de atualização do PRORET | D208: =IF(N2=5,C208+P201,IF(N2=4,D204,"")) -> 276221011.6 | E208: =IF(N2=3,E204,D208+P212) -> 207254978 | F208: =E208+$P$212 -> 138288944.5 | G208: =F208+$P$212 -> 69322910.96 | H208: =U6/1000 -> 356877.4212
B210: Anuidades | C210: =IF(ROUND(J161,3)=ROUND(W7,3),"","CHECKAR") -> 
B211: Análise | C211: =IF(N2=5,"Revisão","") ->  | D211: =IF(N2=3,"",IF(N2=4,"Revisão","Reajuste")) -> Revisão | E211: =IF(N2=3,"Revisão","Reajuste") -> Reajuste | F211: Reajuste | G211: Reajuste | H211: Revisão | M211: CO-3CRTP | N211: CO-4CRTP | O211: Ciclo | P211: Incremento Anual
B212: Detalhe Anuidades | C212: =C169 ->  | D212: 2016 | E212: 2017 | F212: 2018 | G212: 2019 | H212: 2020 | M212: =D204 -> 276221011.6 | N212: =U6/1000 -> 356877.4212 | O212: =N2 -> 4 | P212: =(N212-M212)/O212 -> -68966033.54
B213: Anuidades nas Tarifas | C213: =C193 ->  | D213: =D193 -> 37725211.23 | E213: =E193 -> 38414167 | F213: =F193 -> 41659283.13 | G213: =G193 -> 45251508.51 | H213: =T7/1000 -> 47206.79109
B214: Variação Total | D214: =IF(ISERROR(D213/C213-1),"",D213/C213-1) ->  | E214: =IF(ISERROR(E213/D213-1),"",E213/D213-1) -> 0.01826247611 | F214: =IF(ISERROR(F213/E213-1),"",F213/E213-1) -> 0.08447706631 | G214: 0.08622868926 | H214: -0.9989567908
B215: IGP-M | C215: =C181 -> 0 | D215: =D181 -> 0.107975208 | E215: =E181 -> -0.003027164971 | F215: =F181 -> 0.0692124878 | G215: =G181 -> 0.05933976477 | H215: 0
B216: Fator X | C216: =IF(ISERR(C182-Entrada!G67),"",C182-Entrada!G67) -> 0.004869263781 | D216: =IF(ISERR(D182-Entrada!G67),"",D182-Entrada!G67) -> 0.007429725679 | E216: =IF(ISERR(E182-Entrada!G67),"",E182-Entrada!G67) -> 0.01701007574 | F216: =IF(ISERR(F182-Entrada!G67),"",F182-Entrada!G67) -> 0.01645364043 | G216: =IF(ISERR(G182-Entrada!G67),"",G182-Entrada!G67) -> 0.008513031985 | H216: 0
B217: Efeito Mercado/Estrutura | C217: =C183 -> 0 | E217: 0.03897988767 | F217: 0.03037888244 | G217: 0.03393195278 | H217: 0.04321492742
B218: Anuidades 4CRTP | C218: =IF(N2=5,C213,"") ->  | D218: =IF(N2=5,C218+P220,IF(N2=4,D213,"")) -> 37725211.23 | E218: =IF(N2=3,E213,D218+P220) -> 28307049.52 | F218: =E218+P220 -> 18888887.8 | G218: =F218+P220 -> 9470726.088 | H218: =U7/1000 -> 52564.37338
M219: CAIMI-3CRTP | N219: CAIMI-4CRTP | O219: Ciclo | P219: Incremento Anual
B220: Remuneração | C220: =IF(ROUND(J75,3)=ROUND(W8,3),"","CHECKAR") -> CHECKAR | M220: =D213 -> 37725211.23 | N220: =U7/1000 -> 52564.37338 | O220: =N2 -> 4 | P220: =(N220-M220)/O220 -> -9418161.715
B221: Análise | C221: =IF(N2=5,"Revisão","") ->  | D221: =IF(N2=3,"",IF(N2=4,"Revisão","Reajuste")) -> Revisão | E221: =IF(N2=3,"Revisão","Reajuste") -> Reajuste | F221: Reajuste | G221: Reajuste | H221: Revisão
B222: Detalhe Remuneração | C222: =C212 ->  | D222: 2016 | E222: 2017 | F222: 2018 | G222: 2019 | H222: 2020
B223: Remuneração nas tarifas | C223: =C194 ->  | D223: =D194 -> 91421638.17 | E223: =E194 -> 93091223.65 | F223: =F194 -> 100955297.1 | G223: =G194 -> 109660540.1 | H223: =T8/1000 -> 114399.5124
B224: Variação Total | D224: =IF(ISERROR(D223/C223-1),"",D223/C223-1) ->  | E224: =IF(ISERROR(E223/D223-1),"",E223/D223-1) -> 0.01826247611 | F224: =IF(ISERROR(F223/E223-1),"",F223/E223-1) -> 0.08447706631 | G224: =IF(ISERROR(G223/F223-1),"",G223/F223-1) -> 0.08622868926 | H224: =IF(ISERROR(H223/G223-1),"",H223/G223-1) -> -0.9989567851
B225: IGP-M | C225: =C181 -> 0 | D225: =D181 -> 0.107975208 | E225: =E181 -> -0.003027164971 | F225: =F181 -> 0.0692124878 | G225: =G181 -> 0.05933976477 | H225: 0
B226: Fator X | C226: =IF(ISERR(C182-Entrada!G67),"",C182-Entrada!G67) -> 0.004869263781 | D226: =IF(ISERR(D182-Entrada!G67),"",D182-Entrada!G67) -> 0.007429725679 | E226: =IF(ISERR(E182-Entrada!G67),"",E182-Entrada!G67) -> 0.01701007574 | F226: =IF(ISERR(F182-Entrada!G67),"",F182-Entrada!G67) -> 0.01645364043 | G226: =IF(ISERR(G182-Entrada!G67),"",G182-Entrada!G67) -> 0.008513031985 | H226: 0
B227: Efeito Mercado/Estrutura | C227: =C183 -> 0 | E227: 0.03897988767 | F227: 0.03037888244 | G227: 0.03393195278 | H227: 0.04321492742
B228: Remuneração 4º Ciclo | C228: =IF(ISERR(C229*C230),"",C229*C230) ->  | D228: =IF(ISERR(D229*D230),"",D229*D230) -> 91421.63817 | E228: =IF(ISERR(E229*E230),"",E229*E230) -> 123520.7089 | F228: =IF(ISERR(F229*F230),"",F229*F230) -> 155619.7797 | G228: =IF(ISERR(G229*G230),"",G229*G230) -> 187718.8505 | H228: =U8/1000 -> 176583.4016
B229: Base Líquida (R$.mil) | C229: =IF(N2=5,M248,"") ->  | D229: =IF(N2=5,C229+P248,IF(N2=4,M248,"")) -> 565068.1419 | E229: =IF(N2=3,M248,D229+P248) -> 763469.3371 | F229: =E229+P248 -> 961870.5322 | G229: =F229+P248 -> 1160271.727 | H229: =N248 -> 1358672.923
B230: Taxa de Remuneração | C230: =IF(N2=5,Q248,"") ->  | D230: =IF(N2=5,Q248,IF(N2=4,Q248,"")) -> 0.1617886966 | E230: =Q248 -> 0.1617886966 | F230: =Q248 -> 0.1617886966 | G230: =Q248 -> 0.1617886966 | H230: =U8/1000/H229 -> 0.1299675578
B232: Quota de Reintegração | C232: =IF(ROUND(J104,3)=ROUND(W9,3),"","CHECKAR") -> 
B233: Análise | C233: =IF(N2=5,"Revisão","") ->  | D233: =IF(N2=3,"",IF(N2=4,"Revisão","Reajuste")) -> Revisão | E233: =IF(N2=3,"Revisão","Reajuste") -> Reajuste | F233: Reajuste | G233: Reajuste | H233: Revisão
B234: Detalhe Quota de Reintegração | C234: =C222 ->  | D234: 2016 | E234: 2017 | F234: 2018 | G234: 2019 | H234: 2020
B235: Quota de Reintegração nas tarifas | C235: =C195 ->  | D235: =D195 -> 41791036.78 | E235: =E195 -> 42554244.59 | F235: =F195 -> 46149102.33 | G235: =G195 -> 50128478.94 | H235: =T9/1000 -> 52294.77751
B236: Variação Total | D236: =IF(ISERROR(D235/C235-1),"",D235/C235-1) ->  | E236: =IF(ISERROR(E235/D235-1),"",E235/D235-1) -> 0.01826247611 | F236: =IF(ISERROR(F235/E235-1),"",F235/E235-1) -> 0.08447706631 | G236: =IF(ISERROR(G235/F235-1),"",G235/F235-1) -> 0.08622868926 | H236: =IF(ISERROR(H235/G235-1),"",H235/G235-1) -> -0.9989567851 | M236: 4CRTP
B237: IGP-M | C237: =C225 -> 0 | D237: 0.107975208 | E237: -0.003027164971 | F237: 0.0692124878 | G237: 0.05933976477 | H237: 0 | M237: Capex - Ativos de Distribuição | N237: (14) Base de Remuneração Líquida Total = (1)-(6)-(8)+(10)+(11)-(12)+(13) | O237: ='VPB e Fator X'!C90 -> 1370455804
B238: Fator X | D238: 0.007429725679 | E238: 0.01701007574 | F238: 0.01645364043 | G238: 0.008513031985 | H238: 0 | M238: Parcela B sem ajuste de mercado (Parcela B sem deduzir OR) | O238: =SUM(Resultado!G25) -> 665683714.6
B239: Efeito Mercado/Estrutura | E239: 0.03897988767 | F239: 0.03037888244 | G239: 0.03393195278 | H239: 0.04321492742 | M239: Parcela B com ajuste de mercado (Parcela B sem deduzir OR) | O239: =SUM(Resultado!G25)*(1-SUM(Resultado!G26:G27)) -> 659960310.3
B240: Quota de Reintegração 4° Ciclo | C240: =IF(ISERR(C241*C242),"",C241*C242) ->  | D240: =IF(ISERR(D241*D242),"",D241*D242) -> 41791036.78 | E240: =IF(ISERR(E241*E242),"",E241*E242) -> 49876743.71 | F240: 57962450.64 | G240: 66048157.57 | H240: =U9/1000 -> 73935.1142
B241: Base Bruta (R$.mil) | C241: =IF(N2=5,M267,"") ->  | D241: =IF(N2=5,C241+P267,IF(N2=4,M267,"")) -> 1120403.131 | E241: =IF(N2=3,M267,D241+P267) -> 1337178.116 | F241: =E241+P267 -> 1553953.1 | G241: =F241+P267 -> 1770728.085 | H241: =N267 -> 1987503.07 | M241: 3CRTP
B242: Taxa Depreciação | C242: =IF(N2=5,Q267,"") ->  | D242: =IF(N2=5,Q267,IF(N2=4,Q267,"")) -> 37.3 | E242: =Q267 -> 37.3 | F242: =Q267 -> 37.3 | G242: =Q267 -> 37.3 | H242: =U9/1000/H241 -> 0.0372 | M242: Capex - Ativos de Distribuição | N242: (14) Base de Remuneração Líquida Total = (1)-(6)-(8)+(10)+(11)-(12)+(13) | O242: =C5 -> 577082363.8
M243: Parcela B após ajuste em função dos investimentos realizados (sem deduzir OR) | O243: =SUM(Entrada!G58:'Entrada'!G64) -> 461781736.2
M244: Parcela B com ajuste de mercado (Parcela B sem deduzir OR) | O244: =O243*(1-Entrada!G65) -> 452167947
M247: BL - 3CRTP | N247: BL - 4CRTP | O247: Ciclo | P247: Incremento | Q247: Remun-3CRTP
M248: =O242*O244/O243/1000 -> 565068.1419 | N248: =O237*O239/O238/1000 -> 1358672.923 | O248: =N2 -> 4 | P248: =(N248-M248)/O248 -> 198401.1952 | Q248: =D223/M248/1000 -> 0.1617886966
M255: 4CRTP
M256: Capex - Ativos de Distribuição | N256: (5) Base de Remuneração Bruta = (1)-(2)-(3)-(4) | O256: ='VPB e Fator X'!C75 -> 2004739384
M257: Parcela B sem ajuste de mercado (Parcela B sem deduzir OR) | O257: =SUM(Resultado!G25) -> 665683714.6
M258: Parcela B com ajuste de mercado (Parcela B sem deduzir OR) | O258: =SUM(Resultado!G25)*(1-SUM(Resultado!G26:G27)) -> 659960310.3
M260: 3CRTP
M261: Capex - Ativos de Distribuição | N261: (5) Base de Remuneração Bruta = (1)-(2)-(3)-(4) | O261: =C6 -> 1144224633
M262: Parcela B após ajuste em função dos investimentos realizados (sem deduzir OR) | O262: =O243 -> 461781736.2
M263: Parcela B com ajuste de mercado (Parcela B sem deduzir OR) | O263: =O244 -> 452167947
M266: BB - 3CRTP | N266: BB - 4CRTP | O266: Ciclo | P266: Incremento | Q266: % Depr.2CRTP
M267: =O261*O263/O262/1000 -> 1120403.131 | N267: =O256*O258/O257/1000 -> 1987503.07 | O267: =N2 -> 4 | P267: =(N267-M267)/O267 -> 216774.9848 | Q267: =D235/M267 -> 37.3

Sheet Apresentação
B9: Impacto da RTP na Tarifa
B10: Encargos Setoriais | C10: ='NT Revisao'!AU188 -> 0.0016
B11: Custos de Transmissão | C11: ='NT Revisao'!AU198 -> 0.02371558178
B12: Custos de Aquisição de Energia | C12: ='NT Revisao'!AU208 -> 0.0004436822486
B13: Receitas Irrecuperáveis | C13: ='NT Revisao'!AU207 -> 0.001017997883
B14: Distribuição | C14: ='NT Revisao'!AU209 -> 0.066082298
B15: Componentes Financeiros | C15: =LnkTxtEfeitoFinComRTE -> 0.02466054484
B16: Efeito da Retirada dos Financeiros Anteriores | C16: =LnkTxtEfeitoRetiradaFinComRTE -> -0.0458
B17: Efeito Médio Consumidor | C17: ='NT Revisao'!AU272 -> 0.07171691872 | D17: ='Votos e NTs'!BP295 -> 0
E19: SUBGRUPO | F19: EFEITO | Z19: ='Votos e NTs'!CK475 -> Distribuição | AA19: ='Votos e NTs'!CL475 -> 0.3415966319 | AF19: ='Votos e NTs'!CK466 -> Distribuição | AG19: ='Votos e NTs'!CL466 -> 641585525.8
E20: Grupo A | F20: =Resultado!L8 -> 0.01786689937 | Z20: ='Votos e NTs'!CK476 -> Energia | AA20: ='Votos e NTs'!CL476 -> 0.2729837522 | AF20: ='Votos e NTs'!CK467 -> Energia | AG20: ='Votos e NTs'!CL467 -> 512717069.9
E21: Grupo B | F21: =Resultado!L9 -> 0.08538638243 | Z21: ='Votos e NTs'!CK477 -> Transmissão | AA21: ='Votos e NTs'!CL477 -> 0.0493756803 | AF21: ='Votos e NTs'!CK468 -> Receitas Irrecuperáveis | AG21: ='Votos e NTs'!CL468 -> 7525010.856
E22: Grupos A+B | F22: =Resultado!L10 -> 0.07171691872 | Z22: ='Votos e NTs'!CK478 -> Encargos Setoriais | AA22: ='Votos e NTs'!CL478 -> 0.05051617563 | AF22: ='Votos e NTs'!CK469 -> Transmissão | AG22: ='Votos e NTs'!CL469 -> 92737219.45
Z23: ='Votos e NTs'!CK479 -> Receitas Irrecuperáveis | AA23: ='Votos e NTs'!CL479 -> 0.00400650928 | AF23: ='Votos e NTs'!CK470 -> PROINFA | AG23: ='Votos e NTs'!CL470 -> 16283974.21
Z24: ='Votos e NTs'!CK480 -> ICMS | AA24: ='Votos e NTs'!CL480 -> 0.2240259036 | AF24: ='Votos e NTs'!CK471 -> CDE | AG24: ='Votos e NTs'!CL471 -> 40756364.76
H25: Contratos | I25: Montantes (GWh) | L25: Preço (R$/MWh) | O25: Impacto Processo | Z25: ='Votos e NTs'!CK481 -> PIS/COFINS | AA25: ='Votos e NTs'!CL481 -> 0.05749534721 | AF25: ='Votos e NTs'!CK472 -> ESS/EER | AG25: ='Votos e NTs'!CL472 -> 22067512.67
I26: Processo Anterior | J26: Processo Atual | K26: Variação | L26: Processo Anterior | M26: Processo Atual | N26: Variação | AF26: ='Votos e NTs'!CK473 -> Outros | AG26: ='Votos e NTs'!CL473 -> 15771441.9
H27: CCEAR | I27: 1467774.566 | J27: =SUM('Votos e NTs'!AI174:AI177) -> 1365861.478 | K27: =J27/I27-1 -> -0.06943374696 | L27: 224.4900365 | M27: =Energia!D28 -> 233.3380672 | N27: =IFERROR(M27/L27-1,"") -> 0.03941391265 | O27: ='Votos e NTs'!CL443+'Votos e NTs'!CL444+'Votos e NTs'!CL445+'Votos e NTs'!CL446 -> 0.01334523182
H28: Madeira/Belo Monte | I28: 173195.4558 | J28: ='Votos e NTs'!AI178 -> 185304.0701 | K28: =J28/I28-1 -> 0.06991300253 | L28: 137.3731278 | M28: ='Votos e NTs'!AJ178 -> 141.5039513 | N28: =IFERROR(M28/L28-1,"") -> 0.03007009847 | O28: ='Votos e NTs'!CL448 -> 0.0009484291393
H29: Cota Angra I e II | I29: 74690.91052 | J29: ='Votos e NTs'!AI250 -> 83866.45774 | K29: 0.1228469053 | L29: 247.47 | M29: ='Votos e NTs'!AJ250 -> 269.75 | N29: =IFERROR(M29/L29-1,"") -> 0.09003111488 | O29: ='Votos e NTs'!CL450 -> 0.002475525996
H30: Cotas Lei 12.783/2013 | I30: 611972.3774 | J30: ='Votos e NTs'!AI251 -> 679802.5595 | K30: 0.1108386336 | L30: 106.95 | M30: ='Votos e NTs'!AJ251 -> 112.02 | N30: =IFERROR(M30/L30-1,"") -> 0.04740532959 | O30: ='Votos e NTs'!CL451 -> 0.001585470724
H31: Ajuste - CCEAR | I31: 360577.1221 | K31: -1 | L31: 257.42973 | M31: =IFERROR('Votos e NTs'!CE319/'Votos e NTs'!BY319,"") ->  | N31: =IFERROR(M31/L31-1,"") ->  | O31: ='Votos e NTs'!CG359 -> 0
H32: Itaipu | I32: 52269.44113 | K32: -1 | L32: =IFERROR('Votos e NTs'!CD320/'Votos e NTs'!BX320,"") ->  | M32: =IFERROR('Votos e NTs'!CE320/'Votos e NTs'!BY320,"") ->  | O32: ='Votos e NTs'!CG360 -> 0
H33: Bilateral | I33: 360577.1221 | J33: ='Votos e NTs'!AI201 -> 222143.6913 | K33: -0.3839218361 | L33: 257.42973 | M33: ='Votos e NTs'!AJ201 -> 234.067594 | N33: -0.09075150725 | O33: ='Votos e NTs'!CL449 -> -0.01791457993
H34: Geração Própria | L34: =IFERROR('Votos e NTs'!CD322/'Votos e NTs'!BX322,"") ->  | M34: =IFERROR('Votos e NTs'!CE322/'Votos e NTs'!BY322,"") ->  | O34: ='Votos e NTs'!CG362 -> 0
H35: Montante de Reposição | L35: =IFERROR('Votos e NTs'!CD323/'Votos e NTs'!BX323,"") ->  | M35: =IFERROR('Votos e NTs'!CE323/'Votos e NTs'!BY323,"") ->  | O35: ='Votos e NTs'!CG363 -> 0
H36: Proinfa | I36: 52269.44113 | J36: ='Votos e NTs'!AI253 -> 52242.15139 | K36: -0.0005220974186 | L36: =IFERROR('Votos e NTs'!CD324/'Votos e NTs'!BX324,"") ->  | M36: =IFERROR('Votos e NTs'!CE324/'Votos e NTs'!BY324,"") ->  | O36: ='Votos e NTs'!CG364 -> 0
H37: Total | I37: =SUM(I27:I36) -> 3153326.436 | J37: =SUM(J27:J36) -> 2589220.408 | L37: =Energia!C14 -> 197.1960096 | M37: =Energia!D14 -> 198.0198628 | N37: 0.004177839218 | O37: =SUM(O27:O36) -> 0.0004400777515
Q40: Encargos Setoriais | R40: Processo Anterior (mil R$) | S40: Processo Atual (mil R$) | T40: Impacto Processo
Q41: TFSEE | R41: ='NT Revisao'!AR189 -> 2295577.222 | S41: ='NT Revisao'!AS189 -> 2570668.766 | T41: ='NT Revisao'!AU189 -> 0.0002227768352
Q42: CDE (USO) | R42: ='NT Revisao'!AR190 -> 30338612.47 | S42: ='NT Revisao'!AS190 -> 40756364.76 | T42: ='NT Revisao'!AU190 -> 0.0084
Q43: CDE (Decr. 7945/2013) | R43: ='NT Revisao'!AR191 -> 0 | S43: ='NT Revisao'!AS191 -> 0 | T43: ='NT Revisao'!AU191 -> 0
Q44: CDE (Conta-ACR) | R44: ='NT Revisao'!AR192 -> 8009056.086 | S44: ='NT Revisao'!AS192 -> 0 | T44: ='NT Revisao'!AU192 -> -0.0065
Q45: Compensação financeira - CFURH | R45: ='NT Revisao'!AR193 -> 0 | S45: ='NT Revisao'!AS193 -> 0 | T45: ='NT Revisao'!AU193 -> 0
Q46: ESS/EER | R46: ='NT Revisao'!AR194 -> 20220828.47 | S46: ='NT Revisao'!AS194 -> 22067512.67 | T46: ='NT Revisao'!AU194 -> 0.0015
Q47: PROINFA | R47: ='NT Revisao'!AR195 -> 19545591.13 | S47: ='NT Revisao'!AS195 -> 16283974.21 | T47: ='NT Revisao'!AU195 -> -0.0026
Q48: P&D | R48: ='NT Revisao'!AR196 -> 12475992.56 | S48: ='NT Revisao'!AS196 -> 13200773.13 | T48: ='NT Revisao'!AU196 -> 0.0006
Q49: ONS | R49: 0 | S49: 0 | T49: 0
Q50: Total de Encargos | R50: =SUM(R41:R49) -> 92885657.93 | S50: =SUM(S41:S49) -> 94879293.54 | T50: ='NT Revisao'!AU188 -> 0.0016
V52: Custos de Transporte | W52: Processo Anterior (mil R$) | X52: Processo Atual (mil R$) | Y52: Impacto Processo
V53: Rede Básica | W53: ='NT Revisao'!AR199 -> 46116406.3 | X53: ='NT Revisao'!AS199 -> 69301063.57 | Y53: ='NT Revisao'!AU199 -> 0.01877655557
V54: Rede Básica Fronteira | W54: ='NT Revisao'!AR200 -> 14146747.51 | X54: ='NT Revisao'!AS200 -> 19357875.73 | Y54: ='NT Revisao'!AU200 -> 0.004220335779
V55: Rede Básica ONS (A2) | W55: ='NT Revisao'!AR201 -> 234483.6232 | X55: ='NT Revisao'!AS201 -> 202050.55 | Y55: ='NT Revisao'!AU201 -> -2.626656906e-05
V56: Rede Básica Export. (A2) | W56: ='NT Revisao'!AR202 -> 0 | X56: ='NT Revisao'!AS202 -> 0 | Y56: ='NT Revisao'!AU202 -> 0
V57: MUST Itaipu | W57: ='NT Revisao'!AR203 -> 0 | X57: ='NT Revisao'!AS203 -> 0 | Y57: ='NT Revisao'!AU203 -> 0
V58: Transporte de Itaipu | W58: ='NT Revisao'!AR204 -> 0 | X58: ='NT Revisao'!AS204 -> 0 | Y58: ='NT Revisao'!AU204 -> 0
V59: Conexão | W59: ='NT Revisao'!AR205 -> 754807.1456 | X59: ='NT Revisao'!AS205 -> 2201363.346 | Y59: ='NT Revisao'!AU205 -> 0.001171522294
V60: Uso do sistema de distribuição | W60: ='NT Revisao'!AR206 -> 2201574.681 | X60: ='NT Revisao'!AS206 -> 1674866.254 | Y60: ='NT Revisao'!AU206 -> -0.0004265652901
V61: Total do Transporte | W61: =SUM(W53:W60) -> 63454019.25 | X61: =SUM(X53:X60) -> 92737219.45 | Y61: =SUM(Y53:Y60) -> 0.02371558178 | Z61: =LnkTxtAvalEfeitoTrans -> 0.01840425712
AA63: Componente | AB63: Processo Anterior (mil R$)
AA64: Rede Básica | AB64: ='Votos e NTs'!BR254/1000 -> 0
AA65: Rede Básica Fronteira | AB65: ='Votos e NTs'!BR255/1000 -> 0
AA66: Rede Básica ONS (A2) | AB66: ='Votos e NTs'!BR256/1000 -> 0
AA67: Rede Básica Export. (A2) | AB67: ='Votos e NTs'!BQ257/1000 -> 0
AA68: MUST Itaipu | AB68: ='Votos e NTs'!BR258/1000 -> 0
AA69: Transporte de Itaipu | AB69: ='Votos e NTs'!BR259/1000 -> 0
AA70: Conexão | AB70: ='Votos e NTs'!BR260/1000 -> 0
AA71: Uso do sistema de distribuição | AB71: ='Votos e NTs'!BR261/1000 -> 0
AA72: Total do Transporte | AB72: =SUM(AB64:AB71) -> 0
AD75: Descrição | AE75: Valor | AF75: Referência
AD76: (1) Parcela B - DRA (MM R$) | AE76: ='Votos e NTs'!AQ141/1000000 -> 0 | AF76: TUSD fio B aplicada ao Mercado
AD77: (2) Fator DR1/Fator PB | AE77: ='Votos e NTs'!AQ142 -> 0 | AF77: SGT/ANEEL
AD78: ='Votos e NTs'!AP143 -> 0 | AE78: ='Votos e NTs'!AQ143/1000000 -> 0 | AF78: SGT/ANEEL
AD79: ='Votos e NTs'!AP144 -> 0 | AE79: ='Votos e NTs'!AQ144 -> 0 | AF79: Indicador econômico oficial
AD80: ='Votos e NTs'!AP145 -> 0 | AE80: ='Votos e NTs'!AQ145 -> 0 | AF80: Pd + T + Q
AD81: ='Votos e NTs'!AP146 -> 0 | AE81: ='Votos e NTs'!AQ146 -> 0 | AF81: ='Votos e NTs'!AR146 -> 0
AD82: ='Votos e NTs'!AP147 -> 0 | AE82: ='Votos e NTs'!AQ147 -> 0 | AF82: ='Votos e NTs'!AR147 -> 0
AD83: ='Votos e NTs'!AP148 -> 0 | AE83: ='Votos e NTs'!AQ148 -> 0 | AF83: ='Votos e NTs'!AR148 -> 0
AD84: ='Votos e NTs'!AP149 -> 0 | AE84: ='Votos e NTs'!AZ196/1000 -> 0 | AF84: 0
AD85: ='Votos e NTs'!AP150 -> 0 | AE85: ='Votos e NTs'!AQ150/1000000 -> 0 | AF85: UD + ER + OR
AD86: ='Votos e NTs'!AP151 -> 0 | AE86: ='Votos e NTs'!AQ151/1000000 -> 0 | AF86: Valores fiscalizados - SFF
AD87: ='Votos e NTs'!AP152 -> 0 | AE87: ='Votos e NTs'!AQ152/1000000 -> 0 | AF87: Valores fiscalizados - SFF
AD88: ='Votos e NTs'!AP153 -> 0 | AE88: ='Votos e NTs'!AQ153/1000000 -> 0 | AF88: Valores fiscalizados - SFF
AD89: Parcela B-DRP (MMR$) = (3)*[(1)+(4)-(5)]-(6) | AE89: ='Votos e NTs'!AQ154/1000000 -> 0
AH91: Resultado Bandeiras Tarifárias no Período | AI91: Valor (mil R$) | AJ91: Impacto Processo
AH92: Usinas com contrato por disponibilidade - CCEAR-D | AI92: -66519.46164 | AJ92: -0.01144423021
AH93: Risco Hidrológico das usinas que repactuaram | AI93: 128197.3185 | AJ93: 0.02205549458
AH94: Risco Hidrológico das usinas cotistas - CCGF | AI94: 103147.5557 | AJ94: 0.01774584977
AH95: Risco Hidrológico da UHE ITAIPU | AI95: 87452.43744 | AJ95: 0.01504560924
AH96: Encargos de Energia de Reserva - EER e de Serviço do Sistema - ESS | AI96: -102050.9453 | AJ96: -0.01755718527
AH97: Resultado Mercado de Curto Prazo - MCP | AI97: 28529.54764 | AJ97: 0.004908318602
AH98: Custo Total | AI98: 178756.4523 | AJ98: 0.03075385671
AH99: Recolhimento pelas Bandeiras Tarifárias | AI99: -162443.7101 | AJ99: -0.0279473581
AH100: Previsão do Risco Hidrológico no Processo Tarifário de 2018 | AI100: -162780.8718 | AJ100: -0.02800536451
AH101: Receita Total | AI101: =AI99+AI100 -> -325224.5819 | AJ101: =AJ100+AJ99 -> -0.05595272261
AH102: Custo não coberto antecipadamente | AI102: -146468.1296 | AJ102: -0.0251988659
AL104: Descrição | AM104: Valor (mil R$) | AN104: Impacto
AL105: ='Votos e NTs'!CV510 -> CVA Energia - Efeito CCEAR-D | AM105: ='Votos e NTs'!CW510/1000 -> -5086.884807 | AN105: ='Votos e NTs'!CX510 -> -0.004119501748
AL106: ='Votos e NTs'!CV511 -> CVA Energia - Risco Hidrológico das usinas repactuadas | AM106: ='Votos e NTs'!CW511/1000 -> 30074.69625 | AN106: ='Votos e NTs'!CX511 -> 0.02435533111
AL107: ='Votos e NTs'!CV512 -> CVA Energia - Risco Hidrológico das usinas cotistas | AM107: ='Votos e NTs'!CW512/1000 -> 20987.57709 | AN107: ='Votos e NTs'!CX512 -> 0.01699632758
AL108: ='Votos e NTs'!CV513 -> CVA Energia - Risco Hidrológico da UHE Itaipu | AM108: ='Votos e NTs'!CW513/1000 -> 0 | AN108: ='Votos e NTs'!CX513 -> 0
AL109: ='Votos e NTs'!CV514 -> CVA ESS/EER (sem bandeiras) | AM109: ='Votos e NTs'!CW514/1000 -> -22461.76786 | AN109: ='Votos e NTs'!CX514 -> -0.01819016854
AL110: ='Votos e NTs'!CV515 -> Resultado do Mercado de Curto Prazo (MCP) | AM110: ='Votos e NTs'!CW515/1000 -> 4534.594357 | AN110: ='Votos e NTs'!CX515 -> 0.003672241478
AL111: ='Votos e NTs'!CV516 -> Custo total - Itens observados nas Bandeiras Tarifárias | AM111: ='Votos e NTs'!CW516/1000 -> 28048.21503 | AN111: ='Votos e NTs'!CX516 -> 0.02271422987
AL112: ='Votos e NTs'!CV517 -> Receita das Bandeiras Tarifárias (Energia, ESS e MCP) | AM112: ='Votos e NTs'!CW517/1000 -> -29899.48217 | AN112: ='Votos e NTs'!CX517 -> -0.02421343784
AL113: ='Votos e NTs'!CV518 -> Reversão da Previsão do Risco Hidrológico | AM113: ='Votos e NTs'!CW518/1000 -> -28468.23984 | AN113: ='Votos e NTs'!CX518 -> -0.02305437773
AL114: ='Votos e NTs'!CV519 -> Custo não coberto antecipadamente | AM114: ='Votos e NTs'!CW519/1000 -> -30319.50698 | AN114: ='Votos e NTs'!CX519 -> -0.02455358569
AL115: ='Votos e NTs'!CV520 -> CVA Energia - Itens não coberto pelas bandeiras | AM115: ='Votos e NTs'!CW520/1000 -> -5613.742772 | AN115: ='Votos e NTs'!CX520 -> -0.00454616608
AL116: ='Votos e NTs'!CV521 -> CVA Transporte | AM116: ='Votos e NTs'!CW521/1000 -> 2576.290909 | AN116: ='Votos e NTs'!CX521 -> 0.002086352514
AL117: ='Votos e NTs'!CV522 -> CVA Encargos (desconsiderando ESS/EER) | AM117: ='Votos e NTs'!CW522/1000 -> 4500.02076 | AN117: ='Votos e NTs'!CX522 -> 0.003644242811
AL118: ='Votos e NTs'!CV523 -> Saldo a Compensar CVA-Ano Anterior + Ajustes | AM118: ='Votos e NTs'!CW523/1000 -> 2729.043399 | AN118: ='Votos e NTs'!CX523 -> 0.002210055757
AL119: ='Votos e NTs'!CV524 -> Sobrecontratação | AM119: ='Votos e NTs'!CW524/1000 -> -14029.75408 | AN119: ='Votos e NTs'!CX524 -> -0.01136168768
AL120: ='Votos e NTs'!CV525 -> Neutralidade | AM120: ='Votos e NTs'!CW525/1000 -> 1935.64796 | AN120: ='Votos e NTs'!CX525 -> 0.001567541916
AL121: ='Votos e NTs'!CV526 -> Compensação ref. acordos bilaterais de CCEAR | AM121: ='Votos e NTs'!CW526/1000 -> 17630.21814 | AN121: ='Votos e NTs'!CX526 -> 0.01427744429
AL122: ='Votos e NTs'!CV527 -> Previsão de Risco Hidrológico | AM122: ='Votos e NTs'!CW527/1000 -> 36502.98682 | AN122: ='Votos e NTs'!CX527 -> 0.0295611408
AL123: ='Votos e NTs'!CV528 -> Demais Itens | AM123: ='Votos e NTs'!CW528/1000 -> 14540.37919 | AN123: ='Votos e NTs'!CX528 -> 0.0117752062
AL124: ='Votos e NTs'!CV529 -> Custo não coberto antecipadamente | AM124: ='Votos e NTs'!CW529/1000 -> 30451.58336 | AN124: ='Votos e NTs'!CX529 -> 0.02466054484
AQ126: Variação
AP127: IGP-M | AQ127: ='Votos e NTs'!AG22 -> 0.8424208155
AP128: IPCA | AQ128: ='Votos e NTs'!AH22 -> 0.7105932897
AP129: Tarifa B1 | AQ129: ='Votos e NTs'!AF22 -> 0.548431235
AS132: Descrição | AT132: Base Líquida (mil R$) | AU132: Remuneração
AS133: 4º CRTP (preços de jun/2016) | AT133: ='Avaliação Parcela B Nova'!J125/1000 -> 565068.1419 | AU133: ='Avaliação Parcela B Nova'!D126 -> 0.1617886966
AS134: 5º CRTP (preços de jun/2020) | AT134: ='Avaliação Parcela B Nova'!K125/1000 -> 1358672.923 | AU134: ='Avaliação Parcela B Nova'!H126 -> 0.1299675578
AS136: Descrição | AT136: Base Bruta (mil R$) | AU136: Depreciação
AS137: 4º CRTP (preços de jun/2016) | AT137: ='Avaliação Parcela B Nova'!J157/1000 -> 1120403.131 | AU137: ='Avaliação Parcela B Nova'!D158 -> 0.0373
AS138: 5º CRTP (preços de jun/2020) | AT138: ='Avaliação Parcela B Nova'!K157/1000 -> 1987503.07 | AU138: ='Avaliação Parcela B Nova'!H158 -> 0.0372
BP144: =BP147/BP148-1 -> 0.0001023990638
BI147: Enel RJ | BJ147: 683.67 | BK147: 1000 | BL147: =BL148+1 -> 53 | BM147: 1 | BN147: =BI147 -> Enel RJ | BP147: =BJ147 -> 683.67
BI148: Celpa | BJ148: 683.6 | BL148: 52 | BM148: 2 | BN148: =BI148 -> Celpa | BP148: =BJ148 -> 683.6
BI149: AmE | BJ149: 664.84 | BL149: 51 | BM149: =BM148+1 -> 3 | BN149: AmE | BP149: 664.84
BI150: Light | BJ150: 663.11 | BL150: 50 | BM150: =BM149+1 -> 4 | BN150: Light | BP150: 663.11
BI151: ENF | BJ151: 662.45 | BL151: 49 | BM151: 5 | BN151: ENF | BP151: 662.45
BI152: Urussanga | BJ152: 648.12 | BL152: 48 | BM152: 6 | BN152: Urussanga | BP152: 648.12
BI153: EMS | BJ153: 645.42 | BL153: 47 | BM153: 7 | BO153: ETO 2020 | BP153: 647.3526464
BI154: Cemig | BJ154: 644.63 | BL154: 46 | BM154: 8 | BN154: =BI153 -> EMS | BP154: =BJ153 -> 645.42
BI155: João Cesa | BJ155: 639.05 | BL155: 45 | BM155: 9 | BN155: =BI154 -> Cemig | BP155: =BJ154 -> 644.63
BI156: EMT | BJ156: 636.28 | BL156: 44 | BM156: 10 | BN156: =BI155 -> João Cesa | BP156: =BJ155 -> 639.05
BI157: Cemar | BJ157: 630.18 | BL157: 43 | BM157: 11 | BN157: =BI156 -> EMT | BP157: =BJ156 -> 636.28
BI158: EMG | BJ158: 627.72 | BL158: 42 | BM158: 12 | BN158: =BI157 -> Cemar | BP158: =BJ157 -> 630.18
BI159: Sulgipe | BJ159: 619.22 | BL159: 41 | BM159: 13 | BN159: =BI158 -> EMG | BP159: =BJ158 -> 627.72
BI160: Forcel | BJ160: 619.01 | BL160: 40 | BM160: 14 | BN160: =BI159 -> Sulgipe | BP160: =BJ159 -> 619.22
BI161: Roraima Energia | BJ161: 617.77 | BL161: 39 | BM161: 15 | BN161: =BI160 -> Forcel | BP161: =BJ160 -> 619.01
BI162: Hidropan | BJ162: 600.74 | BL162: 38 | BM162: 16 | BN162: =BI161 -> Roraima Energia | BP162: =BJ161 -> 617.77
BI163: ETO | BJ163: 600.08 | BL163: 37 | BM163: 17 | BN163: =BI162 -> Hidropan | BP163: =BJ162 -> 600.74
BI164: RGE Sul | BJ164: 589.56 | BL164: 36 | BM164: 17 | BN164: =BI163 -> ETO | BO164: ETO 2019 | BP164: =BJ163 -> 600.08
BI165: Ceal | BJ165: 583.31 | BL165: 35 | BM165: 18 | BN165: =BI164 -> RGE Sul | BP165: =BJ164 -> 589.56
BI166: Cocel | BJ166: 579.76 | BL166: 34 | BM166: 19 | BN166: =BI165 -> Ceal | BP166: =BJ165 -> 583.31
BI167: Ceron | BJ167: 576.82 | BL167: 33 | BM167: 20 | BN167: =BI166 -> Cocel | BP167: =BJ166 -> 579.76
BI168: Coelba | BJ168: 576.5149072 | BL168: 32 | BM168: 21 | BN168: =BI167 -> Ceron | BP168: =BJ167 -> 576.82
BI169: Celpe | BJ169: 574.34 | BL169: 31 | BM169: 22 | BN169: =BI168 -> Coelba | BP169: =BJ168 -> 576.5149072
BI170: Chesp | BJ170: 573.14 | BL170: 30 | BM170: 23 | BN170: =BI169 -> Celpe | BP170: =BJ169 -> 574.34
BI171: Nova Palma | BJ171: 571.71 | BL171: 29 | BM171: 24 | BN171: =BI170 -> Chesp | BP171: =BJ170 -> 573.14
BI172: Eletroacre | BJ172: 569.84 | BL172: 28 | BM172: 25 | BN172: =BI171 -> Nova Palma | BP172: =BJ171 -> 571.71
BI173: Cepisa | BJ173: 569.48 | BL173: 27 | BM173: 26 | BN173: =BI172 -> Eletroacre | BP173: =BJ172 -> 569.84
BI174: CPFL Paulista | BJ174: 550.2 | BL174: 26 | BM174: 27 | BN174: =BI173 -> Cepisa | BP174: =BJ173 -> 569.48
BI175: Enel CE | BJ175: 546.45 | BL175: 25 | BM175: 28 | BN175: =BI174 -> CPFL Paulista | BP175: =BJ174 -> 550.2
BI176: EPB | BJ176: 545.4 | BL176: 24 | BM176: 29 | BN176: =BI175 -> Enel CE | BP176: =BJ175 -> 546.45
BI177: Eletrocar | BJ177: 541.57 | BL177: 23 | BM177: 30 | BN177: =BI176 -> EPB | BP177: =BJ176 -> 545.4
BI178: CPFL Santa Cruz (nova) | BJ178: 541.15 | BL178: 22 | BM178: 31 | BN178: =BI177 -> Eletrocar | BP178: =BJ177 -> 541.57
BI179: CEA | BJ179: 537.18 | BL179: 21 | BM179: 32 | BN179: =BI178 -> CPFL Santa Cruz (nova) | BP179: =BJ178 -> 541.15
BI180: ESE | BJ180: 535.51 | BL180: 20 | BM180: 33 | BN180: =BI179 -> CEA | BP180: =BJ179 -> 537.18
BI181: Enel GO | BJ181: 533.68 | BL181: 19 | BM181: 34 | BN181: =BI180 -> ESE | BP181: =BJ180 -> 535.51
BI182: Elektro | BJ182: 531.87 | BL182: 18 | BM182: 35 | BN182: =BI181 -> Enel GO | BP182: =BJ181 -> 533.68
BI183: EDP ES | BJ183: 525.81 | BL183: 17 | BM183: 36 | BN183: =BI182 -> Elektro | BP183: =BJ182 -> 531.87
BI184: EDP SP | BJ184: 525.73 | BL184: 16 | BM184: 37 | BN184: =BI183 -> EDP ES | BP184: =BJ183 -> 525.81
BI185: Cosern | BJ185: 518.5013319 | BL185: 15 | BM185: 38 | BN185: =BI184 -> EDP SP | BP185: =BJ184 -> 525.73
BI186: CEB | BJ186: 518.01 | BL186: 14 | BM186: 39 | BN186: =BI185 -> Cosern | BP186: =BJ185 -> 518.5013319
BI187: Santa Maria | BJ187: 517.96 | BL187: 13 | BM187: 40 | BN187: =BI186 -> CEB | BP187: =BJ186 -> 518.01
BI188: Enel SP | BJ188: 515.59 | BL188: 12 | BM188: 41 | BN188: =BI187 -> Santa Maria | BP188: =BJ187 -> 517.96
BI189: CEEE | BJ189: 515.07 | BL189: 11 | BM189: 42 | BN189: =BI188 -> Enel SP | BP189: =BJ188 -> 515.59
BI190: Copel | BJ190: 512.77 | BL190: 10 | BM190: 43 | BN190: =BI189 -> CEEE | BP190: =BJ189 -> 515.07
BI191: Iguaçu | BJ191: 510.62 | BL191: 10 | BM191: 44 | BN191: =BI190 -> Copel | BP191: =BJ190 -> 512.77
BI192: DMED | BJ192: 507.42 | BL192: 9 | BM192: 45 | BN192: =BI191 -> Iguaçu | BP192: =BJ191 -> 510.62
BI193: Demei | BJ193: 507.03 | BL193: 8 | BM193: 46 | BN193: =BI192 -> DMED | BP193: =BJ192 -> 507.42
BI194: EBO | BJ194: 497.66 | BL194: 7 | BM194: 47 | BN194: =BI193 -> Demei | BP194: =BJ193 -> 507.03
BI195: ESS | BJ195: 497.35 | BL195: 6 | BM195: =BM194+1 -> 48 | BN195: =BI194 -> EBO | BP195: =BJ194 -> 497.66
BI196: CPFL Piratininga | BJ196: 490.18 | BL196: 5 | BM196: 49 | BN196: =BI195 -> ESS | BP196: =BJ195 -> 497.35
BI197: MuxEnergia | BJ197: 485.22 | BL197: 4 | BM197: 50 | BN197: =BI196 -> CPFL Piratininga | BP197: =BJ196 -> 490.18
BI198: Celesc | BJ198: 469.78 | BL198: 3 | BM198: 51 | BN198: =BI197 -> MuxEnergia | BP198: =BJ197 -> 485.22
BI199: Cooperaliança | BJ199: 467.6 | BL199: =BL200+1 -> 2 | BM199: 52 | BN199: =BI198 -> Celesc | BP199: =BJ198 -> 469.78
BL200: 1 | BM200: 53 | BN200: =BI199 -> Cooperaliança | BP200: =BJ199 -> 467.6
BM201: 54 | BN201: =BI200 -> 0 | BP201: =BJ200 -> 0

Sheet AP X Final
L2: 1
C3: Receita Verificada (R$) - AP | D3: Receita Verificada (R$) - Final | E3: Variação | F3: Receita Requerida (R$) - AP | G3: Receita Requerida (R$) - Final | H3: Variação | I3: AP - Participação na Revisão % | J3: Final - Participação na Revisão % | K3: Variação | L3: 1 | N3: Custos | O3: Mercado
B4: PARCELA A [Encargos+Transmissão+Energia] | C4: =C5+C15+C25+C24 -> 672501630 | D4: =D5+D15+D25+D24 -> 674776924.6 | E4: =IFERROR(D4/C4-1,"-") -> 0.003383329487 | F4: =F5+F15+F25+F24 -> 671062120.2 | G4: =G5+G15+G25+G24 -> 707858593.7 | H4: =IFERROR(G4/F4-1,"-") -> 0.05483318522 | I4: =IFERROR((F4-C4)/C$33,0) -> -0.001168222607 | J4: 0.02679184734 | K4: =J4-I4 -> 0.02796006995 | L4: =IF(G4+D4<>0,1,0) -> 1 | M4: =(G4-C4)/$C$33 -> 0.02869365898 | N4: =M4-I4 -> 0.02986188158 | O4: =K4-N4 -> -0.001901811636
B5: Encargos Setoriais | C5: =SUM(C6:C14) -> 92577202.7 | D5: =SUM(D6:D14) -> 92885657.93 | E5: =IFERROR(D5/C5-1,"-") -> 0.003331870323 | F5: =SUM(F6:F14) -> 94981642.57 | G5: =SUM(G6:G14) -> 94879293.54 | H5: =IFERROR(G5/F5-1,"-") -> -0.001077566431 | I5: 0.0019513038 | J5: 0.001614585425 | K5: =J5-I5 -> -0.0003367183748 | L5: 1 | M5: =(G5-C5)/$C$33 -> 0.00186824327 | N5: =M5-I5 -> -8.306053024e-05 | O5: =K5-N5 -> -0.0002536578445
B6: Taxa de Fisc. de Serviços de E.E. – TFSEE | C6: 2282787.557 | D6: ='NT Revisao'!AR189 -> 2295577.222 | E6: 0.005602652098 | F6: 2750754 | G6: ='NT Revisao'!AS189 -> 2570668.766 | H6: -0.06546758968 | I6: 0.000379774396 | J6: 0.0002227883557 | K6: -0.0001569860403 | L6: =IF(G6+D6<>0,1,0) -> 1 | M6: 0.0002336276754 | N6: -0.0001461467207 | O6: -1.083931961e-05
B7: Conta de Desenvolvimento Energético – CDE (USO) | C7: 30246929.1 | D7: ='NT Revisao'!AR190 -> 30338612.47 | E7: 0.003031163088 | F7: 40756364.76 | G7: ='NT Revisao'!AS190 -> 40756364.76 | H7: 0 | I7: 0.008528847824 | J7: 0.00843702378 | K7: -9.182404458e-05 | L7: =IF(G7+D7<>0,1,0) -> 1 | M7: 0.008528847824 | N7: 0 | O7: -9.182404458e-05
B8: Conta de Desenvolvimento Energético – CDE (Decr. 7945/2013) | C8: 0 | D8: ='NT Revisao'!AR191 -> 0 | E8: - | F8: 0 | G8: ='NT Revisao'!AS191 -> 0 | H8: - | I8: 0 | J8: 0 | K8: 0 | L8: 0 | M8: 0 | N8: 0 | O8: 0
B9: Conta de Desenvolvimento Energético – CDE (Conta-ACR) | C9: 7976235.187 | D9: ='NT Revisao'!AR192 -> 8009056.086 | E9: 0.00411483583 | F9: 0 | G9: ='NT Revisao'!AS192 -> 0 | H9: - | I9: -0.006473049392 | J9: -0.00648629328 | K9: -1.324388749e-05 | L9: 1 | M9: -0.006473049392 | N9: 0 | O9: -1.324388749e-05
B10: Compensação financeira - CFURH | C10: 0 | D10: ='NT Revisao'!AR193 -> 0 | F10: 0 | G10: ='NT Revisao'!AS193 -> 0 | I10: 0 | J10: 0 | K10: 0 | L10: 0 | M10: 0 | N10: 0 | O10: 0
B11: Encargos Serv. Sist. - ESS e Energ. Reserv. - EER | C11: 20137964.05 | D11: ='NT Revisao'!AR194 -> 20220828.47 | E11: 0.00411483583 | F11: 21769038.68 | G11: ='NT Revisao'!AS194 -> 22067512.67 | H11: 0.01371094037 | I11: 0.001323685469 | J11: 0.00149557391 | K11: 0.0001718884407 | L11: 1 | M11: 0.001565909631 | N11: 0.0002422241625 | O11: -7.033572182e-05
B12: PROINFA | C12: 19491106.92 | D12: ='NT Revisao'!AR195 -> 19545591.13 | E12: 0.002795336835 | F12: 16283974.21 | G12: ='NT Revisao'!AS195 -> 16283974.21 | H12: 0 | I12: -0.002602722707 | J12: -0.002641485298 | K12: -3.876259119e-05 | L12: 1 | M12: -0.002602722707 | N12: 0 | O12: -3.876259119e-05
B13: P&D, Efic.Energ | C13: 12442179.88 | D13: ='NT Revisao'!AR196 -> 12475992.56 | E13: 0.002717584183 | F13: 13421510.92 | G13: ='NT Revisao'!AS196 -> 13200773.13 | H13: -0.0164465676 | I13: 0.0007947682105 | J13: 0.0005869779587 | K13: -0.0002077902519 | L13: 1 | M13: 0.0006156302385 | N13: -0.000179137972 | O13: -2.865227983e-05
B14: ONS | D14: ='NT Revisao'!AR197 -> 0 | E14: - | G14: ='NT Revisao'!AS197 -> 0 | H14: - | I14: 0 | J14: 0 | K14: 0 | L14: 0 | M14: 0 | N14: 0 | O14: 0
B15: Custos de Transmissão | C15: =SUM(C16:C23) -> 63585198.7 | D15: =SUM(D16:D23) -> 63454019.25 | E15: -0.002063049955 | F15: =SUM(F16:F23) -> 68693811.8 | G15: =SUM(G16:G23) -> 92737219.45 | H15: 0.3500083489 | I15: 0.004145853796 | J15: 0.02371558178 | K15: 0.01956972799 | L15: 1 | M15: 0.02365808753 | N15: 0.01951223373 | O15: 5.749425664e-05
B16: Rede Básica | C16: 46217055.29 | D16: ='NT Revisao'!AR199 -> 46116406.3 | E16: -0.002177745724 | F16: 49731995 | G16: ='NT Revisao'!AS199 -> 69301063.57 | H16: 0.3934905201 | I16: 0.002852520992 | J16: 0.01877655557 | K16: 0.01592403458 | L16: 1 | M16: 0.0187336409 | N16: 0.01588111991 | O16: 4.291466787e-05
B17: Rede Básica Fronteira | C17: 14177265.03 | D17: ='NT Revisao'!AR200 -> 14146747.51 | E17: -0.002152567417 | F17: 14993633.53 | G17: ='NT Revisao'!AS200 -> 19357875.73 | H17: 0.2910730203 | I17: 0.0006625172807 | J17: 0.004220335779 | K17: 0.003557818498 | L17: 1 | M17: 0.004204282868 | N17: 0.003541765588 | O17: 1.605291063e-05
B18: Rede Básica ONS (A2) | C18: 234466.584 | D18: ='NT Revisao'!AR201 -> 234483.6232 | E18: 7.26721894e-05 | F18: 265393.33 | G18: ='NT Revisao'!AS201 -> 202050.55 | H18: -0.2386751016 | I18: 2.50983515e-05 | J18: -2.626656906e-05 | K18: -5.136492056e-05 | L18: 1 | M18: -2.630697118e-05 | N18: -5.140532268e-05 | O18: 4.040212322e-08
B19: Rede Básica Export. (A2) | C19: 0 | D19: ='NT Revisao'!AR202 -> 0 | F19: 0 | G19: ='NT Revisao'!AS202 -> 0 | L19: 0 | M19: 0 | N19: 0 | O19: 0
B20: MUST Itaipu | C20: 0 | D20: ='NT Revisao'!AR203 -> 0 | E20: - | F20: 0 | G20: ='NT Revisao'!AS203 -> 0 | H20: - | I20: =IFERROR((F20-C20)/C$33,0) -> 0 | J20: 0 | K20: 0 | L20: 0 | M20: 0 | N20: 0 | O20: 0
B21: Transporte de Itaipu | C21: 0 | D21: ='NT Revisao'!AR204 -> 0 | E21: - | F21: 0 | G21: ='NT Revisao'!AS204 -> 0 | H21: - | I21: 0 | J21: 0 | K21: 0 | L21: 0 | M21: 0 | N21: 0 | O21: 0
B22: Conexão | C22: 755643.7173 | D22: ='NT Revisao'!AR205 -> 754807.1456 | E22: -0.001107098062 | F22: 2033192.859 | G22: ='NT Revisao'!AS205 -> 2201363.346 | H22: 0.082712511 | I22: =IFERROR((F22-C22)/C$33,0) -> 0.001036784711 | J22: =IFERROR((G22-D22)/D$33,0) -> 0.001171522294 | K22: 0.0001347375829 | L22: 1 | M22: 0.001173262114 | N22: 0.0001364774033 | O22: -1.739820394e-06
B23: Uso do sistema de distribuição | C23: 2200768.076 | D23: ='NT Revisao'!AR206 -> 2201574.681 | F23: 1669597.083 | G23: ='NT Revisao'!AS206 -> 1674866.254 | H23: 0.003155953301 | I23: =IFERROR((F23-C23)/C$33,0) -> -0.0004310675393 | L23: 1 | M23: -0.0004267913865 | N23: 4.276152799e-06 | O23: -4.276152799e-06
B24: Receitas Irrecuperáveis | C24: 6265013.158 | D24: ='NT Revisao'!AR207 -> 6268021.419 | E24: 0.0004801684602 | F24: 7713021.001 | G24: ='NT Revisao'!AS207 -> 7525010.856 | H24: -0.02437568167 | I24: =IFERROR((F24-C24)/C$33,0) -> 0.001175119097 | J24: =IFERROR((G24-D24)/D$33,0) -> 0.001017997883 | K24: -0.0001571212142 | L24: =IF(G24+D24<>0,1,0) -> 1 | M24: =(G24-C24)/$C$33 -> 0.001022540979 | N24: =M24-I24 -> -0.0001525781179 | O24: =K24-N24 -> -4.543096359e-06
B25: Custos de Aquisição de Energia | C25: 510074215.5 | D25: ='NT Revisao'!AR208 -> 512169226 | E25: 0.004107266112 | F25: 499673644.8 | G25: ='NT Revisao'!AS208 -> 512717069.9 | H25: 0.02610388839 | I25: -0.008440499301 | J25: 0.0004436822486 | K25: 0.008884181549 | L25: 1 | M25: 0.0021447872 | N25: 0.0105852865 | O25: -0.001701104951
B26: PARCELA B | C26: =SUM(C27:C32) -> 559720573.7 | D26: =SUM(D27:D32) -> 559989334 | E26: 0.0004801686816 | F26: =SUM(F27:F32) -> 672528526.3 | G26: =SUM(G27:G32) -> 641585525.8 | H26: -0.04600994488 | I26: 0.09154838488 | J26: 0.066082298 | K26: -0.02546608689 | L26: 1 | M26: 0.06643684224 | N26: -0.02511154265 | O26: -0.0003545442386
B27: Custos Operacionais | C27: 353668325.5 | D27: ='NT Revisao'!AR210 -> 353838145.9 | E27: 0.0004801684602 | F27: 359981261.1 | G27: ='NT Revisao'!AS210 -> 356877421.2 | H27: -0.008622226226 | I27: 0.00512321201 | J27: 0.002461417557 | K27: -0.002661794453 | L27: 1 | M27: 0.002604315774 | N27: -0.002518896235 | O27: -0.0001428982176
B28: Anuidades | C28: 47184134.63 | D28: ='NT Revisao'!AR211 -> 47206791.09 | E28: 0.0004801710866 | F28: 53622226.2 | G28: ='NT Revisao'!AS211 -> 52564373.38 | H28: -0.01972787955 | I28: 0.00522478133 | J28: 0.004338944517 | K28: -0.0008858368131 | L28: 1 | M28: 0.004366289398 | N28: -0.0008584919315 | O28: -2.734488154e-05
B29: Remuneração | C29: 114344607.7 | D29: ='NT Revisao'!AR212 -> 114399512.4 | E29: 0.0004801684602 | F29: 189602747.2 | G29: ='NT Revisao'!AS212 -> 176583401.6 | H29: -0.06866644009 | I29: 0.06107513672 | J29: 0.0503608588 | K29: -0.01071427792 | L29: 1 | M29: 0.05050939164 | N29: -0.01056574508 | O29: -0.0001485328397
B30: Depreciação | C30: 52269679.26 | D30: ='NT Revisao'!AR213 -> 52294777.51 | E30: 0.0004801684602 | F30: 76983736.63 | G30: ='NT Revisao'!AS213 -> 73935114.2 | H30: -0.03960086337 | I30: 0.02005649411 | J30: 0.01752585684 | K30: -0.002530637266 | L30: 1 | M30: 0.01758240914 | N30: -0.002474084971 | O30: -5.655229463e-05
B31: Receitas Irrecuperáveis | C31: -7746173.375 | D31: ='NT Revisao'!AR214 -> -7749892.843 | E31: 0.0004801684602 | F31: -7661444.897 | G31: ='NT Revisao'!AS214 -> -18374784.51 | H31: 1.398344536 | I31: 6.876071389e-05 | J31: -0.008604779722 | K31: -0.008673540436 | L31: 1 | M31: -0.008625563717 | N31: -0.008694324431 | O31: 2.078399492e-05
B32: OR, UD e ER | D32: ='NT Revisao'!AR215 -> 0 | E32: - | G32: ='NT Revisao'!AS215 -> 0 | H32: - | I32: 0 | J32: 0 | K32: 0 | L32: 0 | M32: 0 | N32: 0 | O32: 0
B33: Reposicionamento Tarifário | C33: =C26+C4 -> 1232222204 | D33: =D26+D4 -> 1234766259 | E33: 0.002064607241 | F33: =F26+F4 -> 1343590646 | G33: =G26+G4 -> 1349444120 | H33: 0.004356589656 | I33: 0.09038016228 | J33: 0.09287414534 | K33: 0.002493983062 | L33: 1 | M33: 0.09513050121 | N33: 0.004750338936 | O33: -0.002256355874
L34: 1
B35: Componentes Financeiros do Processo Atual | F35: 58712912.78 | G35: ='Votos e NTs'!AZ346 -> 30451583.36 | I35: =SUM(I36:I50) -> 0.04764554352 | J35: =SUM(J36:J50) -> 0.02466054484 | K35: -0.02298499868 | L35: =IF(J35=0,0,1) -> 1
B36: ='Votos e NTs'!AY291 -> CVA em processamento - Energia | F36: 48238607.9 | G36: ='Votos e NTs'!AZ291 -> 29026512.03 | I36: =F36/C$53 -> 0.03914564246 | J36: =G36/D$53 -> 0.02350648218 | K36: -0.01563916029 | L36: =IF(OR(J36<>0,I36<>0),1,0) -> 1 | M36: =F36/$C$53 -> 0.03914564246 | N36: 0 | O36: -0.01563916029
B37: ='Votos e NTs'!AY292 -> CVA em processamento -Transporte | F37: 3982107.034 | G37: ='Votos e NTs'!AZ292 -> 2576290.909 | I37: =F37/C$53 -> 0.003231480861 | J37: =G37/D$53 -> 0.002086352514 | K37: -0.001145128348 | L37: =IF(OR(J37<>0,I37<>0),1,0) -> 1 | M37: 0.003231480861 | N37: 0 | O37: -0.001145128348
B38: ='Votos e NTs'!AY293 -> CVA em processamento - Encargos Setoriais | F38: -5928889.522 | G38: ='Votos e NTs'!AZ293 -> -17961747.1 | I38: -0.004811295342 | J38: -0.01454592573 | K38: -0.009734630385 | L38: 1 | M38: -0.004811295342 | N38: 0 | O38: -0.009734630385
B39: ='Votos e NTs'!AY294 -> Saldo a Compensar CVA-Ano Anterior + Ajustes | F39: 977627.5457 | G39: ='Votos e NTs'!AZ294 -> 2729043.399 | I39: 0.0007933449997 | J39: 0.002210055757 | K39: 0.001416710758 | L39: 1 | M39: 0.0007933449997 | N39: 0 | O39: 0.001416710758
B40: ='Votos e NTs'!AY295 -> Neutralidade de Parcela A- Energia | F40: 222725.1507 | G40: ='Votos e NTs'!AZ295 -> 340307.3157 | I40: 0.0001807415159 | J40: 0.0002755903928 | K40: 9.484887686e-05 | L40: 1 | M40: 0.0001807415159 | N40: 0 | O40: 9.484887686e-05
B41: ='Votos e NTs'!AY296 -> Neutralidade de Parcela A - Transporte | F41: 2166740.121 | G41: ='Votos e NTs'!AZ296 -> 2294518.679 | I41: 0.001758310154 | J41: 0.001858165472 | K41: 9.985531859e-05 | L41: 1 | M41: 0.001758310154 | N41: 0 | O41: 9.985531859e-05
B42: ='Votos e NTs'!AY297 -> Neutralidade de Parcela A - Encargos Setoriais | F42: -436101.9437 | G42: ='Votos e NTs'!AZ297 -> -699178.0346 | I42: -0.0003538968372 | J42: -0.0005662139492 | K42: -0.000212317112 | L42: 1 | M42: -0.0003538968372 | N42: 0 | O42: -0.000212317112
B43: ='Votos e NTs'!AY298 -> Neutralidade de Parcela A - Receitas Irrecuperáveis | G43: ='Votos e NTs'!AZ298 -> 0 | I43: 0 | J43: 0 | K43: 0 | L43: 0 | M43: 0 | N43: 0 | O43: 0
B44: ='Votos e NTs'!AY299 -> Sobrecontratação/exposição de energia | F44: -11852107.85 | G44: ='Votos e NTs'!AZ299 -> -14029754.08 | I44: -0.009617988506 | J44: -0.01136168768 | K44: -0.001743699178 | L44: 1
B45: ='Votos e NTs'!AY300 -> Garantias financeiras na contratação regulada de energia (CCEAR) | F45: 464887.96 | G45: ='Votos e NTs'!AZ300 -> 464887.96 | I45: 0.0003772566967 | J45: 0.0003764792868 | K45: -7.774099477e-07 | L45: 1 | M45: =F45/$C$53 -> 0.0003772566967 | N45: =M45-I45 -> 0 | O45: =K45-N45 -> -7.774099477e-07
B46: ='Votos e NTs'!AY301 -> Previsão de Risco Hidrológico | F46: 30352822.46 | G46: ='Votos e NTs'!AZ301 -> 36502986.82 | I46: 0.02463132307 | J46: 0.0295611408 | K46: 0.004929817729 | L46: 1 | M46: =F46/$C$53 -> 0.02463132307 | N46: 0 | O46: 0.004929817729
B47: ='Votos e NTs'!AY306 -> Ajuste CUSD | F47: 40817.91795 | G47: 40307.69189 | I47: 3.31237507e-05 | J47: 3.26422975e-05 | K47: -4.814532019e-07 | L47: 1 | M47: =G47/$C$53 -> 3.270970213e-05 | N47: -4.140485725e-07 | O47: -6.740462939e-08
B48: ='Votos e NTs'!AY307 -> Repasse de compensação DIC/FIC | F48: -1408.147274 | G48: -1406.238749 | I48: -1.142711868e-06 | J48: -1.138811513e-06 | K48: 3.900354571e-09 | L48: 1 | M48: -1.141163099e-06 | N48: 1.548768627e-09 | O48: 2.351585944e-09
B49: ='Votos e NTs'!AY308 -> Compensação ref. acordos bilaterais de CCEAR | F49: 18982896 | G49: 17630218.14 | I49: 0.01540462489 | J49: 0.01427744429 | K49: -0.001127180596 | L49: 1 | M49: 0.01430692646 | N49: -0.001097698424 | O49: -2.948217236e-05
B50: ='Votos e NTs'!AY309 -> Reversão do Risco Hidrológico | F50: -28497811.84 | G50: -28461404.14 | I50: -0.02312598149 | J50: -0.02304884198 | K50: 7.713950566e-05 | L50: 1 | M50: -0.02309643663 | N50: 2.95448579e-05 | O50: 4.759464776e-05
B51: Efeito da retirada dos Componentes Financeiros do Processo Anterior | I51: -0.0466 | J51: =LnkTxtEfeitoRetiradaFin -> -0.05906188501 | K51: -0.01246188501 | L51: 1
B52: Efeito Médio a ser percebido pelos Consumidores | I52: =I33+I35+I51 -> 0.0914257058 | J52: =J33+J35+J51 -> 0.05847280516 | K52: -0.03295290063 | L52: 1
C53: 1232285508 | D53: =Financeiros!D5 -> 1234830112
Q56: Audiência Pública | R56: Versão Final | S56: Diferença | U56: Receita Requerida | V56: Mercado (RV)
B57: CVA em processamento - Energia | P57: PARCELA A [Encargos+Transmissão+Energia]
B58: CVA em processamento - Encargos Setoriais | P58: Encargos Setoriais | Q58: 0.002 | R58: ='NT Revisao'!AU188 -> 0.0016
B59: Sobrecontratação/exposição de energia | P59: Custos de Transmissão | Q59: 0.0041 | R59: ='NT Revisao'!AU198 -> 0.02371558178
B60: Total | P60: Receitas Irrecuperáveis | Q60: 0.0012 | R60: ='NT Revisao'!AU207 -> 0.001017997883
P61: Custos de Aquisição de Energia | Q61: -0.0084 | R61: ='NT Revisao'!AU208 -> 0.0004436822486
P62: PARCELA B | Q62: 0.0915 | R62: ='NT Revisao'!AU209 -> 0.066082298
P63: CO + Anuidades | Q63: 0.0103 | R63: ='NT Revisao'!AU210+'NT Revisao'!AU211 -> 0.006800362073
P64: Remuneração | Q64: 0.0611 | R64: ='NT Revisao'!AU212 -> 0.0503608588
P65: Depreciação | Q65: 0.0201 | R65: ='NT Revisao'!AU213 -> 0.01752585684
P66: OR + UD + ER | Q66: 0.0001 | R66: ='NT Revisao'!AU214 -> -0.008604779722
P67: Reposicionamento Tarifário | Q67: 0.0903 | R67: =LnkTxtReposicionamentoTarifarioComRte -> 0.09281763211
M68: =I68 -> 0 | N68: 0 | O68: =J68-I68 -> 0 | P68: Components Financeiros | Q68: 0.0476 | R68: =LnkTxtEfeitoFinComRTE -> 0.02466054484
M69: =M68+M37+M35 -> 0.003231480861 | N69: =M69-I69 -> 0.003231480861 | O69: =K69-N69 -> -0.003231480861 | P69: CVA em processamento - Energia | Q69: 0.03914564246 | R69: ='NT Revisao'!AU220 -> 0.02350648218
P70: CVA em processamento -Transporte | Q70: 0.003231480861 | R70: ='NT Revisao'!AU221 -> 0.002086352514
P71: CVA em processamento - Encargos Setoriais | Q71: -0.004811295342 | R71: ='NT Revisao'!AU222 -> -0.01454592573
P72: Saldo a Compensar CVA-Ano Anterior + Ajustes | Q72: 0.0007933449997 | R72: ='NT Revisao'!AU223 -> 0.002210055757
P73: Neutralidade de Parcela A | Q73: 0.0016 | R73: 0.0016
P74: =B44 -> Sobrecontratação/exposição de energia | Q74: -0.009617988506 | R74: ='NT Revisao'!AU228 -> -0.01136168768
P75: =B45 -> Garantias financeiras na contratação regulada de energia (CCEAR) | Q75: 0.0003772566967 | R75: ='NT Revisao'!AU229 -> 0.0003764792868
P76: Previsão de Risco Hidrológico | Q76: 0.02463132307 | R76: ='NT Revisao'!AU230 -> 0.0295611408
P77: Ajuste CUSD | Q77: 3.31237507e-05 | R77: ='NT Revisao'!AU235 -> 3.26422975e-05
P78: Repasse de compensação DIC/FIC | Q78: -1.142711868e-06 | R78: ='NT Revisao'!AU236 -> -1.138811513e-06
P79: Compensação ref. acordos bilaterais de CCEAR | Q79: 0.01540462489 | R79: ='NT Revisao'!AU237 -> 0.01427744429
P80: Reversão do Risco Hidrológico | Q80: -0.02312598149 | R80: ='NT Revisao'!AU238 -> -0.02304884198
P81: Retirada de Financeiros 2019 | Q81: -0.0466 | R81: =LnkTxtEfeitoRetiradaFinComRTE -> -0.0458
P82: Efeito Médio a ser percebido pelos Consumidores | Q82: 0.0914 | R82: ='NT Revisao'!AU272 -> 0.07171691872

Sheet NT Revisao
B2: Tabelas | G2: Gráficos
B4: Custo Operacional | G4: Análise de Impacto da RTE na Tarfia
B5: Receitas Irrecuperáveis
B6: Remuneração do Capital e Quota de Reintegração
B7: CAIMI
B8: Parcela B Ajustada
B9: Outras Receitas
B10: Cálculo das Perdas
B11: Energia Requerida
B12: Transmissão
B13: Encargos Setoriais
B19: Custo Operacional | E19: Voltar
B20: Limites de Eficiência
B21: Descrição | C21: Limite Inferior | D21: Centro | E21: Limite Superior
B22: 1. Eficiência | C22: ='VPB e Fator X'!C133 -> 0.9646901685 | D22: ='VPB e Fator X'!C131 -> 1 | E22: ='VPB e Fator X'!C132 -> 1
B23: 2. OPEX Benchmarking (Atualizado) - R$ | C23: ='VPB e Fator X'!C136 -> 416497082.6 | D23: =(E23+C23)/2 -> 424119447.9 | E23: ='VPB e Fator X'!C135 -> 431741813.3
B25: Comparação com intervalo de CO eficientes
B26: Descrição | C26: Valor
B27: 3. OPEX nas tarifas - R$ | C27: ='VPB e Fator X'!C111 -> 353838145.9
B28: 4. Meta estudo de eficiência - R$ | C28: ='VPB e Fator X'!C114 -> 416497082.6
B29: 5. Variação Anual (%) | C29: ='VPB e Fator X'!C115 -> 0.03314543862
B30: 6. Meta do estudo de eficiência aplicado o limite de 5% a.a. | C30: ='VPB e Fator X'!C117 -> 416497082.6
B32: Avaliação do prêmio de eficiência
B33: Descrição | C33: Reais
B34: 7. OPEX Real - R$ | C34: ='VPB e Fator X'!C118 -> 292084252
B35: 8. Meta OPEX | C35: ='VPB e Fator X'!C114 -> 416497082.6
B36: 9. Relação OPEX Real / Meta OPEX | C36: ='VPB e Fator X'!C119 -> 1.425948437
B37: 10. Meta OPEX aplicada a regra de compartilhamento | C37: ='VPB e Fator X'!C120 -> 383499092.5
B39: 11. Número de anos no ciclo | C39: 5
B40: 12. OPEX na revisão [ = 3. + (10. - 3.) / 11.] | C40: ='VPB e Fator X'!C121 -> 359770335.2
G42: Receitas Irrecuperáveis | J42: Voltar
G43: Descrição | H43: Valor
G44: Receita Base (R$) | H44: =H46/H45 -> 1954120204
G45: % RI | H45: ='VPB e Fator X'!D213 -> 0.003850843383
G46: Receita Irrecuperáveis - RI (R$) | H46: =Resultado!D39 -> 7525010.856
L47: Remuneração do Capital e Quota de Reintegração | M47: Voltar
L48: Descrição | M48: Valor
L49: (1) Ativo Imobilizado em Serviço (Valor Novo de Reposição) | M49: ='VPB e Fator X'!C71 -> 4304184896
L50: (2) Índice de Aproveitamento Integral | M50: ='VPB e Fator X'!C72 -> 17687387.32
L51: (3) Obrigações Especiais Bruta | M51: ='VPB e Fator X'!C73 -> 1827145052
L52: (4) Bens Totalmente Depreciados | M52: ='VPB e Fator X'!C74 -> 454613072.3
L53: (5) Base de Remuneração Bruta = (1)-(2)-(3)-(4) | M53: ='VPB e Fator X'!C75 -> 2004739384
L54: (6) Depreciação Acumulada | M54: ='VPB e Fator X'!C82 -> 1835221740
L55: (7) AIS Líquido (Valor de Mercado em Uso) | M55: ='VPB e Fator X'!C83 -> 2468963156
L56: (8) Índice de Aproveitamento Depreciado | M56: ='VPB e Fator X'!C84 -> 9113867.504
L57: (9) Valor da Base de Remuneração (VBR) | M57: ='VPB e Fator X'!C85 -> 2459849288
L58: (10) Almoxarifado em Operação | M58: ='VPB e Fator X'!C86 -> 11587215.46
L59: (11) Ativo Diferido | M59: ='VPB e Fator X'!C87 -> 0
L60: (12) Obrigações Especiais Líquida | M60: ='VPB e Fator X'!C88 -> 1115832938
L61: (13) Terrenos e Servidões | M61: ='VPB e Fator X'!C89 -> 14852238.27
L62: (14) Base de Remuneração Líquida Total = (1)-(6)-(8)+(10)+(11)-(12)+(13) | M62: ='VPB e Fator X'!C90 -> 1370455804
L63: (15) Saldo RGR PLPT | M63: ='VPB e Fator X'!C91 -> 0
L64: (16) Saldo RGR Demais Investimentos | M64: ='VPB e Fator X'!C92 -> 0
L65: (17) Taxa de Depreciação | M65: ='VPB e Fator X'!C76 -> 0.0372
L66: (18) Quota de Reintegração Regulatória = (5) * (17) | M66: ='VPB e Fator X'!C77 -> 74576305.1
L67: (19) Remuneração de Obrigações Especiais | M67: ='VPB e Fator X'!G95 -> 26268290.8
L68: (20) Remuneração do Capital | M68: ='VPB e Fator X'!C95 -> 178114793.9
O71: CAIMI | P71: Voltar
O72: Descrição | P72: Valores (R$)
O73: ='VPB e Fator X'!B60 -> (1) Base de Anuidade Regulatória (BAR) | P73: ='VPB e Fator X'!C60 -> 299969862.3
O74: ='VPB e Fator X'!B61 -> (2) Base de Anuidade - Infraestrutura de imóveis e móveis administrativos (BARA) | P74: ='VPB e Fator X'!C61 -> 134986438
O75: ='VPB e Fator X'!B62 -> (3) Base de Anuidade - Veículos (BARV) | P75: ='VPB e Fator X'!C62 -> 35996383.48
O76: ='VPB e Fator X'!B63 -> (4) Base de Anuidade - Sistemas de Informática (BARI) | P76: ='VPB e Fator X'!C63 -> 128987040.8
O77: ='VPB e Fator X'!B64 -> (5) Anuidade - Infraestrutura de imóveis e móveis administrativos (CAL) | P77: ='VPB e Fator X'!C64 -> 14400630.11
O78: ='VPB e Fator X'!B65 -> (6) Anuidade - Veículos (CAV) | P78: ='VPB e Fator X'!C65 -> 7136540.142
O79: ='VPB e Fator X'!B66 -> (7) Anuidade - Sistemas de Informática (CAI) | P79: ='VPB e Fator X'!C66 -> 31483059.57
O80: ='VPB e Fator X'!B67 -> (8) CAIMI = (5)+(6)+(7) | P80: ='VPB e Fator X'!C67 -> 53020229.82
R82: Parcela B ajustada | S82: Voltar
R83: Descrição | S83: Valores
R84: =Resultado!F19 -> Custo de Administração, Operação e Manutenção (CAOM) | S84: =Resultado!G19 -> 359972385.7
R85: =Resultado!F20 -> Custos Operacionais (CO) | S85: =Resultado!G20 -> 359972385.7
R86: =Resultado!F21 -> Custo Anual dos Ativos (CAA) | S86: =Resultado!G21 -> 305711328.9
R87: =Resultado!F22 -> Remuneração do Capital (RC) | S87: =Resultado!G22 -> 178114793.9
R88: =Resultado!F21 -> Custo Anual dos Ativos (CAA) | S88: =Resultado!G21 -> 305711328.9
R89: =Resultado!F22 -> Remuneração do Capital (RC) | S89: =Resultado!G22 -> 178114793.9
R90: =Resultado!F23 -> Quota de Reintegração Regulatória (QRR) | S90: =Resultado!G23 -> 74576305.1
R91: =Resultado!F24 -> Custo anual das instalações móveis e imóveis (CAIMI) | S91: =Resultado!G24 -> 53020229.82
R92: =Resultado!F25 -> Parcela B (VPB) | S92: =Resultado!G25 -> 665683714.6
R93: =Resultado!F26 -> Índice de Produtividade da Parcela B | S93: =Resultado!G26 -> 0.01269895715
R94: =Resultado!F27 -> Mecanismo de Incentivo à Qualidade | S94: =Resultado!G27 -> -0.004101173955
R95: =Resultado!F28 -> Parcela B com ajustes | S95: =Resultado!G28 -> 659960310.3
U97: Outras Receitas | W97: Voltar
U98: Descrição das atividades | V98: Compartilhamento | W98: Receita Regulatória
U99: Serviços Cobráveis | V99: 0.6 | W99: =UDEROR!D14 -> 989165.6409
U100: =UDEROR!B15 -> Arrecadação de convênios ou valores pela fatura e arredação por terceiros | V100: 0.6 | W100: =UDEROR!D15 -> 3497635.431
U101: =UDEROR!B16 -> Receita proveniente da comercialização de resultados de projetos de P&D | V101: 0.5 | W101: =UDEROR!D16 -> 0
U102: =UDEROR!B17 -> Veiculação de publicidade | V102: 0.6 | W102: =UDEROR!D17 -> 0
U103: =UDEROR!B18 -> Aluguel ou cessão onerosa de imóveis e espaços físicos | V103: 0.6 | W103: =UDEROR!D18 -> 0
U104: =UDEROR!B19 -> Compartilhamento de infraestrutura (Média 12 meses) | V104: 0.6 | W104: =UDEROR!D19 -> 5557013.1
U105: =UDEROR!B20 -> Serviços de avaliação técnica e aferição de medidores. | V105: 0.6 | W105: =UDEROR!D20 -> 0
U106: =UDEROR!B21 -> Operacionalização de serviço de créditos tributários | V106: 0.6 | W106: =UDEROR!D21 -> 0
U107: Elaboração de projeto, construção, operação, manutenção ou reforma de:
U108: (1) redes de distribuição de energia elétrica destinadas à regularização fundiária de interesse específico e ao atendimento dos empreendimentos de múltiplas unidades consumidoras; | V108: 0.6 | W108: =UDEROR!D23 -> 0
U109: (2) redes de energia elétrica destinadas ao acesso dos sistemas de distribuição ou transmissão; | V109: 0.6 | W109: =UDEROR!D24 -> 0
U110: (3) subestações de energia; | V110: 0.6 | W110: =UDEROR!D25 -> 0
U111: (4) instalações elétricas internas de unidades consumidoras; | V111: 0.6 | W111: =UDEROR!D26 -> 0
U112: (5) banco de capacitores: | V112: 0.6 | W112: =UDEROR!D27 -> 0
U113: (6) padrões de entrada de unidades consumidoras atendidas em baixa tensão; | V113: 0.6 | W113: =UDEROR!D28 -> 0
U114: (7) sistemas de medição de energia elétrica; | V114: 0.6 | W114: =UDEROR!D29 -> 0
U115: (8) geradores, incluindo-se unidades de microgeração e minigeração distribuída; | V115: 0.3 | W115: =UDEROR!D30 -> 0
U116: (9) sistemas de iluminação pública. | V116: 0.6 | W116: =UDEROR!D31 -> 0
U117: Eficientização do consumo de energia elétrica e instalação de cogeração qualificada, desde que não enquadráveis nos projetos de Pesquisa e Desenvolvimento (P&D) ou de Eficiência Energética estabelecidos em lei | V117: 0.3 | W117: =UDEROR!D32 -> 0
U118: Serviços de comunicação de dados | V118: 0.3 | W118: =UDEROR!D33 -> 0
U119: Serviços de consultoria | V119: 0.6 | W119: =UDEROR!D34 -> 0
U120: Total | W120: =SUM(W99:W119) -> 10043814.17
Y122: Calculo das Perda | AD122: Voltar
Y123: 1 - Cálculo do Ponto de Partida (Revisão Tarifária)
Y124: Descrição | Z124: Perdas Não Técnica (% BT)
Y125: a. Meta Ciclo Anterior Faturada | Z125: ='[32]Resumo Trajetória'!I5 -> 0.0529
Y126: b. Diferença entre Medido e Faturado | Z126: ='[32]Resumo Trajetória'!I6 -> 0.008550714457
Y127: c. Meta Ciclo Anterior Medida [b + c] | Z127: ='[32]Resumo Trajetória'!I7 -> 0.06145071446
Y128: d. Média Histórico Medida | Z128: ='[32]Resumo Trajetória'!I8 -> 0.05640285494
Y129: e. Ponto de Partida [ = Média Histórica ] | Z129: ='[32]Resumo Trajetória'!I9 -> 0.05640285494
Y130: f. Ponto de Partida Faturado [e - b] | Z130: ='[32]Resumo Trajetória'!I10 -> 0.04785214048
Y132: 2 - Cálculo da Meta (Final do período tarifário)
Y133: Descrição | Z133: Modelo C | AA133: Modelo G | AB133: Modelo K
Y134: g. Empresa Benchmark | Z134: COSERN | AA134: COSERN | AB134: COSERN
Y135: h. Perda Benchmark (PNT/BT) | Z135: ='[32]Resumo Trajetória'!I15 -> 0.03405115805 | AA135: ='[32]Resumo Trajetória'!J15 -> 0.03405115805 | AB135: ='[32]Resumo Trajetória'!K15 -> 0.03405115805
Y136: i. Perda Energisa TO (PNT/BT) | Z136: ='[32]Resumo Trajetória'!I16 -> 0.0797515424 | AA136: ='[32]Resumo Trajetória'!J16 -> 0.0797515424 | AB136: ='[32]Resumo Trajetória'!K16 -> 0.0797515424
Y137: j. Probabilidade de Comparação | Z137: ='[32]Resumo Trajetória'!I17 -> 0.835568942 | AA137: ='[32]Resumo Trajetória'!J17 -> 0.8531300804 | AB137: ='[32]Resumo Trajetória'!K17 -> 0.9186657961
Y138: k. Meta baseada em cada Benchmark [ h x j + (1 - j) x i ] | Z138: ='[32]Resumo Trajetória'!I18 -> 0.0415657206 | AA138: ='[32]Resumo Trajetória'!J18 -> 0.04076316983 | AB138: ='[32]Resumo Trajetória'!K18 -> 0.03776816243
Y139: l. Meta média dos Benchmarks [ média ( k ) ] | AA139: ='[32]Resumo Trajetória'!J19 -> 0.04003235095
Y140: m. Ponto de Partida (PNT/BT) | AA140: ='[32]Resumo Trajetória'!J20 -> 0.05640285494
Y141: n. Meta [ = Ponto de Partida ] | AA141: ='[32]Resumo Trajetória'!J21 -> 0.05640285494
Y142: o. Meta Faturado [ n + b ] | AA142: ='[32]Resumo Trajetória'!J22 -> 0.04785214048
Y144: Descrição | Z144: Ponto Partida | AA144: =YEAR(CAPA!C10) -> 2020 | AB144: =AA144+1 -> 2021 | AC144: =AB144+1 -> 2022 | AD144: =AC144+1 -> 2023 | AE144: =AD144+1 -> 2024
Y145: Trajetória PNT/BT | Z145: ='[32]Resumo Trajetória'!I25 -> 0.05640285494 | AA145: ='[32]Resumo Trajetória'!J25 -> 0.05640285494 | AB145: ='[32]Resumo Trajetória'!K25 -> 0.05640285494 | AC145: ='[32]Resumo Trajetória'!L25 -> 0.05640285494 | AD145: ='[32]Resumo Trajetória'!M25 -> 0.05640285494 | AE145: ='[32]Resumo Trajetória'!N25 -> 0.05640285494
Y146: Velocidade de Redução (a.a) | AA146: ='[32]Resumo Trajetória'!J26 -> 0 | AB146: ='[32]Resumo Trajetória'!K26 -> 0 | AC146: ='[32]Resumo Trajetória'!L26 -> 0 | AD146: ='[32]Resumo Trajetória'!M26 -> 0 | AE146: ='[32]Resumo Trajetória'!N26 -> 0
Y147: Limite de Redução (a.a) | AA147: ='[32]Resumo Trajetória'!J27 -> 0 | AB147: ='[32]Resumo Trajetória'!K27 -> 0 | AC147: ='[32]Resumo Trajetória'!L27 -> 0 | AD147: ='[32]Resumo Trajetória'!M27 -> 0 | AE147: ='[32]Resumo Trajetória'!N27 -> 0
Y148: PNT/BT Medido Regulatório | Z148: ='[32]Resumo Trajetória'!I28 -> 0.05640285494 | AA148: ='[32]Resumo Trajetória'!J28 -> 0.05640285494 | AB148: ='[32]Resumo Trajetória'!K28 -> 0.05640285494 | AC148: ='[32]Resumo Trajetória'!L28 -> 0.05640285494 | AD148: ='[32]Resumo Trajetória'!M28 -> 0.05640285494 | AE148: ='[32]Resumo Trajetória'!N28 -> 0.05640285494
Y149: Diferença entre Medido e Faturado | Z149: ='[32]Resumo Trajetória'!I29 -> 0.008550714457 | AA149: ='[32]Resumo Trajetória'!J29 -> 0.008550714457 | AB149: ='[32]Resumo Trajetória'!K29 -> 0.008550714457 | AC149: ='[32]Resumo Trajetória'!L29 -> 0.008550714457 | AD149: ='[32]Resumo Trajetória'!M29 -> 0.008550714457 | AE149: ='[32]Resumo Trajetória'!N29 -> 0.008550714457
Y150: PNT/BT Faturado Regulatório | Z150: ='[32]Resumo Trajetória'!I30 -> 0.04785214048 | AA150: ='[32]Resumo Trajetória'!J30 -> 0.04785214048 | AB150: ='[32]Resumo Trajetória'!K30 -> 0.04785214048 | AC150: ='[32]Resumo Trajetória'!L30 -> 0.04785214048 | AD150: ='[32]Resumo Trajetória'!M30 -> 0.04785214048 | AE150: ='[32]Resumo Trajetória'!N30 -> 0.04785214048
Y151: PT/ Einjetada Regulatório | Z151: ='[32]Resumo Trajetória'!I31 -> 0.10805 | AA151: ='[32]Resumo Trajetória'!J31 -> 0.10805 | AB151: ='[32]Resumo Trajetória'!K31 -> 0.10805 | AC151: ='[32]Resumo Trajetória'!L31 -> 0.10805 | AD151: ='[32]Resumo Trajetória'!M31 -> 0.10805 | AE151: ='[32]Resumo Trajetória'!N31 -> 0.10805
AG153: Energia Requerida | AH153: Voltar
AG154: Descrição | AH154: Energia (MWh)
AG155: Perdas na Rede Básica | AH155: =Energia!H18+Energia!H19 -> 44360.4059
AG156: Perdas na Distribuição | AH156: =AH157+AH158 -> 386410.5541
AG157: Perdas Técnicas | AH157: =Energia!H17 -> 321507.227
AG158: Perdas Não Técnicas | AH158: =Energia!H16 -> 64903.32715
AG159: Energia Vendida | AH159: =Energia!D6 -> 2158449.448
AG160: Energia Requerida | AH160: =SUM(AH155:AH156,AH159) -> 2589220.408
AJ162: Transmissão | AK162: Voltar
AJ163: Descrição | AK163: Valor (R$) | AL163: Colunas1
AJ164: Rede Básica | AK164: =Resultado!D30 -> 69301063.57 | AL164: =IF(AK164=0,0,1) -> 1
AJ165: Rede Básica Fronteira | AK165: =Resultado!D31 -> 19357875.73 | AL165: =IF(AK165=0,0,1) -> 1
AJ166: Rede Básica ONS (A2) | AK166: =Resultado!D32 -> 202050.55 | AL166: 1
AJ167: Rede Básica Export. (A2) | AK167: =Resultado!D33 -> 0 | AL167: 0
AJ168: MUST Itaipu | AK168: =Resultado!D34 -> 0 | AL168: 0
AJ169: Transporte de Itaipu | AK169: =Resultado!D35 -> 0 | AL169: 0
AJ170: Conexão | AK170: =Resultado!D36 -> 2201363.346 | AL170: 1
AJ171: Uso do sistema de distribuição | AK171: =Resultado!D37 -> 1674866.254 | AL171: 1
AJ172: Total | AK172: =SUM(AK164:AK171) -> 92737219.45
AM174: Encargos Setoriais | AN174: Voltar
AM175: Descrição | AN175: Valor (R$) | AO175: Dispositivo Legal | AP175: Colunas1
AM176: Taxa de Fisc. de Serviços de E.E. – TFSEE | AN176: =Resultado!D22 -> 2570668.766 | AO176: =Encargos!D17 -> Conforme módulo 5.5 do PRORET | AP176: =IF(AN176=0,0,1) -> 1
AM177: Conta de Desenvolvimento Energético – CDE | AN177: =Resultado!D23 -> 40756364.76 | AO177: =Encargos!D10 -> REH nº 2.664/2019 | AP177: 1
AM178: Compensação financeira - CFURH | AN178: =Resultado!D24 -> 0 | AO178: =Encargos!D11 -> 0 | AP178: 0
AM179: Encargos Serv. Sist. - ESS e Energ. Reserv. - EER | AN179: =Resultado!D25 -> 22067512.67 | AO179: =Encargos!D12 -> Previsão SGT | AP179: 1
AM180: PROINFA | AN180: =Resultado!D26 -> 16283974.21 | AO180: =Encargos!D13 -> ReH 2.653/2019 | AP180: 1
AM181: P&D, Efic.Energ e Ressarc.ICMS Sist.Isol. | AN181: =Resultado!D27 -> 13200773.13 | AO181: Res. Normativa nº 316/2008 | AP181: 1
AM182: ONS | AN182: =Resultado!D28 -> 0 | AO182: =Encargos!D14 -> 0 | AP182: 0
AM183: Total | AN183: =SUM(AN176:AN182) -> 94879293.54
AQ185: TabRevAvalRTE
AQ186: Descrição | AR186: Receita Verificada (R$) | AS186: Receita Requerida (R$) | AT186: Variação | AU186: Participação na Revisão | AV186: Participação na Receita
AQ187: PARCELA A [Encargos+Transmissão+Energia+RI] | AR187: =AR188+AR198+AR208+AR207 -> 674776924.6 | AS187: =AS188+AS198+AS208+AS207 -> 707858593.7 | AT187: =IF(ISERROR(AS187/AR187-1),0,AS187/AR187-1) -> 0.04902608239 | AU187: =IF(ISERROR((AS187-AR187)/$AR$217),0,(AS187-AR187)/$AR$217) -> 0.02679184734 | AV187: =IF(ISERROR(AS187/($AS$217)),0,AS187/($AS$217)) -> 0.5245556918
AQ188: Encargos Setoriais | AR188: =SUM(AR189:AR197) -> 92885657.93 | AS188: =SUM(AS189:AS197) -> 94879293.54 | AT188: =IF(ISERROR(AS188/AR188-1),0,AS188/AR188-1) -> 0.02146333082 | AU188: =ROUND(IF(ISERROR((AS188-AR188)/$AR$217),0,(AS188-AR188)/$AR$217),4) -> 0.0016 | AV188: 0.07030990921 | AW188: Colunas1
AQ189: Taxa de Fisc. de Serviços de E.E. – TFSEE | AR189: =Mercado!I66 -> 2295577.222 | AS189: =Resultado!D22 -> 2570668.766 | AT189: =IF(ISERROR(AS189/AR189-1),0,AS189/AR189-1) -> 0.1198354566 | AU189: ='Votos e NTs'!BP365 -> 0.0002227768352 | AV189: 0.001904983488 | AW189: =IF(SUM(AR189:AS189)<>0,1,0) -> 1
AQ190: Conta de Desenvolvimento Energético – CDE (USO) | AR190: =Mercado!T66+Mercado!H66 -> 30338612.47 | AS190: =Encargos!G22 -> 40756364.76 | AT190: =IF(ISERROR(AS190/AR190-1),0,AS190/AR190-1) -> 0.3433826216 | AU190: =ROUND(IF(ISERROR((AS190-AR190)/$AR$217),0,(AS190-AR190)/$AR$217),4) -> 0.0084 | AV190: 0.03020233603 | AW190: =IF(SUM(AR190:AS190)<>0,1,0) -> 1
AQ191: Conta de Desenvolvimento Energético – CDE (Decr. 7945/2013) | AR191: =SUM(DADOS_MercadoBase[CDE_E_Dec],DADOS_MercadoBase[RTE_CDE_E_Dec]) -> 0 | AS191: =Encargos!G23 -> 0 | AT191: =IF(ISERROR(AS191/AR191-1),0,AS191/AR191-1) -> 0 | AU191: 0 | AV191: 0 | AW191: 0
AQ192: Conta de Desenvolvimento Energético – CDE (Conta-ACR) | AR192: =SUM(DADOS_MercadoBase[CDE_E_ACR],DADOS_MercadoBase[RTE_CDE_E_ACR]) -> 8009056.086 | AS192: =Encargos!G24 -> 0 | AT192: =IF(ISERROR(AS192/AR192-1),0,AS192/AR192-1) -> -1 | AU192: -0.0065 | AV192: 0 | AW192: 1
AQ193: Compensação financeira - CFURH | AR193: =Resultado!C24 -> 0 | AS193: =Resultado!D24 -> 0 | AT193: =IF(ISERROR(AS193/AR193-1),0,AS193/AR193-1) -> 0 | AU193: 0 | AV193: 0 | AW193: 0
AQ194: Encargos Serv. Sist. - ESS e Energ. Reserv. - EER | AR194: =+Mercado!F66 -> 20220828.47 | AS194: =Resultado!D25 -> 22067512.67 | AT194: =IF(ISERROR(AS194/AR194-1),0,AS194/AR194-1) -> 0.09132584274 | AU194: 0.0015 | AV194: 0.01635303926 | AW194: 1
AQ195: PROINFA | AR195: =Mercado!G66 -> 19545591.13 | AS195: =Resultado!D26 -> 16283974.21 | AT195: =IF(ISERROR(AS195/AR195-1),0,AS195/AR195-1) -> -0.1668722577 | AU195: -0.0026 | AV195: 0.01206717194 | AW195: =IF(SUM(AR195:AS195)<>0,1,0) -> 1
AQ196: P&D, Efic.Energ e Ressarc.ICMS Sist.Isol. | AR196: =SUM(DADOS_MercadoBase[PeD],DADOS_MercadoBase[RTE_PeD]) -> 12475992.56 | AS196: =Resultado!D27 -> 13200773.13 | AT196: =IF(ISERROR(AS196/AR196-1),0,AS196/AR196-1) -> 0.05809402135 | AU196: 0.0006 | AV196: 0.009782378493 | AW196: 1
AQ197: ONS | AR197: =Resultado!C28 -> 0 | AS197: =Resultado!D28 -> 0 | AT197: =IF(ISERROR(AS197/AR197-1),0,AS197/AR197-1) -> 0 | AU197: =IF(ISERROR((AS197-AR197)/$AR$217),0,(AS197-AR197)/$AR$217) -> 0 | AV197: 0 | AW197: =IF(SUM(AR197:AS197)<>0,1,0) -> 0
AQ198: Custos de Transmissão | AR198: =SUM(AR199:AR206) -> 63454019.25 | AS198: =SUM(AS199:AS206) -> 92737219.45 | AT198: 0.4614869245 | AU198: 0.02371558178 | AV198: 0.06872253404 | AW198: 1
AQ199: Rede Básica | AR199: =SUM(DADOS_MercadoBase[TUST_RB]) -> 46116406.3 | AS199: =Resultado!D30 -> 69301063.57 | AT199: 0.5027420637 | AU199: 0.01877655557 | AV199: 0.05135526738 | AW199: 1
AQ200: Rede Básica Fronteira | AR200: =SUM(DADOS_MercadoBase[TUST_FR]) -> 14146747.51 | AS200: =Resultado!D31 -> 19357875.73 | AT200: 0.3683622838 | AU200: 0.004220335779 | AV200: 0.01434507398 | AW200: 1
AQ201: Rede Básica ONS (A2) | AR201: =SUM(DADOS_MercadoBase[TUSDG_ONS]) -> 234483.6232 | AS201: =Resultado!D32 -> 202050.55 | AT201: -0.1383170081 | AU201: -2.626656906e-05 | AV201: 0.0001497287269 | AW201: 1
AQ202: Rede Básica Export. (A2) | AR202: =SUM(DADOS_MercadoBase[TUSDG_T]) -> 0 | AS202: =Resultado!D33 -> 0 | AT202: 0 | AU202: 0 | AV202: 0 | AW202: 0
AQ203: MUST Itaipu | AR203: =SUM(DADOS_MercadoBase[TUST_ITAIPU]) -> 0 | AS203: =Resultado!D34 -> 0 | AT203: 0 | AU203: 0 | AV203: 0 | AW203: 0
AQ204: Transporte de Itaipu | AR204: =SUM(DADOS_MercadoBase[ITAIPU]) -> 0 | AS204: =Resultado!D35 -> 0 | AT204: 0 | AU204: 0 | AV204: 0 | AW204: 0
AQ205: Conexão | AR205: =SUM(DADOS_MercadoBase[Conexao_T]) -> 754807.1456 | AS205: =Resultado!D36 -> 2201363.346 | AT205: 1.91645801 | AU205: 0.001171522294 | AV205: 0.001631311229 | AW205: 1
AQ206: Uso do sistema de distribuição | AR206: =SUM(DADOS_MercadoBase[CUSD],DADOS_MercadoBase[RTE_CUSD]) -> 2201574.681 | AS206: =Resultado!D37 -> 1674866.254 | AT206: -0.2392416809 | AU206: -0.0004265652901 | AV206: 0.00124115273 | AW206: 1
AQ207: Receitas Irrecuperáveis | AR207: =(((Entrada!G59+Entrada!G60)*(1-Entrada!G65))/(SUM(Entrada!G59:G64)*(1-Entrada!G65)-Entrada!G66))*(Mercado!Z66-AR210) -> 6268021.419 | AS207: =Resultado!D39 -> 7525010.856 | AT207: =IF(ISERROR(AS207/AR207-1),0,AS207/AR207-1) -> 0.2005400672 | AU207: 0.001017997883 | AV207: =ROUND(IF(ISERROR(AS207/($AS$217)),0,AS207/($AS$217)),4) -> 0.0056 | AW207: 1
AN208: -258.0793963 | AQ208: Custos de Aquisição de Energia | AR208: =SUM(DADOS_MercadoBase[RTE_Energia],DADOS_MercadoBase[EnergiaRevenda],DADOS_MercadoBase[perdasnt],DADOS_MercadoBase[perdasrb_d],DADOS_MercadoBase[perdasrb_c],DADOS_MercadoBase[perdastec]) -> 512169226 | AS208: =Resultado!D38 -> 512717069.9 | AT208: =IF(ISERROR(AS208/AR208-1),0,AS208/AR208-1) -> 0.001069654017 | AU208: 0.0004436822486 | AV208: =IF(ISERROR(AS208/($AS$217)),0,AS208/($AS$217)) -> 0.3799468703 | AW208: 1
AQ209: PARCELA B | AR209: =SUM(AR210:AR216) -> 559989334 | AS209: =SUM(AS210:AS216) -> 641585525.8 | AT209: =IF(ISERROR(AS209/AR209-1),0,AS209/AR209-1) -> 0.1457102607 | AU209: 0.066082298 | AV209: =ROUND(IF(ISERROR(AS209/($AS$217)),0,AS209/($AS$217)),4) -> 0.4754 | AW209: 1
AQ210: Custos Operacionais | AR210: =('VPB e Fator X'!C103-'VPB e Fator X'!C104*(1-(1-'VPB e Fator X'!C105)^('VPB e Fator X'!C7-1)))/('VPB e Fator X'!C104*(1-'VPB e Fator X'!C105)^('VPB e Fator X'!C7-1))*Mercado!Z66 -> 353838145.9 | AS210: =Resultado!G20*(1-Resultado!$G$26-Resultado!$G$27) -> 356877421.2 | AT210: =IF(ISERROR(AS210/AR210-1),0,AS210/AR210-1) -> 0.008589450807 | AU210: 0.002461417557 | AV210: 0.2645 | AW210: 1
AQ211: Anuidades | AR211: =((Entrada!G63*(1-Entrada!G65))/(SUM(Entrada!G59:G64)*(1-Entrada!G65)-Entrada!G66))*(Mercado!Z66-AR210)+AN208 -> 47206791.09 | AS211: =Resultado!G24*(1-Resultado!$G$26-Resultado!$G$27) -> 52564373.38 | AT211: =IF(ISERROR(AS211/AR211-1),0,AS211/AR211-1) -> 0.1134917702 | AU211: 0.004338944517 | AV211: 0.039 | AW211: 1
AQ212: Remuneração | AR212: =((Entrada!G61*(1-Entrada!G65))/(SUM(Entrada!G59:G64)*(1-Entrada!G65)-Entrada!G66))*(Mercado!Z66-AR210) -> 114399512.4 | AS212: =Resultado!G22*(1-Resultado!$G$26-Resultado!$G$27) -> 176583401.6 | AT212: 0.5435677821 | AU212: 0.0503608588 | AV212: 0.1309 | AW212: 1
AQ213: Depreciação | AR213: =((Entrada!G62*(1-Entrada!G65))/(SUM(Entrada!G59:G64)*(1-Entrada!G65)-Entrada!G66))*(Mercado!Z66-AR210) -> 52294777.51 | AS213: =Resultado!G23*(1-Resultado!$G$26-Resultado!$G$27) -> 73935114.2 | AT213: 0.4138144899 | AU213: 0.01752585684 | AV213: 0.0548 | AW213: 1
AQ214: Outras Receitas | AR214: =-((Entrada!G66)/(SUM(Entrada!G59:G64)*(1-Entrada!G65)-Entrada!G66))*(Mercado!Z66-AR210) -> -7749892.843 | AS214: =-(Resultado!$G$29+Resultado!G30+Resultado!G31) -> -18374784.51 | AT214: 1.370972719 | AU214: -0.008604779722 | AV214: -0.0136 | AW214: 1
AQ215: Ultrapassagem de Demanda e Excedente Reativo | AR215: 0 | AT215: =IF(ISERROR(AS215/AR215-1),0,AS215/AR215-1) -> 0 | AU215: 0 | AV215: =ROUND(IF(ISERROR(AS215/($AS$217)),0,AS215/($AS$217)),4)+0.0001 -> 0.0001 | AW215: =IF(SUM(AR216:AS216)<>0,1,0) -> 0
AQ216: Ajuste Investimentos 2CRTP | AR216: =((Entrada!G64*(1-Entrada!G65))/(SUM(Entrada!G59:G64)*(1-Entrada!G65)-Entrada!G66))*(Mercado!Z66-AR210) -> 0 | AS216: 0 | AT216: 0 | AU216: 0 | AV216: =ROUND(IF(ISERROR(AS216/($AS$217)),0,AS216/($AS$217)),4) -> 0 | AW216: 0
AQ217: RT considerando a varição tarifária da RTE | AR217: =AR209+AR187 -> 1234766259 | AS217: =AS209+AS187 -> 1349444120 | AU217: =LnkTxtIndiceEconomico -> 0.09281763211 | AV217: =AV209+AV187 -> 0.9999556918 | AW217: 1 | AZ217: 0.0732
AW218: 0
AO219: 56923402.26 | AQ219: Efeito dos Componentes Financeiros do Processo Atual | AS219: =SUM(AS220:AS238) -> 30451583.36 | AU219: =SUM(AU220:AU270) -> 0.02466054484 | AW219: 1
AQ220: CVA em processamento - Energia | AS220: ='Votos e NTs'!AZ291 -> 29026512.03 | AU220: =+'Votos e NTs'!BP389 -> 0.02350648218 | AW220: =IF(AU220=0,0,1) -> 1 | AY220: =11.1% -> 0.111 | AZ220: 0.071
AO221: =AO219-AR217 -> -1177842856 | AQ221: CVA em processamento -Transporte | AS221: ='Votos e NTs'!AZ292 -> 2576290.909 | AU221: =+'Votos e NTs'!BP390 -> 0.002086352514 | AW221: 1
AQ222: CVA em processamento - Encargos Setoriais | AS222: ='Votos e NTs'!AZ293 -> -17961747.1 | AU222: =+'Votos e NTs'!BP391 -> -0.01454592573 | AW222: 1
... 69 more rows

Sheet Votos e NTs
B2: Tabelas | D2: Gráficos
AF3: =+AF19/AF7-1 -> 0.548431235 | AG3: =+AG19/AG7-1 -> 0.8424208155 | AH3: 0.7105932897
B4: Consumidores | D4: Composição da Receita | I4: Composição da Receita com Tributos | M4: Composição da Receita com detalhamento de Encargos | R4: Evolução da Tarifa B1 Residencial
B5: Mercado
B6: Encargos | AC6: Ano | AD6: Tipo | AE6: Tipo Ano | AF6: B1 - Residencial | AG6: IGPM | AH6: IPCA | AI6: Data
B7: Custo do Transporte de Energia | AC7: 2010 | AD7: 0 | AE7: Reajuste 2010 | AF7: 418.07 | AG7: =AF7 -> 418.07 | AH7: =AG7 -> 418.07 | AI7: 2010-06-01
B8: Perdas | AC8: 2011 | AD8: 0 | AE8: Reajuste 2011 | AF8: 447.66 | AG8: =AG7*VLOOKUP(AI8,Índices!$B$147:$D$495,2,0)/VLOOKUP(AI7,Índices!$B$147:$D$495,2,0) -> 454.2293402 | AH8: =AH7*VLOOKUP(AI8,Índices!$B$147:$D$495,3,0)/VLOOKUP(AI7,Índices!$B$147:$D$495,3,0) -> 446.1331608 | AI8: 2011-06-01
B9: Energia Requerida | AC9: 2012 | AD9: 0 | AE9: Reajuste 2012 | AF9: 420.83 | AG9: =AG8*VLOOKUP(AI9,Índices!$B$147:$D$495,2,0)/VLOOKUP(AI8,Índices!$B$147:$D$495,2,0) -> 477.5822067 | AH9: =AH8*VLOOKUP(AI9,Índices!$B$147:$D$495,3,0)/VLOOKUP(AI8,Índices!$B$147:$D$495,3,0) -> 468.0625029 | AI9: 2012-06-01
B10: Energia na DRA | AC10: 2013 | AD10: -1 | AE10: RTE 2013 | AF10: 344.14 | AG10: =AG9*VLOOKUP(AI10,Índices!$B$147:$D$495,2,0)/VLOOKUP(AI9,Índices!$B$147:$D$495,2,0) -> 499.0094567 | AH10: =AH9*VLOOKUP(AI10,Índices!$B$147:$D$495,3,0)/VLOOKUP(AI9,Índices!$B$147:$D$495,3,0) -> 484.155041 | AI10: 2012-12-01
B11: Contratos | AC11: 2013 | AD11: 0 | AE11: Reajuste 2013 | AF11: 378.75 | AG11: =AG10*VLOOKUP(AI11,Índices!$B$147:$D$495,2,0)/VLOOKUP(AI10,Índices!$B$147:$D$495,2,0) -> 507.7143382 | AH11: =AH10*VLOOKUP(AI11,Índices!$B$147:$D$495,3,0)/VLOOKUP(AI10,Índices!$B$147:$D$495,3,0) -> 499.4035742 | AI11: 2013-06-01
B12: Fator X | AC12: 2014 | AD12: 0 | AE12: Reajuste 2014 | AF12: 420.8 | AG12: =AG11*VLOOKUP(AI12,Índices!$B$147:$D$495,2,0)/VLOOKUP(AI11,Índices!$B$147:$D$495,2,0) -> 539.4014367 | AH12: =AH11*VLOOKUP(AI12,Índices!$B$147:$D$495,3,0)/VLOOKUP(AI11,Índices!$B$147:$D$495,3,0) -> 531.9810857 | AI12: 2014-06-01
B13: Parcela B | AC13: 2015 | AD13: -1 | AE13: RTE 2015 | AF13: 437.28 | AG13: =AG12*VLOOKUP(AI13,Índices!$B$147:$D$495,2,0)/VLOOKUP(AI12,Índices!$B$147:$D$495,2,0) -> 551.5771219 | AH13: =AH12*VLOOKUP(AI13,Índices!$B$147:$D$495,3,0)/VLOOKUP(AI12,Índices!$B$147:$D$495,3,0) -> 559.1316998 | AI13: 2015-02-01
B14: CVA em Processamento | AC14: 2015 | AD14: 0 | AE14: Reajuste 2015 | AF14: 462.03 | AG14: =AG13*VLOOKUP(AI14,Índices!$B$147:$D$495,2,0)/VLOOKUP(AI13,Índices!$B$147:$D$495,2,0) -> 569.568775 | AH14: =AH13*VLOOKUP(AI14,Índices!$B$147:$D$495,3,0)/VLOOKUP(AI13,Índices!$B$147:$D$495,3,0) -> 579.2977707 | AI14: 2015-06-01
B15: Financeiros | AC15: 2016 | AD15: Revisão | AE15: Revisão 2016 | AF15: 525.74 | AG15: =AG14*VLOOKUP(AI15,Índices!$B$147:$D$495,2,0)/VLOOKUP(AI14,Índices!$B$147:$D$495,2,0) -> 639.0973165 | AH15: =AH14*VLOOKUP(AI15,Índices!$B$147:$D$495,3,0)/VLOOKUP(AI14,Índices!$B$147:$D$495,3,0) -> 630.5294018 | AI15: 2016-06-01
B16: Subsídios | AC16: 2017 | AD16: 0 | AE16: Reajuste 2017 | AF16: 549.22 | AG16: =AG15*VLOOKUP(AI16,Índices!$B$147:$D$495,2,0)/VLOOKUP(AI15,Índices!$B$147:$D$495,2,0) -> 634.1223999 | AH16: =AH15*VLOOKUP(AI16,Índices!$B$147:$D$495,3,0)/VLOOKUP(AI15,Índices!$B$147:$D$495,3,0) -> 649.4361852 | AI16: 2017-06-01
B17: Efeito Médio AT + BT | AC17: 2018 | AD17: 0 | AE17: Reajuste 2018 | AF17: 605.3 | AG17: =AG16*VLOOKUP(AI17,Índices!$B$147:$D$495,2,0)/VLOOKUP(AI16,Índices!$B$147:$D$495,2,0) -> 678.0115888 | AH17: =AH16*VLOOKUP(AI17,Índices!$B$147:$D$495,3,0)/VLOOKUP(AI16,Índices!$B$147:$D$495,3,0) -> 677.9536034 | AI17: 2018-06-01
B18: Avaliação RTA | AC18: 2019 | AD18: 0 | AE18: Reajuste 2019 | AF18: 600.073806 | AG18: =AG17*VLOOKUP(AI18,Índices!$B$147:$D$495,2,0)/VLOOKUP(AI17,Índices!$B$147:$D$495,2,0) -> 722.1511372 | AH18: =AH17*VLOOKUP(AI18,Índices!$B$147:$D$495,3,0)/VLOOKUP(AI17,Índices!$B$147:$D$495,3,0) -> 700.7753328 | AI18: 2019-06-01
B19: Variação do Custo de Energia | AC19: 2020 | AD19: Revisão | AE19: Revisão 2020 | AF19: =+Resultado!L11 -> 647.3526464 | AG19: =AG18*VLOOKUP(AI19,Índices!$B$147:$D$495,2,0)/VLOOKUP(AI18,Índices!$B$147:$D$495,2,0) -> 770.2608703 | AH19: =AH18*VLOOKUP(AI19,Índices!$B$147:$D$495,3,0)/VLOOKUP(AI18,Índices!$B$147:$D$495,3,0) -> 715.1477366 | AI19: 2020-06-01
B22: Dados dos Gráficos | D22: Análise de Impacto da RTA na Tarfia | J22: Efeito por Modalidade de Aquisição de Energia | AF22: =AF19/AF7-1 -> 0.548431235 | AG22: =AG19/AG7-1 -> 0.8424208155 | AH22: =AH19/AH7-1 -> 0.7105932897
B46: TabCons | E46: Voltar
B47: Classe de Consumo | C47: Nº de Unidades Consumidoras1 | D47: Consumo de Energia (MWh) | E47: Participação no Consumo (%)
B48: Residencial | C48: =Mercado!E30 -> 502494 | D48: =Mercado!F30 -> 93079.627 | E48: =D48/$D$56 -> 0.4677555246
B49: Industrial | C49: =Mercado!E31 -> 1593 | D49: =Mercado!F31 -> 29848.492 | E49: 0.1499984205
B50: Comercial | C50: =Mercado!E32 -> 32780 | D50: =Mercado!F32 -> 29015.466 | E50: 0.1458121928
B51: Rural | C51: =Mercado!E33 -> 57912 | D51: =Mercado!F33 -> 19542.658 | E51: 0.0982082389
B52: Iluminação Pública | C52: =Mercado!E34 -> 866 | D52: =Mercado!F34 -> 10429.226 | E52: 0.05241026674
B53: Poder Público | C53: =Mercado!E35 -> 7343 | D53: =Mercado!F35 -> 10510.372 | E53: 0.05281805189
B54: Serviço Público | C54: =Mercado!E36 -> 879 | D54: =Mercado!F36 -> 5357.434 | E54: 0.02692285554
B55: Demais classes | C55: =Mercado!E37 -> 242 | D55: =Mercado!F37 -> 1208.767 | E55: 0.006074448947
B56: Total | C56: =SUM(C48:C55) -> 604109 | D56: =SUM(D48:D55) -> 198992.042 | E56: =SUM(E48:E55) -> 1
B57: Nota: dados do último mês informado pela empresa | G57: TabMercado | I57: Voltar
G58: Subgrupos | H58: Mercado (MWh) | I58: Receita (R$) | J58: Colunas1
G59: Fornecimento | H59: =SUM(H60:H66) -> 2158449.448 | I59: =SUM(I60:I66) -> 1160962925 | J59: =IF(ABS(H59)+ABS(I59)>0,1,0) -> 1
G60: A1 (230 kV ou mais) | H60: =Mercado!C10 -> 0 | I60: =Mercado!D10 -> 0 | J60: 0
G61: A2 (88 a 138 kV) | H61: =Mercado!C11 -> 9783.62 | I61: =Mercado!D11 -> 4294903.956 | J61: 1
G62: A3 (69 kV) | H62: =Mercado!C12 -> 3.465 | I62: =Mercado!D12 -> 29746.84185 | J62: 1
G63: A3a (30 kV a 44 kV) | H63: =Mercado!C13 -> 141188.501 | I63: =Mercado!D13 -> 64633836.88 | J63: 1
G64: A4 (2,3 kV a 25 kV) | H64: =Mercado!C14 -> 259179.229 | I64: =Mercado!D14 -> 132801795.2 | J64: 1
G65: As | H65: =Mercado!C15 -> 0 | I65: =Mercado!D15 -> 0 | J65: 0
G66: BT (menor que 2,3 kV) | H66: =Mercado!C16 -> 1748294.633 | I66: =Mercado!D16 -> 959202642.6 | J66: 1
G67: Suprimento | H67: =Mercado!C17 -> 0 | I67: =Mercado!D17 -> 0 | J67: 0
G68: Livres A1 | H68: =Mercado!C18 -> 0 | I68: =Mercado!D18 -> 0 | J68: 0
G69: Demais Livres | H69: =Mercado!C19 -> 243815.865 | I69: =Mercado!D19 -> 56519357.71 | J69: 1
G70: Distribuição | H70: =Mercado!C20 -> 8985.349 | I70: =Mercado!D20 -> 1098044.015 | J70: 1
G71: Geração | H71: =Mercado!C21 -> 0 | I71: =Mercado!D21 -> 16249785.24 | J71: 1
G72: Total | H72: =SUM(H60:H71) -> 2411250.662 | I72: =SUM(I60:I71) -> 1234830112
K73: TabEnc | N73: Voltar
K74: Encargos Setoriais | L74: DRA (R$) | M74: DRP (R$) | N74: Dispositivo Legal | O74: Colunas1
K75: Taxa de Fisc. de Serviços de E.E. – TFSEE | L75: =Resultado!C22 -> 0 | M75: =Resultado!D22 -> 2570668.766 | N75: =Encargos!D17 -> Conforme módulo 5.5 do PRORET | O75: =IF(ABS(L75)+ABS(M75)>0,1,0) -> 1
K76: Conta de Desenvolvimento Energético – CDE | L76: =Resultado!C23 -> 0 | M76: =Resultado!D23 -> 40756364.76 | N76: =Encargos!D10 -> REH nº 2.664/2019 | O76: 1
K77: Compensação financeira - CFURH | L77: =Resultado!C24 -> 0 | M77: =Resultado!D24 -> 0 | N77: =Encargos!D11 -> 0 | O77: 0
K78: Encargos Serv. Sist. - ESS e Energ. Reserv. - EER | L78: =Resultado!C25 -> 0 | M78: =Resultado!D25 -> 22067512.67 | N78: =Encargos!D12 -> Previsão SGT | O78: 1
K79: PROINFA | L79: =Resultado!C26 -> 0 | M79: =Resultado!D26 -> 16283974.21 | N79: =Encargos!$D$13 -> ReH 2.653/2019 | O79: 1
K80: P&D e Eficiência Energética | L80: =Resultado!C27 -> 0 | M80: =Resultado!D27 -> 13200773.13 | N80: Res. Normativa nº 316/2008 | O80: 1
K81: Contribuição ONS | L81: =Resultado!C28 -> 0 | M81: =Resultado!D28 -> 0 | N81: =Encargos!$D$14 -> 0 | O81: 0
K82: Total de Encargos Tarifários | L82: =SUM(L75:L81) -> 0 | M82: =SUM(M75:M81) -> 94879293.54
P83: TabTrans | R83: Voltar
P84: Componente | Q84: DRA (R$) | R84: DRP (R$) | S84: Colunas1
P85: Rede Básica | Q85: ='RB e Conexão'!D6 -> 40334599.31 | R85: =Resultado!D30 -> 69301063.57 | S85: =IF(ABS(Q85)+ABS(R85)>0,1,0) -> 1
P86: Rede Básica Fronteira | Q86: ='RB e Conexão'!D7 -> 11682880.19 | R86: =Resultado!D31 -> 19357875.73 | S86: 1
P87: Rede Básica ONS (A2) | Q87: ='RB e Conexão'!D8 -> 0 | R87: =Resultado!D32 -> 202050.55 | S87: 1
P88: Rede Básica Export. (A2) | Q88: ='RB e Conexão'!D9 -> 726247.0355 | R88: =Resultado!D33 -> 0 | S88: 1
P89: MUST Itaipu | Q89: ='RB e Conexão'!D10 -> 52743726.54 | R89: =Resultado!D34 -> 0 | S89: 1
P90: Transporte de Itaipu | Q90: ='RB e Conexão'!D11 -> 0 | R90: =Resultado!D35 -> 0 | S90: 0
P91: Conexão | Q91: ='RB e Conexão'!D9 -> 726247.0355 | R91: =Resultado!D36 -> 2201363.346 | S91: 1
P92: Uso do sistema de distribuição | Q92: =Resultado!C37 -> 0 | R92: =Resultado!D37 -> 1674866.254 | S92: 1
P93: Total dos Custos de Transporte | Q93: =SUM(Q85:Q92) -> 106213700.1 | R93: =SUM(R85:R92) -> 92737219.45
T94: TabPerdas | V94: Voltar
T95: Perdas | U95: DRA | V95: DRP | W95: Referência
T96: Não Técnica (s/ Baixa Tensão) | U96: =Neutralidade!H14 -> 0.0529 | V96: =Energia!H13 -> 0.03712379248 | W96: REH XXX/2017
T97: Técnica (s/ merc. injetado) | U97: =Neutralidade!H15 -> 0.1073 | V97: =Energia!H14 -> 0.11492 | W97: =W96 -> REH XXX/2017
T98: Rede Básica (s/ merc. Injetado) | U98: =Neutralidade!H16 -> 0.01738344809 | V98: =Energia!H15 -> 0.01743137377 | W98: CCEE (últimos 12 meses)
T99: Mercado Baixa Tensão (MWh) | U99: =Mercado!$C$16 -> 1748294.633 | V99: =Mercado!$C$16 -> 1748294.633 | W99: SAMP
Y100: TabEnergia | AA100: Voltar
Y101: Descrição | Z101: DRA (MWh) | AA101: DRP (MWh)
Y102: Mercado Total | Z102: =AA102 -> 2158449.448 | AA102: =Z103+Z104 -> 2158449.448 | AB102: Colunas1
Y103: Fornecimento | Z103: =Energia!H5 -> 2158449.448 | AA103: =Z103 -> 2158449.448 | AB103: =IF(Z103<>0,1,0) -> 1
Y104: Suprimento | Z104: =Energia!C8 -> 0 | AA104: =Z104 -> 0 | AB104: =IF(Z104<>0,1,0) -> 0
Y105: Consumidores Livres | Z105: =Energia!H7 -> 252801.214 | AA105: =Z105 -> 252801.214 | AB105: =IF(Z105<>0,1,0) -> 1
Y106: Consumidores Rede B. | Z106: =Energia!H8 -> 0 | AA106: =Z106 -> 0 | AB106: =IF(Z106<>0,1,0) -> 0
Y107: Perdas Totais | Z107: =Z108+Z109 -> 437787.069 | AA107: =AA108+AA109 -> 430770.96
Y108: Perdas Rede Básica | Z108: =SUM(Neutralidade!H19:H20) -> 44360.4059 | AA108: =SUM(Energia!H18:H19) -> 44360.4059
Y109: Perdas na Distribuição | Z109: =SUM(Z110:Z111) -> 393426.6631 | AA109: =SUM(AA110:AA111) -> 386410.5541
Y110: Perda Não Técnica | Z110: =Neutralidade!H17 -> 92484.78609 | AA110: =Energia!H16 -> 64903.32715
Y111: Perda Técnica | Z111: =Neutralidade!H18 -> 300941.877 | AA111: =Energia!H17 -> 321507.227
Y112: Energia Requerida | Z112: =Z102+Z107 -> 2596236.517 | AA112: =AA102+AA107 -> 2589220.408
AC113: TabEDRA | AE113: Voltar
AC114: Energia Requerida (MWh) | AD114: Tarifa Média (R$/MWh) | AE114: Energia Requerida (R$)
AC115: ='Votos e NTs'!Z112 -> 2596236.517 | AD115: =Energia!C14 -> 197.1960096 | AE115: =AD115*AC115 -> 511967481
AG116: TabContratos | AK116: Voltar
AG117: Contratos | AH117: Montante Contratado (MWh) | AI117: Montante Considerado (MWh) | AJ117: Tarifa (R$/MWh) | AK117: Despesa (R$) | AL117: Colunas1 | AM117: Coluna1
AG118: AMBIENTE REGULADO - CCEAR | AH118: =SUM(AH119:AH200) -> 1400760.075 | AI118: =SUM(AI119:AI200) -> 1551165.548 | AJ118: =AK118/AI118 -> 233.3380672 | AK118: =SUM(AK119:AK200) -> 361945970.9 | AL118: =IF(AH118=0,0,1) -> 1
AL119: 0 | AM119: =AI119/AH119-1 -> 
AL120: 0
AL121: 0
AL122: 0
AL123: 0
AL124: 0
AL125: 0
AL126: 0
AL127: 0
AL128: 0
AL129: 0
AL130: 0
AL131: 0
AL132: 0
AL133: 0
AL134: 0
AL135: 0
AL136: 0
AL137: 0
AL138: 0
AL139: 0
AL140: 0
AL141: 0
AL142: 0
AL143: 0
AL144: 0
AL145: 0
AL146: 0
AL147: 0
AL148: 0
AL149: 0
AL150: 0 | AM150: =AI150/AH150-1 -> 
AL151: 0
AL152: 0
AL153: 0
AL154: 0
AL155: 0
AL156: 0
AL157: 0
AL158: 0
AL159: 0
AL160: 0
AL161: 0
AL162: 0
AL163: 0
AL164: 0
AL165: 0
AL166: 0
AL167: 0
AL168: 0
AL169: 0
AL170: 0
AL171: 0
AL172: 0
AL173: 0
AG174: Existente - CCEAR-DSP | AH174: =SUMPRODUCT((Energia!$J$49:$J$140),(Energia!$T$49:$T$140=18)*(INT(Energia!$S$49:$S$140/10000)=2)) -> 42439.22734 | AI174: =SUMPRODUCT((Energia!$K$49:$K$140),(Energia!$T$49:$T$140=18)*(INT(Energia!$S$49:$S$140/10000)=2)) -> 46996.10485 | AJ174: =+AK174/AI174 -> 285.3649465 | AK174: =SUMPRODUCT((Energia!$U$49:$U$140),(Energia!$T$49:$T$140=18)*(INT(Energia!$S$49:$S$140/10000)=2))*AI174/AH174 -> 13411040.95 | AL174: 1
AG175: Existente - CCEAR-QTD | AH175: =SUMPRODUCT((Energia!$J$49:$J$140),(Energia!$T$49:$T$140=1)*(INT(Energia!$S$49:$S$140/10000)=2)) -> 22746.47574 | AI175: =SUMPRODUCT((Energia!$K$49:$K$140),(Energia!$T$49:$T$140=1)*(INT(Energia!$S$49:$S$140/10000)=2)) -> 25188.86007 | AJ175: =+AK175/AI175 -> 188.2514987 | AK175: =SUMPRODUCT((Energia!$U$49:$U$140),(Energia!$T$49:$T$140=1)*(INT(Energia!$S$49:$S$140/10000)=2))*AI175/AH175 -> 4741840.659 | AL175: 1
AG176: Nova e Alternativa- CCEAR-DSP | AH176: =SUMPRODUCT((Energia!$J$49:$J$140),(Energia!$T$49:$T$140=18)*(INT(Energia!$S$49:$S$140/10000)=1))+SUMPRODUCT((Energia!$J$49:$J$140),(Energia!$T$49:$T$140=18)*(INT(Energia!$S$49:$S$140/10000)=3)) -> 875571.1155 | AI176: =SUMPRODUCT((Energia!$K$49:$K$140),(Energia!$T$49:$T$140=18)*(INT(Energia!$S$49:$S$140/10000)=1))+SUMPRODUCT((Energia!$K$49:$K$140),(Energia!$T$49:$T$140=18)*(INT(Energia!$S$49:$S$140/10000)=3)) -> 969584.8517 | AJ176: 256.0836946 | AK176: =(SUMPRODUCT((Energia!$U$49:$U$140),(Energia!$T$49:$T$140=18)*(INT(Energia!$S$49:$S$140/10000)=1))+SUMPRODUCT((Energia!$U$49:$U$140),(Energia!$T$49:$T$140=18)*(INT(Energia!$S$49:$S$140/10000)=3)))*AI176/AH176 -> 248294871 | AL176: 1
AG177: Nova e Alternativa- CCEAR-QTD | AH177: =SUMPRODUCT((Energia!J50:J141),(Energia!T50:T141=1)*(INT(Energia!S50:S141/10000)=1))+SUMPRODUCT((Energia!J50:J141),(Energia!T50:T141=1)*(INT(Energia!S50:S141/10000)=3)) -> 292666.8016 | AI177: =SUMPRODUCT((Energia!$K$49:$K$140),(Energia!$T$49:$T$140=1)*(INT(Energia!$S$49:$S$140/10000)=1))+SUMPRODUCT((Energia!$K$49:$K$140),(Energia!$T$49:$T$140=1)*(INT(Energia!$S$49:$S$140/10000)=3)) -> 324091.6613 | AJ177: 213.757305 | AK177: =(SUMPRODUCT((Energia!$U$49:$U$140),(Energia!$T$49:$T$140=1)*(INT(Energia!$S$49:$S$140/10000)=1))+SUMPRODUCT((Energia!$U$49:$U$140),(Energia!$T$49:$T$140=1)*(INT(Energia!$S$49:$S$140/10000)=3)))*AI177/AH177 -> 69276960.09 | AL177: 1
AG178: Madeira e Belo Monte | AH178: =SUMPRODUCT((Energia!$J$49:$J$140)*(INT(Energia!$S$49:$S$140/10000)=5)) -> 167336.4545 | AI178: =SUMPRODUCT((Energia!$K$49:$K$140)*(INT(Energia!$S$49:$S$140/10000)=5)) -> 185304.0701 | AJ178: 141.5039513 | AK178: =(SUMPRODUCT((Energia!U49:U140)*(INT(Energia!S49:S140/10000)=5)))*AI178/AH178 -> 26221258.12 | AL178: 1
AL179: 0
AL180: 0
AL181: 0
AL182: =IF(AH182=0,0,1) -> 0 | AM182: =AI182/AH182-1 -> 
AG183: =IF(Energia!B113="CCGF","",Energia!C113&" "&Energia!B113) ->  | AH183: =IF($AG183="",0,Energia!J113) -> 0 | AI183: =IF($AG183="",0,Energia!K113) -> 0 | AJ183: =IF($AG183="",0,Energia!I113) -> 0 | AK183: =AI183*AJ183 -> 0 | AL183: 0
AG184: =IF(Energia!B114="CCGF","",Energia!C114&" "&Energia!B114) ->  | AH184: =IF($AG184="",0,Energia!J114) -> 0 | AI184: =IF($AG184="",0,Energia!K114) -> 0 | AJ184: =IF($AG184="",0,Energia!I114) -> 0 | AK184: 0 | AL184: 0
AG185: =IF(Energia!B115="CCGF","",Energia!C115&" "&Energia!B115) ->  | AH185: =IF($AG185="",0,Energia!J115) -> 0 | AI185: =IF($AG185="",0,Energia!K115) -> 0 | AJ185: =IF($AG185="",0,Energia!I115) -> 0 | AK185: 0 | AL185: 0
AG186: =IF(Energia!B116="CCGF","",Energia!C116&" "&Energia!B116) ->  | AH186: =IF($AG186="",0,Energia!J116) -> 0 | AI186: =IF($AG186="",0,Energia!K116) -> 0 | AJ186: =IF($AG186="",0,Energia!I116) -> 0 | AK186: 0 | AL186: 0
AG187: =IF(Energia!B117="CCGF","",Energia!C117&" "&Energia!B117) ->  | AH187: =IF($AG187="",0,Energia!J117) -> 0 | AI187: =IF($AG187="",0,Energia!K117) -> 0 | AJ187: =IF($AG187="",0,Energia!I117) -> 0 | AK187: 0 | AL187: 0
AG188: =IF(Energia!B118="CCGF","",Energia!C118&" "&Energia!B118) ->  | AH188: =IF($AG188="",0,Energia!J118) -> 0 | AI188: =IF($AG188="",0,Energia!K118) -> 0 | AJ188: =IF($AG188="",0,Energia!I118) -> 0 | AK188: 0 | AL188: 0
AG189: =IF(Energia!B119="CCGF","",Energia!C119&" "&Energia!B119) ->  | AH189: =IF($AG189="",0,Energia!J119) -> 0 | AI189: =IF($AG189="",0,Energia!K119) -> 0 | AJ189: =IF($AG189="",0,Energia!I119) -> 0 | AK189: 0 | AL189: 0
AG190: =IF(Energia!B120="CCGF","",Energia!C120&" "&Energia!B120) ->  | AH190: =IF($AG190="",0,Energia!J120) -> 0 | AI190: =IF($AG190="",0,Energia!K120) -> 0 | AJ190: =IF($AG190="",0,Energia!I120) -> 0 | AK190: 0 | AL190: 0
AG191: =IF(Energia!B121="CCGF","",Energia!C121&" "&Energia!B121) ->  | AH191: =IF($AG191="",0,Energia!J121) -> 0 | AI191: =IF($AG191="",0,Energia!K121) -> 0 | AJ191: =IF($AG191="",0,Energia!I121) -> 0 | AK191: 0 | AL191: 0
AG192: =IF(Energia!B122="CCGF","",Energia!C122&" "&Energia!B122) ->  | AH192: =IF($AG192="",0,Energia!J122) -> 0 | AI192: =IF($AG192="",0,Energia!K122) -> 0 | AJ192: =IF($AG192="",0,Energia!I122) -> 0 | AK192: 0 | AL192: 0
AG193: =IF(Energia!B123="CCGF","",Energia!C123&" "&Energia!B123) ->  | AH193: =IF($AG193="",0,Energia!J123) -> 0 | AI193: =IF($AG193="",0,Energia!K123) -> 0 | AJ193: =IF($AG193="",0,Energia!I123) -> 0 | AK193: 0 | AL193: 0
AG194: =IF(Energia!B124="CCGF","",Energia!C124&" "&Energia!B124) ->  | AH194: =IF($AG194="",0,Energia!J124) -> 0 | AI194: =IF($AG194="",0,Energia!K124) -> 0 | AJ194: =IF($AG194="",0,Energia!I124) -> 0 | AK194: 0 | AL194: 0
AG195: =IF(Energia!B125="CCGF","",Energia!C125&" "&Energia!B125) ->  | AH195: =IF($AG195="",0,Energia!J125) -> 0 | AI195: =IF($AG195="",0,Energia!K125) -> 0 | AJ195: =IF($AG195="",0,Energia!I125) -> 0 | AK195: 0 | AL195: 0
AG196: =IF(Energia!B126="CCGF","",Energia!C126&" "&Energia!B126) ->  | AH196: =IF($AG196="",0,Energia!J126) -> 0 | AI196: =IF($AG196="",0,Energia!K126) -> 0 | AJ196: =IF($AG196="",0,Energia!I126) -> 0 | AK196: 0 | AL196: 0
AG197: =IF(Energia!B127="CCGF","",Energia!C127&" "&Energia!B127) ->  | AH197: =IF($AG197="",0,Energia!J127) -> 0 | AI197: =IF($AG197="",0,Energia!K127) -> 0 | AJ197: =IF($AG197="",0,Energia!I127) -> 0 | AK197: 0 | AL197: 0
AG198: =IF(Energia!B128="CCGF","",Energia!C128&" "&Energia!B128) ->  | AH198: =IF($AG198="",0,Energia!J128) -> 0 | AI198: =IF($AG198="",0,Energia!K128) -> 0 | AJ198: =IF($AG198="",0,Energia!I128) -> 0 | AK198: 0 | AL198: 0
AG199: =IF(Energia!B129="CCGF","",Energia!C129&" "&Energia!B129) ->  | AH199: =IF($AG199="",0,Energia!J129) -> 0 | AI199: =IF($AG199="",0,Energia!K129) -> 0 | AJ199: =IF($AG199="",0,Energia!I129) -> 0 | AK199: 0 | AL199: 0
AG200: =IF(Energia!B130="CCGF","",Energia!C130&" "&Energia!B130) ->  | AH200: =IF($AG200="",0,Energia!J130) -> 0 | AI200: =IF($AG200="",0,Energia!K130) -> 0 | AJ200: =IF($AG200="",0,Energia!I130) -> 0 | AK200: 0 | AL200: 0
AG201: Bilaterais | AH201: =+Energia!H38 -> 200604 | AI201: =+Energia!C26 -> 222143.6913 | AJ201: =+Energia!D26 -> 234.067594 | AK201: =+AI201*AJ201 -> 51996639.35 | AL201: 1
AG202: =Energia!B145 -> 0 | AH202: =Energia!H145 -> 0 | AI202: =Energia!M145 -> 0 | AJ202: =Energia!L145 -> 0 | AK202: =AJ202*AI202 -> 0 | AL202: 0
AG203: =Energia!B146 -> 0 | AH203: =Energia!H146 -> 0 | AI203: =Energia!M146 -> 0 | AJ203: =Energia!L146 -> 0 | AK203: =AJ203*AI203 -> 0 | AL203: 0
AG204: =Energia!B147 -> 0 | AH204: =Energia!H147 -> 0 | AI204: =Energia!M147 -> 0 | AJ204: =Energia!L147 -> 0 | AK204: 0 | AL204: 0
AG205: =Energia!B148 -> 0 | AH205: =Energia!H148 -> 0 | AI205: =Energia!M148 -> 0 | AJ205: =Energia!L148 -> 0 | AK205: 0 | AL205: 0
AG206: =Energia!B149 -> 0 | AH206: =Energia!H149 -> 0 | AI206: =Energia!M149 -> 0 | AJ206: =Energia!L149 -> 0 | AK206: 0 | AL206: 0
AG207: =Energia!B150 -> 0 | AH207: =Energia!H150 -> 0 | AI207: =Energia!M150 -> 0 | AJ207: =Energia!L150 -> 0 | AK207: 0 | AL207: 0
AG208: =Energia!B151 -> 0 | AH208: =Energia!H151 -> 0 | AI208: =Energia!M151 -> 0 | AJ208: =Energia!L151 -> 0 | AK208: 0 | AL208: 0
AG209: =Energia!B152 -> 0 | AH209: =Energia!H152 -> 0 | AI209: =Energia!M152 -> 0 | AJ209: =Energia!L152 -> 0 | AK209: 0 | AL209: 0
AG210: =Energia!B153 -> 0 | AH210: =Energia!H153 -> 0 | AI210: =Energia!M153 -> 0 | AJ210: =Energia!L153 -> 0 | AK210: 0 | AL210: 0
AG211: =Energia!B154 -> 0 | AH211: =Energia!H154 -> 0 | AI211: =Energia!M154 -> 0 | AJ211: =Energia!L154 -> 0 | AK211: 0 | AL211: 0
AG212: =Energia!B155 -> 0 | AH212: =Energia!H155 -> 0 | AI212: =Energia!M155 -> 0 | AJ212: =Energia!L155 -> 0 | AK212: 0 | AL212: 0
AG213: =Energia!B156 -> 0 | AH213: =Energia!H156 -> 0 | AI213: =Energia!M156 -> 0 | AJ213: =Energia!L156 -> 0 | AK213: 0 | AL213: 0
AG214: =Energia!B157 -> 0 | AH214: =Energia!H157 -> 0 | AI214: =Energia!M157 -> 0 | AJ214: =Energia!L157 -> 0 | AK214: 0 | AL214: 0 | AM214: =AI214/AH214-1 -> 
AG215: =Energia!B158 -> 0 | AH215: =Energia!H158 -> 0 | AI215: =Energia!M158 -> 0 | AJ215: =Energia!L158 -> 0 | AK215: 0 | AL215: 0
AG216: =Energia!B159 -> 0 | AH216: =Energia!H159 -> 0 | AI216: =Energia!M159 -> 0 | AJ216: =Energia!L159 -> 0 | AK216: 0 | AL216: 0
AG217: =Energia!B160 -> 0 | AH217: =Energia!H160 -> 0 | AI217: =Energia!M160 -> 0 | AJ217: =Energia!L160 -> 0 | AK217: 0 | AL217: 0
AG218: =Energia!B161 -> 0 | AH218: =Energia!H161 -> 0 | AI218: =Energia!M161 -> 0 | AJ218: =Energia!L161 -> 0 | AK218: 0 | AL218: 0
AG219: =Energia!B162 -> 0 | AH219: =Energia!H162 -> 0 | AI219: =Energia!M162 -> 0 | AJ219: =Energia!L162 -> 0 | AK219: 0 | AL219: 0
AG220: =Energia!B163 -> 0 | AH220: =Energia!H163 -> 0 | AI220: =Energia!M163 -> 0 | AJ220: =Energia!L163 -> 0 | AK220: 0 | AL220: 0
AG221: =Energia!B164 -> 0 | AH221: =Energia!H164 -> 0 | AI221: =Energia!M164 -> 0 | AJ221: =Energia!L164 -> 0 | AK221: 0 | AL221: 0
AG222: =Energia!B165 -> 0 | AH222: =Energia!H165 -> 0 | AI222: =Energia!M165 -> 0 | AJ222: =Energia!L165 -> 0 | AK222: 0 | AL222: 0
AG223: =Energia!B166 -> 0 | AH223: =Energia!H166 -> 0 | AI223: =Energia!M166 -> 0 | AJ223: =Energia!L166 -> 0 | AK223: 0 | AL223: 0
AG224: =Energia!B167 -> 0 | AH224: =Energia!H167 -> 0 | AI224: =Energia!M167 -> 0 | AJ224: =Energia!L167 -> 0 | AK224: 0 | AL224: 0
AG225: =Energia!B168 -> 0 | AH225: =Energia!H168 -> 0 | AI225: =Energia!M168 -> 0 | AJ225: =Energia!L168 -> 0 | AK225: 0 | AL225: 0
AG226: =Energia!B169 -> 0 | AH226: =Energia!H169 -> 0 | AI226: =Energia!M169 -> 0 | AJ226: =Energia!L169 -> 0 | AK226: 0 | AL226: 0
... 299 more rows

Sheet Voto (hidden)
B2: Gráficos
B4: Análise de Impacto da RTE na Tarfia | H4: Efeito por Modalidade de Aquisição de Energia
B26: Tabelas
B28: TabAvalRTE
B29: Base | E29: =SUMIFS(BD!$G$86:$G$445,BD!$D$86:$D$445,B29) -> 1234822907
C30: DRA (R$) | D30: DRP (R$) | E30: Variação | F30: Participação no Reajuste | G30: Participação na Receita | H30: Colunas1
B31: PARCELA A [Encargos+Transmissão+Energia] | C31: =C32+C41+C50+C51 ->  | D31: =D32+D41+D50+D51 ->  | E31: =IF(ISERROR(D31/C31-1),0,D31/C31-1) -> 0 | F31: =IF(ISERROR((D31-C31)/$E$29),0,(D31-C31)/$E$29) -> 0 | G31: =IF(ISERROR(D31/($D$52+$D$31)),0,D31/($D$52+$D$31)) -> 0 | H31: 1
B32: Encargos Setoriais | C32: =SUM(C33:C40) ->  | D32: =SUM(D33:D40) ->  | E32: =IF(ISERROR(D32/C32-1),0,D32/C32-1) -> 0 | F32: 0 | G32: =IF(D32=0,0,IF(ISERROR(D32/($D$52+$D$31)),0,D32/($D$52+$D$31))) ->  | H32: 1
B33: Taxa de Fisc. de Serviços de E.E. – TFSEE | C33: =#REF! ->  | D33: =#REF! ->  | E33: =IF(ISERROR(D33/C33-1),0,D33/C33-1) -> 0 | F33: 0 | H33: =IF(ABS(F33)+ABS(E33)+ABS(G33)=0,0,1) -> 
B34: Conta de Desenvolvimento Energético – CDE (USO) | C34: =#REF! ->  | D34: =#REF! ->  | E34: =IF(ISERROR(D34/C34-1),0,D34/C34-1) -> 0 | F34: 0 | H34: =IF(ABS(F34)+ABS(E34)+ABS(G34)=0,0,1) -> 
B35: Conta de Desenvolvimento Energético – CDE (Decr. 7945/2013) | C35: =#REF! ->  | D35: =#REF! ->  | E35: =IF(ISERROR(D35/C35-1),0,D35/C35-1) -> 0 | F35: 0 | H35: =IF(ABS(F35)+ABS(E35)+ABS(G35)=0,0,1) -> 
B36: Conta de Desenvolvimento Energético – CDE (Conta-ACR) | C36: =#REF! ->  | D36: =#REF! ->  | E36: =IF(ISERROR(D36/C36-1),0,D36/C36-1) -> 0 | F36: 0 | H36: =IF(ABS(F36)+ABS(E36)+ABS(G36)=0,0,1) -> 
B37: Compensação financeira - CFURH | C37: =#REF! ->  | D37: =Resultado!D24 -> 0 | E37: =IF(ISERROR(D37/C37-1),0,D37/C37-1) -> 0 | F37: 0 | G37: 0 | H37: =IF(ABS(F37)+ABS(E37)+ABS(G37)=0,0,1) -> 0
B38: Encargos Serv. Sist. - ESS e Energ. Reserv. - EER | C38: =#REF! ->  | D38: =#REF! ->  | E38: =IF(ISERROR(D38/C38-1),0,D38/C38-1) -> 0 | F38: 0 | H38: =IF(ABS(F38)+ABS(E38)+ABS(G38)=0,0,1) -> 
B39: P&D, Efic.Energ e Ressarc.ICMS Sist.Isol. | C39: =#REF! ->  | D39: =#REF! ->  | E39: =IF(ISERROR(D39/C39-1),0,D39/C39-1) -> 0 | F39: 0 | H39: =IF(ABS(F39)+ABS(E39)+ABS(G39)=0,0,1) -> 
B40: ONS | C40: =#REF! ->  | D40: =Resultado!D28 -> 0 | E40: =IF(ISERROR(D40/C40-1),0,D40/C40-1) -> 0 | F40: 0 | G40: 0 | H40: =IF(ABS(F40)+ABS(E40)+ABS(G40)=0,0,1) -> 0
B41: Custos de Transmissão | C41: =SUM(C42:C49) ->  | D41: =SUM(D42:D49) ->  | E41: 0 | F41: 0 | H41: 1
B42: =Resultado!B30 -> Rede Básica | C42: =#REF! ->  | D42: =#REF! ->  | E42: 0 | F42: 0
B43: =Resultado!B31 -> Rede Básica Fronteira | C43: =#REF! ->  | D43: =#REF! ->  | E43: 0 | F43: 0
B44: =Resultado!B32 -> Rede Básica ONS (A2) | C44: =#REF! ->  | D44: =#REF! ->  | E44: 0 | F44: 0
B45: =Resultado!B33 -> Rede Básica Export. (A2) | C45: =#REF! ->  | D45: =Resultado!D33 -> 0 | E45: 0 | F45: 0 | G45: 0 | H45: 0
B46: =Resultado!B34 -> MUST Itaipu | C46: =#REF! ->  | D46: =#REF! ->  | E46: 0 | F46: 0 | H46: =IF(ABS(F46)+ABS(E46)+ABS(G46)=0,0,1) -> 
B47: =Resultado!B35 -> Transporte de Itaipu | C47: =#REF! ->  | D47: =#REF! ->  | E47: =IF(ISERROR(D47/C47-1),0,D47/C47-1) -> 0 | F47: 0 | H47: =IF(ABS(F47)+ABS(E47)+ABS(G47)=0,0,1) -> 
B48: =Resultado!B36 -> Conexão | C48: =#REF! ->  | D48: =Resultado!D36 -> 2201363.346 | E48: =IF(ISERROR(D48/C48-1),0,D48/C48-1) -> 0 | F48: 0 | G48: 0 | H48: 0
B49: =Resultado!B37 -> Uso do sistema de distribuição e CCD | C49: =#REF! ->  | D49: =#REF! ->  | E49: 0 | F49: 0
B50: Custos de Aquisição de Energia (incluindo Proinfra) | C50: =#REF!+#REF! ->  | D50: =#REF!+#REF! ->  | E50: =IF(ISERROR(D50/C50-1),0,D50/C50-1) -> 0 | F50: 0 | H50: 1
B51: Receitas Irrecuperáveis | D51: =#REF! ->  | F51: 0 | H51: =IF(F51=0,0,1) -> 0
B52: PARCELA B | C52: =#REF! ->  | D52: =#REF! ->  | E52: =IF(ISERROR(D52/C52-1),0,D52/C52-1) -> 0 | F52: 0 | G52: =IF(ISERROR(D52/($D$52+$D$31)),0,D52/($D$52+$D$31)) -> 0 | H52: 1
B53: IRT considerando a variação tarifária da RTP 2016 | C53: =C52+C31 ->  | D53: =D52+D31 ->  | F53: =F52+F31 -> 0 | G53: =G52+G31 -> 0 | H53: 1
H54: 1
B55: Efeito dos Componentes Financeiros do Processo Atual | F55: =SUM(F56:F103) ->  | H55: 1
B56: =#REF! ->  | F56: =#REF! ->  | H56: =IF(F56=0,0,1) -> 
B57: =#REF! ->  | F57: =#REF! ->  | H57: =IF(F57=0,0,1) -> 
B58: =#REF! ->  | F58: =#REF! -> 
B59: =#REF! ->  | F59: =#REF! -> 
B60: =#REF! ->  | F60: =#REF! -> 
B61: =#REF! ->  | F61: =#REF! -> 
B62: =#REF! ->  | F62: =#REF! -> 
B63: =#REF! ->  | F63: =#REF! -> 
B64: =#REF! ->  | F64: =#REF! -> 
B65: =#REF! ->  | F65: =#REF! -> 
B66: =#REF! ->  | F66: =#REF! -> 
B67: =#REF! ->  | F67: =#REF! -> 
B68: =#REF! ->  | F68: =#REF! -> 
B69: =#REF! ->  | F69: =#REF! -> 
B70: =#REF! ->  | F70: =#REF! -> 
B71: =#REF! ->  | F71: =#REF! -> 
B72: =#REF! ->  | F72: =#REF! -> 
H73: 0
H74: 0
H75: 0
H76: 0
H77: 0
H78: 0
H79: 0
H80: 0
H81: 0
H82: 0
H83: 0
H84: 0
H85: 0
H86: 0
H87: 0
H88: 0
H89: 0
H90: 0
H91: 0
H92: 0
H93: 0
H94: 0
H95: 0
H96: 0
H97: 0
H98: 0
H99: 0
H100: 0
H101: 0
H102: 0
H103: 0
H104: 0
H105: 0
H106: 0 | V106: Dados dos Gráficos
B107: Efeito da retirada dos Componentes Financeiros do Processo Anterior | F107: =F108-F53-F55 ->  | I107: TabCompEnergia | AB107: =F50 -> 0
B108: Efeito Médio a ser percebido pelos Consumidores | F108: =CAPA!C27 -> 0.07171691872 | J108: Montante de energia (MWh) | M108: Custo unitário (R$/MWh) | P108: Custo Total (R$) | AA108: Gráfico impacto energia
I109: Tipo de contrato | J109: Processo A-1 | K109: Processo atual | L109: Variação | M109: Processo A-1 | N109: Processo atual | O109: Variação | P109: Processo Anterior | Q109: Processo Atual | R109: Processo anterior sem Sobra/Exposição | S109: Processo atual sem Sobra/Exposição | T109: Impacto IRT | AA109: Total | AB109: =SUM(AB110:AB122) ->  | AC109: 1 | AD109: -0.0006167783588
I110: Existente - CCEAR-DSP | J110: =#REF! ->  | K110: =#REF! ->  | L110: =IFERROR(K110/J110-1,"-") -> - | M110: =#REF! ->  | N110: =IFERROR(Q110/K110,0) -> 0 | O110: =IFERROR(N110/M110-1,"-") -> - | P110: =SUMIFS(BD!M86:M105,BD!J86:J105,"Existente",BD!I86:I105,"CCEAR-DISP") -> 711077.0599 | Q110: =#REF! ->  | R110: =(J110+J110*$J$123/SUM($J$110:$J$121))*M110 ->  | S110: =(K110*$K$123/SUM($K$110:$K$121)+K110)*N110 ->  | T110: =(S110-R110)/$R$129 ->  | AA110: =I110 -> Existente - CCEAR-DSP | AB110: =$AB$107/$AD$109*S131 ->  | AC110: =IF(AB110=0,0,1) -> 
I111: Existente - CCEAR-QTD | J111: =#REF! ->  | K111: =#REF! ->  | L111: - | M111: =#REF! ->  | N111: 0 | O111: - | P111: =SUMIFS(BD!M86:M105,BD!J86:J105,"Existente",BD!I86:I105,"CCEAR-QTD") -> 57466943.11 | Q111: =#REF! ->  | AA111: Existente - CCEAR-QTD | AB111: =$AB$107/$AD$109*S132 -> 
I112: Nova e Alternativa- CCEAR-DSP | J112: =#REF! ->  | K112: =#REF! ->  | L112: - | M112: =#REF! ->  | N112: 0 | O112: - | P112: =SUMIFS(BD!M86:M105,BD!J86:J105,"<>Existente",BD!I86:I105,"CCEAR-DISP",BD!J86:J105,"<>Madeira",BD!J86:J105,"<>Belo Monte") -> 178009762.7 | Q112: =#REF! ->  | AA112: Nova e Alternativa- CCEAR-DSP
I113: Nova e Alternativa- CCEAR-QTD | J113: =#REF! ->  | K113: =#REF! ->  | L113: - | M113: =#REF! ->  | N113: 0 | O113: - | P113: =SUMIFS(BD!M86:M105,BD!J86:J105,"<>Existente",BD!I86:I105,"CCEAR-QTD",BD!J86:J105,"<>Madeira",BD!J86:J105,"<>Belo Monte") -> 59988045.79 | Q113: =#REF! ->  | AA113: Nova e Alternativa- CCEAR-QTD
I114: Ajuste - CCEAR | J114: =#REF! ->  | K114: =#REF! ->  | L114: - | M114: =#REF! ->  | N114: 0 | O114: - | P114: =SUMIFS(BD!M86:M105,BD!I86:I105,"Leilão de Ajuste") -> 0 | Q114: =#REF! ->  | AA114: Ajuste - CCEAR
I115: Madeira e Belo Monte | J115: =#REF! ->  | K115: =#REF! ->  | L115: - | M115: =#REF! ->  | N115: 0 | O115: - | P115: =SUMIFS(BD!M86:M105,BD!J86:J105,"Belo Monte",BD!I86:I105,"CCEAR-QTD")+SUMIFS(BD!M86:M105,BD!J86:J105,"Madeira",BD!I86:I105,"CCEAR-QTD") -> 23050511.69 | Q115: =#REF! ->  | AA115: Madeira e Belo Monte
I116: Bilateral | J116: =#REF! ->  | K116: =SUM(Energia!H145:H191) -> 200604 | L116: - | M116: =#REF! ->  | N116: 234.067594 | O116: - | P116: =SUMIFS(BD!M86:M105,BD!I86:I105,"Bilateral") -> 89928874.94 | Q116: =SUMPRODUCT(Energia!H145:H191,Energia!L145:L191) -> 46954895.63 | AA116: Bilateral
I117: Cota Angra I e Angra II | J117: =#REF! ->  | K117: =Energia!H34 -> 75734.52475 | L117: - | M117: =#REF! ->  | N117: 269.75 | O117: - | P117: =SUMIFS(BD!M86:M105,BD!I86:I105,"CCEN") -> 17907402.81 | Q117: =Energia!J34 -> 20429388.05 | AA117: Cota Angra I e Angra II
I118: Cotas Lei n º 12.783/2013 | J118: =#REF! ->  | K118: =Energia!H35 -> 613886.9479 | L118: - | M118: =#REF! ->  | N118: 112.02 | O118: - | P118: =SUMIFS(BD!M86:M105,BD!I86:I105,"CCGF") -> 63409583.35 | Q118: =Energia!J35 -> 68767615.9 | AA118: Cotas Lei n º 12.783/2013
I119: Geração Própria | J119: =#REF! ->  | K119: =Energia!H33 -> 0 | L119: - | M119: =#REF! ->  | N119: 0 | O119: - | P119: =SUMIFS(BD!M86:M105,BD!I86:I105,"Geração Própria") -> 0 | Q119: =Energia!J33 -> 0 | AA119: Geração Própria
I120: Itaipu | J120: =#REF! ->  | K120: =Energia!H36 -> 0 | L120: - | M120: =#REF! ->  | N120: 0 | O120: - | P120: =SUMIFS(BD!M86:M105,BD!I86:I105,"Itaipu") -> 0 | Q120: =Energia!J36 -> 0 | AA120: Itaipu
I121: Montante de Reposição | J121: =#REF! ->  | K121: 0 | L121: - | M121: =#REF! ->  | N121: 0 | O121: - | P121: =SUMIFS(BD!M86:M105,BD!I86:I105,"Montante de Reposição") -> 0 | Q121: 0 | AA121: Montante de Reposição
I122: Proinfa | J122: =#REF! ->  | K122: =Energia!C25 -> 52242.15139 | L122: - | M122: =Mercado!G66/J122 ->  | N122: 311.7018303 | O122: - | P122: =IFERROR(VLOOKUP(Neutralidade!B10,BD!$B$8:$C$53,2,FALSE),0) -> 19496780.91 | Q122: =Resultado!D26 -> 16283974.21 | R122: =J122*M122 ->  | S122: =K122*N122 -> 16283974.21 | AA122: Proinfra | AC122: 1
I123: Sobra (-) / Exposição (+) | J123: =#REF! ->  | K123: =(Energia!C32-Energia!H24-Energia!C25) -> 245992.7093 | L123: - | M123: =#REF! ->  | N123: =Energia!I41 -> 202.0975421 | O123: - | P123: =SUMIFS(BD!M86:M105,BD!I86:I105,"Sobra/Exposição") -> 15786040.97 | Q123: =K123*N123 -> 49714521.92
I124: TOTAL | J124: =#REF! ->  | K124: =SUM(K110:K123) ->  | L124: - | M124: =R127/J124 ->  | N124: =Q124/K124 ->  | O124: - | P124: =SUM(P110:P123) -> 525755023.3 | Q124: =SUM(Q110:Q123) ->  | R124: =SUM(R110:R123) ->  | S124: =SUM(S110:S123) ->  | T124: =SUM(T110:T123) -> 
AA125: Impacto da RTE na Tarifa
AA126: Encargos Setoriais | AB126: =F32 -> 0
P127: Custo ponderado pelo mercado | R127: =C50 ->  | AA127: Custos de Transmissão | AB127: =F41 -> 0
P128: Delta RA1 e faturado | R128: =Q124-R127 ->  | AA128: Custos de Aquisição de Energia | AB128: =F50 -> 0
M129: Incremento em relação ao custo médio | P129: Base faturado | R129: =SUMIFS(BD!$G$86:$G$445,BD!$D$86:$D$445,B29) -> 1234822907 | AA129: Receitas Irrecuperáveis | AB129: =F51 -> 0
J130: Tipo de Contrato | L130: Variação de montante DRA/DRP | M130: Efeito Montante | N130: Efeito Preço | O130: Efeito Preço montante | P130: Impacto pela mudança de tarifa média | Q130: Impacto de Perdas | R130: Impacto total | AA130: Distribuição | AB130: =F52 -> 0
J131: Existente - CCEAR-DSP | L131: =$L$145/$J$124*J110 ->  | M131: =(K110-J110*$K$124/$J$124)*(IF(J110=0,N110,M110)-$M$124)/$K$124 ->  | N131: =IF(OR(K110=0,J110=0),0,(N110-M110)*J110/$J$124) ->  | O131: =IF(OR(K110=0,J110=0),0,(N110-M110)*(K110-J110*$K$124/$J$124)/$K$124) ->  | P131: =SUM(M131:O131)*$K$124 ->  | Q131: =L131*M110 ->  | R131: =P131+Q131 ->  | S131: =(R131+$R$144*R131/SUM($R$131:$R$142))/$R$129 ->  | AA131: Componentes Financeiros | AB131: =F55 -> 
J132: Existente - CCEAR-QTD | AA132: Efeito da Retirada dos Financeiros Anteriores | AB132: =F107 -> 
J133: Nova e Alternativa- CCEAR-DSP | AA133: Efeito Médio Consumidor | AB133: =F108 -> 0.07171691872
J134: Nova e Alternativa- CCEAR-QTD
J135: Ajuste - CCEAR
J136: Madeira e Belo Monte
J137: Bilateral
J138: Cota Angra I e Angra II
J139: Cotas Lei n º 12.783/2013
J140: Geração Própria
J141: Itaipu
J142: Montante de Reposição
J143: Proinfa | S143: =(R143)/R129 -> 
J144: Sobra (-) / Exposição (+)
L145: =K124-J124 ->  | M145: =(K124-J124*$K$124/$J$124)*(M124-$M$124)/$K$124 -> 
S146: =SUM(S131:S143) -> 

Sheet Energia
B1: Cálculo da despesa de energia | C1: Anexo II | D1: =Resultado!$D$6 -> 0.09281763211
C2: Anexo I | D2: =Resultado!$D$8 -> 0.117478177
B3: Resultado | G3: Quadro de mercado
C4: Param. proc. Anterior | D4: Em processamento | G4: Mercado | H4: MWh
B5: Energia Requerida (Fornecimento + Suprimento + Perdas) | C5: =SUM(Neutralidade!H17:H20)+C6 -> 2596236.517 | D5: =SUM(H16:H19)+D6 -> 2589220.408 | G5: Fornecimento | H5: =Mercado!C9 -> 2158449.448
B6: Fornecimento + Suprimento | C6: =D6 -> 2158449.448 | D6: =D7+D8 -> 2158449.448 | G6: Suprimento (Mercado TUSD) | H6: =DSUM(Mercado_Receita!A:AAA,"TUSD_E",Mercado!O9:P10) -> 0
B7: Fornecimento | C7: =D7 -> 2158449.448 | D7: =H5 -> 2158449.448 | G7: Consumidor Livre | H7: =SUM(Mercado!C18:C20) -> 252801.214
B8: Suprimento (Mercado TE) | C8: =D8 -> 0 | D8: =DSUM(Mercado_Receita!A:AAA,"Te_E",Mercado!O9:P10) -> 0 | G8: A1 | H8: =Mercado!C18+Mercado!C10 -> 0
B9: Perdas Regulatórias | C9: =SUM(C10:C13) -> 437787.069 | D9: =SUM(D10:D13) -> 430770.96 | G9: BT | H9: =Mercado!C16 -> 1748294.633
B10: Perda Não Técnica | C10: =Neutralidade!H17 -> 92484.78609 | D10: =H16 -> 64903.32715
B11: Perda Técnica | C11: =Neutralidade!H18 -> 300941.877 | D11: =H17 -> 321507.227 | G11: Calculo de perdas
B12: Perda Rede Básica sobre Dist. | C12: =Neutralidade!H19 -> 6839.111973 | D12: =H18 -> 6735.666799 | G12: Descrição
B13: Perda Rede Básica sobre mercado Cat. | C13: =Neutralidade!H20 -> 37521.29393 | D13: =H19 -> 37624.7391 | G13: % Não Técnica (s/ Baixa Tensão) | H13: =IF(CAPA!$C$7="Revisão",Entrada!G33,BD!C20) -> 0.03712379248
B14: Custo Médio | C14: =IF(YEAR(CAPA!C10)=2013,Entrada!C44,BD!C18) -> 197.1960096 | D14: =D29 -> 198.0198628 | G14: % Técnica (s/ merc. injetado) | H14: =IF(CAPA!$C$7="Revisão",Entrada!G34,Neutralidade!H15) -> 0.11492 | I14: =H14+H13 -> 0.1520437925
B15: Despesa Energia (Energia Req. X Custo Médio) | C15: =C5*C14 -> 511967481 | D15: =D14*D5 -> 512717069.9 | G15: % Rede Básica (s/ merc. Injetado) | H15: =SUMIFS(TabPerdaDIT[Valor],TabPerdaDIT[Dados de perda],"Perdas RB")/SUM(D7:D8,H16:H17) -> 0.01743137377
G16: Perda Não Técnica | H16: =H13*$H$9 -> 64903.32715
G17: Perda Técnica | H17: =SUM($H$5:$H$7,-$H$8,H16)/(1-H14)*H14+SUMIFS(TabPerdaDIT[Valor],TabPerdaDIT[Dados de perda],"Perdas DITs") -> 321507.227
B18: Resumo da despesa de energia em processamento | G18: Perda Rede Básica sobre Dist. | H18: =SUM(H16:H17)*H15 -> 6735.666799
B19: Empresa | C19: Montante | D19: Custo médio | E19: Despesa (R$) | G19: Perda Rede Básica sobre mercado Cat. | H19: =SUM(D7:D8)*H15 -> 37624.7391
B20: Energia Base | C20: =SUM(C21:C25) -> 815911.1686 | D20: =IF(C20=0,0,E20/C20) -> 121.0603108 | E20: =SUM(E21:E25) -> 98774459.69
B21: Geração Própria | C21: =H33*$J$24 -> 0 | D21: =I33 -> 0 | E21: =C21*D21 -> 0
B22: Cota Angra I/Angra II | C22: =H34*$J$24 -> 83866.45774 | D22: =I34 -> 269.75 | E22: =C22*D22 -> 22622976.97 | G22: Glosas de contratos
B23: Cotas Lei n º 12783/2013 | C23: =H35*$J$24 -> 679802.5595 | D23: =I35 -> 112.02 | E23: 76151482.72 | G23: Tipo | H23: Montante contratado | I23: Montante Req sem proinfa | J23: % considerado
B24: Itaipu (tirando as perdas) | C24: =H36*$J$24 -> 0 | D24: =I36 -> 0 | E24: 0 | G24: Geral | H24: =SUM(H32,H38,H40) -> 2290985.547 | I24: =C32-C25 -> 2536978.257 | J24: =I24/H24 -> 1.107374186 | K24: =IF(J24=L143,"ok","erro") -> ok
B25: PROINFA | C25: =BD!C48 -> 52242.15139 | D25: 0 | E25: 0
B26: Bilateral | C26: =H38*$J$24 -> 222143.6913 | D26: =I38 -> 234.067594 | E26: 51996639.35
G27: Informações para o cálculo da Sobrecontratação
B28: CCEAR | C28: =H40*$J$24 -> 1551165.548 | D28: =I40 -> 233.3380672 | E28: =D28*C28 -> 361945970.9 | G28: Perdas DRA realizadas | H28: =C9/C6 -> 0.202824796
B29: Custo médio geral de energia | D29: =SUM(E21:E28)/SUM(C21:C28) -> 198.0198628
B30: Energia Vendida | C30: =D6 -> 2158449.448 | D30: =IF(J24<100%,"Sobrecontratada em",IF(J24=1,"","Exposta em")) -> Exposta em | E30: =ABS(C32-H24-C25) -> 245992.7093 | G30: Energia Contratada ( Sem considerar o PROINFA) : determinar o custo médio do Mix
B31: Perdas | C31: =SUM(H16:H19) -> 430770.96 | G31: Empresa | H31: Montante | I31: Custo médio | J31: Despesa
B32: Energia Requerida (Energia Vendida + Perdas) | C32: =D5 -> 2589220.408 | D32: Despesa final | E32: =D29*C32 -> 512717069.9 | G32: Energia Base | H32: =SUM(H33:H37) -> 689621.4726 | J32: =SUM(J33:J37) -> 89197003.96
G33: Geração Própria | H33: =Entrada!$C$7 -> 0 | I33: =Entrada!$C$8 -> 0 | J33: =I33*H33 -> 0
B34: Contrato sujeito ao Risco Hidrológico | C34: GSF previsto | D34: PLD | E34: Despesa | G34: Cota Angra I/Angra II | H34: =IF(ISERROR(VLOOKUP("Angra",AngraCota[],2,FALSE)),0,VLOOKUP("Angra",AngraCota[],2,FALSE))*13858049.341 -> 75734.52475 | I34: =INDEX(AngraCota[],1,4) -> 269.75 | J34: =H34*I34 -> 20429388.05
B35: CCGF | C35: 0.827 | D35: 149 | E35: =(D35*(1-C35)*H35) -> 15824163.86 | G35: Cotas Lei n º 12783/2013 | H35: =SUMIFS(J49:J140,B49:B140,"CCGF") -> 613886.9479 | I35: =IFERROR(J35/H35,0) -> 112.02 | J35: =SUMPRODUCT((I49:I140)*(J49:J140)*(B49:B140="CCGF")) -> 68767615.9
B36: Itaipu | C36: =C35 -> 0.827 | D36: =D35 -> 149 | E36: =(D36*(1-C36)*H36) -> 0 | G36: Itaipu (tirando as perdas) | H36: =SUMPRODUCT(itaipuenergia[Energia],1-itaipuenergia[Perdas]) -> 0 | I36: =IF(H36=0,0,J36/H36) -> 0
B37: Usinas Repactuadas | C37: =C36 -> 0.827 | D37: =D36 -> 149 | E37: =(D37*(1-C37)*C40*E40*365*24) -> 20678822.97 | I37: 0 | J37: 0
B38: Previsão de Risco Hidrológico Total | E38: =SUM(E35:E37) -> 36502986.82 | G38: Bilateral | H38: =SUM($H$145:$H$191) -> 200604 | I38: =$J$192 -> 234.067594 | J38: =H38*I38 -> 46954895.63
B39: Fator de rateio | D39: Previsão de geração usinas repactuadas
B40: =LnkTxtNomeResumido -> ETO | C40: 0.006212973691 | D40: 149 | E40: 14739.74 | G40: CCEAR | H40: =SUM($J$49:$J$140)-H35 -> 1400760.075 | I40: =IFERROR(J40/H40,0) -> 233.3380672 | J40: =SUMPRODUCT(I49:I140,J49:J140)-J35 -> 326850648.4
G41: Custo Mix (sem proinfa) | I41: =SUM(J33:J40)/SUM(H33:H40) -> 202.0975421
G42: Despesa Final | H42: =C32-C25 -> 2536978.257 | J42: =H42*I41 -> 512717069.9 | K42: =J42=E32 -> TRUE
B47: CCEAR | K47: Percentual de CCEAR considerados | L47: =J24 -> 1.107374186
B48: Leilão | C48: Produto | D48: Modalidade | E48: Fonte | F48: Montante | G48: Data Base | H48: Custo Base | I48: Tarifa Atualizada | J48: MWh contratado | K48: MWh considerado | L48: Despesa final por produto | Q48: iddet2 | R48: iddet3 | S48: idnumleilao | T48: Iddet Alt | U48: Despesa contratada | V48: Filtro
B49: 12º Leilão de Energia Nova | C49: 2014-20 | D49: DISPONIBILIDADE | E49: Eólica | F49: 4631.697616 | G49: 40756 | H49: 99.86129255 | I49: =H49*IF(ISERROR(SEARCH("Nova regra",B49)),IF(ISERROR(SEARCH("Regra esp.",B49)),VLOOKUP(CAPA!$C$15,Índices!$B$6:$F$500,3,FALSE),VLOOKUP(DATE(YEAR(CAPA!$C$10),4,1),Índices!$B$6:$F$500,3,FALSE)),VLOOKUP(DATE(YEAR(CAPA!$C$10)-1,12,1),Índices!$B$6:$F$500,3,FALSE))/IF(ISERROR(VLOOKUP(G49,Índices!$B$6:$F$500,3,FALSE)),1,VLOOKUP(G49,Índices!$B$6:$F$500,3,FALSE)) -> 159.2321032 | J49: =F49 -> 4631.697616 | K49: =J49*$L$47 -> 5129.02238 | L49: =I49*K49 -> 816705.0207 | Q49: 201420 | R49: 3 | S49: 10012 | T49: 18 | U49: =J49*I49 -> 737514.9527 | V49: =IF(H49=0,0,1) -> 1
B50: 12º Leilão de Energia Nova | C50: 2014-20 | D50: DISPONIBILIDADE | E50: Térmica | F50: 23914.8 | G50: 43983 | H50: 166.8971297 | I50: =H50*IF(ISERROR(SEARCH("Nova regra",B50)),IF(ISERROR(SEARCH("Regra esp.",B50)),VLOOKUP(CAPA!$C$15,Índices!$B$6:$F$500,3,FALSE),VLOOKUP(DATE(YEAR(CAPA!$C$10),4,1),Índices!$B$6:$F$500,3,FALSE)),VLOOKUP(DATE(YEAR(CAPA!$C$10)-1,12,1),Índices!$B$6:$F$500,3,FALSE))/IF(ISERROR(VLOOKUP(G50,Índices!$B$6:$F$500,3,FALSE)),1,VLOOKUP(G50,Índices!$B$6:$F$500,3,FALSE)) -> 166.8971297 | J50: =F50 -> 23914.8 | K50: =J50*$L$47 -> 26482.63219 | L50: =I50*K50 -> 4419875.299 | Q50: 201420 | R50: 2 | S50: 10012 | T50: 18 | U50: 3991311.476 | V50: 1
B51: 12º Leilão de Energia Nova | C51: 2014-20 | D51: DISPONIBILIDADE | E51: Biomassa com CVU | F51: 1189.669449 | G51: 43983 | H51: 138.9484989 | I51: =H51*IF(ISERROR(SEARCH("Nova regra",B51)),IF(ISERROR(SEARCH("Regra esp.",B51)),VLOOKUP(CAPA!$C$15,Índices!$B$6:$F$500,3,FALSE),VLOOKUP(DATE(YEAR(CAPA!$C$10),4,1),Índices!$B$6:$F$500,3,FALSE)),VLOOKUP(DATE(YEAR(CAPA!$C$10)-1,12,1),Índices!$B$6:$F$500,3,FALSE))/IF(ISERROR(VLOOKUP(G51,Índices!$B$6:$F$500,3,FALSE)),1,VLOOKUP(G51,Índices!$B$6:$F$500,3,FALSE)) -> 138.9484989 | J51: 1189.669449 | K51: 1317.409239 | L51: 183052.0361 | Q51: 201420 | R51: 2 | S51: 10012 | T51: 18 | U51: 165302.7842 | V51: 1
B52: 13º Leilão de Energia Nova | C52: 2016-20 | D52: DISPONIBILIDADE | E52: Eólica | F52: 115471.643 | G52: 40878 | H52: 105.153051 | I52: =H52*IF(ISERROR(SEARCH("Nova regra",B52)),IF(ISERROR(SEARCH("Regra esp.",B52)),VLOOKUP(CAPA!$C$15,Índices!$B$6:$F$500,3,FALSE),VLOOKUP(DATE(YEAR(CAPA!$C$10),4,1),Índices!$B$6:$F$500,3,FALSE)),VLOOKUP(DATE(YEAR(CAPA!$C$10)-1,12,1),Índices!$B$6:$F$500,3,FALSE))/IF(ISERROR(VLOOKUP(G52,Índices!$B$6:$F$500,3,FALSE)),1,VLOOKUP(G52,Índices!$B$6:$F$500,3,FALSE)) -> 164.3907033 | J52: 115471.643 | K52: 127870.3167 | L52: 21020691.3 | Q52: 201620 | R52: 3 | S52: 10013 | T52: 18 | U52: 18982464.61 | V52: 1
B53: 13º Leilão de Energia Nova | C53: 2016-20 | D53: DISPONIBILIDADE | E53: Biomassa com CVU | F53: 5141.481126 | G53: 40878 | H53: 103.46 | I53: =H53*IF(ISERROR(SEARCH("Nova regra",B53)),IF(ISERROR(SEARCH("Regra esp.",B53)),VLOOKUP(CAPA!$C$15,Índices!$B$6:$F$500,3,FALSE),VLOOKUP(DATE(YEAR(CAPA!$C$10),4,1),Índices!$B$6:$F$500,3,FALSE)),VLOOKUP(DATE(YEAR(CAPA!$C$10)-1,12,1),Índices!$B$6:$F$500,3,FALSE))/IF(ISERROR(VLOOKUP(G53,Índices!$B$6:$F$500,3,FALSE)),1,VLOOKUP(G53,Índices!$B$6:$F$500,3,FALSE)) -> 161.7438771 | J53: 5141.481126 | K53: 5693.543479 | L53: 920895.797 | Q53: 201620 | R53: 2 | S53: 10013 | T53: 18 | U53: 831603.0916 | V53: 1
B54: 16º Leilão de Energia Nova | C54: 2018-25 | D54: DISPONIBILIDADE | E54: Biomassa com CVU | F54: 13638.69858 | G54: 43983 | H54: 158.2534374 | I54: =H54*IF(ISERROR(SEARCH("Nova regra",B54)),IF(ISERROR(SEARCH("Regra esp.",B54)),VLOOKUP(CAPA!$C$15,Índices!$B$6:$F$500,3,FALSE),VLOOKUP(DATE(YEAR(CAPA!$C$10),4,1),Índices!$B$6:$F$500,3,FALSE)),VLOOKUP(DATE(YEAR(CAPA!$C$10)-1,12,1),Índices!$B$6:$F$500,3,FALSE))/IF(ISERROR(VLOOKUP(G54,Índices!$B$6:$F$500,3,FALSE)),1,VLOOKUP(G54,Índices!$B$6:$F$500,3,FALSE)) -> 158.2534374 | J54: 13638.69858 | K54: 15103.14274 | L54: 2390124.255 | Q54: 201825 | R54: 2 | S54: 10016 | T54: 18 | U54: 2158370.932 | V54: 1
B55: 17º Leilão de Energia Nova | C55: 2016-20 | D55: DISPONIBILIDADE | E55: Eólica | F55: 27002.97588 | G55: 41579 | H55: 124.4651852 | I55: =H55*IF(ISERROR(SEARCH("Nova regra",B55)),IF(ISERROR(SEARCH("Regra esp.",B55)),VLOOKUP(CAPA!$C$15,Índices!$B$6:$F$500,3,FALSE),VLOOKUP(DATE(YEAR(CAPA!$C$10),4,1),Índices!$B$6:$F$500,3,FALSE)),VLOOKUP(DATE(YEAR(CAPA!$C$10)-1,12,1),Índices!$B$6:$F$500,3,FALSE))/IF(ISERROR(VLOOKUP(G55,Índices!$B$6:$F$500,3,FALSE)),1,VLOOKUP(G55,Índices!$B$6:$F$500,3,FALSE)) -> 175.184827 | J55: 27002.97588 | K55: 29902.39845 | L55: 5238446.5 | Q55: 201620 | R55: 3 | S55: 10017 | T55: 18 | U55: 4730511.659 | V55: 1
B56: 18º Leilão de Energia Nova | C56: 2018-20 | D56: DISPONIBILIDADE | E56: Eólica | F56: 56341.09775 | G56: 41609 | H56: 118.4746152 | I56: =H56*IF(ISERROR(SEARCH("Nova regra",B56)),IF(ISERROR(SEARCH("Regra esp.",B56)),VLOOKUP(CAPA!$C$15,Índices!$B$6:$F$500,3,FALSE),VLOOKUP(DATE(YEAR(CAPA!$C$10),4,1),Índices!$B$6:$F$500,3,FALSE)),VLOOKUP(DATE(YEAR(CAPA!$C$10)-1,12,1),Índices!$B$6:$F$500,3,FALSE))/IF(ISERROR(VLOOKUP(G56,Índices!$B$6:$F$500,3,FALSE)),1,VLOOKUP(G56,Índices!$B$6:$F$500,3,FALSE)) -> 165.2330226 | J56: 56341.09775 | K56: 62390.67728 | L56: 10309000.19 | Q56: 201820 | R56: 3 | S56: 10018 | T56: 18 | U56: 9309409.879 | V56: 1
B57: 18º Leilão de Energia Nova | C57: 2018-25 | D57: DISPONIBILIDADE | E57: Biomassa com CVU | F57: 8472.916353 | G57: 43983 | H57: 151.1279436 | I57: =H57*IF(ISERROR(SEARCH("Nova regra",B57)),IF(ISERROR(SEARCH("Regra esp.",B57)),VLOOKUP(CAPA!$C$15,Índices!$B$6:$F$500,3,FALSE),VLOOKUP(DATE(YEAR(CAPA!$C$10),4,1),Índices!$B$6:$F$500,3,FALSE)),VLOOKUP(DATE(YEAR(CAPA!$C$10)-1,12,1),Índices!$B$6:$F$500,3,FALSE))/IF(ISERROR(VLOOKUP(G57,Índices!$B$6:$F$500,3,FALSE)),1,VLOOKUP(G57,Índices!$B$6:$F$500,3,FALSE)) -> 151.1279436 | J57: 8472.916353 | K57: 9382.688853 | L57: 1417986.472 | Q57: 201825 | R57: 2 | S57: 10018 | T57: 18 | U57: 1280494.425 | V57: 1
B58: 19º Leilão de Energia Nova | C58: 2017-20 | D58: DISPONIBILIDADE | E58: Eólica | F58: 16635.64931 | G58: 41791 | H58: 129.9933396 | I58: =H58*IF(ISERROR(SEARCH("Nova regra",B58)),IF(ISERROR(SEARCH("Regra esp.",B58)),VLOOKUP(CAPA!$C$15,Índices!$B$6:$F$500,3,FALSE),VLOOKUP(DATE(YEAR(CAPA!$C$10),4,1),Índices!$B$6:$F$500,3,FALSE)),VLOOKUP(DATE(YEAR(CAPA!$C$10)-1,12,1),Índices!$B$6:$F$500,3,FALSE))/IF(ISERROR(VLOOKUP(G58,Índices!$B$6:$F$500,3,FALSE)),1,VLOOKUP(G58,Índices!$B$6:$F$500,3,FALSE)) -> 174.7514058 | J58: 16635.64931 | K58: 18421.88862 | L58: 3219250.933 | Q58: 201720 | R58: 3 | S58: 10019 | T58: 18 | U58: 2907103.102 | V58: 1
B59: 1º Leilão de Energia Nova | C59: 2008-15 | D59: DISPONIBILIDADE | E59: Térmica | F59: 4984.197499 | G59: 43983 | H59: 287.4500496 | I59: =H59*IF(ISERROR(SEARCH("Nova regra",B59)),IF(ISERROR(SEARCH("Regra esp.",B59)),VLOOKUP(CAPA!$C$15,Índices!$B$6:$F$500,3,FALSE),VLOOKUP(DATE(YEAR(CAPA!$C$10),4,1),Índices!$B$6:$F$500,3,FALSE)),VLOOKUP(DATE(YEAR(CAPA!$C$10)-1,12,1),Índices!$B$6:$F$500,3,FALSE))/IF(ISERROR(VLOOKUP(G59,Índices!$B$6:$F$500,3,FALSE)),1,VLOOKUP(G59,Índices!$B$6:$F$500,3,FALSE)) -> 287.4500496 | J59: 4984.197499 | K59: 5519.37165 | L59: 1586543.654 | Q59: 200815 | R59: 2 | S59: 10001 | T59: 18 | U59: 1432707.818 | V59: 1
B60: 1º Leilão de Energia Nova | C60: 2008-15 | D60: DISPONIBILIDADE | E60: Biomassa com CVU | F60: 166.4056767 | G60: 43983 | H60: 262.2764537 | I60: =H60*IF(ISERROR(SEARCH("Nova regra",B60)),IF(ISERROR(SEARCH("Regra esp.",B60)),VLOOKUP(CAPA!$C$15,Índices!$B$6:$F$500,3,FALSE),VLOOKUP(DATE(YEAR(CAPA!$C$10),4,1),Índices!$B$6:$F$500,3,FALSE)),VLOOKUP(DATE(YEAR(CAPA!$C$10)-1,12,1),Índices!$B$6:$F$500,3,FALSE))/IF(ISERROR(VLOOKUP(G60,Índices!$B$6:$F$500,3,FALSE)),1,VLOOKUP(G60,Índices!$B$6:$F$500,3,FALSE)) -> 262.2764537 | J60: 166.4056767 | K60: 184.2733509 | L60: 48330.56098 | Q60: 200815 | R60: 2 | S60: 10001 | T60: 18 | U60: 43644.29077 | V60: 1
B61: 1º Leilão de Energia Nova | C61: 2009-15 | D61: DISPONIBILIDADE | E61: Térmica | F61: 18844.49338 | G61: 43983 | H61: 285.8403703 | I61: =H61*IF(ISERROR(SEARCH("Nova regra",B61)),IF(ISERROR(SEARCH("Regra esp.",B61)),VLOOKUP(CAPA!$C$15,Índices!$B$6:$F$500,3,FALSE),VLOOKUP(DATE(YEAR(CAPA!$C$10),4,1),Índices!$B$6:$F$500,3,FALSE)),VLOOKUP(DATE(YEAR(CAPA!$C$10)-1,12,1),Índices!$B$6:$F$500,3,FALSE))/IF(ISERROR(VLOOKUP(G61,Índices!$B$6:$F$500,3,FALSE)),1,VLOOKUP(G61,Índices!$B$6:$F$500,3,FALSE)) -> 285.8403703 | J61: 18844.49338 | K61: 20867.90552 | L61: 5964889.841 | Q61: 200915 | R61: 2 | S61: 10001 | T61: 18 | U61: 5386516.964 | V61: 1
B62: 1º Leilão de Energia Nova | C62: 2009-15 | D62: DISPONIBILIDADE | E62: Biomassa com CVU | F62: 1259.940164 | G62: 43983 | H62: 308.9838837 | I62: =H62*IF(ISERROR(SEARCH("Nova regra",B62)),IF(ISERROR(SEARCH("Regra esp.",B62)),VLOOKUP(CAPA!$C$15,Índices!$B$6:$F$500,3,FALSE),VLOOKUP(DATE(YEAR(CAPA!$C$10),4,1),Índices!$B$6:$F$500,3,FALSE)),VLOOKUP(DATE(YEAR(CAPA!$C$10)-1,12,1),Índices!$B$6:$F$500,3,FALSE))/IF(ISERROR(VLOOKUP(G62,Índices!$B$6:$F$500,3,FALSE)),1,VLOOKUP(G62,Índices!$B$6:$F$500,3,FALSE)) -> 308.9838837 | J62: 1259.940164 | K62: 1395.225215 | L62: 431102.1054 | Q62: 200915 | R62: 2 | S62: 10001 | T62: 18 | U62: 389301.2052 | V62: 1
B63: 1º Leilão de Energia Nova | C63: 2010-15 | D63: DISPONIBILIDADE | E63: Térmica | F63: 36523.73845 | G63: 43983 | H63: 276.5144657 | I63: =H63*IF(ISERROR(SEARCH("Nova regra",B63)),IF(ISERROR(SEARCH("Regra esp.",B63)),VLOOKUP(CAPA!$C$15,Índices!$B$6:$F$500,3,FALSE),VLOOKUP(DATE(YEAR(CAPA!$C$10),4,1),Índices!$B$6:$F$500,3,FALSE)),VLOOKUP(DATE(YEAR(CAPA!$C$10)-1,12,1),Índices!$B$6:$F$500,3,FALSE))/IF(ISERROR(VLOOKUP(G63,Índices!$B$6:$F$500,3,FALSE)),1,VLOOKUP(G63,Índices!$B$6:$F$500,3,FALSE)) -> 276.5144657 | J63: 36523.73845 | K63: 40445.44515 | L63: 11183750.66 | Q63: 201015 | R63: 2 | S63: 10001 | T63: 18 | U63: 10099342.02 | V63: 1
B64: 1º Leilão de Fontes Alternativas | C64: 2010-15 | D64: DISPONIBILIDADE | E64: Biomassa com CVU | F64: 4500.396701 | G64: 43983 | H64: 283.3965484 | I64: =H64*IF(ISERROR(SEARCH("Nova regra",B64)),IF(ISERROR(SEARCH("Regra esp.",B64)),VLOOKUP(CAPA!$C$15,Índices!$B$6:$F$500,3,FALSE),VLOOKUP(DATE(YEAR(CAPA!$C$10),4,1),Índices!$B$6:$F$500,3,FALSE)),VLOOKUP(DATE(YEAR(CAPA!$C$10)-1,12,1),Índices!$B$6:$F$500,3,FALSE))/IF(ISERROR(VLOOKUP(G64,Índices!$B$6:$F$500,3,FALSE)),1,VLOOKUP(G64,Índices!$B$6:$F$500,3,FALSE)) -> 283.3965484 | J64: 4500.396701 | K64: 4983.623136 | L64: 1412341.595 | Q64: 201015 | R64: 2 | S64: 30001 | T64: 18 | U64: 1275396.891 | V64: 1
B65: 20º Leilão de Energia Existente | C65: 2020-2 | D65: DISPONIBILIDADE | E65: Térmica | F65: 42439.22734 | G65: 43983 | H65: 285.3649465 | I65: =H65*IF(ISERROR(SEARCH("Nova regra",B65)),IF(ISERROR(SEARCH("Regra esp.",B65)),VLOOKUP(CAPA!$C$15,Índices!$B$6:$F$500,3,FALSE),VLOOKUP(DATE(YEAR(CAPA!$C$10),4,1),Índices!$B$6:$F$500,3,FALSE)),VLOOKUP(DATE(YEAR(CAPA!$C$10)-1,12,1),Índices!$B$6:$F$500,3,FALSE))/IF(ISERROR(VLOOKUP(G65,Índices!$B$6:$F$500,3,FALSE)),1,VLOOKUP(G65,Índices!$B$6:$F$500,3,FALSE)) -> 285.3649465 | J65: 42439.22734 | K65: 46996.10485 | L65: 13411040.95 | Q65: 202002 | R65: 2 | S65: 20020 | T65: 18 | U65: 12110667.84 | V65: 1
B66: 20º Leilão de Energia Nova | C66: 2019-20 | D66: DISPONIBILIDADE | E66: Eólica | F66: 55332.06852 | G66: 41944 | H66: 136.0048954 | I66: =H66*IF(ISERROR(SEARCH("Nova regra",B66)),IF(ISERROR(SEARCH("Regra esp.",B66)),VLOOKUP(CAPA!$C$15,Índices!$B$6:$F$500,3,FALSE),VLOOKUP(DATE(YEAR(CAPA!$C$10),4,1),Índices!$B$6:$F$500,3,FALSE)),VLOOKUP(DATE(YEAR(CAPA!$C$10)-1,12,1),Índices!$B$6:$F$500,3,FALSE))/IF(ISERROR(VLOOKUP(G66,Índices!$B$6:$F$500,3,FALSE)),1,VLOOKUP(G66,Índices!$B$6:$F$500,3,FALSE)) -> 179.6503712 | J66: 55332.06852 | K66: 61273.30437 | L66: 11007771.87 | Q66: 201920 | R66: 3 | S66: 10020 | T66: 18 | U66: 9940426.65 | V66: 1
B67: 20º Leilão de Energia Nova | C67: 2019-25 | D67: DISPONIBILIDADE | E67: Térmica | F67: 144207.2241 | G67: 43983 | H67: 296.3575475 | I67: =H67*IF(ISERROR(SEARCH("Nova regra",B67)),IF(ISERROR(SEARCH("Regra esp.",B67)),VLOOKUP(CAPA!$C$15,Índices!$B$6:$F$500,3,FALSE),VLOOKUP(DATE(YEAR(CAPA!$C$10),4,1),Índices!$B$6:$F$500,3,FALSE)),VLOOKUP(DATE(YEAR(CAPA!$C$10)-1,12,1),Índices!$B$6:$F$500,3,FALSE))/IF(ISERROR(VLOOKUP(G67,Índices!$B$6:$F$500,3,FALSE)),1,VLOOKUP(G67,Índices!$B$6:$F$500,3,FALSE)) -> 296.3575475 | J67: 144207.2241 | K67: 159691.3575 | L67: 47325739.06 | Q67: 201925 | R67: 2 | S67: 10020 | T67: 18 | U67: 42736899.27 | V67: 1
B68: 20º Leilão de Energia Nova | C68: 2019-25 | D68: DISPONIBILIDADE | E68: Biomassa com CVU | F68: 6225.03428 | G68: 43983 | H68: 312.5843396 | I68: =H68*IF(ISERROR(SEARCH("Nova regra",B68)),IF(ISERROR(SEARCH("Regra esp.",B68)),VLOOKUP(CAPA!$C$15,Índices!$B$6:$F$500,3,FALSE),VLOOKUP(DATE(YEAR(CAPA!$C$10),4,1),Índices!$B$6:$F$500,3,FALSE)),VLOOKUP(DATE(YEAR(CAPA!$C$10)-1,12,1),Índices!$B$6:$F$500,3,FALSE))/IF(ISERROR(VLOOKUP(G68,Índices!$B$6:$F$500,3,FALSE)),1,VLOOKUP(G68,Índices!$B$6:$F$500,3,FALSE)) -> 312.5843396 | J68: 6225.03428 | K68: 6893.442272 | L68: 2154782.1 | Q68: 201925 | R68: 2 | S68: 10020 | T68: 18 | U68: 1945848.229 | V68: 1
B69: 21º Leilão de Energia Nova | C69: 2020-25 | D69: DISPONIBILIDADE | E69: Térmica | F69: 87011.1086 | G69: 43983 | H69: 385.9414843 | I69: =H69*IF(ISERROR(SEARCH("Nova regra",B69)),IF(ISERROR(SEARCH("Regra esp.",B69)),VLOOKUP(CAPA!$C$15,Índices!$B$6:$F$500,3,FALSE),VLOOKUP(DATE(YEAR(CAPA!$C$10),4,1),Índices!$B$6:$F$500,3,FALSE)),VLOOKUP(DATE(YEAR(CAPA!$C$10)-1,12,1),Índices!$B$6:$F$500,3,FALSE))/IF(ISERROR(VLOOKUP(G69,Índices!$B$6:$F$500,3,FALSE)),1,VLOOKUP(G69,Índices!$B$6:$F$500,3,FALSE)) -> 385.9414843 | J69: 87011.1086 | K69: 96353.8556 | L69: 37186950.05 | Q69: 202025 | R69: 2 | S69: 10021 | T69: 18 | U69: 33581196.41 | V69: 1
B70: 21º Leilão de Energia Nova | C70: 2020-25 | D70: DISPONIBILIDADE | E70: Biomassa com CVU | F70: 3723.306238 | G70: 43983 | H70: 265.1357286 | I70: =H70*IF(ISERROR(SEARCH("Nova regra",B70)),IF(ISERROR(SEARCH("Regra esp.",B70)),VLOOKUP(CAPA!$C$15,Índices!$B$6:$F$500,3,FALSE),VLOOKUP(DATE(YEAR(CAPA!$C$10),4,1),Índices!$B$6:$F$500,3,FALSE)),VLOOKUP(DATE(YEAR(CAPA!$C$10)-1,12,1),Índices!$B$6:$F$500,3,FALSE))/IF(ISERROR(VLOOKUP(G70,Índices!$B$6:$F$500,3,FALSE)),1,VLOOKUP(G70,Índices!$B$6:$F$500,3,FALSE)) -> 265.1357286 | J70: 3723.306238 | K70: 4123.093217 | L70: 1093179.324 | Q70: 202025 | R70: 2 | S70: 10021 | T70: 18 | U70: 987181.5125 | V70: 1
B71: 22º Leilão de Energia Nova | C71: 2018-20 | D71: DISPONIBILIDADE | E71: Eólica | F71: 22887.41634 | G71: 42217 | H71: 181.1389317 | I71: =H71*IF(ISERROR(SEARCH("Nova regra",B71)),IF(ISERROR(SEARCH("Regra esp.",B71)),VLOOKUP(CAPA!$C$15,Índices!$B$6:$F$500,3,FALSE),VLOOKUP(DATE(YEAR(CAPA!$C$10),4,1),Índices!$B$6:$F$500,3,FALSE)),VLOOKUP(DATE(YEAR(CAPA!$C$10)-1,12,1),Índices!$B$6:$F$500,3,FALSE))/IF(ISERROR(VLOOKUP(G71,Índices!$B$6:$F$500,3,FALSE)),1,VLOOKUP(G71,Índices!$B$6:$F$500,3,FALSE)) -> 221.7520321 | J71: 22887.41634 | K71: 25344.93405 | L71: 5620290.628 | Q71: 201820 | R71: 3 | S71: 10022 | T71: 18 | U71: 5075331.082 | V71: 1
B72: 22º Leilão de Energia Nova | C72: 2018-20 | D72: DISPONIBILIDADE | E72: Térmica | F72: 2184.796664 | G72: 43983 | H72: 316.4820618 | I72: =H72*IF(ISERROR(SEARCH("Nova regra",B72)),IF(ISERROR(SEARCH("Regra esp.",B72)),VLOOKUP(CAPA!$C$15,Índices!$B$6:$F$500,3,FALSE),VLOOKUP(DATE(YEAR(CAPA!$C$10),4,1),Índices!$B$6:$F$500,3,FALSE)),VLOOKUP(DATE(YEAR(CAPA!$C$10)-1,12,1),Índices!$B$6:$F$500,3,FALSE))/IF(ISERROR(VLOOKUP(G72,Índices!$B$6:$F$500,3,FALSE)),1,VLOOKUP(G72,Índices!$B$6:$F$500,3,FALSE)) -> 316.4820618 | J72: 2184.796664 | K72: 2419.387428 | L72: 765692.7217 | Q72: 201820 | R72: 2 | S72: 10022 | T72: 18 | U72: 691448.9529 | V72: 1
B73: 22º Leilão de Energia Nova | C73: 2018-20 | D73: DISPONIBILIDADE | E73: Biomassa com CVU | F73: 596.73228 | G73: 43983 | H73: 273.7721778 | I73: =H73*IF(ISERROR(SEARCH("Nova regra",B73)),IF(ISERROR(SEARCH("Regra esp.",B73)),VLOOKUP(CAPA!$C$15,Índices!$B$6:$F$500,3,FALSE),VLOOKUP(DATE(YEAR(CAPA!$C$10),4,1),Índices!$B$6:$F$500,3,FALSE)),VLOOKUP(DATE(YEAR(CAPA!$C$10)-1,12,1),Índices!$B$6:$F$500,3,FALSE))/IF(ISERROR(VLOOKUP(G73,Índices!$B$6:$F$500,3,FALSE)),1,VLOOKUP(G73,Índices!$B$6:$F$500,3,FALSE)) -> 273.7721778 | J73: 596.73228 | K73: 660.8059231 | L73: 180910.2767 | Q73: 201820 | R73: 2 | S73: 10022 | T73: 18 | U73: 163368.6959 | V73: 1
B74: 2º Leilão de Energia Nova | C74: 2009-15 | D74: DISPONIBILIDADE | E74: Térmica | F74: 2146.230019 | G74: 38869 | H74: 134.39 | I74: =H74*IF(ISERROR(SEARCH("Nova regra",B74)),IF(ISERROR(SEARCH("Regra esp.",B74)),VLOOKUP(CAPA!$C$15,Índices!$B$6:$F$500,3,FALSE),VLOOKUP(DATE(YEAR(CAPA!$C$10),4,1),Índices!$B$6:$F$500,3,FALSE)),VLOOKUP(DATE(YEAR(CAPA!$C$10)-1,12,1),Índices!$B$6:$F$500,3,FALSE))/IF(ISERROR(VLOOKUP(G74,Índices!$B$6:$F$500,3,FALSE)),1,VLOOKUP(G74,Índices!$B$6:$F$500,3,FALSE)) -> 277.7813549 | J74: 2146.230019 | K74: 2376.679721 | L74: 660197.3132 | Q74: 200915 | R74: 2 | S74: 10002 | T74: 18 | U74: 596182.6827 | V74: 1
B75: 2º Leilão de Energia Nova | C75: 2009-15 | D75: DISPONIBILIDADE | E75: Térmica | F75: 25228.16724 | G75: 43983 | H75: 307.5328127 | I75: =H75*IF(ISERROR(SEARCH("Nova regra",B75)),IF(ISERROR(SEARCH("Regra esp.",B75)),VLOOKUP(CAPA!$C$15,Índices!$B$6:$F$500,3,FALSE),VLOOKUP(DATE(YEAR(CAPA!$C$10),4,1),Índices!$B$6:$F$500,3,FALSE)),VLOOKUP(DATE(YEAR(CAPA!$C$10)-1,12,1),Índices!$B$6:$F$500,3,FALSE))/IF(ISERROR(VLOOKUP(G75,Índices!$B$6:$F$500,3,FALSE)),1,VLOOKUP(G75,Índices!$B$6:$F$500,3,FALSE)) -> 307.5328127 | J75: 25228.16724 | K75: 27937.02117 | L75: 8591550.698 | Q75: 200915 | R75: 2 | S75: 10002 | T75: 18 | U75: 7758489.229 | V75: 1
B76: 2º Leilão de Energia Nova | C76: 2009-15 | D76: DISPONIBILIDADE | E76: Biomassa com CVU | F76: 3527.808159 | G76: 43983 | H76: 280.1631648 | I76: =H76*IF(ISERROR(SEARCH("Nova regra",B76)),IF(ISERROR(SEARCH("Regra esp.",B76)),VLOOKUP(CAPA!$C$15,Índices!$B$6:$F$500,3,FALSE),VLOOKUP(DATE(YEAR(CAPA!$C$10),4,1),Índices!$B$6:$F$500,3,FALSE)),VLOOKUP(DATE(YEAR(CAPA!$C$10)-1,12,1),Índices!$B$6:$F$500,3,FALSE))/IF(ISERROR(VLOOKUP(G76,Índices!$B$6:$F$500,3,FALSE)),1,VLOOKUP(G76,Índices!$B$6:$F$500,3,FALSE)) -> 280.1631648 | J76: 3527.808159 | K76: 3906.60369 | L76: 1094486.453 | Q76: 200915 | R76: 2 | S76: 10002 | T76: 18 | U76: 988361.8984 | V76: 1
B77: 3º Leilão de Energia Nova | C77: 2011-15 | D77: DISPONIBILIDADE | E77: Térmica | F77: 14091.35185 | G77: 38991 | H77: 136.88 | I77: =H77*IF(ISERROR(SEARCH("Nova regra",B77)),IF(ISERROR(SEARCH("Regra esp.",B77)),VLOOKUP(CAPA!$C$15,Índices!$B$6:$F$500,3,FALSE),VLOOKUP(DATE(YEAR(CAPA!$C$10),4,1),Índices!$B$6:$F$500,3,FALSE)),VLOOKUP(DATE(YEAR(CAPA!$C$10)-1,12,1),Índices!$B$6:$F$500,3,FALSE))/IF(ISERROR(VLOOKUP(G77,Índices!$B$6:$F$500,3,FALSE)),1,VLOOKUP(G77,Índices!$B$6:$F$500,3,FALSE)) -> 280.7329901 | J77: 14091.35185 | K77: 15604.39929 | L77: 4380669.671 | Q77: 201115 | R77: 2 | S77: 10003 | T77: 18 | U77: 3955907.339 | V77: 1
B78: 3º Leilão de Energia Nova | C78: 2011-15 | D78: DISPONIBILIDADE | E78: Térmica | F78: 19305.15377 | G78: 43983 | H78: 302.6445893 | I78: =H78*IF(ISERROR(SEARCH("Nova regra",B78)),IF(ISERROR(SEARCH("Regra esp.",B78)),VLOOKUP(CAPA!$C$15,Índices!$B$6:$F$500,3,FALSE),VLOOKUP(DATE(YEAR(CAPA!$C$10),4,1),Índices!$B$6:$F$500,3,FALSE)),VLOOKUP(DATE(YEAR(CAPA!$C$10)-1,12,1),Índices!$B$6:$F$500,3,FALSE))/IF(ISERROR(VLOOKUP(G78,Índices!$B$6:$F$500,3,FALSE)),1,VLOOKUP(G78,Índices!$B$6:$F$500,3,FALSE)) -> 302.6445893 | J78: 19305.15377 | K78: 21378.02895 | L78: 6469944.791 | Q78: 201115 | R78: 2 | S78: 10003 | T78: 18 | U78: 5842600.334 | V78: 1
B79: 3º Leilão de Energia Nova | C79: 2011-15 | D79: DISPONIBILIDADE | E79: Biomassa com CVU | F79: 4297.857058 | G79: 43983 | H79: 289.1184314 | I79: =H79*IF(ISERROR(SEARCH("Nova regra",B79)),IF(ISERROR(SEARCH("Regra esp.",B79)),VLOOKUP(CAPA!$C$15,Índices!$B$6:$F$500,3,FALSE),VLOOKUP(DATE(YEAR(CAPA!$C$10),4,1),Índices!$B$6:$F$500,3,FALSE)),VLOOKUP(DATE(YEAR(CAPA!$C$10)-1,12,1),Índices!$B$6:$F$500,3,FALSE))/IF(ISERROR(VLOOKUP(G79,Índices!$B$6:$F$500,3,FALSE)),1,VLOOKUP(G79,Índices!$B$6:$F$500,3,FALSE)) -> 289.1184314 | J79: 4297.857058 | K79: 4759.335963 | L79: 1376011.748 | Q79: 201115 | R79: 2 | S79: 10003 | T79: 18 | U79: 1242589.691 | V79: 1
B80: 3º Leilão de Fontes Alternativas | C80: 2016-20 | D80: DISPONIBILIDADE | E80: Biomassa com CVU | F80: 2999.451436 | G80: 42095 | H80: 210.2167862 | I80: =H80*IF(ISERROR(SEARCH("Nova regra",B80)),IF(ISERROR(SEARCH("Regra esp.",B80)),VLOOKUP(CAPA!$C$15,Índices!$B$6:$F$500,3,FALSE),VLOOKUP(DATE(YEAR(CAPA!$C$10),4,1),Índices!$B$6:$F$500,3,FALSE)),VLOOKUP(DATE(YEAR(CAPA!$C$10)-1,12,1),Índices!$B$6:$F$500,3,FALSE))/IF(ISERROR(VLOOKUP(G80,Índices!$B$6:$F$500,3,FALSE)),1,VLOOKUP(G80,Índices!$B$6:$F$500,3,FALSE)) -> 263.5000715 | J80: 2999.451436 | K80: 3321.515093 | L80: 875219.4647 | Q80: 201620 | R80: 2 | S80: 30003 | T80: 18 | U80: 790355.6679 | V80: 1
B81: 3º Leilão de Fontes Alternativas | C81: 2016-20 | D81: DISPONIBILIDADE | E81: Biomassa com CVU | F81: 272.6909014 | G81: 43983 | H81: 276.1806155 | I81: =H81*IF(ISERROR(SEARCH("Nova regra",B81)),IF(ISERROR(SEARCH("Regra esp.",B81)),VLOOKUP(CAPA!$C$15,Índices!$B$6:$F$500,3,FALSE),VLOOKUP(DATE(YEAR(CAPA!$C$10),4,1),Índices!$B$6:$F$500,3,FALSE)),VLOOKUP(DATE(YEAR(CAPA!$C$10)-1,12,1),Índices!$B$6:$F$500,3,FALSE))/IF(ISERROR(VLOOKUP(G81,Índices!$B$6:$F$500,3,FALSE)),1,VLOOKUP(G81,Índices!$B$6:$F$500,3,FALSE)) -> 276.1806155 | J81: 272.6909014 | K81: 301.9708651 | L81: 83398.49937 | Q81: 201620 | R81: 2 | S81: 30003 | T81: 18 | U81: 75311.94097 | V81: 1
B82: 3º Leilão de Fontes Alternativas | C82: 2017-20 | D82: DISPONIBILIDADE | E82: Eólica | F82: 1520.969688 | G82: 42095 | H82: 177.4699326 | I82: =H82*IF(ISERROR(SEARCH("Nova regra",B82)),IF(ISERROR(SEARCH("Regra esp.",B82)),VLOOKUP(CAPA!$C$15,Índices!$B$6:$F$500,3,FALSE),VLOOKUP(DATE(YEAR(CAPA!$C$10),4,1),Índices!$B$6:$F$500,3,FALSE)),VLOOKUP(DATE(YEAR(CAPA!$C$10)-1,12,1),Índices!$B$6:$F$500,3,FALSE))/IF(ISERROR(VLOOKUP(G82,Índices!$B$6:$F$500,3,FALSE)),1,VLOOKUP(G82,Índices!$B$6:$F$500,3,FALSE)) -> 222.4529296 | J82: 1520.969688 | K82: 1684.282571 | L82: 374673.5922 | Q82: 201720 | R82: 3 | S82: 30003 | T82: 18 | U82: 338344.163 | V82: 1
B83: 4º Leilão de Energia Nova | C83: 2010-15 | D83: DISPONIBILIDADE | E83: Térmica | F83: 50601.27103 | G83: 43983 | H83: 309.2630143 | I83: =H83*IF(ISERROR(SEARCH("Nova regra",B83)),IF(ISERROR(SEARCH("Regra esp.",B83)),VLOOKUP(CAPA!$C$15,Índices!$B$6:$F$500,3,FALSE),VLOOKUP(DATE(YEAR(CAPA!$C$10),4,1),Índices!$B$6:$F$500,3,FALSE)),VLOOKUP(DATE(YEAR(CAPA!$C$10)-1,12,1),Índices!$B$6:$F$500,3,FALSE))/IF(ISERROR(VLOOKUP(G83,Índices!$B$6:$F$500,3,FALSE)),1,VLOOKUP(G83,Índices!$B$6:$F$500,3,FALSE)) -> 309.2630143 | J83: 50601.27103 | K83: 56034.54134 | L83: 17329411.16 | Q83: 201015 | R83: 2 | S83: 10004 | T83: 18 | U83: 15649101.61 | V83: 1
B84: 5º Leilão de Energia Nova | C84: 2012-15 | D84: DISPONIBILIDADE | E84: Térmica | F84: 71744.99702 | G84: 43983 | H84: 310.9938416 | I84: =H84*IF(ISERROR(SEARCH("Nova regra",B84)),IF(ISERROR(SEARCH("Regra esp.",B84)),VLOOKUP(CAPA!$C$15,Índices!$B$6:$F$500,3,FALSE),VLOOKUP(DATE(YEAR(CAPA!$C$10),4,1),Índices!$B$6:$F$500,3,FALSE)),VLOOKUP(DATE(YEAR(CAPA!$C$10)-1,12,1),Índices!$B$6:$F$500,3,FALSE))/IF(ISERROR(VLOOKUP(G84,Índices!$B$6:$F$500,3,FALSE)),1,VLOOKUP(G84,Índices!$B$6:$F$500,3,FALSE)) -> 310.9938416 | J84: 71744.99702 | K84: 79448.55771 | L84: 24708012.18 | Q84: 201215 | R84: 2 | S84: 10005 | T84: 18 | U84: 22312252.24 | V84: 1
B85: 6º Leilão de Energia Nova | C85: 2011-15 | D85: DISPONIBILIDADE | E85: Térmica | F85: 8677.506504 | G85: 43983 | H85: 287.6350608 | I85: =H85*IF(ISERROR(SEARCH("Nova regra",B85)),IF(ISERROR(SEARCH("Regra esp.",B85)),VLOOKUP(CAPA!$C$15,Índices!$B$6:$F$500,3,FALSE),VLOOKUP(DATE(YEAR(CAPA!$C$10),4,1),Índices!$B$6:$F$500,3,FALSE)),VLOOKUP(DATE(YEAR(CAPA!$C$10)-1,12,1),Índices!$B$6:$F$500,3,FALSE))/IF(ISERROR(VLOOKUP(G85,Índices!$B$6:$F$500,3,FALSE)),1,VLOOKUP(G85,Índices!$B$6:$F$500,3,FALSE)) -> 287.6350608 | J85: 8677.506504 | K85: 9609.246706 | L85: 2763956.26 | Q85: 201115 | R85: 2 | S85: 10006 | T85: 18 | U85: 2495955.11 | V85: 1
B86: 7º. Leilao de Energia Nova | C86: 2013-15 | D86: DISPONIBILIDADE | E86: Térmica | F86: 10270.17281 | G86: 43983 | H86: 324.3701332 | I86: =H86*IF(ISERROR(SEARCH("Nova regra",B86)),IF(ISERROR(SEARCH("Regra esp.",B86)),VLOOKUP(CAPA!$C$15,Índices!$B$6:$F$500,3,FALSE),VLOOKUP(DATE(YEAR(CAPA!$C$10),4,1),Índices!$B$6:$F$500,3,FALSE)),VLOOKUP(DATE(YEAR(CAPA!$C$10)-1,12,1),Índices!$B$6:$F$500,3,FALSE))/IF(ISERROR(VLOOKUP(G86,Índices!$B$6:$F$500,3,FALSE)),1,VLOOKUP(G86,Índices!$B$6:$F$500,3,FALSE)) -> 324.3701332 | J86: 10270.17281 | K86: 11372.92426 | L86: 3689036.959 | Q86: 201315 | R86: 2 | S86: 10007 | T86: 18 | U86: 3331337.324 | V86: 1
B87: 12º Leilão de Energia Nova/Nova regra | C87: 2014-30 | D87: QUANTIDADE | E87: Hidroelétrica | F87: 5777.202025 | G87: 40756 | H87: 102.19 | I87: =H87*IF(ISERROR(SEARCH("Nova regra",B87)),IF(ISERROR(SEARCH("Regra esp.",B87)),VLOOKUP(CAPA!$C$15,Índices!$B$6:$F$500,3,FALSE),VLOOKUP(DATE(YEAR(CAPA!$C$10),4,1),Índices!$B$6:$F$500,3,FALSE)),VLOOKUP(DATE(YEAR(CAPA!$C$10)-1,12,1),Índices!$B$6:$F$500,3,FALSE))/IF(ISERROR(VLOOKUP(G87,Índices!$B$6:$F$500,3,FALSE)),1,VLOOKUP(G87,Índices!$B$6:$F$500,3,FALSE)) -> 162.9158768 | J87: 5777.202025 | K87: 6397.524392 | L87: 1042258.296 | Q87: 201430 | R87: 1 | S87: 10012 | T87: 1 | U87: 941197.9335 | V87: 1
B88: 15º Leilão de Energia Nova/Nova regra | C88: 2017-30 | D88: QUANTIDADE | E88: Hidroelétrica | F88: 12248.90618 | G88: 41244 | H88: 93.66286189 | I88: =H88*IF(ISERROR(SEARCH("Nova regra",B88)),IF(ISERROR(SEARCH("Regra esp.",B88)),VLOOKUP(CAPA!$C$15,Índices!$B$6:$F$500,3,FALSE),VLOOKUP(DATE(YEAR(CAPA!$C$10),4,1),Índices!$B$6:$F$500,3,FALSE)),VLOOKUP(DATE(YEAR(CAPA!$C$10)-1,12,1),Índices!$B$6:$F$500,3,FALSE))/IF(ISERROR(VLOOKUP(G88,Índices!$B$6:$F$500,3,FALSE)),1,VLOOKUP(G88,Índices!$B$6:$F$500,3,FALSE)) -> 138.3248783 | J88: 12248.90618 | K88: 13564.12251 | L88: 1876255.596 | Q88: 201730 | R88: 1 | S88: 10015 | T88: 1 | U88: 1694328.456 | V88: 1
B89: 16º Leilão de Energia Nova/Nova regra | C89: 2018-30 | D89: QUANTIDADE | E89: Hidroelétrica | F89: 27438.67627 | G89: 41487 | H89: 110.412795 | I89: =H89*IF(ISERROR(SEARCH("Nova regra",B89)),IF(ISERROR(SEARCH("Regra esp.",B89)),VLOOKUP(CAPA!$C$15,Índices!$B$6:$F$500,3,FALSE),VLOOKUP(DATE(YEAR(CAPA!$C$10),4,1),Índices!$B$6:$F$500,3,FALSE)),VLOOKUP(DATE(YEAR(CAPA!$C$10)-1,12,1),Índices!$B$6:$F$500,3,FALSE))/IF(ISERROR(VLOOKUP(G89,Índices!$B$6:$F$500,3,FALSE)),1,VLOOKUP(G89,Índices!$B$6:$F$500,3,FALSE)) -> 157.6574223 | J89: 27438.67627 | K89: 30384.88182 | L89: 4790402.144 | Q89: 201830 | R89: 1 | S89: 10016 | T89: 1 | U89: 4325910.972 | V89: 1
B90: 16º Leilão de Energia Nova/Nova regra | C90: 2018-30 | D90: QUANTIDADE | E90: Pq Centrais Hidrelétricas | F90: 7395.323919 | G90: 41487 | H90: 126.3840465 | I90: =H90*IF(ISERROR(SEARCH("Nova regra",B90)),IF(ISERROR(SEARCH("Regra esp.",B90)),VLOOKUP(CAPA!$C$15,Índices!$B$6:$F$500,3,FALSE),VLOOKUP(DATE(YEAR(CAPA!$C$10),4,1),Índices!$B$6:$F$500,3,FALSE)),VLOOKUP(DATE(YEAR(CAPA!$C$10)-1,12,1),Índices!$B$6:$F$500,3,FALSE))/IF(ISERROR(VLOOKUP(G90,Índices!$B$6:$F$500,3,FALSE)),1,VLOOKUP(G90,Índices!$B$6:$F$500,3,FALSE)) -> 180.4626266 | J90: 7395.323919 | K90: 8189.390808 | L90: 1477878.976 | Q90: 201830 | R90: 1 | S90: 10016 | T90: 1 | U90: 1334579.579 | V90: 1
B91: 18º Leilão de Energia Existente/Nova regra | C91: 2019-2 | D91: QUANTIDADE | E91: Hidroelétrica | F91: 22114.8953 | G91: 43070 | H91: 174.5097929 | I91: =H91*IF(ISERROR(SEARCH("Nova regra",B91)),IF(ISERROR(SEARCH("Regra esp.",B91)),VLOOKUP(CAPA!$C$15,Índices!$B$6:$F$500,3,FALSE),VLOOKUP(DATE(YEAR(CAPA!$C$10),4,1),Índices!$B$6:$F$500,3,FALSE)),VLOOKUP(DATE(YEAR(CAPA!$C$10)-1,12,1),Índices!$B$6:$F$500,3,FALSE))/IF(ISERROR(VLOOKUP(G91,Índices!$B$6:$F$500,3,FALSE)),1,VLOOKUP(G91,Índices!$B$6:$F$500,3,FALSE)) -> 188.8423227 | J91: 22114.8953 | K91: 24489.46419 | L91: 4624647.299 | Q91: 201902 | R91: 1 | S91: 20018 | T91: 1 | U91: 4176228.194 | V91: 1
B92: 18º Leilão de Energia Nova/Nova regra | C92: 2018-30 | D92: QUANTIDADE | E92: Hidroelétrica | F92: 36020.36703 | G92: 41609 | H92: 83.7 | I92: =H92*IF(ISERROR(SEARCH("Nova regra",B92)),IF(ISERROR(SEARCH("Regra esp.",B92)),VLOOKUP(CAPA!$C$15,Índices!$B$6:$F$500,3,FALSE),VLOOKUP(DATE(YEAR(CAPA!$C$10),4,1),Índices!$B$6:$F$500,3,FALSE)),VLOOKUP(DATE(YEAR(CAPA!$C$10)-1,12,1),Índices!$B$6:$F$500,3,FALSE))/IF(ISERROR(VLOOKUP(G92,Índices!$B$6:$F$500,3,FALSE)),1,VLOOKUP(G92,Índices!$B$6:$F$500,3,FALSE)) -> 116.7128197 | J92: 36020.36703 | K92: 39888.02464 | L92: 4655443.826 | Q92: 201830 | R92: 1 | S92: 10018 | T92: 1 | U92: 4204038.601 | V92: 1
B93: 18º Leilão de Energia Nova/Nova regra | C93: 2018-30 | D93: QUANTIDADE | E93: Pq Centrais Hidrelétricas | F93: 5872.743175 | G93: 41609 | H93: 135.6001503 | I93: =H93*IF(ISERROR(SEARCH("Nova regra",B93)),IF(ISERROR(SEARCH("Regra esp.",B93)),VLOOKUP(CAPA!$C$15,Índices!$B$6:$F$500,3,FALSE),VLOOKUP(DATE(YEAR(CAPA!$C$10),4,1),Índices!$B$6:$F$500,3,FALSE)),VLOOKUP(DATE(YEAR(CAPA!$C$10)-1,12,1),Índices!$B$6:$F$500,3,FALSE))/IF(ISERROR(VLOOKUP(G93,Índices!$B$6:$F$500,3,FALSE)),1,VLOOKUP(G93,Índices!$B$6:$F$500,3,FALSE)) -> 189.0833439 | J93: 5872.743175 | K93: 6503.324195 | L93: 1229670.285 | Q93: 201830 | R93: 1 | S93: 10018 | T93: 1 | U93: 1110437.917 | V93: 1
B94: 19º Leilão de Energia Nova/Nova regra | C94: 2017-30 | D94: QUANTIDADE | E94: Hidroelétrica | F94: 9472.673733 | G94: 41791 | H94: 121.22 | I94: =H94*IF(ISERROR(SEARCH("Nova regra",B94)),IF(ISERROR(SEARCH("Regra esp.",B94)),VLOOKUP(CAPA!$C$15,Índices!$B$6:$F$500,3,FALSE),VLOOKUP(DATE(YEAR(CAPA!$C$10),4,1),Índices!$B$6:$F$500,3,FALSE)),VLOOKUP(DATE(YEAR(CAPA!$C$10)-1,12,1),Índices!$B$6:$F$500,3,FALSE))/IF(ISERROR(VLOOKUP(G94,Índices!$B$6:$F$500,3,FALSE)),1,VLOOKUP(G94,Índices!$B$6:$F$500,3,FALSE)) -> 162.9278848 | J94: 9472.673733 | K94: 10489.79437 | L94: 1709080.009 | Q94: 201730 | R94: 1 | S94: 10019 | T94: 1 | U94: 1543362.695 | V94: 1
B95: 1º Leilão de Energia Nova | C95: 2008-30 | D95: QUANTIDADE | E95: Hidroelétrica | F95: 771.8891185 | G95: 38687 | H95: 106.9391496 | I95: =H95*IF(ISERROR(SEARCH("Nova regra",B95)),IF(ISERROR(SEARCH("Regra esp.",B95)),VLOOKUP(CAPA!$C$15,Índices!$B$6:$F$500,3,FALSE),VLOOKUP(DATE(YEAR(CAPA!$C$10),4,1),Índices!$B$6:$F$500,3,FALSE)),VLOOKUP(DATE(YEAR(CAPA!$C$10)-1,12,1),Índices!$B$6:$F$500,3,FALSE))/IF(ISERROR(VLOOKUP(G95,Índices!$B$6:$F$500,3,FALSE)),1,VLOOKUP(G95,Índices!$B$6:$F$500,3,FALSE)) -> 224.4402367 | J95: 771.8891185 | K95: 854.7700846 | L95: 191844.8001 | Q95: 200830 | R95: 1 | S95: 10001 | T95: 1 | U95: 173242.9765 | V95: 1
B96: 1º Leilão de Energia Nova | C96: 2009-30 | D96: QUANTIDADE | E96: Hidroelétrica | F96: 1585.051198 | G96: 38687 | H96: 114.2426681 | I96: =H96*IF(ISERROR(SEARCH("Nova regra",B96)),IF(ISERROR(SEARCH("Regra esp.",B96)),VLOOKUP(CAPA!$C$15,Índices!$B$6:$F$500,3,FALSE),VLOOKUP(DATE(YEAR(CAPA!$C$10),4,1),Índices!$B$6:$F$500,3,FALSE)),VLOOKUP(DATE(YEAR(CAPA!$C$10)-1,12,1),Índices!$B$6:$F$500,3,FALSE))/IF(ISERROR(VLOOKUP(G96,Índices!$B$6:$F$500,3,FALSE)),1,VLOOKUP(G96,Índices!$B$6:$F$500,3,FALSE)) -> 239.7686119 | J96: 1585.051198 | K96: 1755.244781 | L96: 420852.6047 | Q96: 200930 | R96: 1 | S96: 10001 | T96: 1 | U96: 380045.5255 | V96: 1
B97: 1º Leilão de Energia Nova | C97: 2010-30 | D97: QUANTIDADE | E97: Hidroelétrica | F97: 39090.02002 | G97: 38687 | H97: 115.0906422 | I97: =H97*IF(ISERROR(SEARCH("Nova regra",B97)),IF(ISERROR(SEARCH("Regra esp.",B97)),VLOOKUP(CAPA!$C$15,Índices!$B$6:$F$500,3,FALSE),VLOOKUP(DATE(YEAR(CAPA!$C$10),4,1),Índices!$B$6:$F$500,3,FALSE)),VLOOKUP(DATE(YEAR(CAPA!$C$10)-1,12,1),Índices!$B$6:$F$500,3,FALSE))/IF(ISERROR(VLOOKUP(G97,Índices!$B$6:$F$500,3,FALSE)),1,VLOOKUP(G97,Índices!$B$6:$F$500,3,FALSE)) -> 241.548311 | J97: 39090.02002 | K97: 43287.27912 | L97: 10455969.16 | Q97: 201030 | R97: 1 | S97: 10001 | T97: 1 | U97: 9442128.314 | V97: 1
B98: 1º Leilão de Energia Nova | C98: 2010-30 | D98: QUANTIDADE | E98: Pq Centrais Hidrelétricas | F98: 1283.142273 | G98: 38687 | H98: 99.95 | I98: =H98*IF(ISERROR(SEARCH("Nova regra",B98)),IF(ISERROR(SEARCH("Regra esp.",B98)),VLOOKUP(CAPA!$C$15,Índices!$B$6:$F$500,3,FALSE),VLOOKUP(DATE(YEAR(CAPA!$C$10),4,1),Índices!$B$6:$F$500,3,FALSE)),VLOOKUP(DATE(YEAR(CAPA!$C$10)-1,12,1),Índices!$B$6:$F$500,3,FALSE))/IF(ISERROR(VLOOKUP(G98,Índices!$B$6:$F$500,3,FALSE)),1,VLOOKUP(G98,Índices!$B$6:$F$500,3,FALSE)) -> 209.771648 | J98: 1283.142273 | K98: 1420.91863 | L98: 298068.4428 | Q98: 201030 | R98: 1 | S98: 10001 | T98: 1 | U98: 269166.8692 | V98: 1
B99: 1º Leilão de Fontes Alternativas | C99: 2010-30 | D99: QUANTIDADE | E99: Pq Centrais Hidrelétricas | F99: 1934.751164 | G99: 39234 | H99: 134.9923913 | I99: =H99*IF(ISERROR(SEARCH("Nova regra",B99)),IF(ISERROR(SEARCH("Regra esp.",B99)),VLOOKUP(CAPA!$C$15,Índices!$B$6:$F$500,3,FALSE),VLOOKUP(DATE(YEAR(CAPA!$C$10),4,1),Índices!$B$6:$F$500,3,FALSE)),VLOOKUP(DATE(YEAR(CAPA!$C$10)-1,12,1),Índices!$B$6:$F$500,3,FALSE))/IF(ISERROR(VLOOKUP(G99,Índices!$B$6:$F$500,3,FALSE)),1,VLOOKUP(G99,Índices!$B$6:$F$500,3,FALSE)) -> 269.097316 | J99: 1934.751164 | K99: 2142.493496 | L99: 576539.2494 | Q99: 201030 | R99: 1 | S99: 30001 | T99: 1 | U99: 520636.3454 | V99: 1
B100: 1º Leilão de Projetos Estruturantes(UHE S Antonio) | C100: 2012-30 | D100: QUANTIDADE | E100: Hidroelétrica | F100: 60341.58679 | G100: 39417 | H100: 79.03 | I100: =H100*IF(ISERROR(SEARCH("Nova regra",B100)),IF(ISERROR(SEARCH("Regra esp.",B100)),VLOOKUP(CAPA!$C$15,Índices!$B$6:$F$500,3,FALSE),VLOOKUP(DATE(YEAR(CAPA!$C$10),4,1),Índices!$B$6:$F$500,3,FALSE)),VLOOKUP(DATE(YEAR(CAPA!$C$10)-1,12,1),Índices!$B$6:$F$500,3,FALSE))/IF(ISERROR(VLOOKUP(G100,Índices!$B$6:$F$500,3,FALSE)),1,VLOOKUP(G100,Índices!$B$6:$F$500,3,FALSE)) -> 153.95088 | J100: 60341.58679 | K100: 66820.71558 | L100: 10287107.97 | Q100: 201230 | R100: 1 | S100: 50001 | T100: 1 | U100: 9289640.39 | V100: 1
B101: 20º Leilão de Energia Existente/Nova regra | C101: 2020-2 | D101: QUANTIDADE | E101: Hidroelétrica | F101: 631.580448 | G101: 43435 | H101: 160.6460353 | I101: =H101*IF(ISERROR(SEARCH("Nova regra",B101)),IF(ISERROR(SEARCH("Regra esp.",B101)),VLOOKUP(CAPA!$C$15,Índices!$B$6:$F$500,3,FALSE),VLOOKUP(DATE(YEAR(CAPA!$C$10),4,1),Índices!$B$6:$F$500,3,FALSE)),VLOOKUP(DATE(YEAR(CAPA!$C$10)-1,12,1),Índices!$B$6:$F$500,3,FALSE))/IF(ISERROR(VLOOKUP(G101,Índices!$B$6:$F$500,3,FALSE)),1,VLOOKUP(G101,Índices!$B$6:$F$500,3,FALSE)) -> 167.5636972 | J101: 631.580448 | K101: 699.3958848 | L101: 117193.3602 | Q101: 202002 | R101: 1 | S101: 20020 | T101: 1 | U101: 105829.9549 | V101: 1
B102: 20º Leilão de Energia Nova/Nova regra | C102: 2019-30 | D102: QUANTIDADE | E102: Pq Centrais Hidrelétricas | F102: 1199.682101 | G102: 41944 | H102: 160.9 | I102: =H102*IF(ISERROR(SEARCH("Nova regra",B102)),IF(ISERROR(SEARCH("Regra esp.",B102)),VLOOKUP(CAPA!$C$15,Índices!$B$6:$F$500,3,FALSE),VLOOKUP(DATE(YEAR(CAPA!$C$10),4,1),Índices!$B$6:$F$500,3,FALSE)),VLOOKUP(DATE(YEAR(CAPA!$C$10)-1,12,1),Índices!$B$6:$F$500,3,FALSE))/IF(ISERROR(VLOOKUP(G102,Índices!$B$6:$F$500,3,FALSE)),1,VLOOKUP(G102,Índices!$B$6:$F$500,3,FALSE)) -> 212.4962082 | J102: 1199.682101 | K102: 1328.49699 | L102: 282300.573 | Q102: 201930 | R102: 1 | S102: 10020 | T102: 1 | U102: 254927.8974 | V102: 1
B103: 21º Leilão de Energia Nova/Nova regra | C103: 2020-30 | D103: QUANTIDADE | E103: Hidroelétrica | F103: 1906.815427 | G103: 42095 | H103: 209.5 | I103: =H103*IF(ISERROR(SEARCH("Nova regra",B103)),IF(ISERROR(SEARCH("Regra esp.",B103)),VLOOKUP(CAPA!$C$15,Índices!$B$6:$F$500,3,FALSE),VLOOKUP(DATE(YEAR(CAPA!$C$10),4,1),Índices!$B$6:$F$500,3,FALSE)),VLOOKUP(DATE(YEAR(CAPA!$C$10)-1,12,1),Índices!$B$6:$F$500,3,FALSE))/IF(ISERROR(VLOOKUP(G103,Índices!$B$6:$F$500,3,FALSE)),1,VLOOKUP(G103,Índices!$B$6:$F$500,3,FALSE)) -> 262.554179 | J103: 1906.815427 | K103: 2111.558182 | L103: 554398.4249 | Q103: 202030 | R103: 1 | S103: 10021 | T103: 1 | U103: 500642.3589 | V103: 1
B104: 21º Leilão de Energia Nova/Nova regra | C104: 2020-30 | D104: QUANTIDADE | E104: Pq Centrais Hidrelétricas | F104: 8640.362874 | G104: 42095 | H104: 205.9724843 | I104: =H104*IF(ISERROR(SEARCH("Nova regra",B104)),IF(ISERROR(SEARCH("Regra esp.",B104)),VLOOKUP(CAPA!$C$15,Índices!$B$6:$F$500,3,FALSE),VLOOKUP(DATE(YEAR(CAPA!$C$10),4,1),Índices!$B$6:$F$500,3,FALSE)),VLOOKUP(DATE(YEAR(CAPA!$C$10)-1,12,1),Índices!$B$6:$F$500,3,FALSE))/IF(ISERROR(VLOOKUP(G104,Índices!$B$6:$F$500,3,FALSE)),1,VLOOKUP(G104,Índices!$B$6:$F$500,3,FALSE)) -> 258.1333485 | J104: 8640.362874 | K104: 9568.114808 | L104: 2469849.514 | Q104: 202030 | R104: 1 | S104: 10021 | T104: 1 | U104: 2230365.801 | V104: 1
B105: 22º Leilão de Energia Nova/Nova regra | C105: 2018-30 | D105: QUANTIDADE | E105: Pq Centrais Hidrelétricas | F105: 3185.756949 | G105: 42217 | H105: 205.0086108 | I105: =H105*IF(ISERROR(SEARCH("Nova regra",B105)),IF(ISERROR(SEARCH("Regra esp.",B105)),VLOOKUP(CAPA!$C$15,Índices!$B$6:$F$500,3,FALSE),VLOOKUP(DATE(YEAR(CAPA!$C$10),4,1),Índices!$B$6:$F$500,3,FALSE)),VLOOKUP(DATE(YEAR(CAPA!$C$10)-1,12,1),Índices!$B$6:$F$500,3,FALSE))/IF(ISERROR(VLOOKUP(G105,Índices!$B$6:$F$500,3,FALSE)),1,VLOOKUP(G105,Índices!$B$6:$F$500,3,FALSE)) -> 250.9282003 | J105: 3185.756949 | K105: 3527.82501 | L105: 885230.7806 | Q105: 201830 | R105: 1 | S105: 10022 | T105: 1 | U105: 799396.2578 | V105: 1
B106: 2º Leilão de Energia Nova | C106: 2009-30 | D106: QUANTIDADE | E106: Hidroelétrica | F106: 46869.4353 | G106: 38869 | H106: 127.0005823 | I106: =H106*IF(ISERROR(SEARCH("Nova regra",B106)),IF(ISERROR(SEARCH("Regra esp.",B106)),VLOOKUP(CAPA!$C$15,Índices!$B$6:$F$500,3,FALSE),VLOOKUP(DATE(YEAR(CAPA!$C$10),4,1),Índices!$B$6:$F$500,3,FALSE)),VLOOKUP(DATE(YEAR(CAPA!$C$10)-1,12,1),Índices!$B$6:$F$500,3,FALSE))/IF(ISERROR(VLOOKUP(G106,Índices!$B$6:$F$500,3,FALSE)),1,VLOOKUP(G106,Índices!$B$6:$F$500,3,FALSE)) -> 262.5075811 | J106: 46869.4353 | K106: 51902.00279 | L106: 13624669.21 | Q106: 200930 | R106: 1 | S106: 10002 | T106: 1 | U106: 12303582.09 | V106: 1
B107: 2º Leilão de Energia Nova | C107: 2009-30 | D107: QUANTIDADE | E107: Pq Centrais Hidrelétricas | F107: 4938.929842 | G107: 38869 | H107: 125.0113263 | I107: =H107*IF(ISERROR(SEARCH("Nova regra",B107)),IF(ISERROR(SEARCH("Regra esp.",B107)),VLOOKUP(CAPA!$C$15,Índices!$B$6:$F$500,3,FALSE),VLOOKUP(DATE(YEAR(CAPA!$C$10),4,1),Índices!$B$6:$F$500,3,FALSE)),VLOOKUP(DATE(YEAR(CAPA!$C$10)-1,12,1),Índices!$B$6:$F$500,3,FALSE))/IF(ISERROR(VLOOKUP(G107,Índices!$B$6:$F$500,3,FALSE)),1,VLOOKUP(G107,Índices!$B$6:$F$500,3,FALSE)) -> 258.3958301 | J107: 4938.929842 | K107: 5469.243415 | L107: 1413229.692 | Q107: 200930 | R107: 1 | S107: 10002 | T107: 1 | U107: 1276198.876 | V107: 1
B108: 2º Leilão de Projetos Estruturantes(UHE Jirau) | C108: 2013-30 | D108: QUANTIDADE | E108: Hidroelétrica | F108: 21953.92663 | G108: 39569 | H108: 71.54 | I108: =H108*IF(ISERROR(SEARCH("Nova regra",B108)),IF(ISERROR(SEARCH("Regra esp.",B108)),VLOOKUP(CAPA!$C$15,Índices!$B$6:$F$500,3,FALSE),VLOOKUP(DATE(YEAR(CAPA!$C$10),4,1),Índices!$B$6:$F$500,3,FALSE)),VLOOKUP(DATE(YEAR(CAPA!$C$10)-1,12,1),Índices!$B$6:$F$500,3,FALSE))/IF(ISERROR(VLOOKUP(G108,Índices!$B$6:$F$500,3,FALSE)),1,VLOOKUP(G108,Índices!$B$6:$F$500,3,FALSE)) -> 135.455754 | J108: 21953.92663 | K108: 24311.21164 | L108: 3293093.503 | Q108: 201330 | R108: 1 | S108: 50002 | T108: 1 | U108: 2973785.684 | V108: 1
B109: 3º Leilão de Energia Nova | C109: 2011-30 | D109: QUANTIDADE | E109: Hidroelétrica | F109: 40089.88735 | G109: 38991 | H109: 120.9359968 | I109: =H109*IF(ISERROR(SEARCH("Nova regra",B109)),IF(ISERROR(SEARCH("Regra esp.",B109)),VLOOKUP(CAPA!$C$15,Índices!$B$6:$F$500,3,FALSE),VLOOKUP(DATE(YEAR(CAPA!$C$10),4,1),Índices!$B$6:$F$500,3,FALSE)),VLOOKUP(DATE(YEAR(CAPA!$C$10)-1,12,1),Índices!$B$6:$F$500,3,FALSE))/IF(ISERROR(VLOOKUP(G109,Índices!$B$6:$F$500,3,FALSE)),1,VLOOKUP(G109,Índices!$B$6:$F$500,3,FALSE)) -> 248.0327587 | J109: 40089.88735 | K109: 44394.50639 | L109: 11011291.89 | Q109: 201130 | R109: 1 | S109: 10003 | T109: 1 | U109: 9943605.354 | V109: 1
B110: 3º Leilão de Projetos Estruturantes(UHE Belo Monte)/Nova regra | C110: 2015-30 | D110: QUANTIDADE | E110: Hidroelétrica | F110: 85040.94106 | G110: 40269 | H110: 78.15 | I110: =H110*IF(ISERROR(SEARCH("Nova regra",B110)),IF(ISERROR(SEARCH("Regra esp.",B110)),VLOOKUP(CAPA!$C$15,Índices!$B$6:$F$500,3,FALSE),VLOOKUP(DATE(YEAR(CAPA!$C$10),4,1),Índices!$B$6:$F$500,3,FALSE)),VLOOKUP(DATE(YEAR(CAPA!$C$10)-1,12,1),Índices!$B$6:$F$500,3,FALSE))/IF(ISERROR(VLOOKUP(G110,Índices!$B$6:$F$500,3,FALSE)),1,VLOOKUP(G110,Índices!$B$6:$F$500,3,FALSE)) -> 134.2335032 | J110: 85040.94106 | K110: 94172.14292 | L110: 12641056.65 | Q110: 201530 | R110: 1 | S110: 50003 | T110: 1 | U110: 11415343.43 | V110: 1
B111: 5º Leilão de Energia Nova | C111: 2012-30 | D111: QUANTIDADE | E111: Hidroelétrica | F111: 35606.07905 | G111: 39356 | H111: 129.2422023 | I111: =H111*IF(ISERROR(SEARCH("Nova regra",B111)),IF(ISERROR(SEARCH("Regra esp.",B111)),VLOOKUP(CAPA!$C$15,Índices!$B$6:$F$500,3,FALSE),VLOOKUP(DATE(YEAR(CAPA!$C$10),4,1),Índices!$B$6:$F$500,3,FALSE)),VLOOKUP(DATE(YEAR(CAPA!$C$10)-1,12,1),Índices!$B$6:$F$500,3,FALSE))/IF(ISERROR(VLOOKUP(G111,Índices!$B$6:$F$500,3,FALSE)),1,VLOOKUP(G111,Índices!$B$6:$F$500,3,FALSE)) -> 254.591334 | J111: 35606.07905 | K111: 39429.25282 | L111: 10038346.08 | Q111: 201230 | R111: 1 | S111: 10005 | T111: 1 | U111: 9064999.165 | V111: 1
B112: 7º. Leilao de Energia Nova | C112: 2016-30 | D112: QUANTIDADE | E112: Hidroelétrica | F112: 1339.106605 | G112: 39692 | H112: 99.14 | I112: =H112*IF(ISERROR(SEARCH("Nova regra",B112)),IF(ISERROR(SEARCH("Regra esp.",B112)),VLOOKUP(CAPA!$C$15,Índices!$B$6:$F$500,3,FALSE),VLOOKUP(DATE(YEAR(CAPA!$C$10),4,1),Índices!$B$6:$F$500,3,FALSE)),VLOOKUP(DATE(YEAR(CAPA!$C$10)-1,12,1),Índices!$B$6:$F$500,3,FALSE))/IF(ISERROR(VLOOKUP(G112,Índices!$B$6:$F$500,3,FALSE)),1,VLOOKUP(G112,Índices!$B$6:$F$500,3,FALSE)) -> 184.3563298 | J112: 1339.106605 | K112: 1482.892087 | L112: 273380.5427 | Q112: 201630 | R112: 1 | S112: 10007 | T112: 1 | U112: =J112*I112 -> 246872.7789 | V112: =IF(H112=0,0,1) -> 1
B113: CCGF | F113: 311188.6544 | G113: 43983 | H113: 112.02 | I113: =H113*IF(ISERROR(SEARCH("Nova regra",B113)),IF(ISERROR(SEARCH("Regra esp.",B113)),VLOOKUP(CAPA!$C$15,Índices!$B$6:$F$500,3,FALSE),VLOOKUP(DATE(YEAR(CAPA!$C$10),4,1),Índices!$B$6:$F$500,3,FALSE)),VLOOKUP(DATE(YEAR(CAPA!$C$10)-1,12,1),Índices!$B$6:$F$500,3,FALSE))/IF(ISERROR(VLOOKUP(G113,Índices!$B$6:$F$500,3,FALSE)),1,VLOOKUP(G113,Índices!$B$6:$F$500,3,FALSE)) -> 112.02 | J113: 311188.6544 | K113: 344602.283 | L113: 38602347.74 | Q113: 999999 | T113: 17 | U113: =J113*I113 -> 34859353.06 | V113: =IF(H113=0,0,1) -> 1
B114: CCGF | F114: 302698.2935 | G114: 43983 | H114: 112.02 | I114: =H114*IF(ISERROR(SEARCH("Nova regra",B114)),IF(ISERROR(SEARCH("Regra esp.",B114)),VLOOKUP(CAPA!$C$15,Índices!$B$6:$F$500,3,FALSE),VLOOKUP(DATE(YEAR(CAPA!$C$10),4,1),Índices!$B$6:$F$500,3,FALSE)),VLOOKUP(DATE(YEAR(CAPA!$C$10)-1,12,1),Índices!$B$6:$F$500,3,FALSE))/IF(ISERROR(VLOOKUP(G114,Índices!$B$6:$F$500,3,FALSE)),1,VLOOKUP(G114,Índices!$B$6:$F$500,3,FALSE)) -> 112.02 | J114: =F114 -> 302698.2935 | K114: =J114*$L$47 -> 335200.2765 | L114: =I114*K114 -> 37549134.98 | Q114: 999999 | T114: 17 | U114: 33908262.84 | V114: 1
I115: =H115*IF(ISERROR(SEARCH("Nova regra",B115)),IF(ISERROR(SEARCH("Regra esp.",B115)),VLOOKUP(CAPA!$C$15,Índices!$B$6:$F$500,3,FALSE),VLOOKUP(DATE(YEAR(CAPA!$C$10),4,1),Índices!$B$6:$F$500,3,FALSE)),VLOOKUP(DATE(YEAR(CAPA!$C$10)-1,12,1),Índices!$B$6:$F$500,3,FALSE))/IF(ISERROR(VLOOKUP(G115,Índices!$B$6:$F$500,3,FALSE)),1,VLOOKUP(G115,Índices!$B$6:$F$500,3,FALSE)) -> 0 | J115: 0 | K115: 0 | L115: 0 | T115: 1 | U115: 0 | V115: 0
I116: =H116*IF(ISERROR(SEARCH("Nova regra",B116)),IF(ISERROR(SEARCH("Regra esp.",B116)),VLOOKUP(CAPA!$C$15,Índices!$B$6:$F$500,3,FALSE),VLOOKUP(DATE(YEAR(CAPA!$C$10),4,1),Índices!$B$6:$F$500,3,FALSE)),VLOOKUP(DATE(YEAR(CAPA!$C$10)-1,12,1),Índices!$B$6:$F$500,3,FALSE))/IF(ISERROR(VLOOKUP(G116,Índices!$B$6:$F$500,3,FALSE)),1,VLOOKUP(G116,Índices!$B$6:$F$500,3,FALSE)) -> 0 | J116: 0 | K116: 0 | L116: 0 | T116: 1 | U116: 0 | V116: 0
I117: =H117*IF(ISERROR(SEARCH("Nova regra",B117)),IF(ISERROR(SEARCH("Regra esp.",B117)),VLOOKUP(CAPA!$C$15,Índices!$B$6:$F$500,3,FALSE),VLOOKUP(DATE(YEAR(CAPA!$C$10),4,1),Índices!$B$6:$F$500,3,FALSE)),VLOOKUP(DATE(YEAR(CAPA!$C$10)-1,12,1),Índices!$B$6:$F$500,3,FALSE))/IF(ISERROR(VLOOKUP(G117,Índices!$B$6:$F$500,3,FALSE)),1,VLOOKUP(G117,Índices!$B$6:$F$500,3,FALSE)) -> 0 | J117: 0 | K117: 0 | L117: 0 | T117: 1 | U117: 0 | V117: 0
I118: =H118*IF(ISERROR(SEARCH("Nova regra",B118)),IF(ISERROR(SEARCH("Regra esp.",B118)),VLOOKUP(CAPA!$C$15,Índices!$B$6:$F$500,3,FALSE),VLOOKUP(DATE(YEAR(CAPA!$C$10),4,1),Índices!$B$6:$F$500,3,FALSE)),VLOOKUP(DATE(YEAR(CAPA!$C$10)-1,12,1),Índices!$B$6:$F$500,3,FALSE))/IF(ISERROR(VLOOKUP(G118,Índices!$B$6:$F$500,3,FALSE)),1,VLOOKUP(G118,Índices!$B$6:$F$500,3,FALSE)) -> 0 | J118: 0 | K118: 0 | L118: 0 | T118: 1 | U118: 0 | V118: 0
I119: =H119*IF(ISERROR(SEARCH("Nova regra",B119)),IF(ISERROR(SEARCH("Regra esp.",B119)),VLOOKUP(CAPA!$C$15,Índices!$B$6:$F$500,3,FALSE),VLOOKUP(DATE(YEAR(CAPA!$C$10),4,1),Índices!$B$6:$F$500,3,FALSE)),VLOOKUP(DATE(YEAR(CAPA!$C$10)-1,12,1),Índices!$B$6:$F$500,3,FALSE))/IF(ISERROR(VLOOKUP(G119,Índices!$B$6:$F$500,3,FALSE)),1,VLOOKUP(G119,Índices!$B$6:$F$500,3,FALSE)) -> 0 | J119: 0 | K119: 0 | L119: 0 | T119: 1 | U119: 0 | V119: 0
I120: =H120*IF(ISERROR(SEARCH("Nova regra",B120)),IF(ISERROR(SEARCH("Regra esp.",B120)),VLOOKUP(CAPA!$C$15,Índices!$B$6:$F$500,3,FALSE),VLOOKUP(DATE(YEAR(CAPA!$C$10),4,1),Índices!$B$6:$F$500,3,FALSE)),VLOOKUP(DATE(YEAR(CAPA!$C$10)-1,12,1),Índices!$B$6:$F$500,3,FALSE))/IF(ISERROR(VLOOKUP(G120,Índices!$B$6:$F$500,3,FALSE)),1,VLOOKUP(G120,Índices!$B$6:$F$500,3,FALSE)) -> 0 | J120: 0 | K120: 0 | L120: 0 | T120: 1 | U120: 0 | V120: 0
I121: =H121*IF(ISERROR(SEARCH("Nova regra",B121)),IF(ISERROR(SEARCH("Regra esp.",B121)),VLOOKUP(CAPA!$C$15,Índices!$B$6:$F$500,3,FALSE),VLOOKUP(DATE(YEAR(CAPA!$C$10),4,1),Índices!$B$6:$F$500,3,FALSE)),VLOOKUP(DATE(YEAR(CAPA!$C$10)-1,12,1),Índices!$B$6:$F$500,3,FALSE))/IF(ISERROR(VLOOKUP(G121,Índices!$B$6:$F$500,3,FALSE)),1,VLOOKUP(G121,Índices!$B$6:$F$500,3,FALSE)) -> 0 | J121: 0 | K121: 0 | L121: 0 | T121: 1 | U121: 0 | V121: 0
I122: =H122*IF(ISERROR(SEARCH("Nova regra",B122)),IF(ISERROR(SEARCH("Regra esp.",B122)),VLOOKUP(CAPA!$C$15,Índices!$B$6:$F$500,3,FALSE),VLOOKUP(DATE(YEAR(CAPA!$C$10),4,1),Índices!$B$6:$F$500,3,FALSE)),VLOOKUP(DATE(YEAR(CAPA!$C$10)-1,12,1),Índices!$B$6:$F$500,3,FALSE))/IF(ISERROR(VLOOKUP(G122,Índices!$B$6:$F$500,3,FALSE)),1,VLOOKUP(G122,Índices!$B$6:$F$500,3,FALSE)) -> 0 | J122: 0 | K122: 0 | L122: 0 | T122: 1 | U122: 0 | V122: 0
I123: =H123*IF(ISERROR(SEARCH("Nova regra",B123)),IF(ISERROR(SEARCH("Regra esp.",B123)),VLOOKUP(CAPA!$C$15,Índices!$B$6:$F$500,3,FALSE),VLOOKUP(DATE(YEAR(CAPA!$C$10),4,1),Índices!$B$6:$F$500,3,FALSE)),VLOOKUP(DATE(YEAR(CAPA!$C$10)-1,12,1),Índices!$B$6:$F$500,3,FALSE))/IF(ISERROR(VLOOKUP(G123,Índices!$B$6:$F$500,3,FALSE)),1,VLOOKUP(G123,Índices!$B$6:$F$500,3,FALSE)) -> 0 | J123: 0 | K123: 0 | L123: 0 | T123: 1 | U123: 0 | V123: 0
I124: =H124*IF(ISERROR(SEARCH("Nova regra",B124)),IF(ISERROR(SEARCH("Regra esp.",B124)),VLOOKUP(CAPA!$C$15,Índices!$B$6:$F$500,3,FALSE),VLOOKUP(DATE(YEAR(CAPA!$C$10),4,1),Índices!$B$6:$F$500,3,FALSE)),VLOOKUP(DATE(YEAR(CAPA!$C$10)-1,12,1),Índices!$B$6:$F$500,3,FALSE))/IF(ISERROR(VLOOKUP(G124,Índices!$B$6:$F$500,3,FALSE)),1,VLOOKUP(G124,Índices!$B$6:$F$500,3,FALSE)) -> 0 | J124: 0 | K124: 0 | L124: 0 | T124: 1 | U124: 0 | V124: 0
I125: =H125*IF(ISERROR(SEARCH("Nova regra",B125)),IF(ISERROR(SEARCH("Regra esp.",B125)),VLOOKUP(CAPA!$C$15,Índices!$B$6:$F$500,3,FALSE),VLOOKUP(DATE(YEAR(CAPA!$C$10),4,1),Índices!$B$6:$F$500,3,FALSE)),VLOOKUP(DATE(YEAR(CAPA!$C$10)-1,12,1),Índices!$B$6:$F$500,3,FALSE))/IF(ISERROR(VLOOKUP(G125,Índices!$B$6:$F$500,3,FALSE)),1,VLOOKUP(G125,Índices!$B$6:$F$500,3,FALSE)) -> 0 | J125: 0 | K125: 0 | L125: 0 | T125: 1 | U125: 0 | V125: 0
I126: =H126*IF(ISERROR(SEARCH("Nova regra",B126)),IF(ISERROR(SEARCH("Regra esp.",B126)),VLOOKUP(CAPA!$C$15,Índices!$B$6:$F$500,3,FALSE),VLOOKUP(DATE(YEAR(CAPA!$C$10),4,1),Índices!$B$6:$F$500,3,FALSE)),VLOOKUP(DATE(YEAR(CAPA!$C$10)-1,12,1),Índices!$B$6:$F$500,3,FALSE))/IF(ISERROR(VLOOKUP(G126,Índices!$B$6:$F$500,3,FALSE)),1,VLOOKUP(G126,Índices!$B$6:$F$500,3,FALSE)) -> 0 | J126: 0 | K126: 0 | L126: 0 | T126: 1 | U126: 0 | V126: 0
I127: =H127*IF(ISERROR(SEARCH("Nova regra",B127)),IF(ISERROR(SEARCH("Regra esp.",B127)),VLOOKUP(CAPA!$C$15,Índices!$B$6:$F$500,3,FALSE),VLOOKUP(DATE(YEAR(CAPA!$C$10),4,1),Índices!$B$6:$F$500,3,FALSE)),VLOOKUP(DATE(YEAR(CAPA!$C$10)-1,12,1),Índices!$B$6:$F$500,3,FALSE))/IF(ISERROR(VLOOKUP(G127,Índices!$B$6:$F$500,3,FALSE)),1,VLOOKUP(G127,Índices!$B$6:$F$500,3,FALSE)) -> 0 | J127: 0 | K127: 0 | L127: 0 | T127: 1 | U127: 0 | V127: 0
I128: =H128*IF(ISERROR(SEARCH("Nova regra",B128)),IF(ISERROR(SEARCH("Regra esp.",B128)),VLOOKUP(CAPA!$C$15,Índices!$B$6:$F$500,3,FALSE),VLOOKUP(DATE(YEAR(CAPA!$C$10),4,1),Índices!$B$6:$F$500,3,FALSE)),VLOOKUP(DATE(YEAR(CAPA!$C$10)-1,12,1),Índices!$B$6:$F$500,3,FALSE))/IF(ISERROR(VLOOKUP(G128,Índices!$B$6:$F$500,3,FALSE)),1,VLOOKUP(G128,Índices!$B$6:$F$500,3,FALSE)) -> 0 | J128: 0 | K128: 0 | L128: 0 | T128: 1 | U128: 0 | V128: 0
I129: =H129*IF(ISERROR(SEARCH("Nova regra",B129)),IF(ISERROR(SEARCH("Regra esp.",B129)),VLOOKUP(CAPA!$C$15,Índices!$B$6:$F$500,3,FALSE),VLOOKUP(DATE(YEAR(CAPA!$C$10),4,1),Índices!$B$6:$F$500,3,FALSE)),VLOOKUP(DATE(YEAR(CAPA!$C$10)-1,12,1),Índices!$B$6:$F$500,3,FALSE))/IF(ISERROR(VLOOKUP(G129,Índices!$B$6:$F$500,3,FALSE)),1,VLOOKUP(G129,Índices!$B$6:$F$500,3,FALSE)) -> 0 | J129: 0 | K129: 0 | L129: 0 | T129: 1 | U129: 0 | V129: 0
I130: =H130*IF(ISERROR(SEARCH("Nova regra",B130)),IF(ISERROR(SEARCH("Regra esp.",B130)),VLOOKUP(CAPA!$C$15,Índices!$B$6:$F$500,3,FALSE),VLOOKUP(DATE(YEAR(CAPA!$C$10),4,1),Índices!$B$6:$F$500,3,FALSE)),VLOOKUP(DATE(YEAR(CAPA!$C$10)-1,12,1),Índices!$B$6:$F$500,3,FALSE))/IF(ISERROR(VLOOKUP(G130,Índices!$B$6:$F$500,3,FALSE)),1,VLOOKUP(G130,Índices!$B$6:$F$500,3,FALSE)) -> 0 | J130: 0 | K130: 0 | L130: 0 | T130: 1 | U130: 0 | V130: 0
I131: =H131*IF(ISERROR(SEARCH("Nova regra",B131)),IF(ISERROR(SEARCH("Regra esp.",B131)),VLOOKUP(CAPA!$C$15,Índices!$B$6:$F$500,3,FALSE),VLOOKUP(DATE(YEAR(CAPA!$C$10),4,1),Índices!$B$6:$F$500,3,FALSE)),VLOOKUP(DATE(YEAR(CAPA!$C$10)-1,12,1),Índices!$B$6:$F$500,3,FALSE))/IF(ISERROR(VLOOKUP(G131,Índices!$B$6:$F$500,3,FALSE)),1,VLOOKUP(G131,Índices!$B$6:$F$500,3,FALSE)) -> 0 | J131: 0 | K131: 0 | L131: 0 | U131: 0 | V131: 0
I132: =H132*IF(ISERROR(SEARCH("Nova regra",B132)),IF(ISERROR(SEARCH("Regra esp.",B132)),VLOOKUP(CAPA!$C$15,Índices!$B$6:$F$500,3,FALSE),VLOOKUP(DATE(YEAR(CAPA!$C$10),4,1),Índices!$B$6:$F$500,3,FALSE)),VLOOKUP(DATE(YEAR(CAPA!$C$10)-1,12,1),Índices!$B$6:$F$500,3,FALSE))/IF(ISERROR(VLOOKUP(G132,Índices!$B$6:$F$500,3,FALSE)),1,VLOOKUP(G132,Índices!$B$6:$F$500,3,FALSE)) -> 0 | J132: 0 | K132: 0 | L132: 0 | T132: 17 | U132: 0 | V132: 0
I133: =H133*IF(ISERROR(SEARCH("Nova regra",B133)),IF(ISERROR(SEARCH("Regra esp.",B133)),VLOOKUP(CAPA!$C$15,Índices!$B$6:$F$500,3,FALSE),VLOOKUP(DATE(YEAR(CAPA!$C$10),4,1),Índices!$B$6:$F$500,3,FALSE)),VLOOKUP(DATE(YEAR(CAPA!$C$10)-1,12,1),Índices!$B$6:$F$500,3,FALSE))/IF(ISERROR(VLOOKUP(G133,Índices!$B$6:$F$500,3,FALSE)),1,VLOOKUP(G133,Índices!$B$6:$F$500,3,FALSE)) -> 0 | J133: 0 | K133: 0 | L133: 0 | T133: 17 | U133: 0 | V133: 0
I134: =H134*IF(ISERROR(SEARCH("Nova regra",B134)),IF(ISERROR(SEARCH("Regra esp.",B134)),VLOOKUP(CAPA!$C$15,Índices!$B$6:$F$500,3,FALSE),VLOOKUP(DATE(YEAR(CAPA!$C$10),4,1),Índices!$B$6:$F$500,3,FALSE)),VLOOKUP(DATE(YEAR(CAPA!$C$10)-1,12,1),Índices!$B$6:$F$500,3,FALSE))/IF(ISERROR(VLOOKUP(G134,Índices!$B$6:$F$500,3,FALSE)),1,VLOOKUP(G134,Índices!$B$6:$F$500,3,FALSE)) -> 0 | J134: 0 | K134: 0 | L134: 0 | U134: 0 | V134: 0
I135: =H135*IF(ISERROR(SEARCH("Nova regra",B135)),IF(ISERROR(SEARCH("Regra esp.",B135)),VLOOKUP(CAPA!$C$15,Índices!$B$6:$F$500,3,FALSE),VLOOKUP(DATE(YEAR(CAPA!$C$10),4,1),Índices!$B$6:$F$500,3,FALSE)),VLOOKUP(DATE(YEAR(CAPA!$C$10)-1,12,1),Índices!$B$6:$F$500,3,FALSE))/IF(ISERROR(VLOOKUP(G135,Índices!$B$6:$F$500,3,FALSE)),1,VLOOKUP(G135,Índices!$B$6:$F$500,3,FALSE)) -> 0 | J135: 0 | K135: 0 | L135: 0 | U135: 0 | V135: 0
I136: =H136*IF(ISERROR(SEARCH("Nova regra",B136)),IF(ISERROR(SEARCH("Regra esp.",B136)),VLOOKUP(CAPA!$C$15,Índices!$B$6:$F$500,3,FALSE),VLOOKUP(DATE(YEAR(CAPA!$C$10),4,1),Índices!$B$6:$F$500,3,FALSE)),VLOOKUP(DATE(YEAR(CAPA!$C$10)-1,12,1),Índices!$B$6:$F$500,3,FALSE))/IF(ISERROR(VLOOKUP(G136,Índices!$B$6:$F$500,3,FALSE)),1,VLOOKUP(G136,Índices!$B$6:$F$500,3,FALSE)) -> 0 | J136: 0 | K136: 0 | L136: 0 | U136: 0 | V136: 0
I137: =H137*IF(ISERROR(SEARCH("Nova regra",B137)),IF(ISERROR(SEARCH("Regra esp.",B137)),VLOOKUP(CAPA!$C$15,Índices!$B$6:$F$500,3,FALSE),VLOOKUP(DATE(YEAR(CAPA!$C$10),4,1),Índices!$B$6:$F$500,3,FALSE)),VLOOKUP(DATE(YEAR(CAPA!$C$10)-1,12,1),Índices!$B$6:$F$500,3,FALSE))/IF(ISERROR(VLOOKUP(G137,Índices!$B$6:$F$500,3,FALSE)),1,VLOOKUP(G137,Índices!$B$6:$F$500,3,FALSE)) -> 0 | J137: 0 | K137: 0 | L137: 0 | U137: 0 | V137: 0
I138: =H138*IF(ISERROR(SEARCH("Nova regra",B138)),IF(ISERROR(SEARCH("Regra esp.",B138)),VLOOKUP(CAPA!$C$15,Índices!$B$6:$F$500,3,FALSE),VLOOKUP(DATE(YEAR(CAPA!$C$10),4,1),Índices!$B$6:$F$500,3,FALSE)),VLOOKUP(DATE(YEAR(CAPA!$C$10)-1,12,1),Índices!$B$6:$F$500,3,FALSE))/IF(ISERROR(VLOOKUP(G138,Índices!$B$6:$F$500,3,FALSE)),1,VLOOKUP(G138,Índices!$B$6:$F$500,3,FALSE)) -> 0 | J138: 0 | K138: 0 | L138: 0 | U138: 0 | V138: 0
I139: =H139*IF(ISERROR(SEARCH("Nova regra",B139)),IF(ISERROR(SEARCH("Regra esp.",B139)),VLOOKUP(CAPA!$C$15,Índices!$B$6:$F$500,3,FALSE),VLOOKUP(DATE(YEAR(CAPA!$C$10),4,1),Índices!$B$6:$F$500,3,FALSE)),VLOOKUP(DATE(YEAR(CAPA!$C$10)-1,12,1),Índices!$B$6:$F$500,3,FALSE))/IF(ISERROR(VLOOKUP(G139,Índices!$B$6:$F$500,3,FALSE)),1,VLOOKUP(G139,Índices!$B$6:$F$500,3,FALSE)) -> 0 | J139: 0 | K139: 0 | L139: 0 | U139: 0 | V139: 0
I140: =H140*IF(ISERROR(SEARCH("Nova regra",B140)),IF(ISERROR(SEARCH("Regra esp.",B140)),VLOOKUP(CAPA!$C$15,Índices!$B$6:$F$500,3,FALSE),VLOOKUP(DATE(YEAR(CAPA!$C$10),4,1),Índices!$B$6:$F$500,3,FALSE)),VLOOKUP(DATE(YEAR(CAPA!$C$10)-1,12,1),Índices!$B$6:$F$500,3,FALSE))/IF(ISERROR(VLOOKUP(G140,Índices!$B$6:$F$500,3,FALSE)),1,VLOOKUP(G140,Índices!$B$6:$F$500,3,FALSE)) -> 0 | J140: 0 | K140: 0 | L140: 0 | U140: 0 | V140: 0
K141: Custo médio de CCEAR | L141: =IFERROR(SUM(L49:L140)/SUM(K49:K140), 0) -> 196.3710069
B143: Bilaterais | K143: Percentual de Bilateral considerados | L143: =J24 -> 1.107374186
B144: Vendedora | C144: tipo | D144: nº do processo | E144: Parte Relacionada | F144: Indice | G144: Criterio | H144: Energia | I144: Custo Base | J144: Data Base | K144: Data Aniversario | L144: Custo médio atualizado | M144: Montante considerado | N144: Despesa final por contrato
M145: =$L$143*H145 -> 0 | N145: =M145*L145 -> 0
M146: 0 | N146: 0
M147: 0 | N147: 0
M148: 0 | N148: 0
M149: 0 | N149: 0
M150: 0 | N150: 0
M151: 0 | N151: 0
M152: 0 | N152: 0
M153: 0 | N153: 0
M154: 0 | N154: 0
M155: 0 | N155: 0
M156: 0 | N156: 0
M157: 0 | N157: 0
M158: 0 | N158: 0
M159: 0 | N159: 0
M160: 0 | N160: 0
M161: 0 | N161: 0
M162: 0 | N162: 0
M163: 0 | N163: 0
M164: 0 | N164: 0
M165: 0 | N165: 0
M166: 0 | N166: 0
M167: 0 | N167: 0
M168: 0 | N168: 0
M169: 0 | N169: 0
M170: 0 | N170: 0
M171: 0 | N171: 0
M172: 0 | N172: 0
M173: 0 | N173: 0
M174: 0 | N174: 0
M175: 0 | N175: 0
M176: 0 | N176: 0
M177: 0 | N177: 0
M178: 0 | N178: 0
M179: 0 | N179: 0
M180: 0 | N180: 0
M181: 0 | N181: 0
M182: 0 | N182: 0
M183: 0 | N183: 0
M184: 0 | N184: 0
B185: REDE LAJEADO ENERGIA S.A. | C185: BILATERAL | D185: 48500.000803/2003-11 | E185: NÃO | F185: IGPM | G185: Lajeado | H185: =22.9*24*365 -> 200604 | I185: 108.29 | J185: 38534 | K185: 44013 | L185: =+Lajeado!C29 -> 234.067594 | M185: 222143.6913 | N185: 51996639.35
M186: 0 | N186: 0
M187: 0 | N187: 0
M188: 0 | N188: 0
M189: 0 | N189: 0
M190: 0 | N190: 0
M191: 0 | N191: 0
D192: Total MWh | E192: =SUM($H$144:$H$191) -> 200604 | H192: Custo médio de Contratos bilaterais | J192: =IFERROR(SUMPRODUCT(M$145:$M$191,$L$145:$L$191)/SUM($M$145:$M$191),0) -> 234.067594

Sheet Voto Rev
B2: Gráficos
U3: Composição da Receita com detalhamento de Encargos
B4: Análise de Impacto da RTE na Tarfia | I4: Efeito por Modalidade de Aquisição de Energia | P4: Composição da Receita com Tributos
B16: Tabelas
B18: TabVotoRevAvalRTE | F18: =LnkTxtRA -> 1234830112
C19: Receita Verificada (R$) | D19: Receita Requerida (R$) | E19: Variação | F19: Participação na Revisão | G19: Participação na Receita
B20: PARCELA A [Encargos+Transmissão+Energia+RI] | C20: ='NT Revisao'!AR187 -> 674776924.6 | D20: ='NT Revisao'!AS187 -> 707858593.7 | E20: =IF(ISERROR(D20/C20-1),0,D20/C20-1) -> 0.04902608239 | F20: =ROUND(IF(ISERROR((D20-C20)/$C$50),0,(D20-C20)/$C$50),4) -> 0.0268 | G20: =IF(ISERROR(D20/($D$50)),0,D20/($D$50)) -> 0.5245556918 | H20: Colunas1 | I20: Colunas2 | J20: Colunas3
B21: Encargos Setoriais | C21: =SUM(C22:C30) -> 73340066.8 | D21: =SUM(D22:D30) -> 78595319.33 | E21: =IF(ISERROR(D21/C21-1),0,D21/C21-1) -> 0.07165595497 | F21: =ROUND(IF(ISERROR((D21-C21)/$F$18),0,(D21-C21)/$F$18),4) -> 0.0043 | G21: 0.05824273728 | H21: =IF(SUM(C21:D21)<>0,1,0) -> 1 | J21: =0.16+5.7+0.01+5.39+0.92 -> 12.18
B22: Taxa de Fisc. de Serviços de E.E. – TFSEE | C22: ='NT Revisao'!AR189 -> 2295577.222 | D22: ='NT Revisao'!AS189 -> 2570668.766 | E22: =IF(ISERROR(D22/C22-1),0,D22/C22-1) -> 0.1198354566 | F22: =ROUND(IF(ISERROR((D22-C22)/$F$18),0,(D22-C22)/$F$18),4) -> 0.0002 | G22: 0.001904983488 | H22: =IF(SUM(C22:D22)<>0,1,0) -> 1 | J22: 10.93
B23: Conta de Desenvolvimento Energético – CDE (USO) | C23: ='NT Revisao'!AR190 -> 30338612.47 | D23: ='NT Revisao'!AS190 -> 40756364.76 | E23: =IF(ISERROR(D23/C23-1),0,D23/C23-1) -> 0.3433826216 | F23: =ROUND(IF(ISERROR((D23-C23)/$F$18),0,(D23-C23)/$F$18),4) -> 0.0084 | G23: 0.03020233603 | H23: 1 | J23: 0.08
B24: Conta de Desenvolvimento Energético – CDE (Decr. 7945/2013) | C24: ='NT Revisao'!AR191 -> 0 | D24: ='NT Revisao'!AS191 -> 0 | E24: =IF(ISERROR(D24/C24-1),0,D24/C24-1) -> 0 | F24: 0 | G24: 0 | H24: 0 | J24: =J21+J22+J23+47.87 -> 71.06
B25: Conta de Desenvolvimento Energético – CDE (Conta-ACR) | C25: ='NT Revisao'!AR192 -> 8009056.086 | D25: ='NT Revisao'!AS192 -> 0 | E25: =IF(ISERROR(D25/C25-1),0,D25/C25-1) -> -1 | F25: -0.0065 | G25: 0 | H25: 1
B26: Compensação financeira - CFURH | C26: ='NT Revisao'!AR193 -> 0 | D26: ='NT Revisao'!AS193 -> 0 | E26: =IF(ISERROR(D26/C26-1),0,D26/C26-1) -> 0 | F26: =IF(ISERROR((D26-C26)/$F$18),0,(D26-C26)/$F$18) -> 0 | G26: 0 | H26: 0
B27: Encargos Serv. Sist. - ESS e Energ. Reserv. - EER | C27: ='NT Revisao'!AR194 -> 20220828.47 | D27: ='NT Revisao'!AS194 -> 22067512.67 | E27: =IF(ISERROR(D27/C27-1),0,D27/C27-1) -> 0.09132584274 | F27: 0.001495496573 | G27: 0.01635303926 | H27: 1
B28: PROINFA | C28: ='NT Revisao'!AR195*0 -> 0 | D28: ='NT Revisao'!AS195*0 -> 0 | E28: =IF(ISERROR(D28/C28-1),0,D28/C28-1) -> 0 | F28: 0 | G28: 0 | H28: 0
B29: P&D, Efic.Energ e Ressarc.ICMS Sist.Isol. | C29: ='NT Revisao'!AR196 -> 12475992.56 | D29: ='NT Revisao'!AS196 -> 13200773.13 | E29: =IF(ISERROR(D29/C29-1),0,D29/C29-1) -> 0.05809402135 | F29: =ROUND(IF(ISERROR((D29-C29)/$F$18),0,(D29-C29)/$F$18),4) -> 0.0006 | G29: 0.009782378493 | H29: 1
B30: ONS | C30: ='NT Revisao'!AR197 -> 0 | D30: ='NT Revisao'!AS197 -> 0 | E30: =IF(ISERROR(D30/C30-1),0,D30/C30-1) -> 0 | F30: 0 | G30: 0 | H30: 0
B31: Custos de Transmissão | C31: ='NT Revisao'!AR198 -> 63454019.25 | D31: ='NT Revisao'!AS198 -> 92737219.45 | E31: 0.4614869245 | F31: =ROUND(IF(ISERROR((D31-C31)/$F$18),0,(D31-C31)/$F$18),4) -> 0.0237 | G31: =ROUND(IF(ISERROR(D31/($D$50)),0,D31/($D$50)),4) -> 0.0687 | H31: 1
B32: Rede Básica | C32: ='NT Revisao'!AR199 -> 46116406.3 | D32: ='NT Revisao'!AS199 -> 69301063.57 | E32: 0.5027420637 | F32: 0.01877558462 | G32: =ROUND(IF(ISERROR(D32/($D$50)),0,D32/($D$50)),4) -> 0.0514 | H32: 1
B33: Rede Básica Fronteira | C33: ='NT Revisao'!AR200 -> 14146747.51 | D33: ='NT Revisao'!AS200 -> 19357875.73 | E33: 0.3683622838 | F33: 0.004220117543 | G33: 0.0143 | H33: 1
B34: Rede Básica ONS (A2) | C34: ='NT Revisao'!AR201 -> 234483.6232 | D34: ='NT Revisao'!AS201 -> 202050.55 | E34: -0.1383170081 | F34: -2.62652108e-05 | G34: 0.0001497287269 | H34: 1
B35: Rede Básica Export. (A2) | C35: ='NT Revisao'!AR202 -> 0 | D35: ='NT Revisao'!AS202 -> 0 | E35: 0 | F35: 0 | G35: 0 | H35: 0
B36: MUST Itaipu | C36: ='NT Revisao'!AR203 -> 0 | D36: ='NT Revisao'!AS203 -> 0 | E36: 0 | F36: 0 | G36: 0 | H36: 0
B37: Transporte de Itaipu | C37: ='NT Revisao'!AR204 -> 0 | D37: ='NT Revisao'!AS204 -> 0 | E37: 0 | F37: 0 | G37: 0 | H37: 0
B38: Conexão | C38: ='NT Revisao'!AR205 -> 754807.1456 | D38: ='NT Revisao'!AS205 -> 2201363.346 | E38: 1.91645801 | F38: 0.001171461714 | G38: =ROUND(IF(ISERROR(D38/($D$50)),0,D38/($D$50)),4)+0.0001 -> 0.0017 | H38: 1 | I38: =3.27+1.56+0.42 -> 5.25
B39: Uso do sistema de distribuição | C39: ='NT Revisao'!AR206 -> 2201574.681 | D39: ='NT Revisao'!AS206 -> 1674866.254 | E39: -0.2392416809 | F39: -0.0004265432321 | G39: 0.00124115273 | H39: 1
B40: Receitas Irrecuperáveis | C40: ='NT Revisao'!AR207 -> 6268021.419 | D40: =Mercado!H38 -> 7525010.856 | E40: =IF(ISERROR(D40/C40-1),0,D40/C40-1) -> 0.2005400672 | F40: =ROUND(IF(ISERROR((D40-C40)/$F$18),0,(D40-C40)/$F$18),4) -> 0.001 | G40: =ROUND(IF(ISERROR(D40/($D$50)),0,D40/($D$50)),4)-0.0001 -> 0.0055 | H40: 1 | I40: =-1.14+0.77+3.43+1.1+0.25-0.04+1 -> 5.37
B41: Custos de Aquisição de Energia | C41: ='NT Revisao'!AR208+'NT Revisao'!AR195 -> 531714817.2 | D41: ='NT Revisao'!AS208+'NT Revisao'!AS195 -> 529001044.1 | E41: =IF(ISERROR(D41/C41-1),0,D41/C41-1) -> -0.0051038131 | F41: =ROUND(IF(ISERROR((D41-C41)/$F$18),0,(D41-C41)/$F$18),4) -> -0.0022 | G41: =IF(ISERROR(D41/($D$50)),0,D41/($D$50)) -> 0.3920140423 | H41: 1 | J41: =5.89+4.08+0.96 -> 10.93
B42: PARCELA B | C42: ='NT Revisao'!AR209 -> 559989334 | D42: ='NT Revisao'!AS209 -> 641585525.8 | E42: =IF(ISERROR(D42/C42-1),0,D42/C42-1) -> 0.1457102607 | F42: =ROUND(IF(ISERROR((D42-C42)/$F$18),0,(D42-C42)/$F$18),4) -> 0.0661 | G42: =IF(ISERROR(D42/($D$50)),0,D42/($D$50)) -> 0.4754443082 | H42: 1 | J42: =0.16+5.7+0.01+5.39+0.92 -> 12.18
B43: Custos Operacionais | C43: ='NT Revisao'!AR210 -> 353838145.9 | D43: ='NT Revisao'!AS210 -> 356877421.2 | E43: =IF(ISERROR(D43/C43-1),0,D43/C43-1) -> 0.008589450807 | F43: =ROUND(IF(ISERROR((D43-C43)/$F$18),0,(D43-C43)/$F$18),4) -> 0.0025 | G43: =IF(ISERROR(D43/($D$50)),0,D43/($D$50)) -> 0.2644625413 | H43: 1
B44: Anuidades | C44: ='NT Revisao'!AR211 -> 47206791.09 | D44: ='NT Revisao'!AS211 -> 52564373.38 | E44: =IF(ISERROR(D44/C44-1),0,D44/C44-1) -> 0.1134917702 | F44: =ROUND(IF(ISERROR((D44-C44)/$F$18),0,(D44-C44)/$F$18),4) -> 0.0043 | G44: =IF(ISERROR(D44/($D$50)),0,D44/($D$50)) -> 0.03895261213 | H44: 1 | J44: =19.55+1.87+5.55+2.53-0.53-0.04 -> 28.93
B45: Remuneração | C45: ='NT Revisao'!AR212 -> 114399512.4 | D45: ='NT Revisao'!AS212 -> 176583401.6 | E45: 0.5435677821 | F45: 0.0504 | G45: 0.1308564015 | H45: 1
B46: Depreciação | C46: ='NT Revisao'!AR213 -> 52294777.51 | D46: ='NT Revisao'!AS213 -> 73935114.2 | E46: 0.4138144899 | F46: =ROUND(IF(ISERROR((D46-C46)/$F$18),0,(D46-C46)/$F$18),3) -> 0.018 | G46: 0.05478931148 | H46: 1
B47: Outras Receitas | C47: ='NT Revisao'!AR214 -> -7749892.843 | D47: ='NT Revisao'!AS214 -> -18374784.51 | E47: 1.370972719 | F47: -0.0086 | G47: -0.01361655829 | H47: 1
B48: Ultrapassagem de Demanda e Excedente Reativo | C48: ='NT Revisao'!AR215 -> 0 | D48: ='NT Revisao'!AS215 -> 0 | E48: 0 | F48: 0 | G48: =IF(ISERROR(D48/($D$50)),0,D48/($D$50))+0.0001 -> 0.0001 | H48: 0
B49: Ajuste Investimentos 2CRTP | C49: ='NT Revisao'!AR216 -> 0 | D49: ='NT Revisao'!AS216 -> 0 | E49: 0 | F49: 0 | G49: 0 | H49: 0
B50: RT considerando a varição tarifária da RTE | C50: ='NT Revisao'!AR217 -> 1234766259 | D50: ='NT Revisao'!AS217 -> 1349444120 | F50: =F42+F20 -> 0.0929 | H50: 1
C51: ='NT Revisao'!AR218 -> 0 | D51: ='NT Revisao'!AS218 -> 0 | H51: 1
B52: Efeito dos Componentes Financeiros do Processo Atual | C52: ='NT Revisao'!AR219 -> 0 | D52: ='NT Revisao'!AS219 -> 30451583.36 | F52: ='NT Revisao'!AU219 -> 0.02466054484 | H52: 1 | I52: =9.26+2.98+6.5 -> 18.74
B53: ='NT Revisao'!AQ220 -> CVA em processamento - Energia | C53: ='NT Revisao'!AR220 -> 0 | D53: ='NT Revisao'!AS220 -> 29026512.03 | F53: ='NT Revisao'!AU220 -> 0.02350648218 | H53: =IF(SUM(F53)<>0,1,0) -> 1
B54: ='NT Revisao'!AQ221 -> CVA em processamento -Transporte | C54: ='NT Revisao'!AR221 -> 0 | D54: ='NT Revisao'!AS221 -> 2576290.909 | F54: ='NT Revisao'!AU221 -> 0.002086352514 | H54: =IF(SUM(F54)<>0,1,0) -> 1 | J54: =3.16+1.71-0.66-0.27-0.06-0.23-0.55+0.02-0.14 -> 2.98
B55: ='NT Revisao'!AQ222 -> CVA em processamento - Encargos Setoriais | C55: ='NT Revisao'!AR222 -> 0 | D55: ='NT Revisao'!AS222 -> -17961747.1 | F55: ='NT Revisao'!AU222 -> -0.01454592573 | H55: 1
B56: ='NT Revisao'!AQ223 -> Saldo a Compensar CVA-Ano Anterior + Ajustes | C56: ='NT Revisao'!AR223 -> 0 | D56: ='NT Revisao'!AS223 -> 2729043.399 | F56: ='NT Revisao'!AU223 -> 0.002210055757 | H56: 1
B57: ='NT Revisao'!AQ224 -> Neutralidade de Parcela A- Energia | C57: ='NT Revisao'!AR224 -> 0 | D57: ='NT Revisao'!AS224 -> 340307.3157 | F57: ='NT Revisao'!AU224 -> 0.0002755903928 | H57: 1
B58: ='NT Revisao'!AQ225 -> Neutralidade de Parcela A - Transporte | C58: ='NT Revisao'!AR225 -> 0 | D58: ='NT Revisao'!AS225 -> 2294518.679 | F58: ='NT Revisao'!AU225 -> 0.001858165472 | H58: 1
B59: ='NT Revisao'!AQ226 -> Neutralidade de Parcela A - Encargos Setoriais | C59: ='NT Revisao'!AR226 -> 0 | D59: ='NT Revisao'!AS226 -> -699178.0346 | F59: ='NT Revisao'!AU226 -> -0.0005662139492 | H59: 1
B60: ='NT Revisao'!AQ227 -> Neutralidade de Parcela A - Receitas Irrecuperáveis | C60: ='NT Revisao'!AR227 -> 0 | D60: ='NT Revisao'!AS227 -> 0 | F60: ='NT Revisao'!AU227 -> 0 | H60: 0
B61: ='NT Revisao'!AQ228 -> Sobrecontratação/exposição de energia | C61: ='NT Revisao'!AR228 -> 0 | D61: ='NT Revisao'!AS228 -> -14029754.08 | F61: ='NT Revisao'!AU228 -> -0.01136168768 | H61: 1
B62: ='NT Revisao'!AQ229 -> Garantias financeiras na contratação regulada de energia (CCEAR) | C62: ='NT Revisao'!AR229 -> 0 | D62: ='NT Revisao'!AS229 -> 464887.96 | F62: ='NT Revisao'!AU229 -> 0.0003764792868 | H62: 1
B63: ='NT Revisao'!AQ230 -> Previsão de Risco Hidrológico | C63: ='NT Revisao'!AR230 -> 0 | D63: ='NT Revisao'!AS230 -> 36502986.82 | F63: ='NT Revisao'!AU230 -> 0.0295611408 | H63: 1
B64: ='NT Revisao'!AQ231 -> Ajuste Liminar Abrace | C64: ='NT Revisao'!AR231 -> 0 | D64: ='NT Revisao'!AS231 -> 0 | F64: ='NT Revisao'!AU231 -> 0 | H64: 0
B65: ='NT Revisao'!AQ232 -> Ajuste ref. equilíbrio econômico-financeiro TUSDg (A3a) | C65: ='NT Revisao'!AR232 -> 0 | D65: ='NT Revisao'!AS232 -> 0 | F65: ='NT Revisao'!AU232 -> 0 | H65: 0
B66: ='NT Revisao'!AQ233 -> Repasse de ultrapassagem de Supridas/Permissionárias de Energia | C66: ='NT Revisao'!AR233 -> 0 | D66: ='NT Revisao'!AS233 -> 0 | F66: ='NT Revisao'!AU233 -> 0 | H66: 0
B67: ='NT Revisao'!AQ234 -> Cálculo extraordinário de Neutralidade -Postergação da Data de Aniversário | C67: ='NT Revisao'!AR234 -> 0 | D67: ='NT Revisao'!AS234 -> 0 | F67: ='NT Revisao'!AU234 -> 0 | H67: 0
B68: ='NT Revisao'!AQ235 -> Ajuste CUSD | C68: ='NT Revisao'!AR235 -> 0 | D68: ='NT Revisao'!AS235 -> 40307.69189 | F68: ='NT Revisao'!AU235 -> 3.26422975e-05 | H68: 1
B69: ='NT Revisao'!AQ236 -> Repasse de compensação DIC/FIC | C69: ='NT Revisao'!AR236 -> 0 | D69: ='NT Revisao'!AS236 -> -1406.238749 | F69: ='NT Revisao'!AU236 -> -1.138811513e-06 | H69: 1
B70: ='NT Revisao'!AQ237 -> Compensação ref. acordos bilaterais de CCEAR | C70: ='NT Revisao'!AR237 -> 0 | D70: ='NT Revisao'!AS237 -> 17630218.14 | F70: ='NT Revisao'!AU237 -> 0.01427744429 | H70: 1
B71: ='NT Revisao'!AQ238 -> Reversão do Risco Hidrológico | C71: ='NT Revisao'!AR238 -> 0 | D71: ='NT Revisao'!AS238 -> -28461404.14 | F71: ='NT Revisao'!AU238 -> -0.02304884198 | H71: 1
B72: ='NT Revisao'!AQ239 -> 0 | C72: ='NT Revisao'!AR239 -> 0 | D72: ='NT Revisao'!AS239 -> 0 | F72: ='NT Revisao'!AU239 -> 0 | H72: 0
B73: ='NT Revisao'!AQ240 -> 0 | C73: ='NT Revisao'!AR240 -> 0 | D73: ='NT Revisao'!AS240 -> 0 | F73: ='NT Revisao'!AU240 -> 0 | H73: 0
B74: ='NT Revisao'!AQ241 -> 0 | C74: ='NT Revisao'!AR241 -> 0 | D74: ='NT Revisao'!AS241 -> 0 | F74: ='NT Revisao'!AU241 -> 0 | H74: 0
B75: ='NT Revisao'!AQ242 -> 0 | C75: ='NT Revisao'!AR242 -> 0 | D75: ='NT Revisao'!AS242 -> 0 | F75: ='NT Revisao'!AU242 -> 0 | H75: 0
B76: ='NT Revisao'!AQ243 -> 0 | C76: ='NT Revisao'!AR243 -> 0 | D76: ='NT Revisao'!AS243 -> 0 | F76: ='NT Revisao'!AU243 -> 0 | H76: 0
B77: ='NT Revisao'!AQ244 -> 0 | C77: ='NT Revisao'!AR244 -> 0 | D77: ='NT Revisao'!AS244 -> 0 | F77: ='NT Revisao'!AU244 -> 0 | H77: 0
B78: ='NT Revisao'!AQ245 -> 0 | C78: ='NT Revisao'!AR245 -> 0 | D78: ='NT Revisao'!AS245 -> 0 | F78: ='NT Revisao'!AU245 -> 0 | H78: 0
B79: ='NT Revisao'!AQ246 -> 0 | C79: ='NT Revisao'!AR246 -> 0 | D79: ='NT Revisao'!AS246 -> 0 | F79: ='NT Revisao'!AU246 -> 0 | H79: 0
B80: ='NT Revisao'!AQ247 -> 0 | C80: ='NT Revisao'!AR247 -> 0 | D80: ='NT Revisao'!AS247 -> 0 | F80: ='NT Revisao'!AU247 -> 0 | H80: 0
B81: ='NT Revisao'!AQ248 -> 0 | C81: ='NT Revisao'!AR248 -> 0 | D81: ='NT Revisao'!AS248 -> 0 | F81: ='NT Revisao'!AU248 -> 0 | H81: 0
B82: ='NT Revisao'!AQ249 -> 0 | C82: ='NT Revisao'!AR249 -> 0 | D82: ='NT Revisao'!AS249 -> 0 | F82: ='NT Revisao'!AU249 -> 0 | H82: 0
B83: ='NT Revisao'!AQ250 -> 0 | C83: ='NT Revisao'!AR250 -> 0 | D83: ='NT Revisao'!AS250 -> 0 | F83: ='NT Revisao'!AU250 -> 0 | H83: 0
B84: ='NT Revisao'!AQ251 -> 0 | C84: ='NT Revisao'!AR251 -> 0 | D84: ='NT Revisao'!AS251 -> 0 | F84: ='NT Revisao'!AU251 -> 0 | H84: 0
B85: ='NT Revisao'!AQ252 -> 0 | C85: ='NT Revisao'!AR252 -> 0 | D85: ='NT Revisao'!AS252 -> 0 | F85: ='NT Revisao'!AU252 -> 0 | H85: 0
B86: ='NT Revisao'!AQ253 -> 0 | C86: ='NT Revisao'!AR253 -> 0 | D86: ='NT Revisao'!AS253 -> 0 | F86: ='NT Revisao'!AU253 -> 0 | H86: 0
B87: ='NT Revisao'!AQ254 -> 0 | C87: ='NT Revisao'!AR254 -> 0 | D87: ='NT Revisao'!AS254 -> 0 | F87: ='NT Revisao'!AU254 -> 0 | H87: 0
B88: ='NT Revisao'!AQ255 -> 0 | C88: ='NT Revisao'!AR255 -> 0 | D88: ='NT Revisao'!AS255 -> 0 | F88: ='NT Revisao'!AU255 -> 0 | H88: 0
B89: ='NT Revisao'!AQ256 -> 0 | C89: ='NT Revisao'!AR256 -> 0 | D89: ='NT Revisao'!AS256 -> 0 | F89: ='NT Revisao'!AU256 -> 0 | H89: 0
B90: ='NT Revisao'!AQ257 -> 0 | C90: ='NT Revisao'!AR257 -> 0 | D90: ='NT Revisao'!AS257 -> 0 | F90: ='NT Revisao'!AU257 -> 0 | H90: =IF(SUM(F90)<>0,1,0) -> 0
B91: ='NT Revisao'!AQ258 -> 0 | C91: ='NT Revisao'!AR258 -> 0 | D91: ='NT Revisao'!AS258 -> 0 | F91: ='NT Revisao'!AU258 -> 0 | H91: 0
B92: ='NT Revisao'!AQ259 -> 0 | C92: ='NT Revisao'!AR259 -> 0 | D92: ='NT Revisao'!AS259 -> 0 | F92: ='NT Revisao'!AU259 -> 0 | H92: 0
B93: ='NT Revisao'!AQ260 -> 0 | C93: ='NT Revisao'!AR260 -> 0 | D93: ='NT Revisao'!AS260 -> 0 | F93: ='NT Revisao'!AU260 -> 0 | H93: 0
B94: ='NT Revisao'!AQ261 -> 0 | C94: ='NT Revisao'!AR261 -> 0 | D94: ='NT Revisao'!AS261 -> 0 | F94: ='NT Revisao'!AU261 -> 0 | H94: 0
B95: ='NT Revisao'!AQ262 -> 0 | C95: ='NT Revisao'!AR262 -> 0 | D95: ='NT Revisao'!AS262 -> 0 | F95: ='NT Revisao'!AU262 -> 0 | H95: 0
B96: ='NT Revisao'!AQ263 -> 0 | C96: ='NT Revisao'!AR263 -> 0 | D96: ='NT Revisao'!AS263 -> 0 | F96: ='NT Revisao'!AU263 -> 0 | H96: 0
B97: ='NT Revisao'!AQ264 -> 0 | C97: ='NT Revisao'!AR264 -> 0 | D97: ='NT Revisao'!AS264 -> 0 | F97: ='NT Revisao'!AU264 -> 0 | H97: 0
B98: ='NT Revisao'!AQ265 -> 0 | C98: ='NT Revisao'!AR265 -> 0 | D98: ='NT Revisao'!AS265 -> 0 | F98: ='NT Revisao'!AU265 -> 0 | H98: 0
B99: ='NT Revisao'!AQ266 -> 0 | C99: ='NT Revisao'!AR266 -> 0 | D99: ='NT Revisao'!AS266 -> 0 | F99: ='NT Revisao'!AU266 -> 0 | H99: 0
B100: ='NT Revisao'!AQ267 -> 0 | C100: ='NT Revisao'!AR267 -> 0 | D100: ='NT Revisao'!AS267 -> 0 | F100: ='NT Revisao'!AU267 -> 0 | H100: 0
B101: ='NT Revisao'!AQ268 -> 0 | C101: ='NT Revisao'!AR268 -> 0 | D101: ='NT Revisao'!AS268 -> 0 | F101: ='NT Revisao'!AU268 -> 0 | H101: 0
B102: ='NT Revisao'!AQ269 -> 0 | C102: ='NT Revisao'!AR269 -> 0 | D102: ='NT Revisao'!AS269 -> 0 | F102: ='NT Revisao'!AU269 -> 0 | H102: 0
B103: ='NT Revisao'!AQ270 -> 0 | C103: ='NT Revisao'!AR270 -> 0 | D103: ='NT Revisao'!AS270 -> 0 | F103: ='NT Revisao'!AU270 -> 0 | H103: 0
B104: ='NT Revisao'!AQ271 -> Efeito da retirada dos Componentes Financeiros do Processo Anterior | C104: ='NT Revisao'!AR271 -> 0 | D104: ='NT Revisao'!AS271 -> 0 | F104: ='NT Revisao'!AU271 -> -0.0458 | N104: Impacto da RTE na Tarifa | R104: Composição da Receita
B105: ='NT Revisao'!AQ272 -> Efeito Médio a ser percebido pelos Consumidores | C105: ='NT Revisao'!AR272 -> 0 | D105: ='NT Revisao'!AS272 -> 0 | F105: ='NT Revisao'!AU272 -> 0.07171691872 | N105: Encargos Setoriais | O105: =F21 -> 0.0043 | R105: Custo de Distribuição | S105: =D42 -> 641585525.8
N106: Custos de Transmissão | O106: =F31 -> 0.0237 | R106: Custo de Energia | S106: =D41 -> 529001044.1
N107: Custos de Aquisição de Energia | O107: =F41 -> -0.0022 | R107: Custo de Transmissão | S107: =D31 -> 92737219.45
R108: Receitas Irrecuperáveis | S108: =D40 -> 7525010.856
N109: Distribuição | O109: =F42 -> 0.0661 | R109: Encargos Setoriais | S109: =D21 -> 78595319.33
N110: Receitas Irrecuperáveis | O110: =F40 -> 0.001
N111: Componentes Financeiros | O111: =F52 -> 0.02466054484 | R111: Composição da Receita com detalhamento de Encargos
N112: Efeito da Retirada dos Financeiros Anteriores | O112: =F104 -> -0.0458 | R112: Custo de Distribuição | S112: =S105 -> 641585525.8
N113: Efeito Médio Consumidor | O113: =F105 -> 0.07171691872 | R113: Custo de Energia | S113: =S106 -> 529001044.1
M114: Método por despesa | R114: Custo de Transmissão | S114: =S107 -> 92737219.45
R115: Receitas Irrecuperáveis | S115: =D40 -> 7525010.856
F116: Montante Anterior | G116: Montante ponderado | H116: Custo Médio A-1 | I116: CustoA-1 | J116: Montante Proc Atual | K116: Preço Proc atual | L116: Custo sem Sobra/Exp. | M116: Impacto IRT | P116: 1 | R116: P&D | S116: =D29 -> 13200773.13
F117: =SUMIFS(BD!L86:L105,BD!J86:J105,"Existente",BD!I86:I105,"CCEAR-DISP") -> 2019.792 | G117: =F117/SUM(BD!$M$87:$M$108)*'NT Revisao'!$AR$208 -> 2043.374742 | H117: =#REF! ->  | I117: =G117*H117 ->  | J117: =#REF! ->  | K117: =#REF! ->  | L117: =K117*(J117+J117/SUM($J$117:$J$127)*$J$130) ->  | M117: =(L117-I117-$I$130/SUM($I$117:$I$130)*I117)/$P$142 ->  | N117: Total | O117: =SUM(O118:O130) ->  | P117: =IF(O118=0,0,1) ->  | R117: CDE | S117: =D23+D24+D25 -> 40756364.76
F118: =SUMIFS(BD!L86:L105,BD!J86:J105,"Existente",BD!I86:I105,"CCEAR-QTD") -> 179671.8186 | G118: =F118/SUM(BD!$M$87:$M$108)*'NT Revisao'!$AR$208 -> 181769.6357 | H118: =#REF! ->  | J118: =#REF! ->  | K118: =#REF! ->  | N118: =#REF! ->  | O118: =Q144 ->  | R118: ESS/EER | S118: 0
F119: =SUMIFS(BD!L86:L105,BD!J86:J105,"<>Existente",BD!I86:I105,"CCEAR-DISP",BD!J86:J105,"<>Madeira",BD!J86:J105,"<>Belo Monte") -> 784048.6389 | G119: =F119/SUM(BD!$M$87:$M$108)*'NT Revisao'!$AR$208 -> 793203.0551 | H119: =#REF! ->  | J119: =#REF! ->  | K119: =#REF! ->  | N119: =#REF! ->  | R119: TFSEE | S119: =D22 -> 2570668.766
F120: =SUMIFS(BD!L86:L105,BD!J86:J105,"<>Existente",BD!I86:I105,"CCEAR-QTD",BD!J86:J105,"<>Madeira",BD!J86:J105,"<>Belo Monte") -> 288471.5594 | G120: =F120/SUM(BD!$M$87:$M$108)*'NT Revisao'!$AR$208 -> 291839.7034 | H120: =#REF! ->  | J120: =#REF! ->  | K120: =#REF! ->  | N120: =#REF! -> 
F121: =SUMIFS(BD!L86:L105,BD!I86:I105,"Leilão de Ajuste") -> 0 | G121: =F121/SUM(BD!$M$87:$M$108)*'NT Revisao'!$AR$208 -> 0 | H121: =#REF! ->  | J121: =#REF! ->  | K121: =#REF! ->  | N121: =#REF! ->  | R121: Composição da Receita com Tributos
F122: =(SUMIFS(BD!L86:L105,BD!J86:J105,"Belo Monte",BD!I86:I105,"CCEAR-QTD")+SUMIFS(BD!L86:L105,BD!J86:J105,"Madeira",BD!I86:I105,"CCEAR-QTD")) -> 167794.9105 | G122: =F122/SUM(BD!$M$87:$M$108)*'NT Revisao'!$AR$208 -> 169754.0549 | H122: =#REF! ->  | J122: =#REF! ->  | K122: =#REF! ->  | N122: =#REF! ->  | R122: Custo de Distribuição | S122: =S105/$S$129 -> 0.3472756441
F123: =SUMIFS(BD!L86:L105,BD!I86:I105,"Bilateral") -> 349333.68 | G123: =F123/SUM(BD!$M$87:$M$108)*'NT Revisao'!$AR$208 -> 353412.4396 | H123: =#REF! ->  | J123: =#REF! ->  | K123: =#REF! ->  | N123: =#REF! ->  | R123: Custo de Energia | S123: =S106/$S$129 -> 0.2863362263
F124: =SUMIFS(BD!L86:L105,BD!I86:I105,"CCEN") -> 72361.91383 | G124: =F124/SUM(BD!$M$87:$M$108)*'NT Revisao'!$AR$208 -> 73206.79901 | H124: =#REF! ->  | J124: =#REF! ->  | K124: =#REF! ->  | N124: =#REF! ->  | R124: Custo de Transmissão | S124: 0.0501965464
F125: =SUMIFS(BD!L86:L105,BD!I86:I105,"CCGF") -> 592889.9799 | G125: =F125/SUM(BD!$M$87:$M$108)*'NT Revisao'!$AR$208 -> 599812.4607 | H125: =#REF! ->  | J125: =#REF! ->  | K125: =#REF! ->  | N125: =#REF! ->  | P125: =IF(O126=0,0,1) ->  | R125: Receitas Irrecuperáveis | S125: 0.004073117124
F126: =SUMIFS(BD!L86:L108,BD!I86:I108,"GERAÇÃO PRÓPRIA") -> 0 | G126: =F126/SUM(BD!$M$87:$M$108)*'NT Revisao'!$AR$208 -> 0 | H126: =#REF! ->  | J126: =#REF! ->  | K126: =#REF! ->  | N126: =#REF! ->  | O126: =Q152 ->  | R126: Encargos Setoriais | S126: =S109/$S$129 -> 0.0425418577
F127: =SUMIFS(BD!L86:L105,BD!I86:I105,"Itaipu") -> 0 | G127: =F127/SUM(BD!$M$87:$M$108)*'NT Revisao'!$AR$208 -> 0 | H127: =#REF! ->  | J127: =#REF! ->  | K127: =#REF! ->  | N127: =#REF! ->  | R127: ICMS | S127: =Mercado!G9 -> 0.2240259036
G128: =F128/SUM(BD!$M$87:$M$108)*'NT Revisao'!$AR$208 -> 0 | H128: =#REF! ->  | J128: =#REF! ->  | K128: =#REF! ->  | L128: =K128*(J128+J128/$J$131*$J$130) ->  | N128: =#REF! ->  | R128: PIS/COFINS | S128: =Mercado!$G$10 -> 0.05749534721
F129: =SUMIFS(BD!L86:L105,BD!I86:I105,"Proinfa") -> 52269.44113 | G129: =F129/VLOOKUP("PROINFA",BD!B8:C16,2,FALSE)*SUM(DADOS_MercadoBase[PROINFA]) -> 52400.29776 | H129: =I129/G129 -> 373.0053447 | I129: =+'NT Revisao'!AR195 -> 19545591.13 | J129: =#REF! ->  | K129: =#REF! ->  | L129: =K129*J129 ->  | N129: =#REF! ->  | P129: 1 | R129: Receita com Impostos | S129: =SUM(S112:S119)/(1-S127-S128) -> 1847482070
F130: =SUMIFS(BD!L86:L105,BD!I86:I105,"SOBRA/EXPOSIÇÃO") -> 78422.68257 | G130: =F130/SUM(BD!$M$87:$M$108)*'NT Revisao'!$AR$208 -> 79338.33224 | H130: =#REF! ->  | J130: =#REF! ->  | K130: =#REF! ->  | L130: N/A | M130: N/A | N130: =#REF! ->  | R130: Imposto Total por Fora | S130: =(S127+S128)/(1-S127-S128) -> 0.3918296137
F131: Total | G131: =SUM(G117:G130) -> 2596780.153 | H131: =SUM(I117:I130)/SUM(G117:G130) ->  | I131: =G131*H131 ->  | J131: =SUM(J117:J130) ->  | K131: =#REF! ->  | L131: =SUM(L117:L130) ->  | M131: =SUM(M117:M130) -> 
N139: Energia com RTE - Faturamento | P139: =C41 -> 531714817.2
N140: Energia com RTE - Cobertura Tarifária | P140: =SUMIFS(BD!F86:F445,BD!C86:C445,"ENERGIA",BD!D86:D445,"Base")+SUMIFS(BD!F86:F445,BD!B86:B445,"PROINFA",BD!D86:D445,"Base") -> 525755023.3
N141: Impacto considerado | P141: =SUMPRODUCT(J117:J130,K117:K130)-P139 -> 
K142: Incremento em relação ao cuto médio | N142: Base | P142: =C50 -> 1234766259
H143: Tipo de Contrato | J143: Variação de montante DRA/DRP | K143: Efeito Montante | L143: Efeito Preço | M143: Efeito Preço montante | N143: Impacto Mudança de portfólio | O143: Impacto de mudança de montante | P143: Impacto total | Q143: Impacto % distribuído
H144: Existente - CCEAR-DSP | J144: =$J$158/$G$131*G117 ->  | K144: =(J117-G117*$J$131/$G$131)*(IF(F117=0,K117,H117)-$H$131)/$J$131 ->  | L144: =IF(OR(H117=0,K117=0),0,(K117-H117)*G117/$G$131) ->  | M144: =IF(OR(H117=0,K117=0),0,(K117-H117)*(J117-G117*$J$131/$G$131)/$J$131) ->  | N144: =SUM(K144:M144)*$J$131 ->  | O144: =J144*H117 ->  | P144: =N144+O144 ->  | Q144: =(P144+$P$157*P144/SUM($P$144:$P$155))/$P$142 ->  | R144: =IF(Q144=0,0,1) -> 
H145: Existente - CCEAR-QTD | Q145: =(P145+$P$157*P145/SUM($P$144:$P$155))/$P$142 ->  | R145: =IF(Q145=0,0,1) -> 
H146: Nova e Alternativa- CCEAR-DSP
H147: Nova e Alternativa- CCEAR-QTD
H148: Ajuste - CCEAR
H149: Madeira e Belo Monte
H150: Bilateral | Q150: =(P150+$P$157*P150/SUM($P$144:$P$155))/$P$142 -> 
H151: Cota Angra I e Angra II
H152: Cotas Lei n º 12.783/2013
H153: Geração Própria | O153: =J153*H126 -> 
H154: Itaipu
H155: Montante de Reposição
H156: Proinfa | Q156: =(P156)/$P$142 -> 
H157: Sobra (-) / Exposição (+)
H158: Total | J158: =J131-G131 ->  | K158: =(J131-G131*$J$131/$G$131)*(H131-$H$131)/$J$131 -> 

Sheet Avaliação Parcela B Nova (2) (hidden)
B2: Entrada de Dados | M2: Ciclo Tarifário | N2: ='VPB e Fator X'!C7 -> 4
B4: Informações da última revisão tarifária | O4: Parcela B 4º Ciclo | P4: Participação 4º Ciclo | Q4: Parcela B 4º Ciclo (Aj. T) | R4: Participação 4º Ciclo (Aj, T) | V4: Receita Verificada (R$) | W4: Receita Requerida (R$) | X4: Var(%) | Y4: Impacto na Revisão | Z4: Participação Receita Reajuste Anterior (%)
B5: Base de Remuneração Líquida (BRL) | E5: 577082363.8
